{"text_format":"1","workbook":"xlsx","n_sheets":6,"sheets":["Encodage réponses Es","Résultats","Bilan","Résultats classe","Info","Tableaux apprentissages"],"not_rendered":{"charts":3,"images":6,"macros":1,"external_links":0,"defined_names":7,"comments":0,"pivot_tables":0},"unopened":[],"bounds":{"document_bytes":16777216,"sheet_cells":100000,"rows_first":2000,"rows_last":500,"rows_between":2000,"halvings":0,"cell_chars":16384,"cell_head_chars":4096},"cells_cut":0,"cells_raw":0,"read":"whole","date_system":"1900"}

{"sheet":"Encodage réponses Es","index":0,"n_rows":46,"n_cols":71,"rows_kept":46,"cut":false,"hidden":false,"merged":[[39,0,40,0],[36,0,37,0],[39,1,40,5],[34,0,35,5],[42,1,43,5],[0,1,0,8],[36,1,37,5],[0,70,1,70],[35,52,35,69],[45,1,46,5],[1,8,2,8],[1,3,1,7],[0,9,0,38],[0,39,0,69]]}
["École",null,null,null,null,null,null,null,null,"Encodage des résultats pour le volet \"géographie\"",null,null,null,null,null,null,null,null,null,null,null,null,null,null,null,null,null,null,null,null,null,null,null,null,null,null,null,null,null,"Encodage des résultats pour le volet \"histoire\"",null,null,null,null,null,null,null,null,null,null,null,null,null,null,null,null,null,null,null,null,null,null,null,null,null,null,null,null,null,null,"Rem"]
["N° FASE \nÉcole","N° FASE \nImplantation","Classe","Élèves",null,null,null,null,"Élèves absents à la totalité de l'épreuve",1,2,3,4,5,6,7,8,9,10,11,12,13,14,15,16,17,18,19,20,21,22,23,24,25,26,27,28,29,30,31,32,33,34,35,36,37,38,39,40,41,42,43,44,45,46,47,48,49,50,51,52,53,54,55,56,57,58,59,60,61]
[null,null,null,null,"NOM","Prénom","Catégorie",null,null,1,1,1,1,1,1,1,1,1,1,1,1,2,1,1,4,1,1,1,1,1,1,4,2,2,1,1,1,1,2,1,1,1,1,2,2,1,1,2,2,1,2,1,1,1,1,1,1,1,1,2,1.5,1.5,1,2,1,1,1,1,1,2,"a / !"]
[{"$f":"$A3","v":0},{"$f":"$B3","v":0},{"$f":"$C3","v":0},1,null,null,null,{"$f":"IF(AND(E4<>\"\",G4=\"\"),\"A compléter!\",\"\")","v":""},null,null,null,null,null,null,null,null,null,null,null,null,null,null,null,null,null,null,null,null,null,null,null,null,null,null,null,null,null,null,null,null,null,null,null,null,null,null,null,null,null,null,null,null,null,null,null,null,null,null,null,null,null,null,null,null,null,null,null,null,null,null,{"$f":"IF(COUNTA(I4:BR4)=0,\"\",IF(OR(I4=\"a\",I4=\"A\"),\"a\",IF(COUNTA(J4:BR4)<61,\"!\",IF(OR(COUNTIF(J4:BR4,\"a\")>0,COUNTIF(J4:BR4,\"A\")>0),\"a\",\"\"))))","v":""}]
[{"$f":"$A4","v":0},{"$f":"$B4","v":0},{"$f":"$C4","v":0},2,null,null,null,"",null,null,null,null,null,null,null,null,null,null,null,null,null,null,null,null,null,null,null,null,null,null,null,null,null,null,null,null,null,null,null,null,null,null,null,null,null,null,null,null,null,null,null,null,null,null,null,null,null,null,null,null,null,null,null,null,null,null,null,null,null,null,{"$f":"IF(COUNTA(I5:BR5)=0,\"\",IF(OR(I5=\"a\",I5=\"A\"),\"a\",IF(COUNTA(J5:BR5)<61,\"!\",IF(OR(COUNTIF(J5:BR5,\"a\")>0,COUNTIF(J5:BR5,\"A\")>0),\"a\",\"\"))))","v":""}]
[0,0,0,3,null,null,null,"",null,null,null,null,null,null,null,null,null,null,null,null,null,null,null,null,null,null,null,null,null,null,null,null,null,null,null,null,null,null,null,null,null,null,null,null,null,null,null,null,null,null,null,null,null,null,null,null,null,null,null,null,null,null,null,null,null,null,null,null,null,null,""]
[0,0,0,4,null,null,null,"",null,null,null,null,null,null,null,null,null,null,null,null,null,null,null,null,null,null,null,null,null,null,null,null,null,null,null,null,null,null,null,null,null,null,null,null,null,null,null,null,null,null,null,null,null,null,null,null,null,null,null,null,null,null,null,null,null,null,null,null,null,null,""]
[0,0,0,5,null,null,null,"",null,null,null,null,null,null,null,null,null,null,null,null,null,null,null,null,null,null,null,null,null,null,null,null,null,null,null,null,null,null,null,null,null,null,null,null,null,null,null,null,null,null,null,null,null,null,null,null,null,null,null,null,null,null,null,null,null,null,null,null,null,null,""]
[0,0,0,6,null,null,null,"",null,null,null,null,null,null,null,null,null,null,null,null,null,null,null,null,null,null,null,null,null,null,null,null,null,null,null,null,null,null,null,null,null,null,null,null,null,null,null,null,null,null,null,null,null,null,null,null,null,null,null,null,null,null,null,null,null,null,null,null,null,null,""]
[0,0,0,7,null,null,null,"",null,null,null,null,null,null,null,null,null,null,null,null,null,null,null,null,null,null,null,null,null,null,null,null,null,null,null,null,null,null,null,null,null,null,null,null,null,null,null,null,null,null,null,null,null,null,null,null,null,null,null,null,null,null,null,null,null,null,null,null,null,null,""]
[0,0,0,8,null,null,null,"",null,null,null,null,null,null,null,null,null,null,null,null,null,null,null,null,null,null,null,null,null,null,null,null,null,null,null,null,null,null,null,null,null,null,null,null,null,null,null,null,null,null,null,null,null,null,null,null,null,null,null,null,null,null,null,null,null,null,null,null,null,null,""]
[0,0,0,9,null,null,null,"",null,null,null,null,null,null,null,null,null,null,null,null,null,null,null,null,null,null,null,null,null,null,null,null,null,null,null,null,null,null,null,null,null,null,null,null,null,null,null,null,null,null,null,null,null,null,null,null,null,null,null,null,null,null,null,null,null,null,null,null,null,null,""]
[0,0,0,10,null,null,null,"",null,null,null,null,null,null,null,null,null,null,null,null,null,null,null,null,null,null,null,null,null,null,null,null,null,null,null,null,null,null,null,null,null,null,null,null,null,null,null,null,null,null,null,null,null,null,null,null,null,null,null,null,null,null,null,null,null,null,null,null,null,null,""]
[0,0,0,11,null,null,null,"",null,null,null,null,null,null,null,null,null,null,null,null,null,null,null,null,null,null,null,null,null,null,null,null,null,null,null,null,null,null,null,null,null,null,null,null,null,null,null,null,null,null,null,null,null,null,null,null,null,null,null,null,null,null,null,null,null,null,null,null,null,null,""]
[0,0,0,12,null,null,null,"",null,null,null,null,null,null,null,null,null,null,null,null,null,null,null,null,null,null,null,null,null,null,null,null,null,null,null,null,null,null,null,null,null,null,null,null,null,null,null,null,null,null,null,null,null,null,null,null,null,null,null,null,null,null,null,null,null,null,null,null,null,null,""]
[0,0,0,13,null,null,null,"",null,null,null,null,null,null,null,null,null,null,null,null,null,null,null,null,null,null,null,null,null,null,null,null,null,null,null,null,null,null,null,null,null,null,null,null,null,null,null,null,null,null,null,null,null,null,null,null,null,null,null,null,null,null,null,null,null,null,null,null,null,null,""]
[0,0,0,14,null,null,null,"",null,null,null,null,null,null,null,null,null,null,null,null,null,null,null,null,null,null,null,null,null,null,null,null,null,null,null,null,null,null,null,null,null,null,null,null,null,null,null,null,null,null,null,null,null,null,null,null,null,null,null,null,null,null,null,null,null,null,null,null,null,null,""]
[0,0,0,15,null,null,null,"",null,null,null,null,null,null,null,null,null,null,null,null,null,null,null,null,null,null,null,null,null,null,null,null,null,null,null,null,null,null,null,null,null,null,null,null,null,null,null,null,null,null,null,null,null,null,null,null,null,null,null,null,null,null,null,null,null,null,null,null,null,null,""]
[0,0,0,16,null,null,null,"",null,null,null,null,null,null,null,null,null,null,null,null,null,null,null,null,null,null,null,null,null,null,null,null,null,null,null,null,null,null,null,null,null,null,null,null,null,null,null,null,null,null,null,null,null,null,null,null,null,null,null,null,null,null,null,null,null,null,null,null,null,null,""]
[0,0,0,17,null,null,null,"",null,null,null,null,null,null,null,null,null,null,null,null,null,null,null,null,null,null,null,null,null,null,null,null,null,null,null,null,null,null,null,null,null,null,null,null,null,null,null,null,null,null,null,null,null,null,null,null,null,null,null,null,null,null,null,null,null,null,null,null,null,null,""]
[0,0,0,18,null,null,null,"",null,null,null,null,null,null,null,null,null,null,null,null,null,null,null,null,null,null,null,null,null,null,null,null,null,null,null,null,null,null,null,null,null,null,null,null,null,null,null,null,null,null,null,null,null,null,null,null,null,null,null,null,null,null,null,null,null,null,null,null,null,null,""]
[0,0,0,19,null,null,null,"",null,null,null,null,null,null,null,null,null,null,null,null,null,null,null,null,null,null,null,null,null,null,null,null,null,null,null,null,null,null,null,null,null,null,null,null,null,null,null,null,null,null,null,null,null,null,null,null,null,null,null,null,null,null,null,null,null,null,null,null,null,null,""]
[0,0,0,20,null,null,null,"",null,null,null,null,null,null,null,null,null,null,null,null,null,null,null,null,null,null,null,null,null,null,null,null,null,null,null,null,null,null,null,null,null,null,null,null,null,null,null,null,null,null,null,null,null,null,null,null,null,null,null,null,null,null,null,null,null,null,null,null,null,null,""]
[0,0,0,21,null,null,null,"",null,null,null,null,null,null,null,null,null,null,null,null,null,null,null,null,null,null,null,null,null,null,null,null,null,null,null,null,null,null,null,null,null,null,null,null,null,null,null,null,null,null,null,null,null,null,null,null,null,null,null,null,null,null,null,null,null,null,null,null,null,null,""]
[0,0,0,22,null,null,null,"",null,null,null,null,null,null,null,null,null,null,null,null,null,null,null,null,null,null,null,null,null,null,null,null,null,null,null,null,null,null,null,null,null,null,null,null,null,null,null,null,null,null,null,null,null,null,null,null,null,null,null,null,null,null,null,null,null,null,null,null,null,null,""]
[0,0,0,23,null,null,null,"",null,null,null,null,null,null,null,null,null,null,null,null,null,null,null,null,null,null,null,null,null,null,null,null,null,null,null,null,null,null,null,null,null,null,null,null,null,null,null,null,null,null,null,null,null,null,null,null,null,null,null,null,null,null,null,null,null,null,null,null,null,null,""]
[0,0,0,24,null,null,null,"",null,null,null,null,null,null,null,null,null,null,null,null,null,null,null,null,null,null,null,null,null,null,null,null,null,null,null,null,null,null,null,null,null,null,null,null,null,null,null,null,null,null,null,null,null,null,null,null,null,null,null,null,null,null,null,null,null,null,null,null,null,null,""]
[0,0,0,25,null,null,null,"",null,null,null,null,null,null,null,null,null,null,null,null,null,null,null,null,null,null,null,null,null,null,null,null,null,null,null,null,null,null,null,null,null,null,null,null,null,null,null,null,null,null,null,null,null,null,null,null,null,null,null,null,null,null,null,null,null,null,null,null,null,null,""]
[0,0,0,26,null,null,null,"",null,null,null,null,null,null,null,null,null,null,null,null,null,null,null,null,null,null,null,null,null,null,null,null,null,null,null,null,null,null,null,null,null,null,null,null,null,null,null,null,null,null,null,null,null,null,null,null,null,null,null,null,null,null,null,null,null,null,null,null,null,null,""]
[0,0,0,27,null,null,null,"",null,null,null,null,null,null,null,null,null,null,null,null,null,null,null,null,null,null,null,null,null,null,null,null,null,null,null,null,null,null,null,null,null,null,null,null,null,null,null,null,null,null,null,null,null,null,null,null,null,null,null,null,null,null,null,null,null,null,null,null,null,null,""]
[0,0,0,28,null,null,null,"",null,null,null,null,null,null,null,null,null,null,null,null,null,null,null,null,null,null,null,null,null,null,null,null,null,null,null,null,null,null,null,null,null,null,null,null,null,null,null,null,null,null,null,null,null,null,null,null,null,null,null,null,null,null,null,null,null,null,null,null,null,null,""]
[0,0,0,29,null,null,null,"",null,null,null,null,null,null,null,null,null,null,null,null,null,null,null,null,null,null,null,null,null,null,null,null,null,null,null,null,null,null,null,null,null,null,null,null,null,null,null,null,null,null,null,null,null,null,null,null,null,null,null,null,null,null,null,null,null,null,null,null,null,null,""]
[0,0,0,30,null,null,null,"",null,null,null,null,null,null,null,null,null,null,null,null,null,null,null,null,null,null,null,null,null,null,null,null,null,null,null,null,null,null,null,null,null,null,null,null,null,null,null,null,null,null,null,null,null,null,null,null,null,null,null,null,null,null,null,null,null,null,null,null,null,null,""]
[]
["Légende"]
[null,null,null,null,null,null,null,null,null,null,null,null,null,null,null,null,null,null,null,null,null,null,null,null,null,null,null,null,null,null,null,null,null,null,null,null,null,null,null,null,null,null,null,null,null,null,null,null,null,null,null,null,{"$f":"IF(BS36>1,\"Nombre de lignes à compléter : \",IF(BS36=1,\"1 ligne à compléter\",\"\"))","v":""},null,null,null,null,null,null,null,null,null,null,null,null,null,null,null,null,null,{"$f":"COUNTIF(BS4:BS33,\"!\")","v":0}]
[null,"Item se rapportant à la formation géographique"]
[]
[]
[null,"Item se rapportant à la formation historique"]
[]
[]
[]
[]
[]
[null,null,null,null,null,null," "]

{"sheet":"Résultats","index":1,"n_rows":52,"n_cols":83,"rows_kept":52,"cut":false,"hidden":false,"merged":[[51,8,51,9],[0,14,2,15],[0,9,2,10],[0,12,2,13],[0,8,3,8],[5,8,33,8],[49,0,50,1],[49,2,50,7],[0,4,1,7],[2,7,3,7],[43,0,44,1],[37,0,38,4],[2,4,2,6],[43,2,44,7],[40,2,41,7],[46,2,47,7],[46,0,47,1],[40,0,41,1],[1,37,1,40],[1,21,1,24],[1,25,1,32],[0,35,0,49],[1,35,1,36],[1,49,3,49],[0,18,0,34],[1,34,3,34],[1,41,1,45],[1,18,1,20],[1,46,1,48],[1,80,1,81],[0,50,0,69],[1,69,3,69],[1,50,1,53],[1,54,1,56],[1,57,1,64],[1,65,1,68],[0,70,0,82],[1,70,1,74],[1,75,1,79],[1,82,3,82]]}
["N° FASE\nÉcole","N° FASE\nImplantation",{"$f":"'Encodage réponses Es'!C2","v":"Classe"},null,"                            ",null,null,null,null,"EDM",null,null,"Volet géographique",null,"Volet historique",null,null,null,"Savoir-faire géographiques: utliliser/lire",null,null,null,null,null,null,null,null,null,null,null,null,null,null,null,null,"Savoirs géographiques",null,null,null,null,null,null,null,null,null,null,null,null,null,null,"Savoir-faire historiques: utiliser/lire",null,null,null,null,null,null,null,null,null,null,null,null,null,null,null,null,null,null,null,"Savoirs historiques"]
[{"$f":"'Encodage réponses Es'!A3","v":0},{"$f":"'Encodage réponses Es'!B3","v":0},{"$f":"'Encodage réponses Es'!C3","v":0},null,null,null,null,null,null,null,null,null,null,null,null,null,null,null,"des repères spatiaux",null,null,"des repr. de l'espace",null,null,null,"Localiser un espace",null,null,null,null,null,null,null,null,{"$f":"SUM(S4:AH4)","v":24},"Comp. du paysage",null,"Milieux naturels",null,null,null,"Organisation de l'espace",null,null,null,null,"Interactions hommes-espace",null,null,{"$f":"SUM(AJ4:AW4)","v":16},"Utiliser des repères du temps",null,null,null,"Utiliser des représentations du temps",null,null,"Lire une trace du passé",null,null,null,null,null,null,null,"Exploiter des sources historiques",null,null,null,{"$f":"SUM(AY4:BQ4)","v":24.5},"Organisation du temps",null,null,null,null,"Mode de vie des gens à une époque déterminée",null,null,null,null,"Nature trace passé",null,{"$f":"SUM(BS4:CD4)","v":15.5}]
[null,null,null,null,"Élèves",null,null,"Élèves absents à la totalité de l'épreuve",null,null,null,null,null,null,null,null,null,"Items",13,16,23,2,4,5,19,8,17,18,20,21,22,24,27,11,null,1,10,15,25,29,30,3,6,7,12,14,9,26,28,null,38,45,46,47,55,56,57,34,35,40,41,42,51,52,54,43,44,48,49,null,"36","58","59","60","61","31","33","37","39","50","32","53"]
[null,null,null,null,"Nom","Prénom","Catégorie",null,null,{"$f":"M4+O4","v":80},"%",null,{"$f":"SUM(AI2,AX2)","v":40},"%",{"$f":"SUM(BR2,CE2)","v":40},"%",null,"Maxima",{"$f":"IF('Encodage réponses Es'!V3=\"\",\"\",'Encodage réponses Es'!V3)","v":2},{"$f":"IF('Encodage réponses Es'!Y3=\"\",\"\",'Encodage réponses Es'!Y3)","v":4},{"$f":"IF('Encodage réponses Es'!AF3=\"\",\"\",'Encodage réponses Es'!AF3)","v":4},{"$f":"IF('Encodage réponses Es'!K3=\"\",\"\",'Encodage réponses Es'!K3)","v":1},{"$f":"IF('Encodage réponses Es'!M3=\"\",\"\",'Encodage réponses Es'!M3)","v":1},{"$f":"IF('Encodage réponses Es'!N3=\"\",\"\",'Encodage réponses Es'!N3)","v":1},{"$f":"IF('Encodage réponses Es'!AB3=\"\",\"\",'Encodage réponses Es'!AB3)","v":1},{"$f":"IF('Encodage réponses Es'!Q3=\"\",\"\",'Encodage réponses Es'!Q3)","v":1},{"$f":"IF('Encodage réponses Es'!Z3=\"\",\"\",'Encodage réponses Es'!Z3)","v":1},{"$f":"IF('Encodage réponses Es'!AA3=\"\",\"\",'Encodage réponses Es'!AA3)","v":1},{"$f":"IF('Encodage réponses Es'!AC3=\"\",\"\",'Encodage réponses Es'!AC3)","v":1},{"$f":"IF('Encodage réponses Es'!AD3=\"\",\"\",'Encodage réponses Es'!AD3)","v":1},{"$f":"IF('Encodage réponses Es'!AE3=\"\",\"\",'Encodage réponses Es'!AE3)","v":1},{"$f":"IF('Encodage réponses Es'!AG3=\"\",\"\",'Encodage réponses Es'!AG3)","v":2},{"$f":"IF('Encodage réponses Es'!AJ3=\"\",\"\",'Encodage réponses Es'!AJ3)","v":1},{"$f":"IF('Encodage réponses Es'!T3=\"\",\"\",'Encodage réponses Es'!T3)","v":1},null,{"$f":"IF('Encodage réponses Es'!J3=\"\",\"\",'Encodage réponses Es'!J3)","v":1},{"$f":"IF('Encodage réponses Es'!S3=\"\",\"\",'Encodage réponses Es'!S3)","v":1},{"$f":"IF('Encodage réponses Es'!X3=\"\",\"\",'Encodage réponses Es'!X3)","v":1},{"$f":"IF('Encodage réponses Es'!AH3=\"\",\"\",'Encodage réponses Es'!AH3)","v":2},{"$f":"IF('Encodage réponses Es'!AL3=\"\",\"\",'Encodage réponses Es'!AL3)","v":1},{"$f":"IF('Encodage réponses Es'!AM3=\"\",\"\",'Encodage réponses Es'!AM3)","v":2},{"$f":"IF('Encodage réponses Es'!L3=\"\",\"\",'Encodage réponses Es'!L3)","v":1},{"$f":"IF('Encodage réponses Es'!O3=\"\",\"\",'Encodage réponses Es'!O3)","v":1},{"$f":"IF('Encodage réponses Es'!P3=\"\",\"\",'Encodage réponses Es'!P3)","v":1},{"$f":"IF('Encodage réponses Es'!U3=\"\",\"\",'Encodage réponses Es'!U3)","v":1},{"$f":"IF('Encodage réponses Es'!W3=\"\",\"\",'Encodage réponses Es'!W3)","v":1},{"$f":"IF('Encodage réponses Es'!R3=\"\",\"\",'Encodage réponses Es'!R3)","v":1},{"$f":"IF('Encodage réponses Es'!AI3=\"\",\"\",'Encodage réponses Es'!AI3)","v":1},{"$f":"IF('Encodage réponses Es'!AK3=\"\",\"\",'Encodage réponses Es'!AK3)","v":1},null,{"$f":"IF('Encodage réponses Es'!AU3=\"\",\"\",'Encodage réponses Es'!AU3)","v":1},{"$f":"IF('Encodage réponses Es'!BB3=\"\",\"\",'Encodage réponses Es'!BB3)","v":1},{"$f":"IF('Encodage réponses Es'!BC3=\"\",\"\",'Encodage réponses Es'!BC3)","v":1},{"$f":"IF('Encodage réponses Es'!BD3=\"\",\"\",'Encodage réponses Es'!BD3)","v":1},{"$f":"IF('Encodage réponses Es'!BL3=\"\",\"\",'Encodage réponses Es'!BL3)","v":2},{"$f":"IF('Encodage réponses Es'!BM3=\"\",\"\",'Encodage réponses Es'!BM3)","v":1},{"$f":"IF('Encodage réponses Es'!BN3=\"\",\"\",'Encodage réponses Es'!BN3)","v":1},{"$f":"IF('Encodage réponses Es'!AQ3=\"\",\"\",'Encodage réponses Es'!AQ3)","v":1},{"$f":"IF('Encodage réponses Es'!AR3=\"\",\"\",'Encodage réponses Es'!AR3)","v":2},{"$f":"IF('Encodage réponses Es'!AW3=\"\",\"\",'Encodage réponses Es'!AW3)","v":2},{"$f":"IF('Encodage réponses Es'!AX3=\"\",\"\",'Encodage réponses Es'!AX3)","v":1},{"$f":"IF('Encodage réponses Es'!AY3=\"\",\"\",'Encodage réponses Es'!AY3)","v":2},{"$f":"IF('Encodage réponses Es'!BH3=\"\",\"\",'Encodage réponses Es'!BH3)","v":2},{"$f":"IF('Encodage réponses Es'!BI3=\"\",\"\",'Encodage réponses Es'!BI3)","v":1.5},{"$f":"IF('Encodage réponses Es'!BK3=\"\",\"\",'Encodage réponses Es'!BK3)","v":1},{"$f":"IF('Encodage réponses Es'!AZ3=\"\",\"\",'Encodage réponses Es'!AZ3)","v":1},{"$f":"IF('Encodage réponses Es'!BA3=\"\",\"\",'Encodage réponses Es'!BA3)","v":1},{"$f":"IF('Encodage réponses Es'!BE3=\"\",\"\",'Encodage réponses Es'!BE3)","v":1},{"$f":"IF('Encodage réponses Es'!BF3=\"\",\"\",'Encodage réponses Es'!BF3)","v":1},null,{"$f":"IF('Encodage réponses Es'!AS3=\"\",\"\",'Encodage réponses Es'!AS3)","v":2},{"$f":"IF('Encodage réponses Es'!BO3=\"\",\"\",'Encodage réponses Es'!BO3)","v":1},{"$f":"IF('Encodage réponses Es'!BP3=\"\",\"\",'Encodage réponses Es'!BP3)","v":1},{"$f":"IF('Encodage réponses Es'!BQ3=\"\",\"\",'Encodage réponses Es'!BQ3)","v":1},{"$f":"IF('Encodage réponses Es'!BR3=\"\",\"\",'Encodage réponses Es'!BR3)","v":2},{"$f":"IF('Encodage réponses Es'!AN3=\"\",\"\",'Encodage réponses Es'!AN3)","v":1},{"$f":"IF('Encodage réponses Es'!AP3=\"\",\"\",'Encodage réponses Es'!AP3)","v":1},{"$f":"IF('Encodage réponses Es'!AT3=\"\",\"\",'Encodage réponses Es'!AT3)","v":1},{"$f":"IF('Encodage réponses Es'!AV3=\"\",\"\",'Encodage réponses Es'!AV3)","v":2},{"$f":"IF('Encodage réponses Es'!BG3=\"\",\"\",'Encodage réponses Es'!BG3)","v":1},{"$f":"IF('Encodage réponses Es'!AO3=\"\",\"\",'Encodage réponses Es'!AO3)","v":1},{"$f":"IF('Encodage réponses Es'!BJ3=\"\",\"\",'Encodage réponses Es'!BJ3)","v":1.5}]
[{"$f":"IF('Encodage réponses Es'!A4=\"\",\"\",'Encodage réponses Es'!A4)","v":0},{"$f":"IF('Encodage réponses Es'!B4=\"\",\"\",'Encodage réponses Es'!B4)","v":0},{"$f":"IF('Encodage réponses Es'!C4=\"\",\"\",'Encodage réponses Es'!C4)","v":0},{"$f":"'Encodage réponses Es'!D4","v":1},{"$f":"IF('Encodage réponses Es'!E4=\"\",\"\",'Encodage réponses Es'!E4)","v":""},{"$f":"IF('Encodage réponses Es'!F4=\"\",\"\",'Encodage réponses Es'!F4)","v":""},{"$f":"IF('Encodage réponses Es'!G4=\"\",\"\",'Encodage réponses Es'!G4)","v":""},{"$f":"IF('Encodage réponses Es'!I4=\"\",\"\",'Encodage réponses Es'!I4)","v":""},null,{"$f":"IF('Encodage réponses Es'!BS4=\"!\",\"Incomplet\",IF(AND(SUM('Encodage réponses Es'!J4:BR4)>=$J$4/2,'Encodage réponses Es'!BS4=\"a\"),SUM('Encodage réponses Es'!J4:BR4),IF(AND(SUM('Encodage réponses Es'!J4:BR4)<$J$4/2,'Encodage réponses Es'!BS4=\"a\"),\"Absent(e)\",IF(COUNTBLANK('Encodage réponses Es'!J4:BR4)=61,\"\",SUM('Encodage réponses Es'!J4:BR4)))))","v":""},{"$f":"IF(J5=\"\",\"\",IF(J5=\"Absent(e)\",\"Absent(e)\",IF(J5=\"Incomplet\",\"Incomplet\",J5/$J$4)))","v":""},null,{"$f":"IF(AND(AI5=\"\",AX5=\"\"),\"\",IF(OR(AI5=\"Incomplet\",AX5=\"Incomplet\"),\"Incomplet\",IF(OR(AI5=\"Absent(e)\",AX5=\"Absent(e)\"),\"Absent(e)\",SUMIF(AI5,\"<>\"\"\")+SUMIF(AX5,\"<>\"\"\"))))","v":""},{"$f":"IF(M5=\"\",\"\",IF(M5=\"Absent(e)\",\"Absent(e)\",IF(M5=\"Incomplet\",\"Incomplet\",M5/$M$4)))","v":""},{"$f":"IF(AND(BR5=\"\",AZ5=\"\"),\"\",IF(OR(BR5=\"Incomplet\",CE5=\"Incomplet\"),\"Incomplet\",IF(OR(BR5=\"Absent(e)\",CE5=\"Absent(e)\"),\"Absent(e)\",SUMIF(BR5,\"<>\"\"\")+SUMIF(CE5,\"<>\"\"\"))))","v":""},{"$f":"IF(O5=\"\",\"\",IF(O5=\"Absent(e)\",\"Absent(e)\",IF(O5=\"Incomplet\",\"Incomplet\",O5/$O$4)))","v":""},null,null,{"$f":"IF('Encodage réponses Es'!V4=\"\",\"\",'Encodage réponses Es'!V4)","v":""},{"$f":"IF('Encodage réponses Es'!Y4=\"\",\"\",'Encodage réponses Es'!Y4)","v":""},{"$f":"IF('Encodage réponses Es'!AF4=\"\",\"\",'Encodage réponses Es'!AF4)","v":""},{"$f":"IF('Encodage réponses Es'!K4=\"\",\"\",'Encodage réponses Es'!K4)","v":""},{"$f":"IF('Encodage réponses Es'!M4=\"\",\"\",'Encodage réponses Es'!M4)","v":""},{"$f":"IF('Encodage réponses Es'!N4=\"\",\"\",'Encodage réponses Es'!N4)","v":""},{"$f":"IF('Encodage réponses Es'!AB4=\"\",\"\",'Encodage réponses Es'!AB4)","v":""},{"$f":"IF('Encodage réponses Es'!Q4=\"\",\"\",'Encodage réponses Es'!Q4)","v":""},{"$f":"IF('Encodage réponses Es'!Z4=\"\",\"\",'Encodage réponses Es'!Z4)","v":""},{"$f":"IF('Encodage réponses Es'!AA4=\"\",\"\",'Encodage réponses Es'!AA4)","v":""},{"$f":"IF('Encodage réponses Es'!AC4=\"\",\"\",'Encodage réponses Es'!AC4)","v":""},{"$f":"IF('Encodage réponses Es'!AD4=\"\",\"\",'Encodage réponses Es'!AD4)","v":""},{"$f":"IF('Encodage réponses Es'!AE4=\"\",\"\",'Encodage réponses Es'!AE4)","v":""},{"$f":"IF('Encodage réponses Es'!AG4=\"\",\"\",'Encodage réponses Es'!AG4)","v":""},{"$f":"IF('Encodage réponses Es'!AJ4=\"\",\"\",'Encodage réponses Es'!AJ4)","v":""},{"$f":"IF('Encodage réponses Es'!T4=\"\",\"\",'Encodage réponses Es'!T4)","v":""},{"$f":"IF(AND(COUNTBLANK(S5:AH5)>0,'Encodage réponses Es'!$BS4=\"!\"),\"Incomplet\",IF(OR(COUNTIF(S5:AH5,\"a\")>0,COUNTIF(S5:AH5,\"A\")>0),\"Absent(e)\",IF(COUNT(S5:AH5)=0,\"\",SUM(S5:AH5))))","v":""},{"$f":"IF('Encodage réponses Es'!J4=\"\",\"\",'Encodage réponses Es'!J4)","v":""},{"$f":"IF('Encodage réponses Es'!S4=\"\",\"\",'Encodage réponses Es'!S4)","v":""},{"$f":"IF('Encodage réponses Es'!X4=\"\",\"\",'Encodage réponses Es'!X4)","v":""},{"$f":"IF('Encodage réponses Es'!AH4=\"\",\"\",'Encodage réponses Es'!AH4)","v":""},{"$f":"IF('Encodage réponses Es'!AL4=\"\",\"\",'Encodage réponses Es'!AL4)","v":""},{"$f":"IF('Encodage réponses Es'!AM4=\"\",\"\",'Encodage réponses Es'!AM4)","v":""},{"$f":"IF('Encodage réponses Es'!L4=\"\",\"\",'Encodage réponses Es'!L4)","v":""},{"$f":"IF('Encodage réponses Es'!O4=\"\",\"\",'Encodage réponses Es'!O4)","v":""},{"$f":"IF('Encodage réponses Es'!P4=\"\",\"\",'Encodage réponses Es'!P4)","v":""},{"$f":"IF('Encodage réponses Es'!U4=\"\",\"\",'Encodage réponses Es'!U4)","v":""},{"$f":"IF('Encodage réponses Es'!W4=\"\",\"\",'Encodage réponses Es'!W4)","v":""},{"$f":"IF('Encodage réponses Es'!R4=\"\",\"\",'Encodage réponses Es'!R4)","v":""},{"$f":"IF('Encodage réponses Es'!AI4=\"\",\"\",'Encodage réponses Es'!AI4)","v":""},{"$f":"IF('Encodage réponses Es'!AK4=\"\",\"\",'Encodage réponses Es'!AK4)","v":""},{"$f":"IF(AND(COUNTBLANK(AJ5:AW5)>0,'Encodage réponses Es'!$BS4=\"!\"),\"Incomplet\",IF(OR(COUNTIF(AJ5:AW5,\"a\")>0,COUNTIF(AJ5:AW5,\"A\")>0),\"Absent(e)\",IF(COUNT(AJ5:AW5)=0,\"\",SUM(AJ5:AW5))))","v":""},{"$f":"IF('Encodage réponses Es'!AU4=\"\",\"\",'Encodage réponses Es'!AU4)","v":""},{"$f":"IF('Encodage réponses Es'!BB4=\"\",\"\",'Encodage réponses Es'!BB4)","v":""},{"$f":"IF('Encodage réponses Es'!BC4=\"\",\"\",'Encodage réponses Es'!BC4)","v":""},{"$f":"IF('Encodage réponses Es'!BD4=\"\",\"\",'Encodage réponses Es'!BD4)","v":""},{"$f":"IF('Encodage réponses Es'!BL4=\"\",\"\",'Encodage réponses Es'!BL4)","v":""},{"$f":"IF('Encodage réponses Es'!BM4=\"\",\"\",'Encodage réponses Es'!BM4)","v":""},{"$f":"IF('Encodage réponses Es'!BN4=\"\",\"\",'Encodage réponses Es'!BN4)","v":""},{"$f":"IF('Encodage réponses Es'!AQ4=\"\",\"\",'Encodage réponses Es'!AQ4)","v":""},{"$f":"IF('Encodage réponses Es'!AR4=\"\",\"\",'Encodage réponses Es'!AR4)","v":""},{"$f":"IF('Encodage réponses Es'!AW4=\"\",\"\",'Encodage réponses Es'!AW4)","v":""},{"$f":"IF('Encodage réponses Es'!AX4=\"\",\"\",'Encodage réponses Es'!AX4)","v":""},{"$f":"IF('Encodage réponses Es'!AY4=\"\",\"\",'Encodage réponses Es'!AY4)","v":""},{"$f":"IF('Encodage réponses Es'!BH4=\"\",\"\",'Encodage réponses Es'!BH4)","v":""},{"$f":"IF('Encodage réponses Es'!BI4=\"\",\"\",'Encodage réponses Es'!BI4)","v":""},{"$f":"IF('Encodage réponses Es'!BK4=\"\",\"\",'Encodage réponses Es'!BK4)","v":""},{"$f":"IF('Encodage réponses Es'!AZ4=\"\",\"\",'Encodage réponses Es'!AZ4)","v":""},{"$f":"IF('Encodage réponses Es'!BA4=\"\",\"\",'Encodage réponses Es'!BA4)","v":""},{"$f":"IF('Encodage réponses Es'!BE4=\"\",\"\",'Encodage réponses Es'!BE4)","v":""},{"$f":"IF('Encodage réponses Es'!BF4=\"\",\"\",'Encodage réponses Es'!BF4)","v":""},{"$f":"IF(AND(COUNTBLANK(AY5:BQ5)>0,'Encodage réponses Es'!$BS4=\"!\"),\"Incomplet\",IF(OR(COUNTIF(AY5:BQ5,\"a\")>0,COUNTIF(AY5:BQ5,\"A\")>0),\"Absent(e)\",IF(COUNT(AY5:BQ5)=0,\"\",SUM(AY5:BQ5))))","v":""},{"$f":"IF('Encodage réponses Es'!AS4=\"\",\"\",'Encodage réponses Es'!AS4)","v":""},{"$f":"IF('Encodage réponses Es'!BO4=\"\",\"\",'Encodage réponses Es'!BO4)","v":""},{"$f":"IF('Encodage réponses Es'!BP4=\"\",\"\",'Encodage réponses Es'!BP4)","v":""},{"$f":"IF('Encodage réponses Es'!BQ4=\"\",\"\",'Encodage réponses Es'!BQ4)","v":""},{"$f":"IF('Encodage réponses Es'!BR4=\"\",\"\",'Encodage réponses Es'!BR4)","v":""},{"$f":"IF('Encodage réponses Es'!AN4=\"\",\"\",'Encodage réponses Es'!AN4)","v":""},{"$f":"IF('Encodage réponses Es'!AP4=\"\",\"\",'Encodage réponses Es'!AP4)","v":""},{"$f":"IF('Encodage réponses Es'!AT4=\"\",\"\",'Encodage réponses Es'!AT4)","v":""},{"$f":"IF('Encodage réponses Es'!AV4=\"\",\"\",'Encodage réponses Es'!AV4)","v":""},{"$f":"IF('Encodage réponses Es'!BG4=\"\",\"\",'Encodage réponses Es'!BG4)","v":""},{"$f":"IF('Encodage réponses Es'!AO4=\"\",\"\",'Encodage réponses Es'!AO4)","v":""},{"$f":"IF('Encodage réponses Es'!BJ4=\"\",\"\",'Encodage réponses Es'!BJ4)","v":""},{"$f":"IF(AND(COUNTBLANK(BS5:CD5)>0,'Encodage réponses Es'!$BS4=\"!\"),\"Incomplet\",IF(OR(COUNTIF(BS5:CD5,\"a\")>0,COUNTIF(BS5:CD5,\"A\")>0),\"Absent(e)\",IF(COUNT(BS5:CD5)=0,\"\",SUM(BS5:CD5))))","v":""}]
[{"$f":"IF('Encodage réponses Es'!A5=\"\",\"\",'Encodage réponses Es'!A5)","v":0},{"$f":"IF('Encodage réponses Es'!B5=\"\",\"\",'Encodage réponses Es'!B5)","v":0},{"$f":"IF('Encodage réponses Es'!C5=\"\",\"\",'Encodage réponses Es'!C5)","v":0},2,{"$f":"IF('Encodage réponses Es'!E5=\"\",\"\",'Encodage réponses Es'!E5)","v":""},{"$f":"IF('Encodage réponses Es'!F5=\"\",\"\",'Encodage réponses Es'!F5)","v":""},{"$f":"IF('Encodage réponses Es'!G5=\"\",\"\",'Encodage réponses Es'!G5)","v":""},{"$f":"IF('Encodage réponses Es'!I5=\"\",\"\",'Encodage réponses Es'!I5)","v":""},null,{"$f":"IF('Encodage réponses Es'!BS5=\"!\",\"Incomplet\",IF(AND(SUM('Encodage réponses Es'!J5:BR5)>=$J$4/2,'Encodage réponses Es'!BS5=\"a\"),SUM('Encodage réponses Es'!J5:BR5),IF(AND(SUM('Encodage réponses Es'!J5:BR5)<$J$4/2,'Encodage réponses Es'!BS5=\"a\"),\"Absent(e)\",IF(COUNTBLANK('Encodage réponses Es'!J5:BR5)=61,\"\",SUM('Encodage réponses Es'!J5:BR5)))))","v":""},{"$f":"IF(J6=\"\",\"\",IF(J6=\"Absent(e)\",\"Absent(e)\",IF(J6=\"Incomplet\",\"Incomplet\",J6/$J$4)))","v":""},null,"",{"$f":"IF(M6=\"\",\"\",IF(M6=\"Absent(e)\",\"Absent(e)\",IF(M6=\"Incomplet\",\"Incomplet\",M6/$M$4)))","v":""},"",{"$f":"IF(O6=\"\",\"\",IF(O6=\"Absent(e)\",\"Absent(e)\",IF(O6=\"Incomplet\",\"Incomplet\",O6/$O$4)))","v":""},null,null,{"$f":"IF('Encodage réponses Es'!V5=\"\",\"\",'Encodage réponses Es'!V5)","v":""},{"$f":"IF('Encodage réponses Es'!Y5=\"\",\"\",'Encodage réponses Es'!Y5)","v":""},{"$f":"IF('Encodage réponses Es'!AF5=\"\",\"\",'Encodage réponses Es'!AF5)","v":""},{"$f":"IF('Encodage réponses Es'!K5=\"\",\"\",'Encodage réponses Es'!K5)","v":""},{"$f":"IF('Encodage réponses Es'!M5=\"\",\"\",'Encodage réponses Es'!M5)","v":""},{"$f":"IF('Encodage réponses Es'!N5=\"\",\"\",'Encodage réponses Es'!N5)","v":""},{"$f":"IF('Encodage réponses Es'!AB5=\"\",\"\",'Encodage réponses Es'!AB5)","v":""},{"$f":"IF('Encodage réponses Es'!Q5=\"\",\"\",'Encodage réponses Es'!Q5)","v":""},{"$f":"IF('Encodage réponses Es'!Z5=\"\",\"\",'Encodage réponses Es'!Z5)","v":""},{"$f":"IF('Encodage réponses Es'!AA5=\"\",\"\",'Encodage réponses Es'!AA5)","v":""},{"$f":"IF('Encodage réponses Es'!AC5=\"\",\"\",'Encodage réponses Es'!AC5)","v":""},{"$f":"IF('Encodage réponses Es'!AD5=\"\",\"\",'Encodage réponses Es'!AD5)","v":""},{"$f":"IF('Encodage réponses Es'!AE5=\"\",\"\",'Encodage réponses Es'!AE5)","v":""},{"$f":"IF('Encodage réponses Es'!AG5=\"\",\"\",'Encodage réponses Es'!AG5)","v":""},{"$f":"IF('Encodage réponses Es'!AJ5=\"\",\"\",'Encodage réponses Es'!AJ5)","v":""},{"$f":"IF('Encodage réponses Es'!T5=\"\",\"\",'Encodage réponses Es'!T5)","v":""},{"$f":"IF(AND(COUNTBLANK(S6:AH6)>0,'Encodage réponses Es'!$BS5=\"!\"),\"Incomplet\",IF(OR(COUNTIF(S6:AH6,\"a\")>0,COUNTIF(S6:AH6,\"A\")>0),\"Absent(e)\",IF(COUNT(S6:AH6)=0,\"\",SUM(S6:AH6))))","v":""},{"$f":"IF('Encodage réponses Es'!J5=\"\",\"\",'Encodage réponses Es'!J5)","v":""},{"$f":"IF('Encodage réponses Es'!S5=\"\",\"\",'Encodage réponses Es'!S5)","v":""},{"$f":"IF('Encodage réponses Es'!X5=\"\",\"\",'Encodage réponses Es'!X5)","v":""},{"$f":"IF('Encodage réponses Es'!AH5=\"\",\"\",'Encodage réponses Es'!AH5)","v":""},{"$f":"IF('Encodage réponses Es'!AL5=\"\",\"\",'Encodage réponses Es'!AL5)","v":""},{"$f":"IF('Encodage réponses Es'!AM5=\"\",\"\",'Encodage réponses Es'!AM5)","v":""},{"$f":"IF('Encodage réponses Es'!L5=\"\",\"\",'Encodage réponses Es'!L5)","v":""},{"$f":"IF('Encodage réponses Es'!O5=\"\",\"\",'Encodage réponses Es'!O5)","v":""},{"$f":"IF('Encodage réponses Es'!P5=\"\",\"\",'Encodage réponses Es'!P5)","v":""},{"$f":"IF('Encodage réponses Es'!U5=\"\",\"\",'Encodage réponses Es'!U5)","v":""},{"$f":"IF('Encodage réponses Es'!W5=\"\",\"\",'Encodage réponses Es'!W5)","v":""},{"$f":"IF('Encodage réponses Es'!R5=\"\",\"\",'Encodage réponses Es'!R5)","v":""},{"$f":"IF('Encodage réponses Es'!AI5=\"\",\"\",'Encodage réponses Es'!AI5)","v":""},{"$f":"IF('Encodage réponses Es'!AK5=\"\",\"\",'Encodage réponses Es'!AK5)","v":""},{"$f":"IF(AND(COUNTBLANK(AJ6:AW6)>0,'Encodage réponses Es'!$BS5=\"!\"),\"Incomplet\",IF(OR(COUNTIF(AJ6:AW6,\"a\")>0,COUNTIF(AJ6:AW6,\"A\")>0),\"Absent(e)\",IF(COUNT(AJ6:AW6)=0,\"\",SUM(AJ6:AW6))))","v":""},{"$f":"IF('Encodage réponses Es'!AU5=\"\",\"\",'Encodage réponses Es'!AU5)","v":""},{"$f":"IF('Encodage réponses Es'!BB5=\"\",\"\",'Encodage réponses Es'!BB5)","v":""},{"$f":"IF('Encodage réponses Es'!BC5=\"\",\"\",'Encodage réponses Es'!BC5)","v":""},{"$f":"IF('Encodage réponses Es'!BD5=\"\",\"\",'Encodage réponses Es'!BD5)","v":""},{"$f":"IF('Encodage réponses Es'!BL5=\"\",\"\",'Encodage réponses Es'!BL5)","v":""},{"$f":"IF('Encodage réponses Es'!BM5=\"\",\"\",'Encodage réponses Es'!BM5)","v":""},{"$f":"IF('Encodage réponses Es'!BN5=\"\",\"\",'Encodage réponses Es'!BN5)","v":""},{"$f":"IF('Encodage réponses Es'!AQ5=\"\",\"\",'Encodage réponses Es'!AQ5)","v":""},{"$f":"IF('Encodage réponses Es'!AR5=\"\",\"\",'Encodage réponses Es'!AR5)","v":""},{"$f":"IF('Encodage réponses Es'!AW5=\"\",\"\",'Encodage réponses Es'!AW5)","v":""},{"$f":"IF('Encodage réponses Es'!AX5=\"\",\"\",'Encodage réponses Es'!AX5)","v":""},{"$f":"IF('Encodage réponses Es'!AY5=\"\",\"\",'Encodage réponses Es'!AY5)","v":""},{"$f":"IF('Encodage réponses Es'!BH5=\"\",\"\",'Encodage réponses Es'!BH5)","v":""},{"$f":"IF('Encodage réponses Es'!BI5=\"\",\"\",'Encodage réponses Es'!BI5)","v":""},{"$f":"IF('Encodage réponses Es'!BK5=\"\",\"\",'Encodage réponses Es'!BK5)","v":""},{"$f":"IF('Encodage réponses Es'!AZ5=\"\",\"\",'Encodage réponses Es'!AZ5)","v":""},{"$f":"IF('Encodage réponses Es'!BA5=\"\",\"\",'Encodage réponses Es'!BA5)","v":""},{"$f":"IF('Encodage réponses Es'!BE5=\"\",\"\",'Encodage réponses Es'!BE5)","v":""},{"$f":"IF('Encodage réponses Es'!BF5=\"\",\"\",'Encodage réponses Es'!BF5)","v":""},{"$f":"IF(AND(COUNTBLANK(AY6:BQ6)>0,'Encodage réponses Es'!$BS5=\"!\"),\"Incomplet\",IF(OR(COUNTIF(AY6:BQ6,\"a\")>0,COUNTIF(AY6:BQ6,\"A\")>0),\"Absent(e)\",IF(COUNT(AY6:BQ6)=0,\"\",SUM(AY6:BQ6))))","v":""},{"$f":"IF('Encodage réponses Es'!AS5=\"\",\"\",'Encodage réponses Es'!AS5)","v":""},{"$f":"IF('Encodage réponses Es'!BO5=\"\",\"\",'Encodage réponses Es'!BO5)","v":""},{"$f":"IF('Encodage réponses Es'!BP5=\"\",\"\",'Encodage réponses Es'!BP5)","v":""},{"$f":"IF('Encodage réponses Es'!BQ5=\"\",\"\",'Encodage réponses Es'!BQ5)","v":""},{"$f":"IF('Encodage réponses Es'!BR5=\"\",\"\",'Encodage réponses Es'!BR5)","v":""},{"$f":"IF('Encodage réponses Es'!AN5=\"\",\"\",'Encodage réponses Es'!AN5)","v":""},{"$f":"IF('Encodage réponses Es'!AP5=\"\",\"\",'Encodage réponses Es'!AP5)","v":""},{"$f":"IF('Encodage réponses Es'!AT5=\"\",\"\",'Encodage réponses Es'!AT5)","v":""},{"$f":"IF('Encodage réponses Es'!AV5=\"\",\"\",'Encodage réponses Es'!AV5)","v":""},{"$f":"IF('Encodage réponses Es'!BG5=\"\",\"\",'Encodage réponses Es'!BG5)","v":""},{"$f":"IF('Encodage réponses Es'!AO5=\"\",\"\",'Encodage réponses Es'!AO5)","v":""},{"$f":"IF('Encodage réponses Es'!BJ5=\"\",\"\",'Encodage réponses Es'!BJ5)","v":""},{"$f":"IF(AND(COUNTBLANK(BS6:CD6)>0,'Encodage réponses Es'!$BS5=\"!\"),\"Incomplet\",IF(OR(COUNTIF(BS6:CD6,\"a\")>0,COUNTIF(BS6:CD6,\"A\")>0),\"Absent(e)\",IF(COUNT(BS6:CD6)=0,\"\",SUM(BS6:CD6))))","v":""}]
[{"$f":"IF('Encodage réponses Es'!A6=\"\",\"\",'Encodage réponses Es'!A6)","v":0},{"$f":"IF('Encodage réponses Es'!B6=\"\",\"\",'Encodage réponses Es'!B6)","v":0},{"$f":"IF('Encodage réponses Es'!C6=\"\",\"\",'Encodage réponses Es'!C6)","v":0},3,{"$f":"IF('Encodage réponses Es'!E6=\"\",\"\",'Encodage réponses Es'!E6)","v":""},{"$f":"IF('Encodage réponses Es'!F6=\"\",\"\",'Encodage réponses Es'!F6)","v":""},{"$f":"IF('Encodage réponses Es'!G6=\"\",\"\",'Encodage réponses Es'!G6)","v":""},{"$f":"IF('Encodage réponses Es'!I6=\"\",\"\",'Encodage réponses Es'!I6)","v":""},null,{"$f":"IF('Encodage réponses Es'!BS6=\"!\",\"Incomplet\",IF(AND(SUM('Encodage réponses Es'!J6:BR6)>=$J$4/2,'Encodage réponses Es'!BS6=\"a\"),SUM('Encodage réponses Es'!J6:BR6),IF(AND(SUM('Encodage réponses Es'!J6:BR6)<$J$4/2,'Encodage réponses Es'!BS6=\"a\"),\"Absent(e)\",IF(COUNTBLANK('Encodage réponses Es'!J6:BR6)=61,\"\",SUM('Encodage réponses Es'!J6:BR6)))))","v":""},"",null,"","","","",null,null,{"$f":"IF('Encodage réponses Es'!V6=\"\",\"\",'Encodage réponses Es'!V6)","v":""},{"$f":"IF('Encodage réponses Es'!Y6=\"\",\"\",'Encodage réponses Es'!Y6)","v":""},{"$f":"IF('Encodage réponses Es'!AF6=\"\",\"\",'Encodage réponses Es'!AF6)","v":""},{"$f":"IF('Encodage réponses Es'!K6=\"\",\"\",'Encodage réponses Es'!K6)","v":""},{"$f":"IF('Encodage réponses Es'!M6=\"\",\"\",'Encodage réponses Es'!M6)","v":""},{"$f":"IF('Encodage réponses Es'!N6=\"\",\"\",'Encodage réponses Es'!N6)","v":""},{"$f":"IF('Encodage réponses Es'!AB6=\"\",\"\",'Encodage réponses Es'!AB6)","v":""},{"$f":"IF('Encodage réponses Es'!Q6=\"\",\"\",'Encodage réponses Es'!Q6)","v":""},{"$f":"IF('Encodage réponses Es'!Z6=\"\",\"\",'Encodage réponses Es'!Z6)","v":""},{"$f":"IF('Encodage réponses Es'!AA6=\"\",\"\",'Encodage réponses Es'!AA6)","v":""},{"$f":"IF('Encodage réponses Es'!AC6=\"\",\"\",'Encodage réponses Es'!AC6)","v":""},{"$f":"IF('Encodage réponses Es'!AD6=\"\",\"\",'Encodage réponses Es'!AD6)","v":""},{"$f":"IF('Encodage réponses Es'!AE6=\"\",\"\",'Encodage réponses Es'!AE6)","v":""},{"$f":"IF('Encodage réponses Es'!AG6=\"\",\"\",'Encodage réponses Es'!AG6)","v":""},{"$f":"IF('Encodage réponses Es'!AJ6=\"\",\"\",'Encodage réponses Es'!AJ6)","v":""},{"$f":"IF('Encodage réponses Es'!T6=\"\",\"\",'Encodage réponses Es'!T6)","v":""},{"$f":"IF(AND(COUNTBLANK(S7:AH7)>0,'Encodage réponses Es'!$BS6=\"!\"),\"Incomplet\",IF(OR(COUNTIF(S7:AH7,\"a\")>0,COUNTIF(S7:AH7,\"A\")>0),\"Absent(e)\",IF(COUNT(S7:AH7)=0,\"\",SUM(S7:AH7))))","v":""},{"$f":"IF('Encodage réponses Es'!J6=\"\",\"\",'Encodage réponses Es'!J6)","v":""},{"$f":"IF('Encodage réponses Es'!S6=\"\",\"\",'Encodage réponses Es'!S6)","v":""},{"$f":"IF('Encodage réponses Es'!X6=\"\",\"\",'Encodage réponses Es'!X6)","v":""},{"$f":"IF('Encodage réponses Es'!AH6=\"\",\"\",'Encodage réponses Es'!AH6)","v":""},{"$f":"IF('Encodage réponses Es'!AL6=\"\",\"\",'Encodage réponses Es'!AL6)","v":""},{"$f":"IF('Encodage réponses Es'!AM6=\"\",\"\",'Encodage réponses Es'!AM6)","v":""},{"$f":"IF('Encodage réponses Es'!L6=\"\",\"\",'Encodage réponses Es'!L6)","v":""},{"$f":"IF('Encodage réponses Es'!O6=\"\",\"\",'Encodage réponses Es'!O6)","v":""},{"$f":"IF('Encodage réponses Es'!P6=\"\",\"\",'Encodage réponses Es'!P6)","v":""},{"$f":"IF('Encodage réponses Es'!U6=\"\",\"\",'Encodage réponses Es'!U6)","v":""},{"$f":"IF('Encodage réponses Es'!W6=\"\",\"\",'Encodage réponses Es'!W6)","v":""},{"$f":"IF('Encodage réponses Es'!R6=\"\",\"\",'Encodage réponses Es'!R6)","v":""},{"$f":"IF('Encodage réponses Es'!AI6=\"\",\"\",'Encodage réponses Es'!AI6)","v":""},{"$f":"IF('Encodage réponses Es'!AK6=\"\",\"\",'Encodage réponses Es'!AK6)","v":""},{"$f":"IF(AND(COUNTBLANK(AJ7:AW7)>0,'Encodage réponses Es'!$BS6=\"!\"),\"Incomplet\",IF(OR(COUNTIF(AJ7:AW7,\"a\")>0,COUNTIF(AJ7:AW7,\"A\")>0),\"Absent(e)\",IF(COUNT(AJ7:AW7)=0,\"\",SUM(AJ7:AW7))))","v":""},{"$f":"IF('Encodage réponses Es'!AU6=\"\",\"\",'Encodage réponses Es'!AU6)","v":""},{"$f":"IF('Encodage réponses Es'!BB6=\"\",\"\",'Encodage réponses Es'!BB6)","v":""},{"$f":"IF('Encodage réponses Es'!BC6=\"\",\"\",'Encodage réponses Es'!BC6)","v":""},{"$f":"IF('Encodage réponses Es'!BD6=\"\",\"\",'Encodage réponses Es'!BD6)","v":""},{"$f":"IF('Encodage réponses Es'!BL6=\"\",\"\",'Encodage réponses Es'!BL6)","v":""},{"$f":"IF('Encodage réponses Es'!BM6=\"\",\"\",'Encodage réponses Es'!BM6)","v":""},{"$f":"IF('Encodage réponses Es'!BN6=\"\",\"\",'Encodage réponses Es'!BN6)","v":""},{"$f":"IF('Encodage réponses Es'!AQ6=\"\",\"\",'Encodage réponses Es'!AQ6)","v":""},{"$f":"IF('Encodage réponses Es'!AR6=\"\",\"\",'Encodage réponses Es'!AR6)","v":""},{"$f":"IF('Encodage réponses Es'!AW6=\"\",\"\",'Encodage réponses Es'!AW6)","v":""},{"$f":"IF('Encodage réponses Es'!AX6=\"\",\"\",'Encodage réponses Es'!AX6)","v":""},{"$f":"IF('Encodage réponses Es'!AY6=\"\",\"\",'Encodage réponses Es'!AY6)","v":""},{"$f":"IF('Encodage réponses Es'!BH6=\"\",\"\",'Encodage réponses Es'!BH6)","v":""},{"$f":"IF('Encodage réponses Es'!BI6=\"\",\"\",'Encodage réponses Es'!BI6)","v":""},{"$f":"IF('Encodage réponses Es'!BK6=\"\",\"\",'Encodage réponses Es'!BK6)","v":""},{"$f":"IF('Encodage réponses Es'!AZ6=\"\",\"\",'Encodage réponses Es'!AZ6)","v":""},{"$f":"IF('Encodage réponses Es'!BA6=\"\",\"\",'Encodage réponses Es'!BA6)","v":""},{"$f":"IF('Encodage réponses Es'!BE6=\"\",\"\",'Encodage réponses Es'!BE6)","v":""},{"$f":"IF('Encodage réponses Es'!BF6=\"\",\"\",'Encodage réponses Es'!BF6)","v":""},{"$f":"IF(AND(COUNTBLANK(AY7:BQ7)>0,'Encodage réponses Es'!$BS6=\"!\"),\"Incomplet\",IF(OR(COUNTIF(AY7:BQ7,\"a\")>0,COUNTIF(AY7:BQ7,\"A\")>0),\"Absent(e)\",IF(COUNT(AY7:BQ7)=0,\"\",SUM(AY7:BQ7))))","v":""},{"$f":"IF('Encodage réponses Es'!AS6=\"\",\"\",'Encodage réponses Es'!AS6)","v":""},{"$f":"IF('Encodage réponses Es'!BO6=\"\",\"\",'Encodage réponses Es'!BO6)","v":""},{"$f":"IF('Encodage réponses Es'!BP6=\"\",\"\",'Encodage réponses Es'!BP6)","v":""},{"$f":"IF('Encodage réponses Es'!BQ6=\"\",\"\",'Encodage réponses Es'!BQ6)","v":""},{"$f":"IF('Encodage réponses Es'!BR6=\"\",\"\",'Encodage réponses Es'!BR6)","v":""},{"$f":"IF('Encodage réponses Es'!AN6=\"\",\"\",'Encodage réponses Es'!AN6)","v":""},{"$f":"IF('Encodage réponses Es'!AP6=\"\",\"\",'Encodage réponses Es'!AP6)","v":""},{"$f":"IF('Encodage réponses Es'!AT6=\"\",\"\",'Encodage réponses Es'!AT6)","v":""},{"$f":"IF('Encodage réponses Es'!AV6=\"\",\"\",'Encodage réponses Es'!AV6)","v":""},{"$f":"IF('Encodage réponses Es'!BG6=\"\",\"\",'Encodage réponses Es'!BG6)","v":""},{"$f":"IF('Encodage réponses Es'!AO6=\"\",\"\",'Encodage réponses Es'!AO6)","v":""},{"$f":"IF('Encodage réponses Es'!BJ6=\"\",\"\",'Encodage réponses Es'!BJ6)","v":""},{"$f":"IF(AND(COUNTBLANK(BS7:CD7)>0,'Encodage réponses Es'!$BS6=\"!\"),\"Incomplet\",IF(OR(COUNTIF(BS7:CD7,\"a\")>0,COUNTIF(BS7:CD7,\"A\")>0),\"Absent(e)\",IF(COUNT(BS7:CD7)=0,\"\",SUM(BS7:CD7))))","v":""}]
[{"$f":"IF('Encodage réponses Es'!A7=\"\",\"\",'Encodage réponses Es'!A7)","v":0},{"$f":"IF('Encodage réponses Es'!B7=\"\",\"\",'Encodage réponses Es'!B7)","v":0},{"$f":"IF('Encodage réponses Es'!C7=\"\",\"\",'Encodage réponses Es'!C7)","v":0},4,{"$f":"IF('Encodage réponses Es'!E7=\"\",\"\",'Encodage réponses Es'!E7)","v":""},{"$f":"IF('Encodage réponses Es'!F7=\"\",\"\",'Encodage réponses Es'!F7)","v":""},{"$f":"IF('Encodage réponses Es'!G7=\"\",\"\",'Encodage réponses Es'!G7)","v":""},{"$f":"IF('Encodage réponses Es'!I7=\"\",\"\",'Encodage réponses Es'!I7)","v":""},null,{"$f":"IF('Encodage réponses Es'!BS7=\"!\",\"Incomplet\",IF(AND(SUM('Encodage réponses Es'!J7:BR7)>=$J$4/2,'Encodage réponses Es'!BS7=\"a\"),SUM('Encodage réponses Es'!J7:BR7),IF(AND(SUM('Encodage réponses Es'!J7:BR7)<$J$4/2,'Encodage réponses Es'!BS7=\"a\"),\"Absent(e)\",IF(COUNTBLANK('Encodage réponses Es'!J7:BR7)=61,\"\",SUM('Encodage réponses Es'!J7:BR7)))))","v":""},"",null,"","","","",null,null,{"$f":"IF('Encodage réponses Es'!V7=\"\",\"\",'Encodage réponses Es'!V7)","v":""},{"$f":"IF('Encodage réponses Es'!Y7=\"\",\"\",'Encodage réponses Es'!Y7)","v":""},{"$f":"IF('Encodage réponses Es'!AF7=\"\",\"\",'Encodage réponses Es'!AF7)","v":""},{"$f":"IF('Encodage réponses Es'!K7=\"\",\"\",'Encodage réponses Es'!K7)","v":""},{"$f":"IF('Encodage réponses Es'!M7=\"\",\"\",'Encodage réponses Es'!M7)","v":""},{"$f":"IF('Encodage réponses Es'!N7=\"\",\"\",'Encodage réponses Es'!N7)","v":""},{"$f":"IF('Encodage réponses Es'!AB7=\"\",\"\",'Encodage réponses Es'!AB7)","v":""},{"$f":"IF('Encodage réponses Es'!Q7=\"\",\"\",'Encodage réponses Es'!Q7)","v":""},{"$f":"IF('Encodage réponses Es'!Z7=\"\",\"\",'Encodage réponses Es'!Z7)","v":""},{"$f":"IF('Encodage réponses Es'!AA7=\"\",\"\",'Encodage réponses Es'!AA7)","v":""},{"$f":"IF('Encodage réponses Es'!AC7=\"\",\"\",'Encodage réponses Es'!AC7)","v":""},{"$f":"IF('Encodage réponses Es'!AD7=\"\",\"\",'Encodage réponses Es'!AD7)","v":""},{"$f":"IF('Encodage réponses Es'!AE7=\"\",\"\",'Encodage réponses Es'!AE7)","v":""},{"$f":"IF('Encodage réponses Es'!AG7=\"\",\"\",'Encodage réponses Es'!AG7)","v":""},{"$f":"IF('Encodage réponses Es'!AJ7=\"\",\"\",'Encodage réponses Es'!AJ7)","v":""},{"$f":"IF('Encodage réponses Es'!T7=\"\",\"\",'Encodage réponses Es'!T7)","v":""},{"$f":"IF(AND(COUNTBLANK(S8:AH8)>0,'Encodage réponses Es'!$BS7=\"!\"),\"Incomplet\",IF(OR(COUNTIF(S8:AH8,\"a\")>0,COUNTIF(S8:AH8,\"A\")>0),\"Absent(e)\",IF(COUNT(S8:AH8)=0,\"\",SUM(S8:AH8))))","v":""},{"$f":"IF('Encodage réponses Es'!J7=\"\",\"\",'Encodage réponses Es'!J7)","v":""},{"$f":"IF('Encodage réponses Es'!S7=\"\",\"\",'Encodage réponses Es'!S7)","v":""},{"$f":"IF('Encodage réponses Es'!X7=\"\",\"\",'Encodage réponses Es'!X7)","v":""},{"$f":"IF('Encodage réponses Es'!AH7=\"\",\"\",'Encodage réponses Es'!AH7)","v":""},{"$f":"IF('Encodage réponses Es'!AL7=\"\",\"\",'Encodage réponses Es'!AL7)","v":""},{"$f":"IF('Encodage réponses Es'!AM7=\"\",\"\",'Encodage réponses Es'!AM7)","v":""},{"$f":"IF('Encodage réponses Es'!L7=\"\",\"\",'Encodage réponses Es'!L7)","v":""},{"$f":"IF('Encodage réponses Es'!O7=\"\",\"\",'Encodage réponses Es'!O7)","v":""},{"$f":"IF('Encodage réponses Es'!P7=\"\",\"\",'Encodage réponses Es'!P7)","v":""},{"$f":"IF('Encodage réponses Es'!U7=\"\",\"\",'Encodage réponses Es'!U7)","v":""},{"$f":"IF('Encodage réponses Es'!W7=\"\",\"\",'Encodage réponses Es'!W7)","v":""},{"$f":"IF('Encodage réponses Es'!R7=\"\",\"\",'Encodage réponses Es'!R7)","v":""},{"$f":"IF('Encodage réponses Es'!AI7=\"\",\"\",'Encodage réponses Es'!AI7)","v":""},{"$f":"IF('Encodage réponses Es'!AK7=\"\",\"\",'Encodage réponses Es'!AK7)","v":""},{"$f":"IF(AND(COUNTBLANK(AJ8:AW8)>0,'Encodage réponses Es'!$BS7=\"!\"),\"Incomplet\",IF(OR(COUNTIF(AJ8:AW8,\"a\")>0,COUNTIF(AJ8:AW8,\"A\")>0),\"Absent(e)\",IF(COUNT(AJ8:AW8)=0,\"\",SUM(AJ8:AW8))))","v":""},{"$f":"IF('Encodage réponses Es'!AU7=\"\",\"\",'Encodage réponses Es'!AU7)","v":""},{"$f":"IF('Encodage réponses Es'!BB7=\"\",\"\",'Encodage réponses Es'!BB7)","v":""},{"$f":"IF('Encodage réponses Es'!BC7=\"\",\"\",'Encodage réponses Es'!BC7)","v":""},{"$f":"IF('Encodage réponses Es'!BD7=\"\",\"\",'Encodage réponses Es'!BD7)","v":""},{"$f":"IF('Encodage réponses Es'!BL7=\"\",\"\",'Encodage réponses Es'!BL7)","v":""},{"$f":"IF('Encodage réponses Es'!BM7=\"\",\"\",'Encodage réponses Es'!BM7)","v":""},{"$f":"IF('Encodage réponses Es'!BN7=\"\",\"\",'Encodage réponses Es'!BN7)","v":""},{"$f":"IF('Encodage réponses Es'!AQ7=\"\",\"\",'Encodage réponses Es'!AQ7)","v":""},{"$f":"IF('Encodage réponses Es'!AR7=\"\",\"\",'Encodage réponses Es'!AR7)","v":""},{"$f":"IF('Encodage réponses Es'!AW7=\"\",\"\",'Encodage réponses Es'!AW7)","v":""},{"$f":"IF('Encodage réponses Es'!AX7=\"\",\"\",'Encodage réponses Es'!AX7)","v":""},{"$f":"IF('Encodage réponses Es'!AY7=\"\",\"\",'Encodage réponses Es'!AY7)","v":""},{"$f":"IF('Encodage réponses Es'!BH7=\"\",\"\",'Encodage réponses Es'!BH7)","v":""},{"$f":"IF('Encodage réponses Es'!BI7=\"\",\"\",'Encodage réponses Es'!BI7)","v":""},{"$f":"IF('Encodage réponses Es'!BK7=\"\",\"\",'Encodage réponses Es'!BK7)","v":""},{"$f":"IF('Encodage réponses Es'!AZ7=\"\",\"\",'Encodage réponses Es'!AZ7)","v":""},{"$f":"IF('Encodage réponses Es'!BA7=\"\",\"\",'Encodage réponses Es'!BA7)","v":""},{"$f":"IF('Encodage réponses Es'!BE7=\"\",\"\",'Encodage réponses Es'!BE7)","v":""},{"$f":"IF('Encodage réponses Es'!BF7=\"\",\"\",'Encodage réponses Es'!BF7)","v":""},{"$f":"IF(AND(COUNTBLANK(AY8:BQ8)>0,'Encodage réponses Es'!$BS7=\"!\"),\"Incomplet\",IF(OR(COUNTIF(AY8:BQ8,\"a\")>0,COUNTIF(AY8:BQ8,\"A\")>0),\"Absent(e)\",IF(COUNT(AY8:BQ8)=0,\"\",SUM(AY8:BQ8))))","v":""},{"$f":"IF('Encodage réponses Es'!AS7=\"\",\"\",'Encodage réponses Es'!AS7)","v":""},{"$f":"IF('Encodage réponses Es'!BO7=\"\",\"\",'Encodage réponses Es'!BO7)","v":""},{"$f":"IF('Encodage réponses Es'!BP7=\"\",\"\",'Encodage réponses Es'!BP7)","v":""},{"$f":"IF('Encodage réponses Es'!BQ7=\"\",\"\",'Encodage réponses Es'!BQ7)","v":""},{"$f":"IF('Encodage réponses Es'!BR7=\"\",\"\",'Encodage réponses Es'!BR7)","v":""},{"$f":"IF('Encodage réponses Es'!AN7=\"\",\"\",'Encodage réponses Es'!AN7)","v":""},{"$f":"IF('Encodage réponses Es'!AP7=\"\",\"\",'Encodage réponses Es'!AP7)","v":""},{"$f":"IF('Encodage réponses Es'!AT7=\"\",\"\",'Encodage réponses Es'!AT7)","v":""},{"$f":"IF('Encodage réponses Es'!AV7=\"\",\"\",'Encodage réponses Es'!AV7)","v":""},{"$f":"IF('Encodage réponses Es'!BG7=\"\",\"\",'Encodage réponses Es'!BG7)","v":""},{"$f":"IF('Encodage réponses Es'!AO7=\"\",\"\",'Encodage réponses Es'!AO7)","v":""},{"$f":"IF('Encodage réponses Es'!BJ7=\"\",\"\",'Encodage réponses Es'!BJ7)","v":""},{"$f":"IF(AND(COUNTBLANK(BS8:CD8)>0,'Encodage réponses Es'!$BS7=\"!\"),\"Incomplet\",IF(OR(COUNTIF(BS8:CD8,\"a\")>0,COUNTIF(BS8:CD8,\"A\")>0),\"Absent(e)\",IF(COUNT(BS8:CD8)=0,\"\",SUM(BS8:CD8))))","v":""}]
[{"$f":"IF('Encodage réponses Es'!A8=\"\",\"\",'Encodage réponses Es'!A8)","v":0},{"$f":"IF('Encodage réponses Es'!B8=\"\",\"\",'Encodage réponses Es'!B8)","v":0},{"$f":"IF('Encodage réponses Es'!C8=\"\",\"\",'Encodage réponses Es'!C8)","v":0},5,{"$f":"IF('Encodage réponses Es'!E8=\"\",\"\",'Encodage réponses Es'!E8)","v":""},{"$f":"IF('Encodage réponses Es'!F8=\"\",\"\",'Encodage réponses Es'!F8)","v":""},{"$f":"IF('Encodage réponses Es'!G8=\"\",\"\",'Encodage réponses Es'!G8)","v":""},{"$f":"IF('Encodage réponses Es'!I8=\"\",\"\",'Encodage réponses Es'!I8)","v":""},null,{"$f":"IF('Encodage réponses Es'!BS8=\"!\",\"Incomplet\",IF(AND(SUM('Encodage réponses Es'!J8:BR8)>=$J$4/2,'Encodage réponses Es'!BS8=\"a\"),SUM('Encodage réponses Es'!J8:BR8),IF(AND(SUM('Encodage réponses Es'!J8:BR8)<$J$4/2,'Encodage réponses Es'!BS8=\"a\"),\"Absent(e)\",IF(COUNTBLANK('Encodage réponses Es'!J8:BR8)=61,\"\",SUM('Encodage réponses Es'!J8:BR8)))))","v":""},"",null,"","","","",null,null,{"$f":"IF('Encodage réponses Es'!V8=\"\",\"\",'Encodage réponses Es'!V8)","v":""},{"$f":"IF('Encodage réponses Es'!Y8=\"\",\"\",'Encodage réponses Es'!Y8)","v":""},{"$f":"IF('Encodage réponses Es'!AF8=\"\",\"\",'Encodage réponses Es'!AF8)","v":""},{"$f":"IF('Encodage réponses Es'!K8=\"\",\"\",'Encodage réponses Es'!K8)","v":""},{"$f":"IF('Encodage réponses Es'!M8=\"\",\"\",'Encodage réponses Es'!M8)","v":""},{"$f":"IF('Encodage réponses Es'!N8=\"\",\"\",'Encodage réponses Es'!N8)","v":""},{"$f":"IF('Encodage réponses Es'!AB8=\"\",\"\",'Encodage réponses Es'!AB8)","v":""},{"$f":"IF('Encodage réponses Es'!Q8=\"\",\"\",'Encodage réponses Es'!Q8)","v":""},{"$f":"IF('Encodage réponses Es'!Z8=\"\",\"\",'Encodage réponses Es'!Z8)","v":""},{"$f":"IF('Encodage réponses Es'!AA8=\"\",\"\",'Encodage réponses Es'!AA8)","v":""},{"$f":"IF('Encodage réponses Es'!AC8=\"\",\"\",'Encodage réponses Es'!AC8)","v":""},{"$f":"IF('Encodage réponses Es'!AD8=\"\",\"\",'Encodage réponses Es'!AD8)","v":""},{"$f":"IF('Encodage réponses Es'!AE8=\"\",\"\",'Encodage réponses Es'!AE8)","v":""},{"$f":"IF('Encodage réponses Es'!AG8=\"\",\"\",'Encodage réponses Es'!AG8)","v":""},{"$f":"IF('Encodage réponses Es'!AJ8=\"\",\"\",'Encodage réponses Es'!AJ8)","v":""},{"$f":"IF('Encodage réponses Es'!T8=\"\",\"\",'Encodage réponses Es'!T8)","v":""},{"$f":"IF(AND(COUNTBLANK(S9:AH9)>0,'Encodage réponses Es'!$BS8=\"!\"),\"Incomplet\",IF(OR(COUNTIF(S9:AH9,\"a\")>0,COUNTIF(S9:AH9,\"A\")>0),\"Absent(e)\",IF(COUNT(S9:AH9)=0,\"\",SUM(S9:AH9))))","v":""},{"$f":"IF('Encodage réponses Es'!J8=\"\",\"\",'Encodage réponses Es'!J8)","v":""},{"$f":"IF('Encodage réponses Es'!S8=\"\",\"\",'Encodage réponses Es'!S8)","v":""},{"$f":"IF('Encodage réponses Es'!X8=\"\",\"\",'Encodage réponses Es'!X8)","v":""},{"$f":"IF('Encodage réponses Es'!AH8=\"\",\"\",'Encodage réponses Es'!AH8)","v":""},{"$f":"IF('Encodage réponses Es'!AL8=\"\",\"\",'Encodage réponses Es'!AL8)","v":""},{"$f":"IF('Encodage réponses Es'!AM8=\"\",\"\",'Encodage réponses Es'!AM8)","v":""},{"$f":"IF('Encodage réponses Es'!L8=\"\",\"\",'Encodage réponses Es'!L8)","v":""},{"$f":"IF('Encodage réponses Es'!O8=\"\",\"\",'Encodage réponses Es'!O8)","v":""},{"$f":"IF('Encodage réponses Es'!P8=\"\",\"\",'Encodage réponses Es'!P8)","v":""},{"$f":"IF('Encodage réponses Es'!U8=\"\",\"\",'Encodage réponses Es'!U8)","v":""},{"$f":"IF('Encodage réponses Es'!W8=\"\",\"\",'Encodage réponses Es'!W8)","v":""},{"$f":"IF('Encodage réponses Es'!R8=\"\",\"\",'Encodage réponses Es'!R8)","v":""},{"$f":"IF('Encodage réponses Es'!AI8=\"\",\"\",'Encodage réponses Es'!AI8)","v":""},{"$f":"IF('Encodage réponses Es'!AK8=\"\",\"\",'Encodage réponses Es'!AK8)","v":""},{"$f":"IF(AND(COUNTBLANK(AJ9:AW9)>0,'Encodage réponses Es'!$BS8=\"!\"),\"Incomplet\",IF(OR(COUNTIF(AJ9:AW9,\"a\")>0,COUNTIF(AJ9:AW9,\"A\")>0),\"Absent(e)\",IF(COUNT(AJ9:AW9)=0,\"\",SUM(AJ9:AW9))))","v":""},{"$f":"IF('Encodage réponses Es'!AU8=\"\",\"\",'Encodage réponses Es'!AU8)","v":""},{"$f":"IF('Encodage réponses Es'!BB8=\"\",\"\",'Encodage réponses Es'!BB8)","v":""},{"$f":"IF('Encodage réponses Es'!BC8=\"\",\"\",'Encodage réponses Es'!BC8)","v":""},{"$f":"IF('Encodage réponses Es'!BD8=\"\",\"\",'Encodage réponses Es'!BD8)","v":""},{"$f":"IF('Encodage réponses Es'!BL8=\"\",\"\",'Encodage réponses Es'!BL8)","v":""},{"$f":"IF('Encodage réponses Es'!BM8=\"\",\"\",'Encodage réponses Es'!BM8)","v":""},{"$f":"IF('Encodage réponses Es'!BN8=\"\",\"\",'Encodage réponses Es'!BN8)","v":""},{"$f":"IF('Encodage réponses Es'!AQ8=\"\",\"\",'Encodage réponses Es'!AQ8)","v":""},{"$f":"IF('Encodage réponses Es'!AR8=\"\",\"\",'Encodage réponses Es'!AR8)","v":""},{"$f":"IF('Encodage réponses Es'!AW8=\"\",\"\",'Encodage réponses Es'!AW8)","v":""},{"$f":"IF('Encodage réponses Es'!AX8=\"\",\"\",'Encodage réponses Es'!AX8)","v":""},{"$f":"IF('Encodage réponses Es'!AY8=\"\",\"\",'Encodage réponses Es'!AY8)","v":""},{"$f":"IF('Encodage réponses Es'!BH8=\"\",\"\",'Encodage réponses Es'!BH8)","v":""},{"$f":"IF('Encodage réponses Es'!BI8=\"\",\"\",'Encodage réponses Es'!BI8)","v":""},{"$f":"IF('Encodage réponses Es'!BK8=\"\",\"\",'Encodage réponses Es'!BK8)","v":""},{"$f":"IF('Encodage réponses Es'!AZ8=\"\",\"\",'Encodage réponses Es'!AZ8)","v":""},{"$f":"IF('Encodage réponses Es'!BA8=\"\",\"\",'Encodage réponses Es'!BA8)","v":""},{"$f":"IF('Encodage réponses Es'!BE8=\"\",\"\",'Encodage réponses Es'!BE8)","v":""},{"$f":"IF('Encodage réponses Es'!BF8=\"\",\"\",'Encodage réponses Es'!BF8)","v":""},{"$f":"IF(AND(COUNTBLANK(AY9:BQ9)>0,'Encodage réponses Es'!$BS8=\"!\"),\"Incomplet\",IF(OR(COUNTIF(AY9:BQ9,\"a\")>0,COUNTIF(AY9:BQ9,\"A\")>0),\"Absent(e)\",IF(COUNT(AY9:BQ9)=0,\"\",SUM(AY9:BQ9))))","v":""},{"$f":"IF('Encodage réponses Es'!AS8=\"\",\"\",'Encodage réponses Es'!AS8)","v":""},{"$f":"IF('Encodage réponses Es'!BO8=\"\",\"\",'Encodage réponses Es'!BO8)","v":""},{"$f":"IF('Encodage réponses Es'!BP8=\"\",\"\",'Encodage réponses Es'!BP8)","v":""},{"$f":"IF('Encodage réponses Es'!BQ8=\"\",\"\",'Encodage réponses Es'!BQ8)","v":""},{"$f":"IF('Encodage réponses Es'!BR8=\"\",\"\",'Encodage réponses Es'!BR8)","v":""},{"$f":"IF('Encodage réponses Es'!AN8=\"\",\"\",'Encodage réponses Es'!AN8)","v":""},{"$f":"IF('Encodage réponses Es'!AP8=\"\",\"\",'Encodage réponses Es'!AP8)","v":""},{"$f":"IF('Encodage réponses Es'!AT8=\"\",\"\",'Encodage réponses Es'!AT8)","v":""},{"$f":"IF('Encodage réponses Es'!AV8=\"\",\"\",'Encodage réponses Es'!AV8)","v":""},{"$f":"IF('Encodage réponses Es'!BG8=\"\",\"\",'Encodage réponses Es'!BG8)","v":""},{"$f":"IF('Encodage réponses Es'!AO8=\"\",\"\",'Encodage réponses Es'!AO8)","v":""},{"$f":"IF('Encodage réponses Es'!BJ8=\"\",\"\",'Encodage réponses Es'!BJ8)","v":""},{"$f":"IF(AND(COUNTBLANK(BS9:CD9)>0,'Encodage réponses Es'!$BS8=\"!\"),\"Incomplet\",IF(OR(COUNTIF(BS9:CD9,\"a\")>0,COUNTIF(BS9:CD9,\"A\")>0),\"Absent(e)\",IF(COUNT(BS9:CD9)=0,\"\",SUM(BS9:CD9))))","v":""}]
[{"$f":"IF('Encodage réponses Es'!A9=\"\",\"\",'Encodage réponses Es'!A9)","v":0},{"$f":"IF('Encodage réponses Es'!B9=\"\",\"\",'Encodage réponses Es'!B9)","v":0},{"$f":"IF('Encodage réponses Es'!C9=\"\",\"\",'Encodage réponses Es'!C9)","v":0},6,{"$f":"IF('Encodage réponses Es'!E9=\"\",\"\",'Encodage réponses Es'!E9)","v":""},{"$f":"IF('Encodage réponses Es'!F9=\"\",\"\",'Encodage réponses Es'!F9)","v":""},{"$f":"IF('Encodage réponses Es'!G9=\"\",\"\",'Encodage réponses Es'!G9)","v":""},{"$f":"IF('Encodage réponses Es'!I9=\"\",\"\",'Encodage réponses Es'!I9)","v":""},null,{"$f":"IF('Encodage réponses Es'!BS9=\"!\",\"Incomplet\",IF(AND(SUM('Encodage réponses Es'!J9:BR9)>=$J$4/2,'Encodage réponses Es'!BS9=\"a\"),SUM('Encodage réponses Es'!J9:BR9),IF(AND(SUM('Encodage réponses Es'!J9:BR9)<$J$4/2,'Encodage réponses Es'!BS9=\"a\"),\"Absent(e)\",IF(COUNTBLANK('Encodage réponses Es'!J9:BR9)=61,\"\",SUM('Encodage réponses Es'!J9:BR9)))))","v":""},"",null,"","","","",null,null,{"$f":"IF('Encodage réponses Es'!V9=\"\",\"\",'Encodage réponses Es'!V9)","v":""},{"$f":"IF('Encodage réponses Es'!Y9=\"\",\"\",'Encodage réponses Es'!Y9)","v":""},{"$f":"IF('Encodage réponses Es'!AF9=\"\",\"\",'Encodage réponses Es'!AF9)","v":""},{"$f":"IF('Encodage réponses Es'!K9=\"\",\"\",'Encodage réponses Es'!K9)","v":""},{"$f":"IF('Encodage réponses Es'!M9=\"\",\"\",'Encodage réponses Es'!M9)","v":""},{"$f":"IF('Encodage réponses Es'!N9=\"\",\"\",'Encodage réponses Es'!N9)","v":""},{"$f":"IF('Encodage réponses Es'!AB9=\"\",\"\",'Encodage réponses Es'!AB9)","v":""},{"$f":"IF('Encodage réponses Es'!Q9=\"\",\"\",'Encodage réponses Es'!Q9)","v":""},{"$f":"IF('Encodage réponses Es'!Z9=\"\",\"\",'Encodage réponses Es'!Z9)","v":""},{"$f":"IF('Encodage réponses Es'!AA9=\"\",\"\",'Encodage réponses Es'!AA9)","v":""},{"$f":"IF('Encodage réponses Es'!AC9=\"\",\"\",'Encodage réponses Es'!AC9)","v":""},{"$f":"IF('Encodage réponses Es'!AD9=\"\",\"\",'Encodage réponses Es'!AD9)","v":""},{"$f":"IF('Encodage réponses Es'!AE9=\"\",\"\",'Encodage réponses Es'!AE9)","v":""},{"$f":"IF('Encodage réponses Es'!AG9=\"\",\"\",'Encodage réponses Es'!AG9)","v":""},{"$f":"IF('Encodage réponses Es'!AJ9=\"\",\"\",'Encodage réponses Es'!AJ9)","v":""},{"$f":"IF('Encodage réponses Es'!T9=\"\",\"\",'Encodage réponses Es'!T9)","v":""},{"$f":"IF(AND(COUNTBLANK(S10:AH10)>0,'Encodage réponses Es'!$BS9=\"!\"),\"Incomplet\",IF(OR(COUNTIF(S10:AH10,\"a\")>0,COUNTIF(S10:AH10,\"A\")>0),\"Absent(e)\",IF(COUNT(S10:AH10)=0,\"\",SUM(S10:AH10))))","v":""},{"$f":"IF('Encodage réponses Es'!J9=\"\",\"\",'Encodage réponses Es'!J9)","v":""},{"$f":"IF('Encodage réponses Es'!S9=\"\",\"\",'Encodage réponses Es'!S9)","v":""},{"$f":"IF('Encodage réponses Es'!X9=\"\",\"\",'Encodage réponses Es'!X9)","v":""},{"$f":"IF('Encodage réponses Es'!AH9=\"\",\"\",'Encodage réponses Es'!AH9)","v":""},{"$f":"IF('Encodage réponses Es'!AL9=\"\",\"\",'Encodage réponses Es'!AL9)","v":""},{"$f":"IF('Encodage réponses Es'!AM9=\"\",\"\",'Encodage réponses Es'!AM9)","v":""},{"$f":"IF('Encodage réponses Es'!L9=\"\",\"\",'Encodage réponses Es'!L9)","v":""},{"$f":"IF('Encodage réponses Es'!O9=\"\",\"\",'Encodage réponses Es'!O9)","v":""},{"$f":"IF('Encodage réponses Es'!P9=\"\",\"\",'Encodage réponses Es'!P9)","v":""},{"$f":"IF('Encodage réponses Es'!U9=\"\",\"\",'Encodage réponses Es'!U9)","v":""},{"$f":"IF('Encodage réponses Es'!W9=\"\",\"\",'Encodage réponses Es'!W9)","v":""},{"$f":"IF('Encodage réponses Es'!R9=\"\",\"\",'Encodage réponses Es'!R9)","v":""},{"$f":"IF('Encodage réponses Es'!AI9=\"\",\"\",'Encodage réponses Es'!AI9)","v":""},{"$f":"IF('Encodage réponses Es'!AK9=\"\",\"\",'Encodage réponses Es'!AK9)","v":""},{"$f":"IF(AND(COUNTBLANK(AJ10:AW10)>0,'Encodage réponses Es'!$BS9=\"!\"),\"Incomplet\",IF(OR(COUNTIF(AJ10:AW10,\"a\")>0,COUNTIF(AJ10:AW10,\"A\")>0),\"Absent(e)\",IF(COUNT(AJ10:AW10)=0,\"\",SUM(AJ10:AW10))))","v":""},{"$f":"IF('Encodage réponses Es'!AU9=\"\",\"\",'Encodage réponses Es'!AU9)","v":""},{"$f":"IF('Encodage réponses Es'!BB9=\"\",\"\",'Encodage réponses Es'!BB9)","v":""},{"$f":"IF('Encodage réponses Es'!BC9=\"\",\"\",'Encodage réponses Es'!BC9)","v":""},{"$f":"IF('Encodage réponses Es'!BD9=\"\",\"\",'Encodage réponses Es'!BD9)","v":""},{"$f":"IF('Encodage réponses Es'!BL9=\"\",\"\",'Encodage réponses Es'!BL9)","v":""},{"$f":"IF('Encodage réponses Es'!BM9=\"\",\"\",'Encodage réponses Es'!BM9)","v":""},{"$f":"IF('Encodage réponses Es'!BN9=\"\",\"\",'Encodage réponses Es'!BN9)","v":""},{"$f":"IF('Encodage réponses Es'!AQ9=\"\",\"\",'Encodage réponses Es'!AQ9)","v":""},{"$f":"IF('Encodage réponses Es'!AR9=\"\",\"\",'Encodage réponses Es'!AR9)","v":""},{"$f":"IF('Encodage réponses Es'!AW9=\"\",\"\",'Encodage réponses Es'!AW9)","v":""},{"$f":"IF('Encodage réponses Es'!AX9=\"\",\"\",'Encodage réponses Es'!AX9)","v":""},{"$f":"IF('Encodage réponses Es'!AY9=\"\",\"\",'Encodage réponses Es'!AY9)","v":""},{"$f":"IF('Encodage réponses Es'!BH9=\"\",\"\",'Encodage réponses Es'!BH9)","v":""},{"$f":"IF('Encodage réponses Es'!BI9=\"\",\"\",'Encodage réponses Es'!BI9)","v":""},{"$f":"IF('Encodage réponses Es'!BK9=\"\",\"\",'Encodage réponses Es'!BK9)","v":""},{"$f":"IF('Encodage réponses Es'!AZ9=\"\",\"\",'Encodage réponses Es'!AZ9)","v":""},{"$f":"IF('Encodage réponses Es'!BA9=\"\",\"\",'Encodage réponses Es'!BA9)","v":""},{"$f":"IF('Encodage réponses Es'!BE9=\"\",\"\",'Encodage réponses Es'!BE9)","v":""},{"$f":"IF('Encodage réponses Es'!BF9=\"\",\"\",'Encodage réponses Es'!BF9)","v":""},{"$f":"IF(AND(COUNTBLANK(AY10:BQ10)>0,'Encodage réponses Es'!$BS9=\"!\"),\"Incomplet\",IF(OR(COUNTIF(AY10:BQ10,\"a\")>0,COUNTIF(AY10:BQ10,\"A\")>0),\"Absent(e)\",IF(COUNT(AY10:BQ10)=0,\"\",SUM(AY10:BQ10))))","v":""},{"$f":"IF('Encodage réponses Es'!AS9=\"\",\"\",'Encodage réponses Es'!AS9)","v":""},{"$f":"IF('Encodage réponses Es'!BO9=\"\",\"\",'Encodage réponses Es'!BO9)","v":""},{"$f":"IF('Encodage réponses Es'!BP9=\"\",\"\",'Encodage réponses Es'!BP9)","v":""},{"$f":"IF('Encodage réponses Es'!BQ9=\"\",\"\",'Encodage réponses Es'!BQ9)","v":""},{"$f":"IF('Encodage réponses Es'!BR9=\"\",\"\",'Encodage réponses Es'!BR9)","v":""},{"$f":"IF('Encodage réponses Es'!AN9=\"\",\"\",'Encodage réponses Es'!AN9)","v":""},{"$f":"IF('Encodage réponses Es'!AP9=\"\",\"\",'Encodage réponses Es'!AP9)","v":""},{"$f":"IF('Encodage réponses Es'!AT9=\"\",\"\",'Encodage réponses Es'!AT9)","v":""},{"$f":"IF('Encodage réponses Es'!AV9=\"\",\"\",'Encodage réponses Es'!AV9)","v":""},{"$f":"IF('Encodage réponses Es'!BG9=\"\",\"\",'Encodage réponses Es'!BG9)","v":""},{"$f":"IF('Encodage réponses Es'!AO9=\"\",\"\",'Encodage réponses Es'!AO9)","v":""},{"$f":"IF('Encodage réponses Es'!BJ9=\"\",\"\",'Encodage réponses Es'!BJ9)","v":""},{"$f":"IF(AND(COUNTBLANK(BS10:CD10)>0,'Encodage réponses Es'!$BS9=\"!\"),\"Incomplet\",IF(OR(COUNTIF(BS10:CD10,\"a\")>0,COUNTIF(BS10:CD10,\"A\")>0),\"Absent(e)\",IF(COUNT(BS10:CD10)=0,\"\",SUM(BS10:CD10))))","v":""}]
[{"$f":"IF('Encodage réponses Es'!A10=\"\",\"\",'Encodage réponses Es'!A10)","v":0},{"$f":"IF('Encodage réponses Es'!B10=\"\",\"\",'Encodage réponses Es'!B10)","v":0},{"$f":"IF('Encodage réponses Es'!C10=\"\",\"\",'Encodage réponses Es'!C10)","v":0},7,{"$f":"IF('Encodage réponses Es'!E10=\"\",\"\",'Encodage réponses Es'!E10)","v":""},{"$f":"IF('Encodage réponses Es'!F10=\"\",\"\",'Encodage réponses Es'!F10)","v":""},{"$f":"IF('Encodage réponses Es'!G10=\"\",\"\",'Encodage réponses Es'!G10)","v":""},{"$f":"IF('Encodage réponses Es'!I10=\"\",\"\",'Encodage réponses Es'!I10)","v":""},null,{"$f":"IF('Encodage réponses Es'!BS10=\"!\",\"Incomplet\",IF(AND(SUM('Encodage réponses Es'!J10:BR10)>=$J$4/2,'Encodage réponses Es'!BS10=\"a\"),SUM('Encodage réponses Es'!J10:BR10),IF(AND(SUM('Encodage réponses Es'!J10:BR10)<$J$4/2,'Encodage réponses Es'!BS10=\"a\"),\"Absent(e)\",IF(COUNTBLANK('Encodage réponses Es'!J10:BR10)=61,\"\",SUM('Encodage réponses Es'!J10:BR10)))))","v":""},"",null,"","","","",null,null,{"$f":"IF('Encodage réponses Es'!V10=\"\",\"\",'Encodage réponses Es'!V10)","v":""},{"$f":"IF('Encodage réponses Es'!Y10=\"\",\"\",'Encodage réponses Es'!Y10)","v":""},{"$f":"IF('Encodage réponses Es'!AF10=\"\",\"\",'Encodage réponses Es'!AF10)","v":""},{"$f":"IF('Encodage réponses Es'!K10=\"\",\"\",'Encodage réponses Es'!K10)","v":""},{"$f":"IF('Encodage réponses Es'!M10=\"\",\"\",'Encodage réponses Es'!M10)","v":""},{"$f":"IF('Encodage réponses Es'!N10=\"\",\"\",'Encodage réponses Es'!N10)","v":""},{"$f":"IF('Encodage réponses Es'!AB10=\"\",\"\",'Encodage réponses Es'!AB10)","v":""},{"$f":"IF('Encodage réponses Es'!Q10=\"\",\"\",'Encodage réponses Es'!Q10)","v":""},{"$f":"IF('Encodage réponses Es'!Z10=\"\",\"\",'Encodage réponses Es'!Z10)","v":""},{"$f":"IF('Encodage réponses Es'!AA10=\"\",\"\",'Encodage réponses Es'!AA10)","v":""},{"$f":"IF('Encodage réponses Es'!AC10=\"\",\"\",'Encodage réponses Es'!AC10)","v":""},{"$f":"IF('Encodage réponses Es'!AD10=\"\",\"\",'Encodage réponses Es'!AD10)","v":""},{"$f":"IF('Encodage réponses Es'!AE10=\"\",\"\",'Encodage réponses Es'!AE10)","v":""},{"$f":"IF('Encodage réponses Es'!AG10=\"\",\"\",'Encodage réponses Es'!AG10)","v":""},{"$f":"IF('Encodage réponses Es'!AJ10=\"\",\"\",'Encodage réponses Es'!AJ10)","v":""},{"$f":"IF('Encodage réponses Es'!T10=\"\",\"\",'Encodage réponses Es'!T10)","v":""},{"$f":"IF(AND(COUNTBLANK(S11:AH11)>0,'Encodage réponses Es'!$BS10=\"!\"),\"Incomplet\",IF(OR(COUNTIF(S11:AH11,\"a\")>0,COUNTIF(S11:AH11,\"A\")>0),\"Absent(e)\",IF(COUNT(S11:AH11)=0,\"\",SUM(S11:AH11))))","v":""},{"$f":"IF('Encodage réponses Es'!J10=\"\",\"\",'Encodage réponses Es'!J10)","v":""},{"$f":"IF('Encodage réponses Es'!S10=\"\",\"\",'Encodage réponses Es'!S10)","v":""},{"$f":"IF('Encodage réponses Es'!X10=\"\",\"\",'Encodage réponses Es'!X10)","v":""},{"$f":"IF('Encodage réponses Es'!AH10=\"\",\"\",'Encodage réponses Es'!AH10)","v":""},{"$f":"IF('Encodage réponses Es'!AL10=\"\",\"\",'Encodage réponses Es'!AL10)","v":""},{"$f":"IF('Encodage réponses Es'!AM10=\"\",\"\",'Encodage réponses Es'!AM10)","v":""},{"$f":"IF('Encodage réponses Es'!L10=\"\",\"\",'Encodage réponses Es'!L10)","v":""},{"$f":"IF('Encodage réponses Es'!O10=\"\",\"\",'Encodage réponses Es'!O10)","v":""},{"$f":"IF('Encodage réponses Es'!P10=\"\",\"\",'Encodage réponses Es'!P10)","v":""},{"$f":"IF('Encodage réponses Es'!U10=\"\",\"\",'Encodage réponses Es'!U10)","v":""},{"$f":"IF('Encodage réponses Es'!W10=\"\",\"\",'Encodage réponses Es'!W10)","v":""},{"$f":"IF('Encodage réponses Es'!R10=\"\",\"\",'Encodage réponses Es'!R10)","v":""},{"$f":"IF('Encodage réponses Es'!AI10=\"\",\"\",'Encodage réponses Es'!AI10)","v":""},{"$f":"IF('Encodage réponses Es'!AK10=\"\",\"\",'Encodage réponses Es'!AK10)","v":""},{"$f":"IF(AND(COUNTBLANK(AJ11:AW11)>0,'Encodage réponses Es'!$BS10=\"!\"),\"Incomplet\",IF(OR(COUNTIF(AJ11:AW11,\"a\")>0,COUNTIF(AJ11:AW11,\"A\")>0),\"Absent(e)\",IF(COUNT(AJ11:AW11)=0,\"\",SUM(AJ11:AW11))))","v":""},{"$f":"IF('Encodage réponses Es'!AU10=\"\",\"\",'Encodage réponses Es'!AU10)","v":""},{"$f":"IF('Encodage réponses Es'!BB10=\"\",\"\",'Encodage réponses Es'!BB10)","v":""},{"$f":"IF('Encodage réponses Es'!BC10=\"\",\"\",'Encodage réponses Es'!BC10)","v":""},{"$f":"IF('Encodage réponses Es'!BD10=\"\",\"\",'Encodage réponses Es'!BD10)","v":""},{"$f":"IF('Encodage réponses Es'!BL10=\"\",\"\",'Encodage réponses Es'!BL10)","v":""},{"$f":"IF('Encodage réponses Es'!BM10=\"\",\"\",'Encodage réponses Es'!BM10)","v":""},{"$f":"IF('Encodage réponses Es'!BN10=\"\",\"\",'Encodage réponses Es'!BN10)","v":""},{"$f":"IF('Encodage réponses Es'!AQ10=\"\",\"\",'Encodage réponses Es'!AQ10)","v":""},{"$f":"IF('Encodage réponses Es'!AR10=\"\",\"\",'Encodage réponses Es'!AR10)","v":""},{"$f":"IF('Encodage réponses Es'!AW10=\"\",\"\",'Encodage réponses Es'!AW10)","v":""},{"$f":"IF('Encodage réponses Es'!AX10=\"\",\"\",'Encodage réponses Es'!AX10)","v":""},{"$f":"IF('Encodage réponses Es'!AY10=\"\",\"\",'Encodage réponses Es'!AY10)","v":""},{"$f":"IF('Encodage réponses Es'!BH10=\"\",\"\",'Encodage réponses Es'!BH10)","v":""},{"$f":"IF('Encodage réponses Es'!BI10=\"\",\"\",'Encodage réponses Es'!BI10)","v":""},{"$f":"IF('Encodage réponses Es'!BK10=\"\",\"\",'Encodage réponses Es'!BK10)","v":""},{"$f":"IF('Encodage réponses Es'!AZ10=\"\",\"\",'Encodage réponses Es'!AZ10)","v":""},{"$f":"IF('Encodage réponses Es'!BA10=\"\",\"\",'Encodage réponses Es'!BA10)","v":""},{"$f":"IF('Encodage réponses Es'!BE10=\"\",\"\",'Encodage réponses Es'!BE10)","v":""},{"$f":"IF('Encodage réponses Es'!BF10=\"\",\"\",'Encodage réponses Es'!BF10)","v":""},{"$f":"IF(AND(COUNTBLANK(AY11:BQ11)>0,'Encodage réponses Es'!$BS10=\"!\"),\"Incomplet\",IF(OR(COUNTIF(AY11:BQ11,\"a\")>0,COUNTIF(AY11:BQ11,\"A\")>0),\"Absent(e)\",IF(COUNT(AY11:BQ11)=0,\"\",SUM(AY11:BQ11))))","v":""},{"$f":"IF('Encodage réponses Es'!AS10=\"\",\"\",'Encodage réponses Es'!AS10)","v":""},{"$f":"IF('Encodage réponses Es'!BO10=\"\",\"\",'Encodage réponses Es'!BO10)","v":""},{"$f":"IF('Encodage réponses Es'!BP10=\"\",\"\",'Encodage réponses Es'!BP10)","v":""},{"$f":"IF('Encodage réponses Es'!BQ10=\"\",\"\",'Encodage réponses Es'!BQ10)","v":""},{"$f":"IF('Encodage réponses Es'!BR10=\"\",\"\",'Encodage réponses Es'!BR10)","v":""},{"$f":"IF('Encodage réponses Es'!AN10=\"\",\"\",'Encodage réponses Es'!AN10)","v":""},{"$f":"IF('Encodage réponses Es'!AP10=\"\",\"\",'Encodage réponses Es'!AP10)","v":""},{"$f":"IF('Encodage réponses Es'!AT10=\"\",\"\",'Encodage réponses Es'!AT10)","v":""},{"$f":"IF('Encodage réponses Es'!AV10=\"\",\"\",'Encodage réponses Es'!AV10)","v":""},{"$f":"IF('Encodage réponses Es'!BG10=\"\",\"\",'Encodage réponses Es'!BG10)","v":""},{"$f":"IF('Encodage réponses Es'!AO10=\"\",\"\",'Encodage réponses Es'!AO10)","v":""},{"$f":"IF('Encodage réponses Es'!BJ10=\"\",\"\",'Encodage réponses Es'!BJ10)","v":""},{"$f":"IF(AND(COUNTBLANK(BS11:CD11)>0,'Encodage réponses Es'!$BS10=\"!\"),\"Incomplet\",IF(OR(COUNTIF(BS11:CD11,\"a\")>0,COUNTIF(BS11:CD11,\"A\")>0),\"Absent(e)\",IF(COUNT(BS11:CD11)=0,\"\",SUM(BS11:CD11))))","v":""}]
[{"$f":"IF('Encodage réponses Es'!A11=\"\",\"\",'Encodage réponses Es'!A11)","v":0},{"$f":"IF('Encodage réponses Es'!B11=\"\",\"\",'Encodage réponses Es'!B11)","v":0},{"$f":"IF('Encodage réponses Es'!C11=\"\",\"\",'Encodage réponses Es'!C11)","v":0},8,{"$f":"IF('Encodage réponses Es'!E11=\"\",\"\",'Encodage réponses Es'!E11)","v":""},{"$f":"IF('Encodage réponses Es'!F11=\"\",\"\",'Encodage réponses Es'!F11)","v":""},{"$f":"IF('Encodage réponses Es'!G11=\"\",\"\",'Encodage réponses Es'!G11)","v":""},{"$f":"IF('Encodage réponses Es'!I11=\"\",\"\",'Encodage réponses Es'!I11)","v":""},null,{"$f":"IF('Encodage réponses Es'!BS11=\"!\",\"Incomplet\",IF(AND(SUM('Encodage réponses Es'!J11:BR11)>=$J$4/2,'Encodage réponses Es'!BS11=\"a\"),SUM('Encodage réponses Es'!J11:BR11),IF(AND(SUM('Encodage réponses Es'!J11:BR11)<$J$4/2,'Encodage réponses Es'!BS11=\"a\"),\"Absent(e)\",IF(COUNTBLANK('Encodage réponses Es'!J11:BR11)=61,\"\",SUM('Encodage réponses Es'!J11:BR11)))))","v":""},"",null,"","","","",null,null,{"$f":"IF('Encodage réponses Es'!V11=\"\",\"\",'Encodage réponses Es'!V11)","v":""},{"$f":"IF('Encodage réponses Es'!Y11=\"\",\"\",'Encodage réponses Es'!Y11)","v":""},{"$f":"IF('Encodage réponses Es'!AF11=\"\",\"\",'Encodage réponses Es'!AF11)","v":""},{"$f":"IF('Encodage réponses Es'!K11=\"\",\"\",'Encodage réponses Es'!K11)","v":""},{"$f":"IF('Encodage réponses Es'!M11=\"\",\"\",'Encodage réponses Es'!M11)","v":""},{"$f":"IF('Encodage réponses Es'!N11=\"\",\"\",'Encodage réponses Es'!N11)","v":""},{"$f":"IF('Encodage réponses Es'!AB11=\"\",\"\",'Encodage réponses Es'!AB11)","v":""},{"$f":"IF('Encodage réponses Es'!Q11=\"\",\"\",'Encodage réponses Es'!Q11)","v":""},{"$f":"IF('Encodage réponses Es'!Z11=\"\",\"\",'Encodage réponses Es'!Z11)","v":""},{"$f":"IF('Encodage réponses Es'!AA11=\"\",\"\",'Encodage réponses Es'!AA11)","v":""},{"$f":"IF('Encodage réponses Es'!AC11=\"\",\"\",'Encodage réponses Es'!AC11)","v":""},{"$f":"IF('Encodage réponses Es'!AD11=\"\",\"\",'Encodage réponses Es'!AD11)","v":""},{"$f":"IF('Encodage réponses Es'!AE11=\"\",\"\",'Encodage réponses Es'!AE11)","v":""},{"$f":"IF('Encodage réponses Es'!AG11=\"\",\"\",'Encodage réponses Es'!AG11)","v":""},{"$f":"IF('Encodage réponses Es'!AJ11=\"\",\"\",'Encodage réponses Es'!AJ11)","v":""},{"$f":"IF('Encodage réponses Es'!T11=\"\",\"\",'Encodage réponses Es'!T11)","v":""},{"$f":"IF(AND(COUNTBLANK(S12:AH12)>0,'Encodage réponses Es'!$BS11=\"!\"),\"Incomplet\",IF(OR(COUNTIF(S12:AH12,\"a\")>0,COUNTIF(S12:AH12,\"A\")>0),\"Absent(e)\",IF(COUNT(S12:AH12)=0,\"\",SUM(S12:AH12))))","v":""},{"$f":"IF('Encodage réponses Es'!J11=\"\",\"\",'Encodage réponses Es'!J11)","v":""},{"$f":"IF('Encodage réponses Es'!S11=\"\",\"\",'Encodage réponses Es'!S11)","v":""},{"$f":"IF('Encodage réponses Es'!X11=\"\",\"\",'Encodage réponses Es'!X11)","v":""},{"$f":"IF('Encodage réponses Es'!AH11=\"\",\"\",'Encodage réponses Es'!AH11)","v":""},{"$f":"IF('Encodage réponses Es'!AL11=\"\",\"\",'Encodage réponses Es'!AL11)","v":""},{"$f":"IF('Encodage réponses Es'!AM11=\"\",\"\",'Encodage réponses Es'!AM11)","v":""},{"$f":"IF('Encodage réponses Es'!L11=\"\",\"\",'Encodage réponses Es'!L11)","v":""},{"$f":"IF('Encodage réponses Es'!O11=\"\",\"\",'Encodage réponses Es'!O11)","v":""},{"$f":"IF('Encodage réponses Es'!P11=\"\",\"\",'Encodage réponses Es'!P11)","v":""},{"$f":"IF('Encodage réponses Es'!U11=\"\",\"\",'Encodage réponses Es'!U11)","v":""},{"$f":"IF('Encodage réponses Es'!W11=\"\",\"\",'Encodage réponses Es'!W11)","v":""},{"$f":"IF('Encodage réponses Es'!R11=\"\",\"\",'Encodage réponses Es'!R11)","v":""},{"$f":"IF('Encodage réponses Es'!AI11=\"\",\"\",'Encodage réponses Es'!AI11)","v":""},{"$f":"IF('Encodage réponses Es'!AK11=\"\",\"\",'Encodage réponses Es'!AK11)","v":""},{"$f":"IF(AND(COUNTBLANK(AJ12:AW12)>0,'Encodage réponses Es'!$BS11=\"!\"),\"Incomplet\",IF(OR(COUNTIF(AJ12:AW12,\"a\")>0,COUNTIF(AJ12:AW12,\"A\")>0),\"Absent(e)\",IF(COUNT(AJ12:AW12)=0,\"\",SUM(AJ12:AW12))))","v":""},{"$f":"IF('Encodage réponses Es'!AU11=\"\",\"\",'Encodage réponses Es'!AU11)","v":""},{"$f":"IF('Encodage réponses Es'!BB11=\"\",\"\",'Encodage réponses Es'!BB11)","v":""},{"$f":"IF('Encodage réponses Es'!BC11=\"\",\"\",'Encodage réponses Es'!BC11)","v":""},{"$f":"IF('Encodage réponses Es'!BD11=\"\",\"\",'Encodage réponses Es'!BD11)","v":""},{"$f":"IF('Encodage réponses Es'!BL11=\"\",\"\",'Encodage réponses Es'!BL11)","v":""},{"$f":"IF('Encodage réponses Es'!BM11=\"\",\"\",'Encodage réponses Es'!BM11)","v":""},{"$f":"IF('Encodage réponses Es'!BN11=\"\",\"\",'Encodage réponses Es'!BN11)","v":""},{"$f":"IF('Encodage réponses Es'!AQ11=\"\",\"\",'Encodage réponses Es'!AQ11)","v":""},{"$f":"IF('Encodage réponses Es'!AR11=\"\",\"\",'Encodage réponses Es'!AR11)","v":""},{"$f":"IF('Encodage réponses Es'!AW11=\"\",\"\",'Encodage réponses Es'!AW11)","v":""},{"$f":"IF('Encodage réponses Es'!AX11=\"\",\"\",'Encodage réponses Es'!AX11)","v":""},{"$f":"IF('Encodage réponses Es'!AY11=\"\",\"\",'Encodage réponses Es'!AY11)","v":""},{"$f":"IF('Encodage réponses Es'!BH11=\"\",\"\",'Encodage réponses Es'!BH11)","v":""},{"$f":"IF('Encodage réponses Es'!BI11=\"\",\"\",'Encodage réponses Es'!BI11)","v":""},{"$f":"IF('Encodage réponses Es'!BK11=\"\",\"\",'Encodage réponses Es'!BK11)","v":""},{"$f":"IF('Encodage réponses Es'!AZ11=\"\",\"\",'Encodage réponses Es'!AZ11)","v":""},{"$f":"IF('Encodage réponses Es'!BA11=\"\",\"\",'Encodage réponses Es'!BA11)","v":""},{"$f":"IF('Encodage réponses Es'!BE11=\"\",\"\",'Encodage réponses Es'!BE11)","v":""},{"$f":"IF('Encodage réponses Es'!BF11=\"\",\"\",'Encodage réponses Es'!BF11)","v":""},{"$f":"IF(AND(COUNTBLANK(AY12:BQ12)>0,'Encodage réponses Es'!$BS11=\"!\"),\"Incomplet\",IF(OR(COUNTIF(AY12:BQ12,\"a\")>0,COUNTIF(AY12:BQ12,\"A\")>0),\"Absent(e)\",IF(COUNT(AY12:BQ12)=0,\"\",SUM(AY12:BQ12))))","v":""},{"$f":"IF('Encodage réponses Es'!AS11=\"\",\"\",'Encodage réponses Es'!AS11)","v":""},{"$f":"IF('Encodage réponses Es'!BO11=\"\",\"\",'Encodage réponses Es'!BO11)","v":""},{"$f":"IF('Encodage réponses Es'!BP11=\"\",\"\",'Encodage réponses Es'!BP11)","v":""},{"$f":"IF('Encodage réponses Es'!BQ11=\"\",\"\",'Encodage réponses Es'!BQ11)","v":""},{"$f":"IF('Encodage réponses Es'!BR11=\"\",\"\",'Encodage réponses Es'!BR11)","v":""},{"$f":"IF('Encodage réponses Es'!AN11=\"\",\"\",'Encodage réponses Es'!AN11)","v":""},{"$f":"IF('Encodage réponses Es'!AP11=\"\",\"\",'Encodage réponses Es'!AP11)","v":""},{"$f":"IF('Encodage réponses Es'!AT11=\"\",\"\",'Encodage réponses Es'!AT11)","v":""},{"$f":"IF('Encodage réponses Es'!AV11=\"\",\"\",'Encodage réponses Es'!AV11)","v":""},{"$f":"IF('Encodage réponses Es'!BG11=\"\",\"\",'Encodage réponses Es'!BG11)","v":""},{"$f":"IF('Encodage réponses Es'!AO11=\"\",\"\",'Encodage réponses Es'!AO11)","v":""},{"$f":"IF('Encodage réponses Es'!BJ11=\"\",\"\",'Encodage réponses Es'!BJ11)","v":""},{"$f":"IF(AND(COUNTBLANK(BS12:CD12)>0,'Encodage réponses Es'!$BS11=\"!\"),\"Incomplet\",IF(OR(COUNTIF(BS12:CD12,\"a\")>0,COUNTIF(BS12:CD12,\"A\")>0),\"Absent(e)\",IF(COUNT(BS12:CD12)=0,\"\",SUM(BS12:CD12))))","v":""}]
[{"$f":"IF('Encodage réponses Es'!A12=\"\",\"\",'Encodage réponses Es'!A12)","v":0},{"$f":"IF('Encodage réponses Es'!B12=\"\",\"\",'Encodage réponses Es'!B12)","v":0},{"$f":"IF('Encodage réponses Es'!C12=\"\",\"\",'Encodage réponses Es'!C12)","v":0},9,{"$f":"IF('Encodage réponses Es'!E12=\"\",\"\",'Encodage réponses Es'!E12)","v":""},{"$f":"IF('Encodage réponses Es'!F12=\"\",\"\",'Encodage réponses Es'!F12)","v":""},{"$f":"IF('Encodage réponses Es'!G12=\"\",\"\",'Encodage réponses Es'!G12)","v":""},{"$f":"IF('Encodage réponses Es'!I12=\"\",\"\",'Encodage réponses Es'!I12)","v":""},null,{"$f":"IF('Encodage réponses Es'!BS12=\"!\",\"Incomplet\",IF(AND(SUM('Encodage réponses Es'!J12:BR12)>=$J$4/2,'Encodage réponses Es'!BS12=\"a\"),SUM('Encodage réponses Es'!J12:BR12),IF(AND(SUM('Encodage réponses Es'!J12:BR12)<$J$4/2,'Encodage réponses Es'!BS12=\"a\"),\"Absent(e)\",IF(COUNTBLANK('Encodage réponses Es'!J12:BR12)=61,\"\",SUM('Encodage réponses Es'!J12:BR12)))))","v":""},"",null,"","","","",null,null,{"$f":"IF('Encodage réponses Es'!V12=\"\",\"\",'Encodage réponses Es'!V12)","v":""},{"$f":"IF('Encodage réponses Es'!Y12=\"\",\"\",'Encodage réponses Es'!Y12)","v":""},{"$f":"IF('Encodage réponses Es'!AF12=\"\",\"\",'Encodage réponses Es'!AF12)","v":""},{"$f":"IF('Encodage réponses Es'!K12=\"\",\"\",'Encodage réponses Es'!K12)","v":""},{"$f":"IF('Encodage réponses Es'!M12=\"\",\"\",'Encodage réponses Es'!M12)","v":""},{"$f":"IF('Encodage réponses Es'!N12=\"\",\"\",'Encodage réponses Es'!N12)","v":""},{"$f":"IF('Encodage réponses Es'!AB12=\"\",\"\",'Encodage réponses Es'!AB12)","v":""},{"$f":"IF('Encodage réponses Es'!Q12=\"\",\"\",'Encodage réponses Es'!Q12)","v":""},{"$f":"IF('Encodage réponses Es'!Z12=\"\",\"\",'Encodage réponses Es'!Z12)","v":""},{"$f":"IF('Encodage réponses Es'!AA12=\"\",\"\",'Encodage réponses Es'!AA12)","v":""},{"$f":"IF('Encodage réponses Es'!AC12=\"\",\"\",'Encodage réponses Es'!AC12)","v":""},{"$f":"IF('Encodage réponses Es'!AD12=\"\",\"\",'Encodage réponses Es'!AD12)","v":""},{"$f":"IF('Encodage réponses Es'!AE12=\"\",\"\",'Encodage réponses Es'!AE12)","v":""},{"$f":"IF('Encodage réponses Es'!AG12=\"\",\"\",'Encodage réponses Es'!AG12)","v":""},{"$f":"IF('Encodage réponses Es'!AJ12=\"\",\"\",'Encodage réponses Es'!AJ12)","v":""},{"$f":"IF('Encodage réponses Es'!T12=\"\",\"\",'Encodage réponses Es'!T12)","v":""},{"$f":"IF(AND(COUNTBLANK(S13:AH13)>0,'Encodage réponses Es'!$BS12=\"!\"),\"Incomplet\",IF(OR(COUNTIF(S13:AH13,\"a\")>0,COUNTIF(S13:AH13,\"A\")>0),\"Absent(e)\",IF(COUNT(S13:AH13)=0,\"\",SUM(S13:AH13))))","v":""},{"$f":"IF('Encodage réponses Es'!J12=\"\",\"\",'Encodage réponses Es'!J12)","v":""},{"$f":"IF('Encodage réponses Es'!S12=\"\",\"\",'Encodage réponses Es'!S12)","v":""},{"$f":"IF('Encodage réponses Es'!X12=\"\",\"\",'Encodage réponses Es'!X12)","v":""},{"$f":"IF('Encodage réponses Es'!AH12=\"\",\"\",'Encodage réponses Es'!AH12)","v":""},{"$f":"IF('Encodage réponses Es'!AL12=\"\",\"\",'Encodage réponses Es'!AL12)","v":""},{"$f":"IF('Encodage réponses Es'!AM12=\"\",\"\",'Encodage réponses Es'!AM12)","v":""},{"$f":"IF('Encodage réponses Es'!L12=\"\",\"\",'Encodage réponses Es'!L12)","v":""},{"$f":"IF('Encodage réponses Es'!O12=\"\",\"\",'Encodage réponses Es'!O12)","v":""},{"$f":"IF('Encodage réponses Es'!P12=\"\",\"\",'Encodage réponses Es'!P12)","v":""},{"$f":"IF('Encodage réponses Es'!U12=\"\",\"\",'Encodage réponses Es'!U12)","v":""},{"$f":"IF('Encodage réponses Es'!W12=\"\",\"\",'Encodage réponses Es'!W12)","v":""},{"$f":"IF('Encodage réponses Es'!R12=\"\",\"\",'Encodage réponses Es'!R12)","v":""},{"$f":"IF('Encodage réponses Es'!AI12=\"\",\"\",'Encodage réponses Es'!AI12)","v":""},{"$f":"IF('Encodage réponses Es'!AK12=\"\",\"\",'Encodage réponses Es'!AK12)","v":""},{"$f":"IF(AND(COUNTBLANK(AJ13:AW13)>0,'Encodage réponses Es'!$BS12=\"!\"),\"Incomplet\",IF(OR(COUNTIF(AJ13:AW13,\"a\")>0,COUNTIF(AJ13:AW13,\"A\")>0),\"Absent(e)\",IF(COUNT(AJ13:AW13)=0,\"\",SUM(AJ13:AW13))))","v":""},{"$f":"IF('Encodage réponses Es'!AU12=\"\",\"\",'Encodage réponses Es'!AU12)","v":""},{"$f":"IF('Encodage réponses Es'!BB12=\"\",\"\",'Encodage réponses Es'!BB12)","v":""},{"$f":"IF('Encodage réponses Es'!BC12=\"\",\"\",'Encodage réponses Es'!BC12)","v":""},{"$f":"IF('Encodage réponses Es'!BD12=\"\",\"\",'Encodage réponses Es'!BD12)","v":""},{"$f":"IF('Encodage réponses Es'!BL12=\"\",\"\",'Encodage réponses Es'!BL12)","v":""},{"$f":"IF('Encodage réponses Es'!BM12=\"\",\"\",'Encodage réponses Es'!BM12)","v":""},{"$f":"IF('Encodage réponses Es'!BN12=\"\",\"\",'Encodage réponses Es'!BN12)","v":""},{"$f":"IF('Encodage réponses Es'!AQ12=\"\",\"\",'Encodage réponses Es'!AQ12)","v":""},{"$f":"IF('Encodage réponses Es'!AR12=\"\",\"\",'Encodage réponses Es'!AR12)","v":""},{"$f":"IF('Encodage réponses Es'!AW12=\"\",\"\",'Encodage réponses Es'!AW12)","v":""},{"$f":"IF('Encodage réponses Es'!AX12=\"\",\"\",'Encodage réponses Es'!AX12)","v":""},{"$f":"IF('Encodage réponses Es'!AY12=\"\",\"\",'Encodage réponses Es'!AY12)","v":""},{"$f":"IF('Encodage réponses Es'!BH12=\"\",\"\",'Encodage réponses Es'!BH12)","v":""},{"$f":"IF('Encodage réponses Es'!BI12=\"\",\"\",'Encodage réponses Es'!BI12)","v":""},{"$f":"IF('Encodage réponses Es'!BK12=\"\",\"\",'Encodage réponses Es'!BK12)","v":""},{"$f":"IF('Encodage réponses Es'!AZ12=\"\",\"\",'Encodage réponses Es'!AZ12)","v":""},{"$f":"IF('Encodage réponses Es'!BA12=\"\",\"\",'Encodage réponses Es'!BA12)","v":""},{"$f":"IF('Encodage réponses Es'!BE12=\"\",\"\",'Encodage réponses Es'!BE12)","v":""},{"$f":"IF('Encodage réponses Es'!BF12=\"\",\"\",'Encodage réponses Es'!BF12)","v":""},{"$f":"IF(AND(COUNTBLANK(AY13:BQ13)>0,'Encodage réponses Es'!$BS12=\"!\"),\"Incomplet\",IF(OR(COUNTIF(AY13:BQ13,\"a\")>0,COUNTIF(AY13:BQ13,\"A\")>0),\"Absent(e)\",IF(COUNT(AY13:BQ13)=0,\"\",SUM(AY13:BQ13))))","v":""},{"$f":"IF('Encodage réponses Es'!AS12=\"\",\"\",'Encodage réponses Es'!AS12)","v":""},{"$f":"IF('Encodage réponses Es'!BO12=\"\",\"\",'Encodage réponses Es'!BO12)","v":""},{"$f":"IF('Encodage réponses Es'!BP12=\"\",\"\",'Encodage réponses Es'!BP12)","v":""},{"$f":"IF('Encodage réponses Es'!BQ12=\"\",\"\",'Encodage réponses Es'!BQ12)","v":""},{"$f":"IF('Encodage réponses Es'!BR12=\"\",\"\",'Encodage réponses Es'!BR12)","v":""},{"$f":"IF('Encodage réponses Es'!AN12=\"\",\"\",'Encodage réponses Es'!AN12)","v":""},{"$f":"IF('Encodage réponses Es'!AP12=\"\",\"\",'Encodage réponses Es'!AP12)","v":""},{"$f":"IF('Encodage réponses Es'!AT12=\"\",\"\",'Encodage réponses Es'!AT12)","v":""},{"$f":"IF('Encodage réponses Es'!AV12=\"\",\"\",'Encodage réponses Es'!AV12)","v":""},{"$f":"IF('Encodage réponses Es'!BG12=\"\",\"\",'Encodage réponses Es'!BG12)","v":""},{"$f":"IF('Encodage réponses Es'!AO12=\"\",\"\",'Encodage réponses Es'!AO12)","v":""},{"$f":"IF('Encodage réponses Es'!BJ12=\"\",\"\",'Encodage réponses Es'!BJ12)","v":""},{"$f":"IF(AND(COUNTBLANK(BS13:CD13)>0,'Encodage réponses Es'!$BS12=\"!\"),\"Incomplet\",IF(OR(COUNTIF(BS13:CD13,\"a\")>0,COUNTIF(BS13:CD13,\"A\")>0),\"Absent(e)\",IF(COUNT(BS13:CD13)=0,\"\",SUM(BS13:CD13))))","v":""}]
[{"$f":"IF('Encodage réponses Es'!A13=\"\",\"\",'Encodage réponses Es'!A13)","v":0},{"$f":"IF('Encodage réponses Es'!B13=\"\",\"\",'Encodage réponses Es'!B13)","v":0},{"$f":"IF('Encodage réponses Es'!C13=\"\",\"\",'Encodage réponses Es'!C13)","v":0},10,{"$f":"IF('Encodage réponses Es'!E13=\"\",\"\",'Encodage réponses Es'!E13)","v":""},{"$f":"IF('Encodage réponses Es'!F13=\"\",\"\",'Encodage réponses Es'!F13)","v":""},{"$f":"IF('Encodage réponses Es'!G13=\"\",\"\",'Encodage réponses Es'!G13)","v":""},{"$f":"IF('Encodage réponses Es'!I13=\"\",\"\",'Encodage réponses Es'!I13)","v":""},null,{"$f":"IF('Encodage réponses Es'!BS13=\"!\",\"Incomplet\",IF(AND(SUM('Encodage réponses Es'!J13:BR13)>=$J$4/2,'Encodage réponses Es'!BS13=\"a\"),SUM('Encodage réponses Es'!J13:BR13),IF(AND(SUM('Encodage réponses Es'!J13:BR13)<$J$4/2,'Encodage réponses Es'!BS13=\"a\"),\"Absent(e)\",IF(COUNTBLANK('Encodage réponses Es'!J13:BR13)=61,\"\",SUM('Encodage réponses Es'!J13:BR13)))))","v":""},"",null,"","","","",null,null,{"$f":"IF('Encodage réponses Es'!V13=\"\",\"\",'Encodage réponses Es'!V13)","v":""},{"$f":"IF('Encodage réponses Es'!Y13=\"\",\"\",'Encodage réponses Es'!Y13)","v":""},{"$f":"IF('Encodage réponses Es'!AF13=\"\",\"\",'Encodage réponses Es'!AF13)","v":""},{"$f":"IF('Encodage réponses Es'!K13=\"\",\"\",'Encodage réponses Es'!K13)","v":""},{"$f":"IF('Encodage réponses Es'!M13=\"\",\"\",'Encodage réponses Es'!M13)","v":""},{"$f":"IF('Encodage réponses Es'!N13=\"\",\"\",'Encodage réponses Es'!N13)","v":""},{"$f":"IF('Encodage réponses Es'!AB13=\"\",\"\",'Encodage réponses Es'!AB13)","v":""},{"$f":"IF('Encodage réponses Es'!Q13=\"\",\"\",'Encodage réponses Es'!Q13)","v":""},{"$f":"IF('Encodage réponses Es'!Z13=\"\",\"\",'Encodage réponses Es'!Z13)","v":""},{"$f":"IF('Encodage réponses Es'!AA13=\"\",\"\",'Encodage réponses Es'!AA13)","v":""},{"$f":"IF('Encodage réponses Es'!AC13=\"\",\"\",'Encodage réponses Es'!AC13)","v":""},{"$f":"IF('Encodage réponses Es'!AD13=\"\",\"\",'Encodage réponses Es'!AD13)","v":""},{"$f":"IF('Encodage réponses Es'!AE13=\"\",\"\",'Encodage réponses Es'!AE13)","v":""},{"$f":"IF('Encodage réponses Es'!AG13=\"\",\"\",'Encodage réponses Es'!AG13)","v":""},{"$f":"IF('Encodage réponses Es'!AJ13=\"\",\"\",'Encodage réponses Es'!AJ13)","v":""},{"$f":"IF('Encodage réponses Es'!T13=\"\",\"\",'Encodage réponses Es'!T13)","v":""},{"$f":"IF(AND(COUNTBLANK(S14:AH14)>0,'Encodage réponses Es'!$BS13=\"!\"),\"Incomplet\",IF(OR(COUNTIF(S14:AH14,\"a\")>0,COUNTIF(S14:AH14,\"A\")>0),\"Absent(e)\",IF(COUNT(S14:AH14)=0,\"\",SUM(S14:AH14))))","v":""},{"$f":"IF('Encodage réponses Es'!J13=\"\",\"\",'Encodage réponses Es'!J13)","v":""},{"$f":"IF('Encodage réponses Es'!S13=\"\",\"\",'Encodage réponses Es'!S13)","v":""},{"$f":"IF('Encodage réponses Es'!X13=\"\",\"\",'Encodage réponses Es'!X13)","v":""},{"$f":"IF('Encodage réponses Es'!AH13=\"\",\"\",'Encodage réponses Es'!AH13)","v":""},{"$f":"IF('Encodage réponses Es'!AL13=\"\",\"\",'Encodage réponses Es'!AL13)","v":""},{"$f":"IF('Encodage réponses Es'!AM13=\"\",\"\",'Encodage réponses Es'!AM13)","v":""},{"$f":"IF('Encodage réponses Es'!L13=\"\",\"\",'Encodage réponses Es'!L13)","v":""},{"$f":"IF('Encodage réponses Es'!O13=\"\",\"\",'Encodage réponses Es'!O13)","v":""},{"$f":"IF('Encodage réponses Es'!P13=\"\",\"\",'Encodage réponses Es'!P13)","v":""},{"$f":"IF('Encodage réponses Es'!U13=\"\",\"\",'Encodage réponses Es'!U13)","v":""},{"$f":"IF('Encodage réponses Es'!W13=\"\",\"\",'Encodage réponses Es'!W13)","v":""},{"$f":"IF('Encodage réponses Es'!R13=\"\",\"\",'Encodage réponses Es'!R13)","v":""},{"$f":"IF('Encodage réponses Es'!AI13=\"\",\"\",'Encodage réponses Es'!AI13)","v":""},{"$f":"IF('Encodage réponses Es'!AK13=\"\",\"\",'Encodage réponses Es'!AK13)","v":""},{"$f":"IF(AND(COUNTBLANK(AJ14:AW14)>0,'Encodage réponses Es'!$BS13=\"!\"),\"Incomplet\",IF(OR(COUNTIF(AJ14:AW14,\"a\")>0,COUNTIF(AJ14:AW14,\"A\")>0),\"Absent(e)\",IF(COUNT(AJ14:AW14)=0,\"\",SUM(AJ14:AW14))))","v":""},{"$f":"IF('Encodage réponses Es'!AU13=\"\",\"\",'Encodage réponses Es'!AU13)","v":""},{"$f":"IF('Encodage réponses Es'!BB13=\"\",\"\",'Encodage réponses Es'!BB13)","v":""},{"$f":"IF('Encodage réponses Es'!BC13=\"\",\"\",'Encodage réponses Es'!BC13)","v":""},{"$f":"IF('Encodage réponses Es'!BD13=\"\",\"\",'Encodage réponses Es'!BD13)","v":""},{"$f":"IF('Encodage réponses Es'!BL13=\"\",\"\",'Encodage réponses Es'!BL13)","v":""},{"$f":"IF('Encodage réponses Es'!BM13=\"\",\"\",'Encodage réponses Es'!BM13)","v":""},{"$f":"IF('Encodage réponses Es'!BN13=\"\",\"\",'Encodage réponses Es'!BN13)","v":""},{"$f":"IF('Encodage réponses Es'!AQ13=\"\",\"\",'Encodage réponses Es'!AQ13)","v":""},{"$f":"IF('Encodage réponses Es'!AR13=\"\",\"\",'Encodage réponses Es'!AR13)","v":""},{"$f":"IF('Encodage réponses Es'!AW13=\"\",\"\",'Encodage réponses Es'!AW13)","v":""},{"$f":"IF('Encodage réponses Es'!AX13=\"\",\"\",'Encodage réponses Es'!AX13)","v":""},{"$f":"IF('Encodage réponses Es'!AY13=\"\",\"\",'Encodage réponses Es'!AY13)","v":""},{"$f":"IF('Encodage réponses Es'!BH13=\"\",\"\",'Encodage réponses Es'!BH13)","v":""},{"$f":"IF('Encodage réponses Es'!BI13=\"\",\"\",'Encodage réponses Es'!BI13)","v":""},{"$f":"IF('Encodage réponses Es'!BK13=\"\",\"\",'Encodage réponses Es'!BK13)","v":""},{"$f":"IF('Encodage réponses Es'!AZ13=\"\",\"\",'Encodage réponses Es'!AZ13)","v":""},{"$f":"IF('Encodage réponses Es'!BA13=\"\",\"\",'Encodage réponses Es'!BA13)","v":""},{"$f":"IF('Encodage réponses Es'!BE13=\"\",\"\",'Encodage réponses Es'!BE13)","v":""},{"$f":"IF('Encodage réponses Es'!BF13=\"\",\"\",'Encodage réponses Es'!BF13)","v":""},{"$f":"IF(AND(COUNTBLANK(AY14:BQ14)>0,'Encodage réponses Es'!$BS13=\"!\"),\"Incomplet\",IF(OR(COUNTIF(AY14:BQ14,\"a\")>0,COUNTIF(AY14:BQ14,\"A\")>0),\"Absent(e)\",IF(COUNT(AY14:BQ14)=0,\"\",SUM(AY14:BQ14))))","v":""},{"$f":"IF('Encodage réponses Es'!AS13=\"\",\"\",'Encodage réponses Es'!AS13)","v":""},{"$f":"IF('Encodage réponses Es'!BO13=\"\",\"\",'Encodage réponses Es'!BO13)","v":""},{"$f":"IF('Encodage réponses Es'!BP13=\"\",\"\",'Encodage réponses Es'!BP13)","v":""},{"$f":"IF('Encodage réponses Es'!BQ13=\"\",\"\",'Encodage réponses Es'!BQ13)","v":""},{"$f":"IF('Encodage réponses Es'!BR13=\"\",\"\",'Encodage réponses Es'!BR13)","v":""},{"$f":"IF('Encodage réponses Es'!AN13=\"\",\"\",'Encodage réponses Es'!AN13)","v":""},{"$f":"IF('Encodage réponses Es'!AP13=\"\",\"\",'Encodage réponses Es'!AP13)","v":""},{"$f":"IF('Encodage réponses Es'!AT13=\"\",\"\",'Encodage réponses Es'!AT13)","v":""},{"$f":"IF('Encodage réponses Es'!AV13=\"\",\"\",'Encodage réponses Es'!AV13)","v":""},{"$f":"IF('Encodage réponses Es'!BG13=\"\",\"\",'Encodage réponses Es'!BG13)","v":""},{"$f":"IF('Encodage réponses Es'!AO13=\"\",\"\",'Encodage réponses Es'!AO13)","v":""},{"$f":"IF('Encodage réponses Es'!BJ13=\"\",\"\",'Encodage réponses Es'!BJ13)","v":""},{"$f":"IF(AND(COUNTBLANK(BS14:CD14)>0,'Encodage réponses Es'!$BS13=\"!\"),\"Incomplet\",IF(OR(COUNTIF(BS14:CD14,\"a\")>0,COUNTIF(BS14:CD14,\"A\")>0),\"Absent(e)\",IF(COUNT(BS14:CD14)=0,\"\",SUM(BS14:CD14))))","v":""}]
[{"$f":"IF('Encodage réponses Es'!A14=\"\",\"\",'Encodage réponses Es'!A14)","v":0},{"$f":"IF('Encodage réponses Es'!B14=\"\",\"\",'Encodage réponses Es'!B14)","v":0},{"$f":"IF('Encodage réponses Es'!C14=\"\",\"\",'Encodage réponses Es'!C14)","v":0},11,{"$f":"IF('Encodage réponses Es'!E14=\"\",\"\",'Encodage réponses Es'!E14)","v":""},{"$f":"IF('Encodage réponses Es'!F14=\"\",\"\",'Encodage réponses Es'!F14)","v":""},{"$f":"IF('Encodage réponses Es'!G14=\"\",\"\",'Encodage réponses Es'!G14)","v":""},{"$f":"IF('Encodage réponses Es'!I14=\"\",\"\",'Encodage réponses Es'!I14)","v":""},null,{"$f":"IF('Encodage réponses Es'!BS14=\"!\",\"Incomplet\",IF(AND(SUM('Encodage réponses Es'!J14:BR14)>=$J$4/2,'Encodage réponses Es'!BS14=\"a\"),SUM('Encodage réponses Es'!J14:BR14),IF(AND(SUM('Encodage réponses Es'!J14:BR14)<$J$4/2,'Encodage réponses Es'!BS14=\"a\"),\"Absent(e)\",IF(COUNTBLANK('Encodage réponses Es'!J14:BR14)=61,\"\",SUM('Encodage réponses Es'!J14:BR14)))))","v":""},"",null,"","","","",null,null,{"$f":"IF('Encodage réponses Es'!V14=\"\",\"\",'Encodage réponses Es'!V14)","v":""},{"$f":"IF('Encodage réponses Es'!Y14=\"\",\"\",'Encodage réponses Es'!Y14)","v":""},{"$f":"IF('Encodage réponses Es'!AF14=\"\",\"\",'Encodage réponses Es'!AF14)","v":""},{"$f":"IF('Encodage réponses Es'!K14=\"\",\"\",'Encodage réponses Es'!K14)","v":""},{"$f":"IF('Encodage réponses Es'!M14=\"\",\"\",'Encodage réponses Es'!M14)","v":""},{"$f":"IF('Encodage réponses Es'!N14=\"\",\"\",'Encodage réponses Es'!N14)","v":""},{"$f":"IF('Encodage réponses Es'!AB14=\"\",\"\",'Encodage réponses Es'!AB14)","v":""},{"$f":"IF('Encodage réponses Es'!Q14=\"\",\"\",'Encodage réponses Es'!Q14)","v":""},{"$f":"IF('Encodage réponses Es'!Z14=\"\",\"\",'Encodage réponses Es'!Z14)","v":""},{"$f":"IF('Encodage réponses Es'!AA14=\"\",\"\",'Encodage réponses Es'!AA14)","v":""},{"$f":"IF('Encodage réponses Es'!AC14=\"\",\"\",'Encodage réponses Es'!AC14)","v":""},{"$f":"IF('Encodage réponses Es'!AD14=\"\",\"\",'Encodage réponses Es'!AD14)","v":""},{"$f":"IF('Encodage réponses Es'!AE14=\"\",\"\",'Encodage réponses Es'!AE14)","v":""},{"$f":"IF('Encodage réponses Es'!AG14=\"\",\"\",'Encodage réponses Es'!AG14)","v":""},{"$f":"IF('Encodage réponses Es'!AJ14=\"\",\"\",'Encodage réponses Es'!AJ14)","v":""},{"$f":"IF('Encodage réponses Es'!T14=\"\",\"\",'Encodage réponses Es'!T14)","v":""},{"$f":"IF(AND(COUNTBLANK(S15:AH15)>0,'Encodage réponses Es'!$BS14=\"!\"),\"Incomplet\",IF(OR(COUNTIF(S15:AH15,\"a\")>0,COUNTIF(S15:AH15,\"A\")>0),\"Absent(e)\",IF(COUNT(S15:AH15)=0,\"\",SUM(S15:AH15))))","v":""},{"$f":"IF('Encodage réponses Es'!J14=\"\",\"\",'Encodage réponses Es'!J14)","v":""},{"$f":"IF('Encodage réponses Es'!S14=\"\",\"\",'Encodage réponses Es'!S14)","v":""},{"$f":"IF('Encodage réponses Es'!X14=\"\",\"\",'Encodage réponses Es'!X14)","v":""},{"$f":"IF('Encodage réponses Es'!AH14=\"\",\"\",'Encodage réponses Es'!AH14)","v":""},{"$f":"IF('Encodage réponses Es'!AL14=\"\",\"\",'Encodage réponses Es'!AL14)","v":""},{"$f":"IF('Encodage réponses Es'!AM14=\"\",\"\",'Encodage réponses Es'!AM14)","v":""},{"$f":"IF('Encodage réponses Es'!L14=\"\",\"\",'Encodage réponses Es'!L14)","v":""},{"$f":"IF('Encodage réponses Es'!O14=\"\",\"\",'Encodage réponses Es'!O14)","v":""},{"$f":"IF('Encodage réponses Es'!P14=\"\",\"\",'Encodage réponses Es'!P14)","v":""},{"$f":"IF('Encodage réponses Es'!U14=\"\",\"\",'Encodage réponses Es'!U14)","v":""},{"$f":"IF('Encodage réponses Es'!W14=\"\",\"\",'Encodage réponses Es'!W14)","v":""},{"$f":"IF('Encodage réponses Es'!R14=\"\",\"\",'Encodage réponses Es'!R14)","v":""},{"$f":"IF('Encodage réponses Es'!AI14=\"\",\"\",'Encodage réponses Es'!AI14)","v":""},{"$f":"IF('Encodage réponses Es'!AK14=\"\",\"\",'Encodage réponses Es'!AK14)","v":""},{"$f":"IF(AND(COUNTBLANK(AJ15:AW15)>0,'Encodage réponses Es'!$BS14=\"!\"),\"Incomplet\",IF(OR(COUNTIF(AJ15:AW15,\"a\")>0,COUNTIF(AJ15:AW15,\"A\")>0),\"Absent(e)\",IF(COUNT(AJ15:AW15)=0,\"\",SUM(AJ15:AW15))))","v":""},{"$f":"IF('Encodage réponses Es'!AU14=\"\",\"\",'Encodage réponses Es'!AU14)","v":""},{"$f":"IF('Encodage réponses Es'!BB14=\"\",\"\",'Encodage réponses Es'!BB14)","v":""},{"$f":"IF('Encodage réponses Es'!BC14=\"\",\"\",'Encodage réponses Es'!BC14)","v":""},{"$f":"IF('Encodage réponses Es'!BD14=\"\",\"\",'Encodage réponses Es'!BD14)","v":""},{"$f":"IF('Encodage réponses Es'!BL14=\"\",\"\",'Encodage réponses Es'!BL14)","v":""},{"$f":"IF('Encodage réponses Es'!BM14=\"\",\"\",'Encodage réponses Es'!BM14)","v":""},{"$f":"IF('Encodage réponses Es'!BN14=\"\",\"\",'Encodage réponses Es'!BN14)","v":""},{"$f":"IF('Encodage réponses Es'!AQ14=\"\",\"\",'Encodage réponses Es'!AQ14)","v":""},{"$f":"IF('Encodage réponses Es'!AR14=\"\",\"\",'Encodage réponses Es'!AR14)","v":""},{"$f":"IF('Encodage réponses Es'!AW14=\"\",\"\",'Encodage réponses Es'!AW14)","v":""},{"$f":"IF('Encodage réponses Es'!AX14=\"\",\"\",'Encodage réponses Es'!AX14)","v":""},{"$f":"IF('Encodage réponses Es'!AY14=\"\",\"\",'Encodage réponses Es'!AY14)","v":""},{"$f":"IF('Encodage réponses Es'!BH14=\"\",\"\",'Encodage réponses Es'!BH14)","v":""},{"$f":"IF('Encodage réponses Es'!BI14=\"\",\"\",'Encodage réponses Es'!BI14)","v":""},{"$f":"IF('Encodage réponses Es'!BK14=\"\",\"\",'Encodage réponses Es'!BK14)","v":""},{"$f":"IF('Encodage réponses Es'!AZ14=\"\",\"\",'Encodage réponses Es'!AZ14)","v":""},{"$f":"IF('Encodage réponses Es'!BA14=\"\",\"\",'Encodage réponses Es'!BA14)","v":""},{"$f":"IF('Encodage réponses Es'!BE14=\"\",\"\",'Encodage réponses Es'!BE14)","v":""},{"$f":"IF('Encodage réponses Es'!BF14=\"\",\"\",'Encodage réponses Es'!BF14)","v":""},{"$f":"IF(AND(COUNTBLANK(AY15:BQ15)>0,'Encodage réponses Es'!$BS14=\"!\"),\"Incomplet\",IF(OR(COUNTIF(AY15:BQ15,\"a\")>0,COUNTIF(AY15:BQ15,\"A\")>0),\"Absent(e)\",IF(COUNT(AY15:BQ15)=0,\"\",SUM(AY15:BQ15))))","v":""},{"$f":"IF('Encodage réponses Es'!AS14=\"\",\"\",'Encodage réponses Es'!AS14)","v":""},{"$f":"IF('Encodage réponses Es'!BO14=\"\",\"\",'Encodage réponses Es'!BO14)","v":""},{"$f":"IF('Encodage réponses Es'!BP14=\"\",\"\",'Encodage réponses Es'!BP14)","v":""},{"$f":"IF('Encodage réponses Es'!BQ14=\"\",\"\",'Encodage réponses Es'!BQ14)","v":""},{"$f":"IF('Encodage réponses Es'!BR14=\"\",\"\",'Encodage réponses Es'!BR14)","v":""},{"$f":"IF('Encodage réponses Es'!AN14=\"\",\"\",'Encodage réponses Es'!AN14)","v":""},{"$f":"IF('Encodage réponses Es'!AP14=\"\",\"\",'Encodage réponses Es'!AP14)","v":""},{"$f":"IF('Encodage réponses Es'!AT14=\"\",\"\",'Encodage réponses Es'!AT14)","v":""},{"$f":"IF('Encodage réponses Es'!AV14=\"\",\"\",'Encodage réponses Es'!AV14)","v":""},{"$f":"IF('Encodage réponses Es'!BG14=\"\",\"\",'Encodage réponses Es'!BG14)","v":""},{"$f":"IF('Encodage réponses Es'!AO14=\"\",\"\",'Encodage réponses Es'!AO14)","v":""},{"$f":"IF('Encodage réponses Es'!BJ14=\"\",\"\",'Encodage réponses Es'!BJ14)","v":""},{"$f":"IF(AND(COUNTBLANK(BS15:CD15)>0,'Encodage réponses Es'!$BS14=\"!\"),\"Incomplet\",IF(OR(COUNTIF(BS15:CD15,\"a\")>0,COUNTIF(BS15:CD15,\"A\")>0),\"Absent(e)\",IF(COUNT(BS15:CD15)=0,\"\",SUM(BS15:CD15))))","v":""}]
[{"$f":"IF('Encodage réponses Es'!A15=\"\",\"\",'Encodage réponses Es'!A15)","v":0},{"$f":"IF('Encodage réponses Es'!B15=\"\",\"\",'Encodage réponses Es'!B15)","v":0},{"$f":"IF('Encodage réponses Es'!C15=\"\",\"\",'Encodage réponses Es'!C15)","v":0},12,{"$f":"IF('Encodage réponses Es'!E15=\"\",\"\",'Encodage réponses Es'!E15)","v":""},{"$f":"IF('Encodage réponses Es'!F15=\"\",\"\",'Encodage réponses Es'!F15)","v":""},{"$f":"IF('Encodage réponses Es'!G15=\"\",\"\",'Encodage réponses Es'!G15)","v":""},{"$f":"IF('Encodage réponses Es'!I15=\"\",\"\",'Encodage réponses Es'!I15)","v":""},null,{"$f":"IF('Encodage réponses Es'!BS15=\"!\",\"Incomplet\",IF(AND(SUM('Encodage réponses Es'!J15:BR15)>=$J$4/2,'Encodage réponses Es'!BS15=\"a\"),SUM('Encodage réponses Es'!J15:BR15),IF(AND(SUM('Encodage réponses Es'!J15:BR15)<$J$4/2,'Encodage réponses Es'!BS15=\"a\"),\"Absent(e)\",IF(COUNTBLANK('Encodage réponses Es'!J15:BR15)=61,\"\",SUM('Encodage réponses Es'!J15:BR15)))))","v":""},"",null,"","","","",null,null,{"$f":"IF('Encodage réponses Es'!V15=\"\",\"\",'Encodage réponses Es'!V15)","v":""},{"$f":"IF('Encodage réponses Es'!Y15=\"\",\"\",'Encodage réponses Es'!Y15)","v":""},{"$f":"IF('Encodage réponses Es'!AF15=\"\",\"\",'Encodage réponses Es'!AF15)","v":""},{"$f":"IF('Encodage réponses Es'!K15=\"\",\"\",'Encodage réponses Es'!K15)","v":""},{"$f":"IF('Encodage réponses Es'!M15=\"\",\"\",'Encodage réponses Es'!M15)","v":""},{"$f":"IF('Encodage réponses Es'!N15=\"\",\"\",'Encodage réponses Es'!N15)","v":""},{"$f":"IF('Encodage réponses Es'!AB15=\"\",\"\",'Encodage réponses Es'!AB15)","v":""},{"$f":"IF('Encodage réponses Es'!Q15=\"\",\"\",'Encodage réponses Es'!Q15)","v":""},{"$f":"IF('Encodage réponses Es'!Z15=\"\",\"\",'Encodage réponses Es'!Z15)","v":""},{"$f":"IF('Encodage réponses Es'!AA15=\"\",\"\",'Encodage réponses Es'!AA15)","v":""},{"$f":"IF('Encodage réponses Es'!AC15=\"\",\"\",'Encodage réponses Es'!AC15)","v":""},{"$f":"IF('Encodage réponses Es'!AD15=\"\",\"\",'Encodage réponses Es'!AD15)","v":""},{"$f":"IF('Encodage réponses Es'!AE15=\"\",\"\",'Encodage réponses Es'!AE15)","v":""},{"$f":"IF('Encodage réponses Es'!AG15=\"\",\"\",'Encodage réponses Es'!AG15)","v":""},{"$f":"IF('Encodage réponses Es'!AJ15=\"\",\"\",'Encodage réponses Es'!AJ15)","v":""},{"$f":"IF('Encodage réponses Es'!T15=\"\",\"\",'Encodage réponses Es'!T15)","v":""},{"$f":"IF(AND(COUNTBLANK(S16:AH16)>0,'Encodage réponses Es'!$BS15=\"!\"),\"Incomplet\",IF(OR(COUNTIF(S16:AH16,\"a\")>0,COUNTIF(S16:AH16,\"A\")>0),\"Absent(e)\",IF(COUNT(S16:AH16)=0,\"\",SUM(S16:AH16))))","v":""},{"$f":"IF('Encodage réponses Es'!J15=\"\",\"\",'Encodage réponses Es'!J15)","v":""},{"$f":"IF('Encodage réponses Es'!S15=\"\",\"\",'Encodage réponses Es'!S15)","v":""},{"$f":"IF('Encodage réponses Es'!X15=\"\",\"\",'Encodage réponses Es'!X15)","v":""},{"$f":"IF('Encodage réponses Es'!AH15=\"\",\"\",'Encodage réponses Es'!AH15)","v":""},{"$f":"IF('Encodage réponses Es'!AL15=\"\",\"\",'Encodage réponses Es'!AL15)","v":""},{"$f":"IF('Encodage réponses Es'!AM15=\"\",\"\",'Encodage réponses Es'!AM15)","v":""},{"$f":"IF('Encodage réponses Es'!L15=\"\",\"\",'Encodage réponses Es'!L15)","v":""},{"$f":"IF('Encodage réponses Es'!O15=\"\",\"\",'Encodage réponses Es'!O15)","v":""},{"$f":"IF('Encodage réponses Es'!P15=\"\",\"\",'Encodage réponses Es'!P15)","v":""},{"$f":"IF('Encodage réponses Es'!U15=\"\",\"\",'Encodage réponses Es'!U15)","v":""},{"$f":"IF('Encodage réponses Es'!W15=\"\",\"\",'Encodage réponses Es'!W15)","v":""},{"$f":"IF('Encodage réponses Es'!R15=\"\",\"\",'Encodage réponses Es'!R15)","v":""},{"$f":"IF('Encodage réponses Es'!AI15=\"\",\"\",'Encodage réponses Es'!AI15)","v":""},{"$f":"IF('Encodage réponses Es'!AK15=\"\",\"\",'Encodage réponses Es'!AK15)","v":""},{"$f":"IF(AND(COUNTBLANK(AJ16:AW16)>0,'Encodage réponses Es'!$BS15=\"!\"),\"Incomplet\",IF(OR(COUNTIF(AJ16:AW16,\"a\")>0,COUNTIF(AJ16:AW16,\"A\")>0),\"Absent(e)\",IF(COUNT(AJ16:AW16)=0,\"\",SUM(AJ16:AW16))))","v":""},{"$f":"IF('Encodage réponses Es'!AU15=\"\",\"\",'Encodage réponses Es'!AU15)","v":""},{"$f":"IF('Encodage réponses Es'!BB15=\"\",\"\",'Encodage réponses Es'!BB15)","v":""},{"$f":"IF('Encodage réponses Es'!BC15=\"\",\"\",'Encodage réponses Es'!BC15)","v":""},{"$f":"IF('Encodage réponses Es'!BD15=\"\",\"\",'Encodage réponses Es'!BD15)","v":""},{"$f":"IF('Encodage réponses Es'!BL15=\"\",\"\",'Encodage réponses Es'!BL15)","v":""},{"$f":"IF('Encodage réponses Es'!BM15=\"\",\"\",'Encodage réponses Es'!BM15)","v":""},{"$f":"IF('Encodage réponses Es'!BN15=\"\",\"\",'Encodage réponses Es'!BN15)","v":""},{"$f":"IF('Encodage réponses Es'!AQ15=\"\",\"\",'Encodage réponses Es'!AQ15)","v":""},{"$f":"IF('Encodage réponses Es'!AR15=\"\",\"\",'Encodage réponses Es'!AR15)","v":""},{"$f":"IF('Encodage réponses Es'!AW15=\"\",\"\",'Encodage réponses Es'!AW15)","v":""},{"$f":"IF('Encodage réponses Es'!AX15=\"\",\"\",'Encodage réponses Es'!AX15)","v":""},{"$f":"IF('Encodage réponses Es'!AY15=\"\",\"\",'Encodage réponses Es'!AY15)","v":""},{"$f":"IF('Encodage réponses Es'!BH15=\"\",\"\",'Encodage réponses Es'!BH15)","v":""},{"$f":"IF('Encodage réponses Es'!BI15=\"\",\"\",'Encodage réponses Es'!BI15)","v":""},{"$f":"IF('Encodage réponses Es'!BK15=\"\",\"\",'Encodage réponses Es'!BK15)","v":""},{"$f":"IF('Encodage réponses Es'!AZ15=\"\",\"\",'Encodage réponses Es'!AZ15)","v":""},{"$f":"IF('Encodage réponses Es'!BA15=\"\",\"\",'Encodage réponses Es'!BA15)","v":""},{"$f":"IF('Encodage réponses Es'!BE15=\"\",\"\",'Encodage réponses Es'!BE15)","v":""},{"$f":"IF('Encodage réponses Es'!BF15=\"\",\"\",'Encodage réponses Es'!BF15)","v":""},{"$f":"IF(AND(COUNTBLANK(AY16:BQ16)>0,'Encodage réponses Es'!$BS15=\"!\"),\"Incomplet\",IF(OR(COUNTIF(AY16:BQ16,\"a\")>0,COUNTIF(AY16:BQ16,\"A\")>0),\"Absent(e)\",IF(COUNT(AY16:BQ16)=0,\"\",SUM(AY16:BQ16))))","v":""},{"$f":"IF('Encodage réponses Es'!AS15=\"\",\"\",'Encodage réponses Es'!AS15)","v":""},{"$f":"IF('Encodage réponses Es'!BO15=\"\",\"\",'Encodage réponses Es'!BO15)","v":""},{"$f":"IF('Encodage réponses Es'!BP15=\"\",\"\",'Encodage réponses Es'!BP15)","v":""},{"$f":"IF('Encodage réponses Es'!BQ15=\"\",\"\",'Encodage réponses Es'!BQ15)","v":""},{"$f":"IF('Encodage réponses Es'!BR15=\"\",\"\",'Encodage réponses Es'!BR15)","v":""},{"$f":"IF('Encodage réponses Es'!AN15=\"\",\"\",'Encodage réponses Es'!AN15)","v":""},{"$f":"IF('Encodage réponses Es'!AP15=\"\",\"\",'Encodage réponses Es'!AP15)","v":""},{"$f":"IF('Encodage réponses Es'!AT15=\"\",\"\",'Encodage réponses Es'!AT15)","v":""},{"$f":"IF('Encodage réponses Es'!AV15=\"\",\"\",'Encodage réponses Es'!AV15)","v":""},{"$f":"IF('Encodage réponses Es'!BG15=\"\",\"\",'Encodage réponses Es'!BG15)","v":""},{"$f":"IF('Encodage réponses Es'!AO15=\"\",\"\",'Encodage réponses Es'!AO15)","v":""},{"$f":"IF('Encodage réponses Es'!BJ15=\"\",\"\",'Encodage réponses Es'!BJ15)","v":""},{"$f":"IF(AND(COUNTBLANK(BS16:CD16)>0,'Encodage réponses Es'!$BS15=\"!\"),\"Incomplet\",IF(OR(COUNTIF(BS16:CD16,\"a\")>0,COUNTIF(BS16:CD16,\"A\")>0),\"Absent(e)\",IF(COUNT(BS16:CD16)=0,\"\",SUM(BS16:CD16))))","v":""}]
[{"$f":"IF('Encodage réponses Es'!A16=\"\",\"\",'Encodage réponses Es'!A16)","v":0},{"$f":"IF('Encodage réponses Es'!B16=\"\",\"\",'Encodage réponses Es'!B16)","v":0},{"$f":"IF('Encodage réponses Es'!C16=\"\",\"\",'Encodage réponses Es'!C16)","v":0},13,{"$f":"IF('Encodage réponses Es'!E16=\"\",\"\",'Encodage réponses Es'!E16)","v":""},{"$f":"IF('Encodage réponses Es'!F16=\"\",\"\",'Encodage réponses Es'!F16)","v":""},{"$f":"IF('Encodage réponses Es'!G16=\"\",\"\",'Encodage réponses Es'!G16)","v":""},{"$f":"IF('Encodage réponses Es'!I16=\"\",\"\",'Encodage réponses Es'!I16)","v":""},null,{"$f":"IF('Encodage réponses Es'!BS16=\"!\",\"Incomplet\",IF(AND(SUM('Encodage réponses Es'!J16:BR16)>=$J$4/2,'Encodage réponses Es'!BS16=\"a\"),SUM('Encodage réponses Es'!J16:BR16),IF(AND(SUM('Encodage réponses Es'!J16:BR16)<$J$4/2,'Encodage réponses Es'!BS16=\"a\"),\"Absent(e)\",IF(COUNTBLANK('Encodage réponses Es'!J16:BR16)=61,\"\",SUM('Encodage réponses Es'!J16:BR16)))))","v":""},"",null,"","","","",null,null,{"$f":"IF('Encodage réponses Es'!V16=\"\",\"\",'Encodage réponses Es'!V16)","v":""},{"$f":"IF('Encodage réponses Es'!Y16=\"\",\"\",'Encodage réponses Es'!Y16)","v":""},{"$f":"IF('Encodage réponses Es'!AF16=\"\",\"\",'Encodage réponses Es'!AF16)","v":""},{"$f":"IF('Encodage réponses Es'!K16=\"\",\"\",'Encodage réponses Es'!K16)","v":""},{"$f":"IF('Encodage réponses Es'!M16=\"\",\"\",'Encodage réponses Es'!M16)","v":""},{"$f":"IF('Encodage réponses Es'!N16=\"\",\"\",'Encodage réponses Es'!N16)","v":""},{"$f":"IF('Encodage réponses Es'!AB16=\"\",\"\",'Encodage réponses Es'!AB16)","v":""},{"$f":"IF('Encodage réponses Es'!Q16=\"\",\"\",'Encodage réponses Es'!Q16)","v":""},{"$f":"IF('Encodage réponses Es'!Z16=\"\",\"\",'Encodage réponses Es'!Z16)","v":""},{"$f":"IF('Encodage réponses Es'!AA16=\"\",\"\",'Encodage réponses Es'!AA16)","v":""},{"$f":"IF('Encodage réponses Es'!AC16=\"\",\"\",'Encodage réponses Es'!AC16)","v":""},{"$f":"IF('Encodage réponses Es'!AD16=\"\",\"\",'Encodage réponses Es'!AD16)","v":""},{"$f":"IF('Encodage réponses Es'!AE16=\"\",\"\",'Encodage réponses Es'!AE16)","v":""},{"$f":"IF('Encodage réponses Es'!AG16=\"\",\"\",'Encodage réponses Es'!AG16)","v":""},{"$f":"IF('Encodage réponses Es'!AJ16=\"\",\"\",'Encodage réponses Es'!AJ16)","v":""},{"$f":"IF('Encodage réponses Es'!T16=\"\",\"\",'Encodage réponses Es'!T16)","v":""},{"$f":"IF(AND(COUNTBLANK(S17:AH17)>0,'Encodage réponses Es'!$BS16=\"!\"),\"Incomplet\",IF(OR(COUNTIF(S17:AH17,\"a\")>0,COUNTIF(S17:AH17,\"A\")>0),\"Absent(e)\",IF(COUNT(S17:AH17)=0,\"\",SUM(S17:AH17))))","v":""},{"$f":"IF('Encodage réponses Es'!J16=\"\",\"\",'Encodage réponses Es'!J16)","v":""},{"$f":"IF('Encodage réponses Es'!S16=\"\",\"\",'Encodage réponses Es'!S16)","v":""},{"$f":"IF('Encodage réponses Es'!X16=\"\",\"\",'Encodage réponses Es'!X16)","v":""},{"$f":"IF('Encodage réponses Es'!AH16=\"\",\"\",'Encodage réponses Es'!AH16)","v":""},{"$f":"IF('Encodage réponses Es'!AL16=\"\",\"\",'Encodage réponses Es'!AL16)","v":""},{"$f":"IF('Encodage réponses Es'!AM16=\"\",\"\",'Encodage réponses Es'!AM16)","v":""},{"$f":"IF('Encodage réponses Es'!L16=\"\",\"\",'Encodage réponses Es'!L16)","v":""},{"$f":"IF('Encodage réponses Es'!O16=\"\",\"\",'Encodage réponses Es'!O16)","v":""},{"$f":"IF('Encodage réponses Es'!P16=\"\",\"\",'Encodage réponses Es'!P16)","v":""},{"$f":"IF('Encodage réponses Es'!U16=\"\",\"\",'Encodage réponses Es'!U16)","v":""},{"$f":"IF('Encodage réponses Es'!W16=\"\",\"\",'Encodage réponses Es'!W16)","v":""},{"$f":"IF('Encodage réponses Es'!R16=\"\",\"\",'Encodage réponses Es'!R16)","v":""},{"$f":"IF('Encodage réponses Es'!AI16=\"\",\"\",'Encodage réponses Es'!AI16)","v":""},{"$f":"IF('Encodage réponses Es'!AK16=\"\",\"\",'Encodage réponses Es'!AK16)","v":""},{"$f":"IF(AND(COUNTBLANK(AJ17:AW17)>0,'Encodage réponses Es'!$BS16=\"!\"),\"Incomplet\",IF(OR(COUNTIF(AJ17:AW17,\"a\")>0,COUNTIF(AJ17:AW17,\"A\")>0),\"Absent(e)\",IF(COUNT(AJ17:AW17)=0,\"\",SUM(AJ17:AW17))))","v":""},{"$f":"IF('Encodage réponses Es'!AU16=\"\",\"\",'Encodage réponses Es'!AU16)","v":""},{"$f":"IF('Encodage réponses Es'!BB16=\"\",\"\",'Encodage réponses Es'!BB16)","v":""},{"$f":"IF('Encodage réponses Es'!BC16=\"\",\"\",'Encodage réponses Es'!BC16)","v":""},{"$f":"IF('Encodage réponses Es'!BD16=\"\",\"\",'Encodage réponses Es'!BD16)","v":""},{"$f":"IF('Encodage réponses Es'!BL16=\"\",\"\",'Encodage réponses Es'!BL16)","v":""},{"$f":"IF('Encodage réponses Es'!BM16=\"\",\"\",'Encodage réponses Es'!BM16)","v":""},{"$f":"IF('Encodage réponses Es'!BN16=\"\",\"\",'Encodage réponses Es'!BN16)","v":""},{"$f":"IF('Encodage réponses Es'!AQ16=\"\",\"\",'Encodage réponses Es'!AQ16)","v":""},{"$f":"IF('Encodage réponses Es'!AR16=\"\",\"\",'Encodage réponses Es'!AR16)","v":""},{"$f":"IF('Encodage réponses Es'!AW16=\"\",\"\",'Encodage réponses Es'!AW16)","v":""},{"$f":"IF('Encodage réponses Es'!AX16=\"\",\"\",'Encodage réponses Es'!AX16)","v":""},{"$f":"IF('Encodage réponses Es'!AY16=\"\",\"\",'Encodage réponses Es'!AY16)","v":""},{"$f":"IF('Encodage réponses Es'!BH16=\"\",\"\",'Encodage réponses Es'!BH16)","v":""},{"$f":"IF('Encodage réponses Es'!BI16=\"\",\"\",'Encodage réponses Es'!BI16)","v":""},{"$f":"IF('Encodage réponses Es'!BK16=\"\",\"\",'Encodage réponses Es'!BK16)","v":""},{"$f":"IF('Encodage réponses Es'!AZ16=\"\",\"\",'Encodage réponses Es'!AZ16)","v":""},{"$f":"IF('Encodage réponses Es'!BA16=\"\",\"\",'Encodage réponses Es'!BA16)","v":""},{"$f":"IF('Encodage réponses Es'!BE16=\"\",\"\",'Encodage réponses Es'!BE16)","v":""},{"$f":"IF('Encodage réponses Es'!BF16=\"\",\"\",'Encodage réponses Es'!BF16)","v":""},{"$f":"IF(AND(COUNTBLANK(AY17:BQ17)>0,'Encodage réponses Es'!$BS16=\"!\"),\"Incomplet\",IF(OR(COUNTIF(AY17:BQ17,\"a\")>0,COUNTIF(AY17:BQ17,\"A\")>0),\"Absent(e)\",IF(COUNT(AY17:BQ17)=0,\"\",SUM(AY17:BQ17))))","v":""},{"$f":"IF('Encodage réponses Es'!AS16=\"\",\"\",'Encodage réponses Es'!AS16)","v":""},{"$f":"IF('Encodage réponses Es'!BO16=\"\",\"\",'Encodage réponses Es'!BO16)","v":""},{"$f":"IF('Encodage réponses Es'!BP16=\"\",\"\",'Encodage réponses Es'!BP16)","v":""},{"$f":"IF('Encodage réponses Es'!BQ16=\"\",\"\",'Encodage réponses Es'!BQ16)","v":""},{"$f":"IF('Encodage réponses Es'!BR16=\"\",\"\",'Encodage réponses Es'!BR16)","v":""},{"$f":"IF('Encodage réponses Es'!AN16=\"\",\"\",'Encodage réponses Es'!AN16)","v":""},{"$f":"IF('Encodage réponses Es'!AP16=\"\",\"\",'Encodage réponses Es'!AP16)","v":""},{"$f":"IF('Encodage réponses Es'!AT16=\"\",\"\",'Encodage réponses Es'!AT16)","v":""},{"$f":"IF('Encodage réponses Es'!AV16=\"\",\"\",'Encodage réponses Es'!AV16)","v":""},{"$f":"IF('Encodage réponses Es'!BG16=\"\",\"\",'Encodage réponses Es'!BG16)","v":""},{"$f":"IF('Encodage réponses Es'!AO16=\"\",\"\",'Encodage réponses Es'!AO16)","v":""},{"$f":"IF('Encodage réponses Es'!BJ16=\"\",\"\",'Encodage réponses Es'!BJ16)","v":""},{"$f":"IF(AND(COUNTBLANK(BS17:CD17)>0,'Encodage réponses Es'!$BS16=\"!\"),\"Incomplet\",IF(OR(COUNTIF(BS17:CD17,\"a\")>0,COUNTIF(BS17:CD17,\"A\")>0),\"Absent(e)\",IF(COUNT(BS17:CD17)=0,\"\",SUM(BS17:CD17))))","v":""}]
[{"$f":"IF('Encodage réponses Es'!A17=\"\",\"\",'Encodage réponses Es'!A17)","v":0},{"$f":"IF('Encodage réponses Es'!B17=\"\",\"\",'Encodage réponses Es'!B17)","v":0},{"$f":"IF('Encodage réponses Es'!C17=\"\",\"\",'Encodage réponses Es'!C17)","v":0},14,{"$f":"IF('Encodage réponses Es'!E17=\"\",\"\",'Encodage réponses Es'!E17)","v":""},{"$f":"IF('Encodage réponses Es'!F17=\"\",\"\",'Encodage réponses Es'!F17)","v":""},{"$f":"IF('Encodage réponses Es'!G17=\"\",\"\",'Encodage réponses Es'!G17)","v":""},{"$f":"IF('Encodage réponses Es'!I17=\"\",\"\",'Encodage réponses Es'!I17)","v":""},null,{"$f":"IF('Encodage réponses Es'!BS17=\"!\",\"Incomplet\",IF(AND(SUM('Encodage réponses Es'!J17:BR17)>=$J$4/2,'Encodage réponses Es'!BS17=\"a\"),SUM('Encodage réponses Es'!J17:BR17),IF(AND(SUM('Encodage réponses Es'!J17:BR17)<$J$4/2,'Encodage réponses Es'!BS17=\"a\"),\"Absent(e)\",IF(COUNTBLANK('Encodage réponses Es'!J17:BR17)=61,\"\",SUM('Encodage réponses Es'!J17:BR17)))))","v":""},"",null,"","","","",null,null,{"$f":"IF('Encodage réponses Es'!V17=\"\",\"\",'Encodage réponses Es'!V17)","v":""},{"$f":"IF('Encodage réponses Es'!Y17=\"\",\"\",'Encodage réponses Es'!Y17)","v":""},{"$f":"IF('Encodage réponses Es'!AF17=\"\",\"\",'Encodage réponses Es'!AF17)","v":""},{"$f":"IF('Encodage réponses Es'!K17=\"\",\"\",'Encodage réponses Es'!K17)","v":""},{"$f":"IF('Encodage réponses Es'!M17=\"\",\"\",'Encodage réponses Es'!M17)","v":""},{"$f":"IF('Encodage réponses Es'!N17=\"\",\"\",'Encodage réponses Es'!N17)","v":""},{"$f":"IF('Encodage réponses Es'!AB17=\"\",\"\",'Encodage réponses Es'!AB17)","v":""},{"$f":"IF('Encodage réponses Es'!Q17=\"\",\"\",'Encodage réponses Es'!Q17)","v":""},{"$f":"IF('Encodage réponses Es'!Z17=\"\",\"\",'Encodage réponses Es'!Z17)","v":""},{"$f":"IF('Encodage réponses Es'!AA17=\"\",\"\",'Encodage réponses Es'!AA17)","v":""},{"$f":"IF('Encodage réponses Es'!AC17=\"\",\"\",'Encodage réponses Es'!AC17)","v":""},{"$f":"IF('Encodage réponses Es'!AD17=\"\",\"\",'Encodage réponses Es'!AD17)","v":""},{"$f":"IF('Encodage réponses Es'!AE17=\"\",\"\",'Encodage réponses Es'!AE17)","v":""},{"$f":"IF('Encodage réponses Es'!AG17=\"\",\"\",'Encodage réponses Es'!AG17)","v":""},{"$f":"IF('Encodage réponses Es'!AJ17=\"\",\"\",'Encodage réponses Es'!AJ17)","v":""},{"$f":"IF('Encodage réponses Es'!T17=\"\",\"\",'Encodage réponses Es'!T17)","v":""},{"$f":"IF(AND(COUNTBLANK(S18:AH18)>0,'Encodage réponses Es'!$BS17=\"!\"),\"Incomplet\",IF(OR(COUNTIF(S18:AH18,\"a\")>0,COUNTIF(S18:AH18,\"A\")>0),\"Absent(e)\",IF(COUNT(S18:AH18)=0,\"\",SUM(S18:AH18))))","v":""},{"$f":"IF('Encodage réponses Es'!J17=\"\",\"\",'Encodage réponses Es'!J17)","v":""},{"$f":"IF('Encodage réponses Es'!S17=\"\",\"\",'Encodage réponses Es'!S17)","v":""},{"$f":"IF('Encodage réponses Es'!X17=\"\",\"\",'Encodage réponses Es'!X17)","v":""},{"$f":"IF('Encodage réponses Es'!AH17=\"\",\"\",'Encodage réponses Es'!AH17)","v":""},{"$f":"IF('Encodage réponses Es'!AL17=\"\",\"\",'Encodage réponses Es'!AL17)","v":""},{"$f":"IF('Encodage réponses Es'!AM17=\"\",\"\",'Encodage réponses Es'!AM17)","v":""},{"$f":"IF('Encodage réponses Es'!L17=\"\",\"\",'Encodage réponses Es'!L17)","v":""},{"$f":"IF('Encodage réponses Es'!O17=\"\",\"\",'Encodage réponses Es'!O17)","v":""},{"$f":"IF('Encodage réponses Es'!P17=\"\",\"\",'Encodage réponses Es'!P17)","v":""},{"$f":"IF('Encodage réponses Es'!U17=\"\",\"\",'Encodage réponses Es'!U17)","v":""},{"$f":"IF('Encodage réponses Es'!W17=\"\",\"\",'Encodage réponses Es'!W17)","v":""},{"$f":"IF('Encodage réponses Es'!R17=\"\",\"\",'Encodage réponses Es'!R17)","v":""},{"$f":"IF('Encodage réponses Es'!AI17=\"\",\"\",'Encodage réponses Es'!AI17)","v":""},{"$f":"IF('Encodage réponses Es'!AK17=\"\",\"\",'Encodage réponses Es'!AK17)","v":""},{"$f":"IF(AND(COUNTBLANK(AJ18:AW18)>0,'Encodage réponses Es'!$BS17=\"!\"),\"Incomplet\",IF(OR(COUNTIF(AJ18:AW18,\"a\")>0,COUNTIF(AJ18:AW18,\"A\")>0),\"Absent(e)\",IF(COUNT(AJ18:AW18)=0,\"\",SUM(AJ18:AW18))))","v":""},{"$f":"IF('Encodage réponses Es'!AU17=\"\",\"\",'Encodage réponses Es'!AU17)","v":""},{"$f":"IF('Encodage réponses Es'!BB17=\"\",\"\",'Encodage réponses Es'!BB17)","v":""},{"$f":"IF('Encodage réponses Es'!BC17=\"\",\"\",'Encodage réponses Es'!BC17)","v":""},{"$f":"IF('Encodage réponses Es'!BD17=\"\",\"\",'Encodage réponses Es'!BD17)","v":""},{"$f":"IF('Encodage réponses Es'!BL17=\"\",\"\",'Encodage réponses Es'!BL17)","v":""},{"$f":"IF('Encodage réponses Es'!BM17=\"\",\"\",'Encodage réponses Es'!BM17)","v":""},{"$f":"IF('Encodage réponses Es'!BN17=\"\",\"\",'Encodage réponses Es'!BN17)","v":""},{"$f":"IF('Encodage réponses Es'!AQ17=\"\",\"\",'Encodage réponses Es'!AQ17)","v":""},{"$f":"IF('Encodage réponses Es'!AR17=\"\",\"\",'Encodage réponses Es'!AR17)","v":""},{"$f":"IF('Encodage réponses Es'!AW17=\"\",\"\",'Encodage réponses Es'!AW17)","v":""},{"$f":"IF('Encodage réponses Es'!AX17=\"\",\"\",'Encodage réponses Es'!AX17)","v":""},{"$f":"IF('Encodage réponses Es'!AY17=\"\",\"\",'Encodage réponses Es'!AY17)","v":""},{"$f":"IF('Encodage réponses Es'!BH17=\"\",\"\",'Encodage réponses Es'!BH17)","v":""},{"$f":"IF('Encodage réponses Es'!BI17=\"\",\"\",'Encodage réponses Es'!BI17)","v":""},{"$f":"IF('Encodage réponses Es'!BK17=\"\",\"\",'Encodage réponses Es'!BK17)","v":""},{"$f":"IF('Encodage réponses Es'!AZ17=\"\",\"\",'Encodage réponses Es'!AZ17)","v":""},{"$f":"IF('Encodage réponses Es'!BA17=\"\",\"\",'Encodage réponses Es'!BA17)","v":""},{"$f":"IF('Encodage réponses Es'!BE17=\"\",\"\",'Encodage réponses Es'!BE17)","v":""},{"$f":"IF('Encodage réponses Es'!BF17=\"\",\"\",'Encodage réponses Es'!BF17)","v":""},{"$f":"IF(AND(COUNTBLANK(AY18:BQ18)>0,'Encodage réponses Es'!$BS17=\"!\"),\"Incomplet\",IF(OR(COUNTIF(AY18:BQ18,\"a\")>0,COUNTIF(AY18:BQ18,\"A\")>0),\"Absent(e)\",IF(COUNT(AY18:BQ18)=0,\"\",SUM(AY18:BQ18))))","v":""},{"$f":"IF('Encodage réponses Es'!AS17=\"\",\"\",'Encodage réponses Es'!AS17)","v":""},{"$f":"IF('Encodage réponses Es'!BO17=\"\",\"\",'Encodage réponses Es'!BO17)","v":""},{"$f":"IF('Encodage réponses Es'!BP17=\"\",\"\",'Encodage réponses Es'!BP17)","v":""},{"$f":"IF('Encodage réponses Es'!BQ17=\"\",\"\",'Encodage réponses Es'!BQ17)","v":""},{"$f":"IF('Encodage réponses Es'!BR17=\"\",\"\",'Encodage réponses Es'!BR17)","v":""},{"$f":"IF('Encodage réponses Es'!AN17=\"\",\"\",'Encodage réponses Es'!AN17)","v":""},{"$f":"IF('Encodage réponses Es'!AP17=\"\",\"\",'Encodage réponses Es'!AP17)","v":""},{"$f":"IF('Encodage réponses Es'!AT17=\"\",\"\",'Encodage réponses Es'!AT17)","v":""},{"$f":"IF('Encodage réponses Es'!AV17=\"\",\"\",'Encodage réponses Es'!AV17)","v":""},{"$f":"IF('Encodage réponses Es'!BG17=\"\",\"\",'Encodage réponses Es'!BG17)","v":""},{"$f":"IF('Encodage réponses Es'!AO17=\"\",\"\",'Encodage réponses Es'!AO17)","v":""},{"$f":"IF('Encodage réponses Es'!BJ17=\"\",\"\",'Encodage réponses Es'!BJ17)","v":""},{"$f":"IF(AND(COUNTBLANK(BS18:CD18)>0,'Encodage réponses Es'!$BS17=\"!\"),\"Incomplet\",IF(OR(COUNTIF(BS18:CD18,\"a\")>0,COUNTIF(BS18:CD18,\"A\")>0),\"Absent(e)\",IF(COUNT(BS18:CD18)=0,\"\",SUM(BS18:CD18))))","v":""}]
[{"$f":"IF('Encodage réponses Es'!A18=\"\",\"\",'Encodage réponses Es'!A18)","v":0},{"$f":"IF('Encodage réponses Es'!B18=\"\",\"\",'Encodage réponses Es'!B18)","v":0},{"$f":"IF('Encodage réponses Es'!C18=\"\",\"\",'Encodage réponses Es'!C18)","v":0},15,{"$f":"IF('Encodage réponses Es'!E18=\"\",\"\",'Encodage réponses Es'!E18)","v":""},{"$f":"IF('Encodage réponses Es'!F18=\"\",\"\",'Encodage réponses Es'!F18)","v":""},{"$f":"IF('Encodage réponses Es'!G18=\"\",\"\",'Encodage réponses Es'!G18)","v":""},{"$f":"IF('Encodage réponses Es'!I18=\"\",\"\",'Encodage réponses Es'!I18)","v":""},null,{"$f":"IF('Encodage réponses Es'!BS18=\"!\",\"Incomplet\",IF(AND(SUM('Encodage réponses Es'!J18:BR18)>=$J$4/2,'Encodage réponses Es'!BS18=\"a\"),SUM('Encodage réponses Es'!J18:BR18),IF(AND(SUM('Encodage réponses Es'!J18:BR18)<$J$4/2,'Encodage réponses Es'!BS18=\"a\"),\"Absent(e)\",IF(COUNTBLANK('Encodage réponses Es'!J18:BR18)=61,\"\",SUM('Encodage réponses Es'!J18:BR18)))))","v":""},"",null,"","","","",null,null,{"$f":"IF('Encodage réponses Es'!V18=\"\",\"\",'Encodage réponses Es'!V18)","v":""},{"$f":"IF('Encodage réponses Es'!Y18=\"\",\"\",'Encodage réponses Es'!Y18)","v":""},{"$f":"IF('Encodage réponses Es'!AF18=\"\",\"\",'Encodage réponses Es'!AF18)","v":""},{"$f":"IF('Encodage réponses Es'!K18=\"\",\"\",'Encodage réponses Es'!K18)","v":""},{"$f":"IF('Encodage réponses Es'!M18=\"\",\"\",'Encodage réponses Es'!M18)","v":""},{"$f":"IF('Encodage réponses Es'!N18=\"\",\"\",'Encodage réponses Es'!N18)","v":""},{"$f":"IF('Encodage réponses Es'!AB18=\"\",\"\",'Encodage réponses Es'!AB18)","v":""},{"$f":"IF('Encodage réponses Es'!Q18=\"\",\"\",'Encodage réponses Es'!Q18)","v":""},{"$f":"IF('Encodage réponses Es'!Z18=\"\",\"\",'Encodage réponses Es'!Z18)","v":""},{"$f":"IF('Encodage réponses Es'!AA18=\"\",\"\",'Encodage réponses Es'!AA18)","v":""},{"$f":"IF('Encodage réponses Es'!AC18=\"\",\"\",'Encodage réponses Es'!AC18)","v":""},{"$f":"IF('Encodage réponses Es'!AD18=\"\",\"\",'Encodage réponses Es'!AD18)","v":""},{"$f":"IF('Encodage réponses Es'!AE18=\"\",\"\",'Encodage réponses Es'!AE18)","v":""},{"$f":"IF('Encodage réponses Es'!AG18=\"\",\"\",'Encodage réponses Es'!AG18)","v":""},{"$f":"IF('Encodage réponses Es'!AJ18=\"\",\"\",'Encodage réponses Es'!AJ18)","v":""},{"$f":"IF('Encodage réponses Es'!T18=\"\",\"\",'Encodage réponses Es'!T18)","v":""},{"$f":"IF(AND(COUNTBLANK(S19:AH19)>0,'Encodage réponses Es'!$BS18=\"!\"),\"Incomplet\",IF(OR(COUNTIF(S19:AH19,\"a\")>0,COUNTIF(S19:AH19,\"A\")>0),\"Absent(e)\",IF(COUNT(S19:AH19)=0,\"\",SUM(S19:AH19))))","v":""},{"$f":"IF('Encodage réponses Es'!J18=\"\",\"\",'Encodage réponses Es'!J18)","v":""},{"$f":"IF('Encodage réponses Es'!S18=\"\",\"\",'Encodage réponses Es'!S18)","v":""},{"$f":"IF('Encodage réponses Es'!X18=\"\",\"\",'Encodage réponses Es'!X18)","v":""},{"$f":"IF('Encodage réponses Es'!AH18=\"\",\"\",'Encodage réponses Es'!AH18)","v":""},{"$f":"IF('Encodage réponses Es'!AL18=\"\",\"\",'Encodage réponses Es'!AL18)","v":""},{"$f":"IF('Encodage réponses Es'!AM18=\"\",\"\",'Encodage réponses Es'!AM18)","v":""},{"$f":"IF('Encodage réponses Es'!L18=\"\",\"\",'Encodage réponses Es'!L18)","v":""},{"$f":"IF('Encodage réponses Es'!O18=\"\",\"\",'Encodage réponses Es'!O18)","v":""},{"$f":"IF('Encodage réponses Es'!P18=\"\",\"\",'Encodage réponses Es'!P18)","v":""},{"$f":"IF('Encodage réponses Es'!U18=\"\",\"\",'Encodage réponses Es'!U18)","v":""},{"$f":"IF('Encodage réponses Es'!W18=\"\",\"\",'Encodage réponses Es'!W18)","v":""},{"$f":"IF('Encodage réponses Es'!R18=\"\",\"\",'Encodage réponses Es'!R18)","v":""},{"$f":"IF('Encodage réponses Es'!AI18=\"\",\"\",'Encodage réponses Es'!AI18)","v":""},{"$f":"IF('Encodage réponses Es'!AK18=\"\",\"\",'Encodage réponses Es'!AK18)","v":""},{"$f":"IF(AND(COUNTBLANK(AJ19:AW19)>0,'Encodage réponses Es'!$BS18=\"!\"),\"Incomplet\",IF(OR(COUNTIF(AJ19:AW19,\"a\")>0,COUNTIF(AJ19:AW19,\"A\")>0),\"Absent(e)\",IF(COUNT(AJ19:AW19)=0,\"\",SUM(AJ19:AW19))))","v":""},{"$f":"IF('Encodage réponses Es'!AU18=\"\",\"\",'Encodage réponses Es'!AU18)","v":""},{"$f":"IF('Encodage réponses Es'!BB18=\"\",\"\",'Encodage réponses Es'!BB18)","v":""},{"$f":"IF('Encodage réponses Es'!BC18=\"\",\"\",'Encodage réponses Es'!BC18)","v":""},{"$f":"IF('Encodage réponses Es'!BD18=\"\",\"\",'Encodage réponses Es'!BD18)","v":""},{"$f":"IF('Encodage réponses Es'!BL18=\"\",\"\",'Encodage réponses Es'!BL18)","v":""},{"$f":"IF('Encodage réponses Es'!BM18=\"\",\"\",'Encodage réponses Es'!BM18)","v":""},{"$f":"IF('Encodage réponses Es'!BN18=\"\",\"\",'Encodage réponses Es'!BN18)","v":""},{"$f":"IF('Encodage réponses Es'!AQ18=\"\",\"\",'Encodage réponses Es'!AQ18)","v":""},{"$f":"IF('Encodage réponses Es'!AR18=\"\",\"\",'Encodage réponses Es'!AR18)","v":""},{"$f":"IF('Encodage réponses Es'!AW18=\"\",\"\",'Encodage réponses Es'!AW18)","v":""},{"$f":"IF('Encodage réponses Es'!AX18=\"\",\"\",'Encodage réponses Es'!AX18)","v":""},{"$f":"IF('Encodage réponses Es'!AY18=\"\",\"\",'Encodage réponses Es'!AY18)","v":""},{"$f":"IF('Encodage réponses Es'!BH18=\"\",\"\",'Encodage réponses Es'!BH18)","v":""},{"$f":"IF('Encodage réponses Es'!BI18=\"\",\"\",'Encodage réponses Es'!BI18)","v":""},{"$f":"IF('Encodage réponses Es'!BK18=\"\",\"\",'Encodage réponses Es'!BK18)","v":""},{"$f":"IF('Encodage réponses Es'!AZ18=\"\",\"\",'Encodage réponses Es'!AZ18)","v":""},{"$f":"IF('Encodage réponses Es'!BA18=\"\",\"\",'Encodage réponses Es'!BA18)","v":""},{"$f":"IF('Encodage réponses Es'!BE18=\"\",\"\",'Encodage réponses Es'!BE18)","v":""},{"$f":"IF('Encodage réponses Es'!BF18=\"\",\"\",'Encodage réponses Es'!BF18)","v":""},{"$f":"IF(AND(COUNTBLANK(AY19:BQ19)>0,'Encodage réponses Es'!$BS18=\"!\"),\"Incomplet\",IF(OR(COUNTIF(AY19:BQ19,\"a\")>0,COUNTIF(AY19:BQ19,\"A\")>0),\"Absent(e)\",IF(COUNT(AY19:BQ19)=0,\"\",SUM(AY19:BQ19))))","v":""},{"$f":"IF('Encodage réponses Es'!AS18=\"\",\"\",'Encodage réponses Es'!AS18)","v":""},{"$f":"IF('Encodage réponses Es'!BO18=\"\",\"\",'Encodage réponses Es'!BO18)","v":""},{"$f":"IF('Encodage réponses Es'!BP18=\"\",\"\",'Encodage réponses Es'!BP18)","v":""},{"$f":"IF('Encodage réponses Es'!BQ18=\"\",\"\",'Encodage réponses Es'!BQ18)","v":""},{"$f":"IF('Encodage réponses Es'!BR18=\"\",\"\",'Encodage réponses Es'!BR18)","v":""},{"$f":"IF('Encodage réponses Es'!AN18=\"\",\"\",'Encodage réponses Es'!AN18)","v":""},{"$f":"IF('Encodage réponses Es'!AP18=\"\",\"\",'Encodage réponses Es'!AP18)","v":""},{"$f":"IF('Encodage réponses Es'!AT18=\"\",\"\",'Encodage réponses Es'!AT18)","v":""},{"$f":"IF('Encodage réponses Es'!AV18=\"\",\"\",'Encodage réponses Es'!AV18)","v":""},{"$f":"IF('Encodage réponses Es'!BG18=\"\",\"\",'Encodage réponses Es'!BG18)","v":""},{"$f":"IF('Encodage réponses Es'!AO18=\"\",\"\",'Encodage réponses Es'!AO18)","v":""},{"$f":"IF('Encodage réponses Es'!BJ18=\"\",\"\",'Encodage réponses Es'!BJ18)","v":""},{"$f":"IF(AND(COUNTBLANK(BS19:CD19)>0,'Encodage réponses Es'!$BS18=\"!\"),\"Incomplet\",IF(OR(COUNTIF(BS19:CD19,\"a\")>0,COUNTIF(BS19:CD19,\"A\")>0),\"Absent(e)\",IF(COUNT(BS19:CD19)=0,\"\",SUM(BS19:CD19))))","v":""}]
[{"$f":"IF('Encodage réponses Es'!A19=\"\",\"\",'Encodage réponses Es'!A19)","v":0},{"$f":"IF('Encodage réponses Es'!B19=\"\",\"\",'Encodage réponses Es'!B19)","v":0},{"$f":"IF('Encodage réponses Es'!C19=\"\",\"\",'Encodage réponses Es'!C19)","v":0},16,{"$f":"IF('Encodage réponses Es'!E19=\"\",\"\",'Encodage réponses Es'!E19)","v":""},{"$f":"IF('Encodage réponses Es'!F19=\"\",\"\",'Encodage réponses Es'!F19)","v":""},{"$f":"IF('Encodage réponses Es'!G19=\"\",\"\",'Encodage réponses Es'!G19)","v":""},{"$f":"IF('Encodage réponses Es'!I19=\"\",\"\",'Encodage réponses Es'!I19)","v":""},null,{"$f":"IF('Encodage réponses Es'!BS19=\"!\",\"Incomplet\",IF(AND(SUM('Encodage réponses Es'!J19:BR19)>=$J$4/2,'Encodage réponses Es'!BS19=\"a\"),SUM('Encodage réponses Es'!J19:BR19),IF(AND(SUM('Encodage réponses Es'!J19:BR19)<$J$4/2,'Encodage réponses Es'!BS19=\"a\"),\"Absent(e)\",IF(COUNTBLANK('Encodage réponses Es'!J19:BR19)=61,\"\",SUM('Encodage réponses Es'!J19:BR19)))))","v":""},"",null,"","","","",null,null,{"$f":"IF('Encodage réponses Es'!V19=\"\",\"\",'Encodage réponses Es'!V19)","v":""},{"$f":"IF('Encodage réponses Es'!Y19=\"\",\"\",'Encodage réponses Es'!Y19)","v":""},{"$f":"IF('Encodage réponses Es'!AF19=\"\",\"\",'Encodage réponses Es'!AF19)","v":""},{"$f":"IF('Encodage réponses Es'!K19=\"\",\"\",'Encodage réponses Es'!K19)","v":""},{"$f":"IF('Encodage réponses Es'!M19=\"\",\"\",'Encodage réponses Es'!M19)","v":""},{"$f":"IF('Encodage réponses Es'!N19=\"\",\"\",'Encodage réponses Es'!N19)","v":""},{"$f":"IF('Encodage réponses Es'!AB19=\"\",\"\",'Encodage réponses Es'!AB19)","v":""},{"$f":"IF('Encodage réponses Es'!Q19=\"\",\"\",'Encodage réponses Es'!Q19)","v":""},{"$f":"IF('Encodage réponses Es'!Z19=\"\",\"\",'Encodage réponses Es'!Z19)","v":""},{"$f":"IF('Encodage réponses Es'!AA19=\"\",\"\",'Encodage réponses Es'!AA19)","v":""},{"$f":"IF('Encodage réponses Es'!AC19=\"\",\"\",'Encodage réponses Es'!AC19)","v":""},{"$f":"IF('Encodage réponses Es'!AD19=\"\",\"\",'Encodage réponses Es'!AD19)","v":""},{"$f":"IF('Encodage réponses Es'!AE19=\"\",\"\",'Encodage réponses Es'!AE19)","v":""},{"$f":"IF('Encodage réponses Es'!AG19=\"\",\"\",'Encodage réponses Es'!AG19)","v":""},{"$f":"IF('Encodage réponses Es'!AJ19=\"\",\"\",'Encodage réponses Es'!AJ19)","v":""},{"$f":"IF('Encodage réponses Es'!T19=\"\",\"\",'Encodage réponses Es'!T19)","v":""},{"$f":"IF(AND(COUNTBLANK(S20:AH20)>0,'Encodage réponses Es'!$BS19=\"!\"),\"Incomplet\",IF(OR(COUNTIF(S20:AH20,\"a\")>0,COUNTIF(S20:AH20,\"A\")>0),\"Absent(e)\",IF(COUNT(S20:AH20)=0,\"\",SUM(S20:AH20))))","v":""},{"$f":"IF('Encodage réponses Es'!J19=\"\",\"\",'Encodage réponses Es'!J19)","v":""},{"$f":"IF('Encodage réponses Es'!S19=\"\",\"\",'Encodage réponses Es'!S19)","v":""},{"$f":"IF('Encodage réponses Es'!X19=\"\",\"\",'Encodage réponses Es'!X19)","v":""},{"$f":"IF('Encodage réponses Es'!AH19=\"\",\"\",'Encodage réponses Es'!AH19)","v":""},{"$f":"IF('Encodage réponses Es'!AL19=\"\",\"\",'Encodage réponses Es'!AL19)","v":""},{"$f":"IF('Encodage réponses Es'!AM19=\"\",\"\",'Encodage réponses Es'!AM19)","v":""},{"$f":"IF('Encodage réponses Es'!L19=\"\",\"\",'Encodage réponses Es'!L19)","v":""},{"$f":"IF('Encodage réponses Es'!O19=\"\",\"\",'Encodage réponses Es'!O19)","v":""},{"$f":"IF('Encodage réponses Es'!P19=\"\",\"\",'Encodage réponses Es'!P19)","v":""},{"$f":"IF('Encodage réponses Es'!U19=\"\",\"\",'Encodage réponses Es'!U19)","v":""},{"$f":"IF('Encodage réponses Es'!W19=\"\",\"\",'Encodage réponses Es'!W19)","v":""},{"$f":"IF('Encodage réponses Es'!R19=\"\",\"\",'Encodage réponses Es'!R19)","v":""},{"$f":"IF('Encodage réponses Es'!AI19=\"\",\"\",'Encodage réponses Es'!AI19)","v":""},{"$f":"IF('Encodage réponses Es'!AK19=\"\",\"\",'Encodage réponses Es'!AK19)","v":""},{"$f":"IF(AND(COUNTBLANK(AJ20:AW20)>0,'Encodage réponses Es'!$BS19=\"!\"),\"Incomplet\",IF(OR(COUNTIF(AJ20:AW20,\"a\")>0,COUNTIF(AJ20:AW20,\"A\")>0),\"Absent(e)\",IF(COUNT(AJ20:AW20)=0,\"\",SUM(AJ20:AW20))))","v":""},{"$f":"IF('Encodage réponses Es'!AU19=\"\",\"\",'Encodage réponses Es'!AU19)","v":""},{"$f":"IF('Encodage réponses Es'!BB19=\"\",\"\",'Encodage réponses Es'!BB19)","v":""},{"$f":"IF('Encodage réponses Es'!BC19=\"\",\"\",'Encodage réponses Es'!BC19)","v":""},{"$f":"IF('Encodage réponses Es'!BD19=\"\",\"\",'Encodage réponses Es'!BD19)","v":""},{"$f":"IF('Encodage réponses Es'!BL19=\"\",\"\",'Encodage réponses Es'!BL19)","v":""},{"$f":"IF('Encodage réponses Es'!BM19=\"\",\"\",'Encodage réponses Es'!BM19)","v":""},{"$f":"IF('Encodage réponses Es'!BN19=\"\",\"\",'Encodage réponses Es'!BN19)","v":""},{"$f":"IF('Encodage réponses Es'!AQ19=\"\",\"\",'Encodage réponses Es'!AQ19)","v":""},{"$f":"IF('Encodage réponses Es'!AR19=\"\",\"\",'Encodage réponses Es'!AR19)","v":""},{"$f":"IF('Encodage réponses Es'!AW19=\"\",\"\",'Encodage réponses Es'!AW19)","v":""},{"$f":"IF('Encodage réponses Es'!AX19=\"\",\"\",'Encodage réponses Es'!AX19)","v":""},{"$f":"IF('Encodage réponses Es'!AY19=\"\",\"\",'Encodage réponses Es'!AY19)","v":""},{"$f":"IF('Encodage réponses Es'!BH19=\"\",\"\",'Encodage réponses Es'!BH19)","v":""},{"$f":"IF('Encodage réponses Es'!BI19=\"\",\"\",'Encodage réponses Es'!BI19)","v":""},{"$f":"IF('Encodage réponses Es'!BK19=\"\",\"\",'Encodage réponses Es'!BK19)","v":""},{"$f":"IF('Encodage réponses Es'!AZ19=\"\",\"\",'Encodage réponses Es'!AZ19)","v":""},{"$f":"IF('Encodage réponses Es'!BA19=\"\",\"\",'Encodage réponses Es'!BA19)","v":""},{"$f":"IF('Encodage réponses Es'!BE19=\"\",\"\",'Encodage réponses Es'!BE19)","v":""},{"$f":"IF('Encodage réponses Es'!BF19=\"\",\"\",'Encodage réponses Es'!BF19)","v":""},{"$f":"IF(AND(COUNTBLANK(AY20:BQ20)>0,'Encodage réponses Es'!$BS19=\"!\"),\"Incomplet\",IF(OR(COUNTIF(AY20:BQ20,\"a\")>0,COUNTIF(AY20:BQ20,\"A\")>0),\"Absent(e)\",IF(COUNT(AY20:BQ20)=0,\"\",SUM(AY20:BQ20))))","v":""},{"$f":"IF('Encodage réponses Es'!AS19=\"\",\"\",'Encodage réponses Es'!AS19)","v":""},{"$f":"IF('Encodage réponses Es'!BO19=\"\",\"\",'Encodage réponses Es'!BO19)","v":""},{"$f":"IF('Encodage réponses Es'!BP19=\"\",\"\",'Encodage réponses Es'!BP19)","v":""},{"$f":"IF('Encodage réponses Es'!BQ19=\"\",\"\",'Encodage réponses Es'!BQ19)","v":""},{"$f":"IF('Encodage réponses Es'!BR19=\"\",\"\",'Encodage réponses Es'!BR19)","v":""},{"$f":"IF('Encodage réponses Es'!AN19=\"\",\"\",'Encodage réponses Es'!AN19)","v":""},{"$f":"IF('Encodage réponses Es'!AP19=\"\",\"\",'Encodage réponses Es'!AP19)","v":""},{"$f":"IF('Encodage réponses Es'!AT19=\"\",\"\",'Encodage réponses Es'!AT19)","v":""},{"$f":"IF('Encodage réponses Es'!AV19=\"\",\"\",'Encodage réponses Es'!AV19)","v":""},{"$f":"IF('Encodage réponses Es'!BG19=\"\",\"\",'Encodage réponses Es'!BG19)","v":""},{"$f":"IF('Encodage réponses Es'!AO19=\"\",\"\",'Encodage réponses Es'!AO19)","v":""},{"$f":"IF('Encodage réponses Es'!BJ19=\"\",\"\",'Encodage réponses Es'!BJ19)","v":""},{"$f":"IF(AND(COUNTBLANK(BS20:CD20)>0,'Encodage réponses Es'!$BS19=\"!\"),\"Incomplet\",IF(OR(COUNTIF(BS20:CD20,\"a\")>0,COUNTIF(BS20:CD20,\"A\")>0),\"Absent(e)\",IF(COUNT(BS20:CD20)=0,\"\",SUM(BS20:CD20))))","v":""}]
[{"$f":"IF('Encodage réponses Es'!A20=\"\",\"\",'Encodage réponses Es'!A20)","v":0},{"$f":"IF('Encodage réponses Es'!B20=\"\",\"\",'Encodage réponses Es'!B20)","v":0},{"$f":"IF('Encodage réponses Es'!C20=\"\",\"\",'Encodage réponses Es'!C20)","v":0},17,{"$f":"IF('Encodage réponses Es'!E20=\"\",\"\",'Encodage réponses Es'!E20)","v":""},{"$f":"IF('Encodage réponses Es'!F20=\"\",\"\",'Encodage réponses Es'!F20)","v":""},{"$f":"IF('Encodage réponses Es'!G20=\"\",\"\",'Encodage réponses Es'!G20)","v":""},{"$f":"IF('Encodage réponses Es'!I20=\"\",\"\",'Encodage réponses Es'!I20)","v":""},null,{"$f":"IF('Encodage réponses Es'!BS20=\"!\",\"Incomplet\",IF(AND(SUM('Encodage réponses Es'!J20:BR20)>=$J$4/2,'Encodage réponses Es'!BS20=\"a\"),SUM('Encodage réponses Es'!J20:BR20),IF(AND(SUM('Encodage réponses Es'!J20:BR20)<$J$4/2,'Encodage réponses Es'!BS20=\"a\"),\"Absent(e)\",IF(COUNTBLANK('Encodage réponses Es'!J20:BR20)=61,\"\",SUM('Encodage réponses Es'!J20:BR20)))))","v":""},"",null,"","","","",null,null,{"$f":"IF('Encodage réponses Es'!V20=\"\",\"\",'Encodage réponses Es'!V20)","v":""},{"$f":"IF('Encodage réponses Es'!Y20=\"\",\"\",'Encodage réponses Es'!Y20)","v":""},{"$f":"IF('Encodage réponses Es'!AF20=\"\",\"\",'Encodage réponses Es'!AF20)","v":""},{"$f":"IF('Encodage réponses Es'!K20=\"\",\"\",'Encodage réponses Es'!K20)","v":""},{"$f":"IF('Encodage réponses Es'!M20=\"\",\"\",'Encodage réponses Es'!M20)","v":""},{"$f":"IF('Encodage réponses Es'!N20=\"\",\"\",'Encodage réponses Es'!N20)","v":""},{"$f":"IF('Encodage réponses Es'!AB20=\"\",\"\",'Encodage réponses Es'!AB20)","v":""},{"$f":"IF('Encodage réponses Es'!Q20=\"\",\"\",'Encodage réponses Es'!Q20)","v":""},{"$f":"IF('Encodage réponses Es'!Z20=\"\",\"\",'Encodage réponses Es'!Z20)","v":""},{"$f":"IF('Encodage réponses Es'!AA20=\"\",\"\",'Encodage réponses Es'!AA20)","v":""},{"$f":"IF('Encodage réponses Es'!AC20=\"\",\"\",'Encodage réponses Es'!AC20)","v":""},{"$f":"IF('Encodage réponses Es'!AD20=\"\",\"\",'Encodage réponses Es'!AD20)","v":""},{"$f":"IF('Encodage réponses Es'!AE20=\"\",\"\",'Encodage réponses Es'!AE20)","v":""},{"$f":"IF('Encodage réponses Es'!AG20=\"\",\"\",'Encodage réponses Es'!AG20)","v":""},{"$f":"IF('Encodage réponses Es'!AJ20=\"\",\"\",'Encodage réponses Es'!AJ20)","v":""},{"$f":"IF('Encodage réponses Es'!T20=\"\",\"\",'Encodage réponses Es'!T20)","v":""},{"$f":"IF(AND(COUNTBLANK(S21:AH21)>0,'Encodage réponses Es'!$BS20=\"!\"),\"Incomplet\",IF(OR(COUNTIF(S21:AH21,\"a\")>0,COUNTIF(S21:AH21,\"A\")>0),\"Absent(e)\",IF(COUNT(S21:AH21)=0,\"\",SUM(S21:AH21))))","v":""},{"$f":"IF('Encodage réponses Es'!J20=\"\",\"\",'Encodage réponses Es'!J20)","v":""},{"$f":"IF('Encodage réponses Es'!S20=\"\",\"\",'Encodage réponses Es'!S20)","v":""},{"$f":"IF('Encodage réponses Es'!X20=\"\",\"\",'Encodage réponses Es'!X20)","v":""},{"$f":"IF('Encodage réponses Es'!AH20=\"\",\"\",'Encodage réponses Es'!AH20)","v":""},{"$f":"IF('Encodage réponses Es'!AL20=\"\",\"\",'Encodage réponses Es'!AL20)","v":""},{"$f":"IF('Encodage réponses Es'!AM20=\"\",\"\",'Encodage réponses Es'!AM20)","v":""},{"$f":"IF('Encodage réponses Es'!L20=\"\",\"\",'Encodage réponses Es'!L20)","v":""},{"$f":"IF('Encodage réponses Es'!O20=\"\",\"\",'Encodage réponses Es'!O20)","v":""},{"$f":"IF('Encodage réponses Es'!P20=\"\",\"\",'Encodage réponses Es'!P20)","v":""},{"$f":"IF('Encodage réponses Es'!U20=\"\",\"\",'Encodage réponses Es'!U20)","v":""},{"$f":"IF('Encodage réponses Es'!W20=\"\",\"\",'Encodage réponses Es'!W20)","v":""},{"$f":"IF('Encodage réponses Es'!R20=\"\",\"\",'Encodage réponses Es'!R20)","v":""},{"$f":"IF('Encodage réponses Es'!AI20=\"\",\"\",'Encodage réponses Es'!AI20)","v":""},{"$f":"IF('Encodage réponses Es'!AK20=\"\",\"\",'Encodage réponses Es'!AK20)","v":""},{"$f":"IF(AND(COUNTBLANK(AJ21:AW21)>0,'Encodage réponses Es'!$BS20=\"!\"),\"Incomplet\",IF(OR(COUNTIF(AJ21:AW21,\"a\")>0,COUNTIF(AJ21:AW21,\"A\")>0),\"Absent(e)\",IF(COUNT(AJ21:AW21)=0,\"\",SUM(AJ21:AW21))))","v":""},{"$f":"IF('Encodage réponses Es'!AU20=\"\",\"\",'Encodage réponses Es'!AU20)","v":""},{"$f":"IF('Encodage réponses Es'!BB20=\"\",\"\",'Encodage réponses Es'!BB20)","v":""},{"$f":"IF('Encodage réponses Es'!BC20=\"\",\"\",'Encodage réponses Es'!BC20)","v":""},{"$f":"IF('Encodage réponses Es'!BD20=\"\",\"\",'Encodage réponses Es'!BD20)","v":""},{"$f":"IF('Encodage réponses Es'!BL20=\"\",\"\",'Encodage réponses Es'!BL20)","v":""},{"$f":"IF('Encodage réponses Es'!BM20=\"\",\"\",'Encodage réponses Es'!BM20)","v":""},{"$f":"IF('Encodage réponses Es'!BN20=\"\",\"\",'Encodage réponses Es'!BN20)","v":""},{"$f":"IF('Encodage réponses Es'!AQ20=\"\",\"\",'Encodage réponses Es'!AQ20)","v":""},{"$f":"IF('Encodage réponses Es'!AR20=\"\",\"\",'Encodage réponses Es'!AR20)","v":""},{"$f":"IF('Encodage réponses Es'!AW20=\"\",\"\",'Encodage réponses Es'!AW20)","v":""},{"$f":"IF('Encodage réponses Es'!AX20=\"\",\"\",'Encodage réponses Es'!AX20)","v":""},{"$f":"IF('Encodage réponses Es'!AY20=\"\",\"\",'Encodage réponses Es'!AY20)","v":""},{"$f":"IF('Encodage réponses Es'!BH20=\"\",\"\",'Encodage réponses Es'!BH20)","v":""},{"$f":"IF('Encodage réponses Es'!BI20=\"\",\"\",'Encodage réponses Es'!BI20)","v":""},{"$f":"IF('Encodage réponses Es'!BK20=\"\",\"\",'Encodage réponses Es'!BK20)","v":""},{"$f":"IF('Encodage réponses Es'!AZ20=\"\",\"\",'Encodage réponses Es'!AZ20)","v":""},{"$f":"IF('Encodage réponses Es'!BA20=\"\",\"\",'Encodage réponses Es'!BA20)","v":""},{"$f":"IF('Encodage réponses Es'!BE20=\"\",\"\",'Encodage réponses Es'!BE20)","v":""},{"$f":"IF('Encodage réponses Es'!BF20=\"\",\"\",'Encodage réponses Es'!BF20)","v":""},{"$f":"IF(AND(COUNTBLANK(AY21:BQ21)>0,'Encodage réponses Es'!$BS20=\"!\"),\"Incomplet\",IF(OR(COUNTIF(AY21:BQ21,\"a\")>0,COUNTIF(AY21:BQ21,\"A\")>0),\"Absent(e)\",IF(COUNT(AY21:BQ21)=0,\"\",SUM(AY21:BQ21))))","v":""},{"$f":"IF('Encodage réponses Es'!AS20=\"\",\"\",'Encodage réponses Es'!AS20)","v":""},{"$f":"IF('Encodage réponses Es'!BO20=\"\",\"\",'Encodage réponses Es'!BO20)","v":""},{"$f":"IF('Encodage réponses Es'!BP20=\"\",\"\",'Encodage réponses Es'!BP20)","v":""},{"$f":"IF('Encodage réponses Es'!BQ20=\"\",\"\",'Encodage réponses Es'!BQ20)","v":""},{"$f":"IF('Encodage réponses Es'!BR20=\"\",\"\",'Encodage réponses Es'!BR20)","v":""},{"$f":"IF('Encodage réponses Es'!AN20=\"\",\"\",'Encodage réponses Es'!AN20)","v":""},{"$f":"IF('Encodage réponses Es'!AP20=\"\",\"\",'Encodage réponses Es'!AP20)","v":""},{"$f":"IF('Encodage réponses Es'!AT20=\"\",\"\",'Encodage réponses Es'!AT20)","v":""},{"$f":"IF('Encodage réponses Es'!AV20=\"\",\"\",'Encodage réponses Es'!AV20)","v":""},{"$f":"IF('Encodage réponses Es'!BG20=\"\",\"\",'Encodage réponses Es'!BG20)","v":""},{"$f":"IF('Encodage réponses Es'!AO20=\"\",\"\",'Encodage réponses Es'!AO20)","v":""},{"$f":"IF('Encodage réponses Es'!BJ20=\"\",\"\",'Encodage réponses Es'!BJ20)","v":""},{"$f":"IF(AND(COUNTBLANK(BS21:CD21)>0,'Encodage réponses Es'!$BS20=\"!\"),\"Incomplet\",IF(OR(COUNTIF(BS21:CD21,\"a\")>0,COUNTIF(BS21:CD21,\"A\")>0),\"Absent(e)\",IF(COUNT(BS21:CD21)=0,\"\",SUM(BS21:CD21))))","v":""}]
[{"$f":"IF('Encodage réponses Es'!A21=\"\",\"\",'Encodage réponses Es'!A21)","v":0},{"$f":"IF('Encodage réponses Es'!B21=\"\",\"\",'Encodage réponses Es'!B21)","v":0},{"$f":"IF('Encodage réponses Es'!C21=\"\",\"\",'Encodage réponses Es'!C21)","v":0},18,{"$f":"IF('Encodage réponses Es'!E21=\"\",\"\",'Encodage réponses Es'!E21)","v":""},{"$f":"IF('Encodage réponses Es'!F21=\"\",\"\",'Encodage réponses Es'!F21)","v":""},{"$f":"IF('Encodage réponses Es'!G21=\"\",\"\",'Encodage réponses Es'!G21)","v":""},{"$f":"IF('Encodage réponses Es'!I21=\"\",\"\",'Encodage réponses Es'!I21)","v":""},null,{"$f":"IF('Encodage réponses Es'!BS21=\"!\",\"Incomplet\",IF(AND(SUM('Encodage réponses Es'!J21:BR21)>=$J$4/2,'Encodage réponses Es'!BS21=\"a\"),SUM('Encodage réponses Es'!J21:BR21),IF(AND(SUM('Encodage réponses Es'!J21:BR21)<$J$4/2,'Encodage réponses Es'!BS21=\"a\"),\"Absent(e)\",IF(COUNTBLANK('Encodage réponses Es'!J21:BR21)=61,\"\",SUM('Encodage réponses Es'!J21:BR21)))))","v":""},"",null,"","","","",null,null,{"$f":"IF('Encodage réponses Es'!V21=\"\",\"\",'Encodage réponses Es'!V21)","v":""},{"$f":"IF('Encodage réponses Es'!Y21=\"\",\"\",'Encodage réponses Es'!Y21)","v":""},{"$f":"IF('Encodage réponses Es'!AF21=\"\",\"\",'Encodage réponses Es'!AF21)","v":""},{"$f":"IF('Encodage réponses Es'!K21=\"\",\"\",'Encodage réponses Es'!K21)","v":""},{"$f":"IF('Encodage réponses Es'!M21=\"\",\"\",'Encodage réponses Es'!M21)","v":""},{"$f":"IF('Encodage réponses Es'!N21=\"\",\"\",'Encodage réponses Es'!N21)","v":""},{"$f":"IF('Encodage réponses Es'!AB21=\"\",\"\",'Encodage réponses Es'!AB21)","v":""},{"$f":"IF('Encodage réponses Es'!Q21=\"\",\"\",'Encodage réponses Es'!Q21)","v":""},{"$f":"IF('Encodage réponses Es'!Z21=\"\",\"\",'Encodage réponses Es'!Z21)","v":""},{"$f":"IF('Encodage réponses Es'!AA21=\"\",\"\",'Encodage réponses Es'!AA21)","v":""},{"$f":"IF('Encodage réponses Es'!AC21=\"\",\"\",'Encodage réponses Es'!AC21)","v":""},{"$f":"IF('Encodage réponses Es'!AD21=\"\",\"\",'Encodage réponses Es'!AD21)","v":""},{"$f":"IF('Encodage réponses Es'!AE21=\"\",\"\",'Encodage réponses Es'!AE21)","v":""},{"$f":"IF('Encodage réponses Es'!AG21=\"\",\"\",'Encodage réponses Es'!AG21)","v":""},{"$f":"IF('Encodage réponses Es'!AJ21=\"\",\"\",'Encodage réponses Es'!AJ21)","v":""},{"$f":"IF('Encodage réponses Es'!T21=\"\",\"\",'Encodage réponses Es'!T21)","v":""},{"$f":"IF(AND(COUNTBLANK(S22:AH22)>0,'Encodage réponses Es'!$BS21=\"!\"),\"Incomplet\",IF(OR(COUNTIF(S22:AH22,\"a\")>0,COUNTIF(S22:AH22,\"A\")>0),\"Absent(e)\",IF(COUNT(S22:AH22)=0,\"\",SUM(S22:AH22))))","v":""},{"$f":"IF('Encodage réponses Es'!J21=\"\",\"\",'Encodage réponses Es'!J21)","v":""},{"$f":"IF('Encodage réponses Es'!S21=\"\",\"\",'Encodage réponses Es'!S21)","v":""},{"$f":"IF('Encodage réponses Es'!X21=\"\",\"\",'Encodage réponses Es'!X21)","v":""},{"$f":"IF('Encodage réponses Es'!AH21=\"\",\"\",'Encodage réponses Es'!AH21)","v":""},{"$f":"IF('Encodage réponses Es'!AL21=\"\",\"\",'Encodage réponses Es'!AL21)","v":""},{"$f":"IF('Encodage réponses Es'!AM21=\"\",\"\",'Encodage réponses Es'!AM21)","v":""},{"$f":"IF('Encodage réponses Es'!L21=\"\",\"\",'Encodage réponses Es'!L21)","v":""},{"$f":"IF('Encodage réponses Es'!O21=\"\",\"\",'Encodage réponses Es'!O21)","v":""},{"$f":"IF('Encodage réponses Es'!P21=\"\",\"\",'Encodage réponses Es'!P21)","v":""},{"$f":"IF('Encodage réponses Es'!U21=\"\",\"\",'Encodage réponses Es'!U21)","v":""},{"$f":"IF('Encodage réponses Es'!W21=\"\",\"\",'Encodage réponses Es'!W21)","v":""},{"$f":"IF('Encodage réponses Es'!R21=\"\",\"\",'Encodage réponses Es'!R21)","v":""},{"$f":"IF('Encodage réponses Es'!AI21=\"\",\"\",'Encodage réponses Es'!AI21)","v":""},{"$f":"IF('Encodage réponses Es'!AK21=\"\",\"\",'Encodage réponses Es'!AK21)","v":""},{"$f":"IF(AND(COUNTBLANK(AJ22:AW22)>0,'Encodage réponses Es'!$BS21=\"!\"),\"Incomplet\",IF(OR(COUNTIF(AJ22:AW22,\"a\")>0,COUNTIF(AJ22:AW22,\"A\")>0),\"Absent(e)\",IF(COUNT(AJ22:AW22)=0,\"\",SUM(AJ22:AW22))))","v":""},{"$f":"IF('Encodage réponses Es'!AU21=\"\",\"\",'Encodage réponses Es'!AU21)","v":""},{"$f":"IF('Encodage réponses Es'!BB21=\"\",\"\",'Encodage réponses Es'!BB21)","v":""},{"$f":"IF('Encodage réponses Es'!BC21=\"\",\"\",'Encodage réponses Es'!BC21)","v":""},{"$f":"IF('Encodage réponses Es'!BD21=\"\",\"\",'Encodage réponses Es'!BD21)","v":""},{"$f":"IF('Encodage réponses Es'!BL21=\"\",\"\",'Encodage réponses Es'!BL21)","v":""},{"$f":"IF('Encodage réponses Es'!BM21=\"\",\"\",'Encodage réponses Es'!BM21)","v":""},{"$f":"IF('Encodage réponses Es'!BN21=\"\",\"\",'Encodage réponses Es'!BN21)","v":""},{"$f":"IF('Encodage réponses Es'!AQ21=\"\",\"\",'Encodage réponses Es'!AQ21)","v":""},{"$f":"IF('Encodage réponses Es'!AR21=\"\",\"\",'Encodage réponses Es'!AR21)","v":""},{"$f":"IF('Encodage réponses Es'!AW21=\"\",\"\",'Encodage réponses Es'!AW21)","v":""},{"$f":"IF('Encodage réponses Es'!AX21=\"\",\"\",'Encodage réponses Es'!AX21)","v":""},{"$f":"IF('Encodage réponses Es'!AY21=\"\",\"\",'Encodage réponses Es'!AY21)","v":""},{"$f":"IF('Encodage réponses Es'!BH21=\"\",\"\",'Encodage réponses Es'!BH21)","v":""},{"$f":"IF('Encodage réponses Es'!BI21=\"\",\"\",'Encodage réponses Es'!BI21)","v":""},{"$f":"IF('Encodage réponses Es'!BK21=\"\",\"\",'Encodage réponses Es'!BK21)","v":""},{"$f":"IF('Encodage réponses Es'!AZ21=\"\",\"\",'Encodage réponses Es'!AZ21)","v":""},{"$f":"IF('Encodage réponses Es'!BA21=\"\",\"\",'Encodage réponses Es'!BA21)","v":""},{"$f":"IF('Encodage réponses Es'!BE21=\"\",\"\",'Encodage réponses Es'!BE21)","v":""},{"$f":"IF('Encodage réponses Es'!BF21=\"\",\"\",'Encodage réponses Es'!BF21)","v":""},{"$f":"IF(AND(COUNTBLANK(AY22:BQ22)>0,'Encodage réponses Es'!$BS21=\"!\"),\"Incomplet\",IF(OR(COUNTIF(AY22:BQ22,\"a\")>0,COUNTIF(AY22:BQ22,\"A\")>0),\"Absent(e)\",IF(COUNT(AY22:BQ22)=0,\"\",SUM(AY22:BQ22))))","v":""},{"$f":"IF('Encodage réponses Es'!AS21=\"\",\"\",'Encodage réponses Es'!AS21)","v":""},{"$f":"IF('Encodage réponses Es'!BO21=\"\",\"\",'Encodage réponses Es'!BO21)","v":""},{"$f":"IF('Encodage réponses Es'!BP21=\"\",\"\",'Encodage réponses Es'!BP21)","v":""},{"$f":"IF('Encodage réponses Es'!BQ21=\"\",\"\",'Encodage réponses Es'!BQ21)","v":""},{"$f":"IF('Encodage réponses Es'!BR21=\"\",\"\",'Encodage réponses Es'!BR21)","v":""},{"$f":"IF('Encodage réponses Es'!AN21=\"\",\"\",'Encodage réponses Es'!AN21)","v":""},{"$f":"IF('Encodage réponses Es'!AP21=\"\",\"\",'Encodage réponses Es'!AP21)","v":""},{"$f":"IF('Encodage réponses Es'!AT21=\"\",\"\",'Encodage réponses Es'!AT21)","v":""},{"$f":"IF('Encodage réponses Es'!AV21=\"\",\"\",'Encodage réponses Es'!AV21)","v":""},{"$f":"IF('Encodage réponses Es'!BG21=\"\",\"\",'Encodage réponses Es'!BG21)","v":""},{"$f":"IF('Encodage réponses Es'!AO21=\"\",\"\",'Encodage réponses Es'!AO21)","v":""},{"$f":"IF('Encodage réponses Es'!BJ21=\"\",\"\",'Encodage réponses Es'!BJ21)","v":""},{"$f":"IF(AND(COUNTBLANK(BS22:CD22)>0,'Encodage réponses Es'!$BS21=\"!\"),\"Incomplet\",IF(OR(COUNTIF(BS22:CD22,\"a\")>0,COUNTIF(BS22:CD22,\"A\")>0),\"Absent(e)\",IF(COUNT(BS22:CD22)=0,\"\",SUM(BS22:CD22))))","v":""}]
[{"$f":"IF('Encodage réponses Es'!A22=\"\",\"\",'Encodage réponses Es'!A22)","v":0},{"$f":"IF('Encodage réponses Es'!B22=\"\",\"\",'Encodage réponses Es'!B22)","v":0},{"$f":"IF('Encodage réponses Es'!C22=\"\",\"\",'Encodage réponses Es'!C22)","v":0},19,{"$f":"IF('Encodage réponses Es'!E22=\"\",\"\",'Encodage réponses Es'!E22)","v":""},{"$f":"IF('Encodage réponses Es'!F22=\"\",\"\",'Encodage réponses Es'!F22)","v":""},{"$f":"IF('Encodage réponses Es'!G22=\"\",\"\",'Encodage réponses Es'!G22)","v":""},{"$f":"IF('Encodage réponses Es'!I22=\"\",\"\",'Encodage réponses Es'!I22)","v":""},null,{"$f":"IF('Encodage réponses Es'!BS22=\"!\",\"Incomplet\",IF(AND(SUM('Encodage réponses Es'!J22:BR22)>=$J$4/2,'Encodage réponses Es'!BS22=\"a\"),SUM('Encodage réponses Es'!J22:BR22),IF(AND(SUM('Encodage réponses Es'!J22:BR22)<$J$4/2,'Encodage réponses Es'!BS22=\"a\"),\"Absent(e)\",IF(COUNTBLANK('Encodage réponses Es'!J22:BR22)=61,\"\",SUM('Encodage réponses Es'!J22:BR22)))))","v":""},"",null,"","","","",null,null,{"$f":"IF('Encodage réponses Es'!V22=\"\",\"\",'Encodage réponses Es'!V22)","v":""},{"$f":"IF('Encodage réponses Es'!Y22=\"\",\"\",'Encodage réponses Es'!Y22)","v":""},{"$f":"IF('Encodage réponses Es'!AF22=\"\",\"\",'Encodage réponses Es'!AF22)","v":""},{"$f":"IF('Encodage réponses Es'!K22=\"\",\"\",'Encodage réponses Es'!K22)","v":""},{"$f":"IF('Encodage réponses Es'!M22=\"\",\"\",'Encodage réponses Es'!M22)","v":""},{"$f":"IF('Encodage réponses Es'!N22=\"\",\"\",'Encodage réponses Es'!N22)","v":""},{"$f":"IF('Encodage réponses Es'!AB22=\"\",\"\",'Encodage réponses Es'!AB22)","v":""},{"$f":"IF('Encodage réponses Es'!Q22=\"\",\"\",'Encodage réponses Es'!Q22)","v":""},{"$f":"IF('Encodage réponses Es'!Z22=\"\",\"\",'Encodage réponses Es'!Z22)","v":""},{"$f":"IF('Encodage réponses Es'!AA22=\"\",\"\",'Encodage réponses Es'!AA22)","v":""},{"$f":"IF('Encodage réponses Es'!AC22=\"\",\"\",'Encodage réponses Es'!AC22)","v":""},{"$f":"IF('Encodage réponses Es'!AD22=\"\",\"\",'Encodage réponses Es'!AD22)","v":""},{"$f":"IF('Encodage réponses Es'!AE22=\"\",\"\",'Encodage réponses Es'!AE22)","v":""},{"$f":"IF('Encodage réponses Es'!AG22=\"\",\"\",'Encodage réponses Es'!AG22)","v":""},{"$f":"IF('Encodage réponses Es'!AJ22=\"\",\"\",'Encodage réponses Es'!AJ22)","v":""},{"$f":"IF('Encodage réponses Es'!T22=\"\",\"\",'Encodage réponses Es'!T22)","v":""},{"$f":"IF(AND(COUNTBLANK(S23:AH23)>0,'Encodage réponses Es'!$BS22=\"!\"),\"Incomplet\",IF(OR(COUNTIF(S23:AH23,\"a\")>0,COUNTIF(S23:AH23,\"A\")>0),\"Absent(e)\",IF(COUNT(S23:AH23)=0,\"\",SUM(S23:AH23))))","v":""},{"$f":"IF('Encodage réponses Es'!J22=\"\",\"\",'Encodage réponses Es'!J22)","v":""},{"$f":"IF('Encodage réponses Es'!S22=\"\",\"\",'Encodage réponses Es'!S22)","v":""},{"$f":"IF('Encodage réponses Es'!X22=\"\",\"\",'Encodage réponses Es'!X22)","v":""},{"$f":"IF('Encodage réponses Es'!AH22=\"\",\"\",'Encodage réponses Es'!AH22)","v":""},{"$f":"IF('Encodage réponses Es'!AL22=\"\",\"\",'Encodage réponses Es'!AL22)","v":""},{"$f":"IF('Encodage réponses Es'!AM22=\"\",\"\",'Encodage réponses Es'!AM22)","v":""},{"$f":"IF('Encodage réponses Es'!L22=\"\",\"\",'Encodage réponses Es'!L22)","v":""},{"$f":"IF('Encodage réponses Es'!O22=\"\",\"\",'Encodage réponses Es'!O22)","v":""},{"$f":"IF('Encodage réponses Es'!P22=\"\",\"\",'Encodage réponses Es'!P22)","v":""},{"$f":"IF('Encodage réponses Es'!U22=\"\",\"\",'Encodage réponses Es'!U22)","v":""},{"$f":"IF('Encodage réponses Es'!W22=\"\",\"\",'Encodage réponses Es'!W22)","v":""},{"$f":"IF('Encodage réponses Es'!R22=\"\",\"\",'Encodage réponses Es'!R22)","v":""},{"$f":"IF('Encodage réponses Es'!AI22=\"\",\"\",'Encodage réponses Es'!AI22)","v":""},{"$f":"IF('Encodage réponses Es'!AK22=\"\",\"\",'Encodage réponses Es'!AK22)","v":""},{"$f":"IF(AND(COUNTBLANK(AJ23:AW23)>0,'Encodage réponses Es'!$BS22=\"!\"),\"Incomplet\",IF(OR(COUNTIF(AJ23:AW23,\"a\")>0,COUNTIF(AJ23:AW23,\"A\")>0),\"Absent(e)\",IF(COUNT(AJ23:AW23)=0,\"\",SUM(AJ23:AW23))))","v":""},{"$f":"IF('Encodage réponses Es'!AU22=\"\",\"\",'Encodage réponses Es'!AU22)","v":""},{"$f":"IF('Encodage réponses Es'!BB22=\"\",\"\",'Encodage réponses Es'!BB22)","v":""},{"$f":"IF('Encodage réponses Es'!BC22=\"\",\"\",'Encodage réponses Es'!BC22)","v":""},{"$f":"IF('Encodage réponses Es'!BD22=\"\",\"\",'Encodage réponses Es'!BD22)","v":""},{"$f":"IF('Encodage réponses Es'!BL22=\"\",\"\",'Encodage réponses Es'!BL22)","v":""},{"$f":"IF('Encodage réponses Es'!BM22=\"\",\"\",'Encodage réponses Es'!BM22)","v":""},{"$f":"IF('Encodage réponses Es'!BN22=\"\",\"\",'Encodage réponses Es'!BN22)","v":""},{"$f":"IF('Encodage réponses Es'!AQ22=\"\",\"\",'Encodage réponses Es'!AQ22)","v":""},{"$f":"IF('Encodage réponses Es'!AR22=\"\",\"\",'Encodage réponses Es'!AR22)","v":""},{"$f":"IF('Encodage réponses Es'!AW22=\"\",\"\",'Encodage réponses Es'!AW22)","v":""},{"$f":"IF('Encodage réponses Es'!AX22=\"\",\"\",'Encodage réponses Es'!AX22)","v":""},{"$f":"IF('Encodage réponses Es'!AY22=\"\",\"\",'Encodage réponses Es'!AY22)","v":""},{"$f":"IF('Encodage réponses Es'!BH22=\"\",\"\",'Encodage réponses Es'!BH22)","v":""},{"$f":"IF('Encodage réponses Es'!BI22=\"\",\"\",'Encodage réponses Es'!BI22)","v":""},{"$f":"IF('Encodage réponses Es'!BK22=\"\",\"\",'Encodage réponses Es'!BK22)","v":""},{"$f":"IF('Encodage réponses Es'!AZ22=\"\",\"\",'Encodage réponses Es'!AZ22)","v":""},{"$f":"IF('Encodage réponses Es'!BA22=\"\",\"\",'Encodage réponses Es'!BA22)","v":""},{"$f":"IF('Encodage réponses Es'!BE22=\"\",\"\",'Encodage réponses Es'!BE22)","v":""},{"$f":"IF('Encodage réponses Es'!BF22=\"\",\"\",'Encodage réponses Es'!BF22)","v":""},{"$f":"IF(AND(COUNTBLANK(AY23:BQ23)>0,'Encodage réponses Es'!$BS22=\"!\"),\"Incomplet\",IF(OR(COUNTIF(AY23:BQ23,\"a\")>0,COUNTIF(AY23:BQ23,\"A\")>0),\"Absent(e)\",IF(COUNT(AY23:BQ23)=0,\"\",SUM(AY23:BQ23))))","v":""},{"$f":"IF('Encodage réponses Es'!AS22=\"\",\"\",'Encodage réponses Es'!AS22)","v":""},{"$f":"IF('Encodage réponses Es'!BO22=\"\",\"\",'Encodage réponses Es'!BO22)","v":""},{"$f":"IF('Encodage réponses Es'!BP22=\"\",\"\",'Encodage réponses Es'!BP22)","v":""},{"$f":"IF('Encodage réponses Es'!BQ22=\"\",\"\",'Encodage réponses Es'!BQ22)","v":""},{"$f":"IF('Encodage réponses Es'!BR22=\"\",\"\",'Encodage réponses Es'!BR22)","v":""},{"$f":"IF('Encodage réponses Es'!AN22=\"\",\"\",'Encodage réponses Es'!AN22)","v":""},{"$f":"IF('Encodage réponses Es'!AP22=\"\",\"\",'Encodage réponses Es'!AP22)","v":""},{"$f":"IF('Encodage réponses Es'!AT22=\"\",\"\",'Encodage réponses Es'!AT22)","v":""},{"$f":"IF('Encodage réponses Es'!AV22=\"\",\"\",'Encodage réponses Es'!AV22)","v":""},{"$f":"IF('Encodage réponses Es'!BG22=\"\",\"\",'Encodage réponses Es'!BG22)","v":""},{"$f":"IF('Encodage réponses Es'!AO22=\"\",\"\",'Encodage réponses Es'!AO22)","v":""},{"$f":"IF('Encodage réponses Es'!BJ22=\"\",\"\",'Encodage réponses Es'!BJ22)","v":""},{"$f":"IF(AND(COUNTBLANK(BS23:CD23)>0,'Encodage réponses Es'!$BS22=\"!\"),\"Incomplet\",IF(OR(COUNTIF(BS23:CD23,\"a\")>0,COUNTIF(BS23:CD23,\"A\")>0),\"Absent(e)\",IF(COUNT(BS23:CD23)=0,\"\",SUM(BS23:CD23))))","v":""}]
[{"$f":"IF('Encodage réponses Es'!A23=\"\",\"\",'Encodage réponses Es'!A23)","v":0},{"$f":"IF('Encodage réponses Es'!B23=\"\",\"\",'Encodage réponses Es'!B23)","v":0},{"$f":"IF('Encodage réponses Es'!C23=\"\",\"\",'Encodage réponses Es'!C23)","v":0},20,{"$f":"IF('Encodage réponses Es'!E23=\"\",\"\",'Encodage réponses Es'!E23)","v":""},{"$f":"IF('Encodage réponses Es'!F23=\"\",\"\",'Encodage réponses Es'!F23)","v":""},{"$f":"IF('Encodage réponses Es'!G23=\"\",\"\",'Encodage réponses Es'!G23)","v":""},{"$f":"IF('Encodage réponses Es'!I23=\"\",\"\",'Encodage réponses Es'!I23)","v":""},null,{"$f":"IF('Encodage réponses Es'!BS23=\"!\",\"Incomplet\",IF(AND(SUM('Encodage réponses Es'!J23:BR23)>=$J$4/2,'Encodage réponses Es'!BS23=\"a\"),SUM('Encodage réponses Es'!J23:BR23),IF(AND(SUM('Encodage réponses Es'!J23:BR23)<$J$4/2,'Encodage réponses Es'!BS23=\"a\"),\"Absent(e)\",IF(COUNTBLANK('Encodage réponses Es'!J23:BR23)=61,\"\",SUM('Encodage réponses Es'!J23:BR23)))))","v":""},"",null,"","","","",null,null,{"$f":"IF('Encodage réponses Es'!V23=\"\",\"\",'Encodage réponses Es'!V23)","v":""},{"$f":"IF('Encodage réponses Es'!Y23=\"\",\"\",'Encodage réponses Es'!Y23)","v":""},{"$f":"IF('Encodage réponses Es'!AF23=\"\",\"\",'Encodage réponses Es'!AF23)","v":""},{"$f":"IF('Encodage réponses Es'!K23=\"\",\"\",'Encodage réponses Es'!K23)","v":""},{"$f":"IF('Encodage réponses Es'!M23=\"\",\"\",'Encodage réponses Es'!M23)","v":""},{"$f":"IF('Encodage réponses Es'!N23=\"\",\"\",'Encodage réponses Es'!N23)","v":""},{"$f":"IF('Encodage réponses Es'!AB23=\"\",\"\",'Encodage réponses Es'!AB23)","v":""},{"$f":"IF('Encodage réponses Es'!Q23=\"\",\"\",'Encodage réponses Es'!Q23)","v":""},{"$f":"IF('Encodage réponses Es'!Z23=\"\",\"\",'Encodage réponses Es'!Z23)","v":""},{"$f":"IF('Encodage réponses Es'!AA23=\"\",\"\",'Encodage réponses Es'!AA23)","v":""},{"$f":"IF('Encodage réponses Es'!AC23=\"\",\"\",'Encodage réponses Es'!AC23)","v":""},{"$f":"IF('Encodage réponses Es'!AD23=\"\",\"\",'Encodage réponses Es'!AD23)","v":""},{"$f":"IF('Encodage réponses Es'!AE23=\"\",\"\",'Encodage réponses Es'!AE23)","v":""},{"$f":"IF('Encodage réponses Es'!AG23=\"\",\"\",'Encodage réponses Es'!AG23)","v":""},{"$f":"IF('Encodage réponses Es'!AJ23=\"\",\"\",'Encodage réponses Es'!AJ23)","v":""},{"$f":"IF('Encodage réponses Es'!T23=\"\",\"\",'Encodage réponses Es'!T23)","v":""},{"$f":"IF(AND(COUNTBLANK(S24:AH24)>0,'Encodage réponses Es'!$BS23=\"!\"),\"Incomplet\",IF(OR(COUNTIF(S24:AH24,\"a\")>0,COUNTIF(S24:AH24,\"A\")>0),\"Absent(e)\",IF(COUNT(S24:AH24)=0,\"\",SUM(S24:AH24))))","v":""},{"$f":"IF('Encodage réponses Es'!J23=\"\",\"\",'Encodage réponses Es'!J23)","v":""},{"$f":"IF('Encodage réponses Es'!S23=\"\",\"\",'Encodage réponses Es'!S23)","v":""},{"$f":"IF('Encodage réponses Es'!X23=\"\",\"\",'Encodage réponses Es'!X23)","v":""},{"$f":"IF('Encodage réponses Es'!AH23=\"\",\"\",'Encodage réponses Es'!AH23)","v":""},{"$f":"IF('Encodage réponses Es'!AL23=\"\",\"\",'Encodage réponses Es'!AL23)","v":""},{"$f":"IF('Encodage réponses Es'!AM23=\"\",\"\",'Encodage réponses Es'!AM23)","v":""},{"$f":"IF('Encodage réponses Es'!L23=\"\",\"\",'Encodage réponses Es'!L23)","v":""},{"$f":"IF('Encodage réponses Es'!O23=\"\",\"\",'Encodage réponses Es'!O23)","v":""},{"$f":"IF('Encodage réponses Es'!P23=\"\",\"\",'Encodage réponses Es'!P23)","v":""},{"$f":"IF('Encodage réponses Es'!U23=\"\",\"\",'Encodage réponses Es'!U23)","v":""},{"$f":"IF('Encodage réponses Es'!W23=\"\",\"\",'Encodage réponses Es'!W23)","v":""},{"$f":"IF('Encodage réponses Es'!R23=\"\",\"\",'Encodage réponses Es'!R23)","v":""},{"$f":"IF('Encodage réponses Es'!AI23=\"\",\"\",'Encodage réponses Es'!AI23)","v":""},{"$f":"IF('Encodage réponses Es'!AK23=\"\",\"\",'Encodage réponses Es'!AK23)","v":""},{"$f":"IF(AND(COUNTBLANK(AJ24:AW24)>0,'Encodage réponses Es'!$BS23=\"!\"),\"Incomplet\",IF(OR(COUNTIF(AJ24:AW24,\"a\")>0,COUNTIF(AJ24:AW24,\"A\")>0),\"Absent(e)\",IF(COUNT(AJ24:AW24)=0,\"\",SUM(AJ24:AW24))))","v":""},{"$f":"IF('Encodage réponses Es'!AU23=\"\",\"\",'Encodage réponses Es'!AU23)","v":""},{"$f":"IF('Encodage réponses Es'!BB23=\"\",\"\",'Encodage réponses Es'!BB23)","v":""},{"$f":"IF('Encodage réponses Es'!BC23=\"\",\"\",'Encodage réponses Es'!BC23)","v":""},{"$f":"IF('Encodage réponses Es'!BD23=\"\",\"\",'Encodage réponses Es'!BD23)","v":""},{"$f":"IF('Encodage réponses Es'!BL23=\"\",\"\",'Encodage réponses Es'!BL23)","v":""},{"$f":"IF('Encodage réponses Es'!BM23=\"\",\"\",'Encodage réponses Es'!BM23)","v":""},{"$f":"IF('Encodage réponses Es'!BN23=\"\",\"\",'Encodage réponses Es'!BN23)","v":""},{"$f":"IF('Encodage réponses Es'!AQ23=\"\",\"\",'Encodage réponses Es'!AQ23)","v":""},{"$f":"IF('Encodage réponses Es'!AR23=\"\",\"\",'Encodage réponses Es'!AR23)","v":""},{"$f":"IF('Encodage réponses Es'!AW23=\"\",\"\",'Encodage réponses Es'!AW23)","v":""},{"$f":"IF('Encodage réponses Es'!AX23=\"\",\"\",'Encodage réponses Es'!AX23)","v":""},{"$f":"IF('Encodage réponses Es'!AY23=\"\",\"\",'Encodage réponses Es'!AY23)","v":""},{"$f":"IF('Encodage réponses Es'!BH23=\"\",\"\",'Encodage réponses Es'!BH23)","v":""},{"$f":"IF('Encodage réponses Es'!BI23=\"\",\"\",'Encodage réponses Es'!BI23)","v":""},{"$f":"IF('Encodage réponses Es'!BK23=\"\",\"\",'Encodage réponses Es'!BK23)","v":""},{"$f":"IF('Encodage réponses Es'!AZ23=\"\",\"\",'Encodage réponses Es'!AZ23)","v":""},{"$f":"IF('Encodage réponses Es'!BA23=\"\",\"\",'Encodage réponses Es'!BA23)","v":""},{"$f":"IF('Encodage réponses Es'!BE23=\"\",\"\",'Encodage réponses Es'!BE23)","v":""},{"$f":"IF('Encodage réponses Es'!BF23=\"\",\"\",'Encodage réponses Es'!BF23)","v":""},{"$f":"IF(AND(COUNTBLANK(AY24:BQ24)>0,'Encodage réponses Es'!$BS23=\"!\"),\"Incomplet\",IF(OR(COUNTIF(AY24:BQ24,\"a\")>0,COUNTIF(AY24:BQ24,\"A\")>0),\"Absent(e)\",IF(COUNT(AY24:BQ24)=0,\"\",SUM(AY24:BQ24))))","v":""},{"$f":"IF('Encodage réponses Es'!AS23=\"\",\"\",'Encodage réponses Es'!AS23)","v":""},{"$f":"IF('Encodage réponses Es'!BO23=\"\",\"\",'Encodage réponses Es'!BO23)","v":""},{"$f":"IF('Encodage réponses Es'!BP23=\"\",\"\",'Encodage réponses Es'!BP23)","v":""},{"$f":"IF('Encodage réponses Es'!BQ23=\"\",\"\",'Encodage réponses Es'!BQ23)","v":""},{"$f":"IF('Encodage réponses Es'!BR23=\"\",\"\",'Encodage réponses Es'!BR23)","v":""},{"$f":"IF('Encodage réponses Es'!AN23=\"\",\"\",'Encodage réponses Es'!AN23)","v":""},{"$f":"IF('Encodage réponses Es'!AP23=\"\",\"\",'Encodage réponses Es'!AP23)","v":""},{"$f":"IF('Encodage réponses Es'!AT23=\"\",\"\",'Encodage réponses Es'!AT23)","v":""},{"$f":"IF('Encodage réponses Es'!AV23=\"\",\"\",'Encodage réponses Es'!AV23)","v":""},{"$f":"IF('Encodage réponses Es'!BG23=\"\",\"\",'Encodage réponses Es'!BG23)","v":""},{"$f":"IF('Encodage réponses Es'!AO23=\"\",\"\",'Encodage réponses Es'!AO23)","v":""},{"$f":"IF('Encodage réponses Es'!BJ23=\"\",\"\",'Encodage réponses Es'!BJ23)","v":""},{"$f":"IF(AND(COUNTBLANK(BS24:CD24)>0,'Encodage réponses Es'!$BS23=\"!\"),\"Incomplet\",IF(OR(COUNTIF(BS24:CD24,\"a\")>0,COUNTIF(BS24:CD24,\"A\")>0),\"Absent(e)\",IF(COUNT(BS24:CD24)=0,\"\",SUM(BS24:CD24))))","v":""}]
[{"$f":"IF('Encodage réponses Es'!A24=\"\",\"\",'Encodage réponses Es'!A24)","v":0},{"$f":"IF('Encodage réponses Es'!B24=\"\",\"\",'Encodage réponses Es'!B24)","v":0},{"$f":"IF('Encodage réponses Es'!C24=\"\",\"\",'Encodage réponses Es'!C24)","v":0},21,{"$f":"IF('Encodage réponses Es'!E24=\"\",\"\",'Encodage réponses Es'!E24)","v":""},{"$f":"IF('Encodage réponses Es'!F24=\"\",\"\",'Encodage réponses Es'!F24)","v":""},{"$f":"IF('Encodage réponses Es'!G24=\"\",\"\",'Encodage réponses Es'!G24)","v":""},{"$f":"IF('Encodage réponses Es'!I24=\"\",\"\",'Encodage réponses Es'!I24)","v":""},null,{"$f":"IF('Encodage réponses Es'!BS24=\"!\",\"Incomplet\",IF(AND(SUM('Encodage réponses Es'!J24:BR24)>=$J$4/2,'Encodage réponses Es'!BS24=\"a\"),SUM('Encodage réponses Es'!J24:BR24),IF(AND(SUM('Encodage réponses Es'!J24:BR24)<$J$4/2,'Encodage réponses Es'!BS24=\"a\"),\"Absent(e)\",IF(COUNTBLANK('Encodage réponses Es'!J24:BR24)=61,\"\",SUM('Encodage réponses Es'!J24:BR24)))))","v":""},"",null,"","","","",null,null,{"$f":"IF('Encodage réponses Es'!V24=\"\",\"\",'Encodage réponses Es'!V24)","v":""},{"$f":"IF('Encodage réponses Es'!Y24=\"\",\"\",'Encodage réponses Es'!Y24)","v":""},{"$f":"IF('Encodage réponses Es'!AF24=\"\",\"\",'Encodage réponses Es'!AF24)","v":""},{"$f":"IF('Encodage réponses Es'!K24=\"\",\"\",'Encodage réponses Es'!K24)","v":""},{"$f":"IF('Encodage réponses Es'!M24=\"\",\"\",'Encodage réponses Es'!M24)","v":""},{"$f":"IF('Encodage réponses Es'!N24=\"\",\"\",'Encodage réponses Es'!N24)","v":""},{"$f":"IF('Encodage réponses Es'!AB24=\"\",\"\",'Encodage réponses Es'!AB24)","v":""},{"$f":"IF('Encodage réponses Es'!Q24=\"\",\"\",'Encodage réponses Es'!Q24)","v":""},{"$f":"IF('Encodage réponses Es'!Z24=\"\",\"\",'Encodage réponses Es'!Z24)","v":""},{"$f":"IF('Encodage réponses Es'!AA24=\"\",\"\",'Encodage réponses Es'!AA24)","v":""},{"$f":"IF('Encodage réponses Es'!AC24=\"\",\"\",'Encodage réponses Es'!AC24)","v":""},{"$f":"IF('Encodage réponses Es'!AD24=\"\",\"\",'Encodage réponses Es'!AD24)","v":""},{"$f":"IF('Encodage réponses Es'!AE24=\"\",\"\",'Encodage réponses Es'!AE24)","v":""},{"$f":"IF('Encodage réponses Es'!AG24=\"\",\"\",'Encodage réponses Es'!AG24)","v":""},{"$f":"IF('Encodage réponses Es'!AJ24=\"\",\"\",'Encodage réponses Es'!AJ24)","v":""},{"$f":"IF('Encodage réponses Es'!T24=\"\",\"\",'Encodage réponses Es'!T24)","v":""},{"$f":"IF(AND(COUNTBLANK(S25:AH25)>0,'Encodage réponses Es'!$BS24=\"!\"),\"Incomplet\",IF(OR(COUNTIF(S25:AH25,\"a\")>0,COUNTIF(S25:AH25,\"A\")>0),\"Absent(e)\",IF(COUNT(S25:AH25)=0,\"\",SUM(S25:AH25))))","v":""},{"$f":"IF('Encodage réponses Es'!J24=\"\",\"\",'Encodage réponses Es'!J24)","v":""},{"$f":"IF('Encodage réponses Es'!S24=\"\",\"\",'Encodage réponses Es'!S24)","v":""},{"$f":"IF('Encodage réponses Es'!X24=\"\",\"\",'Encodage réponses Es'!X24)","v":""},{"$f":"IF('Encodage réponses Es'!AH24=\"\",\"\",'Encodage réponses Es'!AH24)","v":""},{"$f":"IF('Encodage réponses Es'!AL24=\"\",\"\",'Encodage réponses Es'!AL24)","v":""},{"$f":"IF('Encodage réponses Es'!AM24=\"\",\"\",'Encodage réponses Es'!AM24)","v":""},{"$f":"IF('Encodage réponses Es'!L24=\"\",\"\",'Encodage réponses Es'!L24)","v":""},{"$f":"IF('Encodage réponses Es'!O24=\"\",\"\",'Encodage réponses Es'!O24)","v":""},{"$f":"IF('Encodage réponses Es'!P24=\"\",\"\",'Encodage réponses Es'!P24)","v":""},{"$f":"IF('Encodage réponses Es'!U24=\"\",\"\",'Encodage réponses Es'!U24)","v":""},{"$f":"IF('Encodage réponses Es'!W24=\"\",\"\",'Encodage réponses Es'!W24)","v":""},{"$f":"IF('Encodage réponses Es'!R24=\"\",\"\",'Encodage réponses Es'!R24)","v":""},{"$f":"IF('Encodage réponses Es'!AI24=\"\",\"\",'Encodage réponses Es'!AI24)","v":""},{"$f":"IF('Encodage réponses Es'!AK24=\"\",\"\",'Encodage réponses Es'!AK24)","v":""},{"$f":"IF(AND(COUNTBLANK(AJ25:AW25)>0,'Encodage réponses Es'!$BS24=\"!\"),\"Incomplet\",IF(OR(COUNTIF(AJ25:AW25,\"a\")>0,COUNTIF(AJ25:AW25,\"A\")>0),\"Absent(e)\",IF(COUNT(AJ25:AW25)=0,\"\",SUM(AJ25:AW25))))","v":""},{"$f":"IF('Encodage réponses Es'!AU24=\"\",\"\",'Encodage réponses Es'!AU24)","v":""},{"$f":"IF('Encodage réponses Es'!BB24=\"\",\"\",'Encodage réponses Es'!BB24)","v":""},{"$f":"IF('Encodage réponses Es'!BC24=\"\",\"\",'Encodage réponses Es'!BC24)","v":""},{"$f":"IF('Encodage réponses Es'!BD24=\"\",\"\",'Encodage réponses Es'!BD24)","v":""},{"$f":"IF('Encodage réponses Es'!BL24=\"\",\"\",'Encodage réponses Es'!BL24)","v":""},{"$f":"IF('Encodage réponses Es'!BM24=\"\",\"\",'Encodage réponses Es'!BM24)","v":""},{"$f":"IF('Encodage réponses Es'!BN24=\"\",\"\",'Encodage réponses Es'!BN24)","v":""},{"$f":"IF('Encodage réponses Es'!AQ24=\"\",\"\",'Encodage réponses Es'!AQ24)","v":""},{"$f":"IF('Encodage réponses Es'!AR24=\"\",\"\",'Encodage réponses Es'!AR24)","v":""},{"$f":"IF('Encodage réponses Es'!AW24=\"\",\"\",'Encodage réponses Es'!AW24)","v":""},{"$f":"IF('Encodage réponses Es'!AX24=\"\",\"\",'Encodage réponses Es'!AX24)","v":""},{"$f":"IF('Encodage réponses Es'!AY24=\"\",\"\",'Encodage réponses Es'!AY24)","v":""},{"$f":"IF('Encodage réponses Es'!BH24=\"\",\"\",'Encodage réponses Es'!BH24)","v":""},{"$f":"IF('Encodage réponses Es'!BI24=\"\",\"\",'Encodage réponses Es'!BI24)","v":""},{"$f":"IF('Encodage réponses Es'!BK24=\"\",\"\",'Encodage réponses Es'!BK24)","v":""},{"$f":"IF('Encodage réponses Es'!AZ24=\"\",\"\",'Encodage réponses Es'!AZ24)","v":""},{"$f":"IF('Encodage réponses Es'!BA24=\"\",\"\",'Encodage réponses Es'!BA24)","v":""},{"$f":"IF('Encodage réponses Es'!BE24=\"\",\"\",'Encodage réponses Es'!BE24)","v":""},{"$f":"IF('Encodage réponses Es'!BF24=\"\",\"\",'Encodage réponses Es'!BF24)","v":""},{"$f":"IF(AND(COUNTBLANK(AY25:BQ25)>0,'Encodage réponses Es'!$BS24=\"!\"),\"Incomplet\",IF(OR(COUNTIF(AY25:BQ25,\"a\")>0,COUNTIF(AY25:BQ25,\"A\")>0),\"Absent(e)\",IF(COUNT(AY25:BQ25)=0,\"\",SUM(AY25:BQ25))))","v":""},{"$f":"IF('Encodage réponses Es'!AS24=\"\",\"\",'Encodage réponses Es'!AS24)","v":""},{"$f":"IF('Encodage réponses Es'!BO24=\"\",\"\",'Encodage réponses Es'!BO24)","v":""},{"$f":"IF('Encodage réponses Es'!BP24=\"\",\"\",'Encodage réponses Es'!BP24)","v":""},{"$f":"IF('Encodage réponses Es'!BQ24=\"\",\"\",'Encodage réponses Es'!BQ24)","v":""},{"$f":"IF('Encodage réponses Es'!BR24=\"\",\"\",'Encodage réponses Es'!BR24)","v":""},{"$f":"IF('Encodage réponses Es'!AN24=\"\",\"\",'Encodage réponses Es'!AN24)","v":""},{"$f":"IF('Encodage réponses Es'!AP24=\"\",\"\",'Encodage réponses Es'!AP24)","v":""},{"$f":"IF('Encodage réponses Es'!AT24=\"\",\"\",'Encodage réponses Es'!AT24)","v":""},{"$f":"IF('Encodage réponses Es'!AV24=\"\",\"\",'Encodage réponses Es'!AV24)","v":""},{"$f":"IF('Encodage réponses Es'!BG24=\"\",\"\",'Encodage réponses Es'!BG24)","v":""},{"$f":"IF('Encodage réponses Es'!AO24=\"\",\"\",'Encodage réponses Es'!AO24)","v":""},{"$f":"IF('Encodage réponses Es'!BJ24=\"\",\"\",'Encodage réponses Es'!BJ24)","v":""},{"$f":"IF(AND(COUNTBLANK(BS25:CD25)>0,'Encodage réponses Es'!$BS24=\"!\"),\"Incomplet\",IF(OR(COUNTIF(BS25:CD25,\"a\")>0,COUNTIF(BS25:CD25,\"A\")>0),\"Absent(e)\",IF(COUNT(BS25:CD25)=0,\"\",SUM(BS25:CD25))))","v":""}]
[{"$f":"IF('Encodage réponses Es'!A25=\"\",\"\",'Encodage réponses Es'!A25)","v":0},{"$f":"IF('Encodage réponses Es'!B25=\"\",\"\",'Encodage réponses Es'!B25)","v":0},{"$f":"IF('Encodage réponses Es'!C25=\"\",\"\",'Encodage réponses Es'!C25)","v":0},22,{"$f":"IF('Encodage réponses Es'!E25=\"\",\"\",'Encodage réponses Es'!E25)","v":""},{"$f":"IF('Encodage réponses Es'!F25=\"\",\"\",'Encodage réponses Es'!F25)","v":""},{"$f":"IF('Encodage réponses Es'!G25=\"\",\"\",'Encodage réponses Es'!G25)","v":""},{"$f":"IF('Encodage réponses Es'!I25=\"\",\"\",'Encodage réponses Es'!I25)","v":""},null,{"$f":"IF('Encodage réponses Es'!BS25=\"!\",\"Incomplet\",IF(AND(SUM('Encodage réponses Es'!J25:BR25)>=$J$4/2,'Encodage réponses Es'!BS25=\"a\"),SUM('Encodage réponses Es'!J25:BR25),IF(AND(SUM('Encodage réponses Es'!J25:BR25)<$J$4/2,'Encodage réponses Es'!BS25=\"a\"),\"Absent(e)\",IF(COUNTBLANK('Encodage réponses Es'!J25:BR25)=61,\"\",SUM('Encodage réponses Es'!J25:BR25)))))","v":""},"",null,"","","","",null,null,{"$f":"IF('Encodage réponses Es'!V25=\"\",\"\",'Encodage réponses Es'!V25)","v":""},{"$f":"IF('Encodage réponses Es'!Y25=\"\",\"\",'Encodage réponses Es'!Y25)","v":""},{"$f":"IF('Encodage réponses Es'!AF25=\"\",\"\",'Encodage réponses Es'!AF25)","v":""},{"$f":"IF('Encodage réponses Es'!K25=\"\",\"\",'Encodage réponses Es'!K25)","v":""},{"$f":"IF('Encodage réponses Es'!M25=\"\",\"\",'Encodage réponses Es'!M25)","v":""},{"$f":"IF('Encodage réponses Es'!N25=\"\",\"\",'Encodage réponses Es'!N25)","v":""},{"$f":"IF('Encodage réponses Es'!AB25=\"\",\"\",'Encodage réponses Es'!AB25)","v":""},{"$f":"IF('Encodage réponses Es'!Q25=\"\",\"\",'Encodage réponses Es'!Q25)","v":""},{"$f":"IF('Encodage réponses Es'!Z25=\"\",\"\",'Encodage réponses Es'!Z25)","v":""},{"$f":"IF('Encodage réponses Es'!AA25=\"\",\"\",'Encodage réponses Es'!AA25)","v":""},{"$f":"IF('Encodage réponses Es'!AC25=\"\",\"\",'Encodage réponses Es'!AC25)","v":""},{"$f":"IF('Encodage réponses Es'!AD25=\"\",\"\",'Encodage réponses Es'!AD25)","v":""},{"$f":"IF('Encodage réponses Es'!AE25=\"\",\"\",'Encodage réponses Es'!AE25)","v":""},{"$f":"IF('Encodage réponses Es'!AG25=\"\",\"\",'Encodage réponses Es'!AG25)","v":""},{"$f":"IF('Encodage réponses Es'!AJ25=\"\",\"\",'Encodage réponses Es'!AJ25)","v":""},{"$f":"IF('Encodage réponses Es'!T25=\"\",\"\",'Encodage réponses Es'!T25)","v":""},{"$f":"IF(AND(COUNTBLANK(S26:AH26)>0,'Encodage réponses Es'!$BS25=\"!\"),\"Incomplet\",IF(OR(COUNTIF(S26:AH26,\"a\")>0,COUNTIF(S26:AH26,\"A\")>0),\"Absent(e)\",IF(COUNT(S26:AH26)=0,\"\",SUM(S26:AH26))))","v":""},{"$f":"IF('Encodage réponses Es'!J25=\"\",\"\",'Encodage réponses Es'!J25)","v":""},{"$f":"IF('Encodage réponses Es'!S25=\"\",\"\",'Encodage réponses Es'!S25)","v":""},{"$f":"IF('Encodage réponses Es'!X25=\"\",\"\",'Encodage réponses Es'!X25)","v":""},{"$f":"IF('Encodage réponses Es'!AH25=\"\",\"\",'Encodage réponses Es'!AH25)","v":""},{"$f":"IF('Encodage réponses Es'!AL25=\"\",\"\",'Encodage réponses Es'!AL25)","v":""},{"$f":"IF('Encodage réponses Es'!AM25=\"\",\"\",'Encodage réponses Es'!AM25)","v":""},{"$f":"IF('Encodage réponses Es'!L25=\"\",\"\",'Encodage réponses Es'!L25)","v":""},{"$f":"IF('Encodage réponses Es'!O25=\"\",\"\",'Encodage réponses Es'!O25)","v":""},{"$f":"IF('Encodage réponses Es'!P25=\"\",\"\",'Encodage réponses Es'!P25)","v":""},{"$f":"IF('Encodage réponses Es'!U25=\"\",\"\",'Encodage réponses Es'!U25)","v":""},{"$f":"IF('Encodage réponses Es'!W25=\"\",\"\",'Encodage réponses Es'!W25)","v":""},{"$f":"IF('Encodage réponses Es'!R25=\"\",\"\",'Encodage réponses Es'!R25)","v":""},{"$f":"IF('Encodage réponses Es'!AI25=\"\",\"\",'Encodage réponses Es'!AI25)","v":""},{"$f":"IF('Encodage réponses Es'!AK25=\"\",\"\",'Encodage réponses Es'!AK25)","v":""},{"$f":"IF(AND(COUNTBLANK(AJ26:AW26)>0,'Encodage réponses Es'!$BS25=\"!\"),\"Incomplet\",IF(OR(COUNTIF(AJ26:AW26,\"a\")>0,COUNTIF(AJ26:AW26,\"A\")>0),\"Absent(e)\",IF(COUNT(AJ26:AW26)=0,\"\",SUM(AJ26:AW26))))","v":""},{"$f":"IF('Encodage réponses Es'!AU25=\"\",\"\",'Encodage réponses Es'!AU25)","v":""},{"$f":"IF('Encodage réponses Es'!BB25=\"\",\"\",'Encodage réponses Es'!BB25)","v":""},{"$f":"IF('Encodage réponses Es'!BC25=\"\",\"\",'Encodage réponses Es'!BC25)","v":""},{"$f":"IF('Encodage réponses Es'!BD25=\"\",\"\",'Encodage réponses Es'!BD25)","v":""},{"$f":"IF('Encodage réponses Es'!BL25=\"\",\"\",'Encodage réponses Es'!BL25)","v":""},{"$f":"IF('Encodage réponses Es'!BM25=\"\",\"\",'Encodage réponses Es'!BM25)","v":""},{"$f":"IF('Encodage réponses Es'!BN25=\"\",\"\",'Encodage réponses Es'!BN25)","v":""},{"$f":"IF('Encodage réponses Es'!AQ25=\"\",\"\",'Encodage réponses Es'!AQ25)","v":""},{"$f":"IF('Encodage réponses Es'!AR25=\"\",\"\",'Encodage réponses Es'!AR25)","v":""},{"$f":"IF('Encodage réponses Es'!AW25=\"\",\"\",'Encodage réponses Es'!AW25)","v":""},{"$f":"IF('Encodage réponses Es'!AX25=\"\",\"\",'Encodage réponses Es'!AX25)","v":""},{"$f":"IF('Encodage réponses Es'!AY25=\"\",\"\",'Encodage réponses Es'!AY25)","v":""},{"$f":"IF('Encodage réponses Es'!BH25=\"\",\"\",'Encodage réponses Es'!BH25)","v":""},{"$f":"IF('Encodage réponses Es'!BI25=\"\",\"\",'Encodage réponses Es'!BI25)","v":""},{"$f":"IF('Encodage réponses Es'!BK25=\"\",\"\",'Encodage réponses Es'!BK25)","v":""},{"$f":"IF('Encodage réponses Es'!AZ25=\"\",\"\",'Encodage réponses Es'!AZ25)","v":""},{"$f":"IF('Encodage réponses Es'!BA25=\"\",\"\",'Encodage réponses Es'!BA25)","v":""},{"$f":"IF('Encodage réponses Es'!BE25=\"\",\"\",'Encodage réponses Es'!BE25)","v":""},{"$f":"IF('Encodage réponses Es'!BF25=\"\",\"\",'Encodage réponses Es'!BF25)","v":""},{"$f":"IF(AND(COUNTBLANK(AY26:BQ26)>0,'Encodage réponses Es'!$BS25=\"!\"),\"Incomplet\",IF(OR(COUNTIF(AY26:BQ26,\"a\")>0,COUNTIF(AY26:BQ26,\"A\")>0),\"Absent(e)\",IF(COUNT(AY26:BQ26)=0,\"\",SUM(AY26:BQ26))))","v":""},{"$f":"IF('Encodage réponses Es'!AS25=\"\",\"\",'Encodage réponses Es'!AS25)","v":""},{"$f":"IF('Encodage réponses Es'!BO25=\"\",\"\",'Encodage réponses Es'!BO25)","v":""},{"$f":"IF('Encodage réponses Es'!BP25=\"\",\"\",'Encodage réponses Es'!BP25)","v":""},{"$f":"IF('Encodage réponses Es'!BQ25=\"\",\"\",'Encodage réponses Es'!BQ25)","v":""},{"$f":"IF('Encodage réponses Es'!BR25=\"\",\"\",'Encodage réponses Es'!BR25)","v":""},{"$f":"IF('Encodage réponses Es'!AN25=\"\",\"\",'Encodage réponses Es'!AN25)","v":""},{"$f":"IF('Encodage réponses Es'!AP25=\"\",\"\",'Encodage réponses Es'!AP25)","v":""},{"$f":"IF('Encodage réponses Es'!AT25=\"\",\"\",'Encodage réponses Es'!AT25)","v":""},{"$f":"IF('Encodage réponses Es'!AV25=\"\",\"\",'Encodage réponses Es'!AV25)","v":""},{"$f":"IF('Encodage réponses Es'!BG25=\"\",\"\",'Encodage réponses Es'!BG25)","v":""},{"$f":"IF('Encodage réponses Es'!AO25=\"\",\"\",'Encodage réponses Es'!AO25)","v":""},{"$f":"IF('Encodage réponses Es'!BJ25=\"\",\"\",'Encodage réponses Es'!BJ25)","v":""},{"$f":"IF(AND(COUNTBLANK(BS26:CD26)>0,'Encodage réponses Es'!$BS25=\"!\"),\"Incomplet\",IF(OR(COUNTIF(BS26:CD26,\"a\")>0,COUNTIF(BS26:CD26,\"A\")>0),\"Absent(e)\",IF(COUNT(BS26:CD26)=0,\"\",SUM(BS26:CD26))))","v":""}]
[{"$f":"IF('Encodage réponses Es'!A26=\"\",\"\",'Encodage réponses Es'!A26)","v":0},{"$f":"IF('Encodage réponses Es'!B26=\"\",\"\",'Encodage réponses Es'!B26)","v":0},{"$f":"IF('Encodage réponses Es'!C26=\"\",\"\",'Encodage réponses Es'!C26)","v":0},23,{"$f":"IF('Encodage réponses Es'!E26=\"\",\"\",'Encodage réponses Es'!E26)","v":""},{"$f":"IF('Encodage réponses Es'!F26=\"\",\"\",'Encodage réponses Es'!F26)","v":""},{"$f":"IF('Encodage réponses Es'!G26=\"\",\"\",'Encodage réponses Es'!G26)","v":""},{"$f":"IF('Encodage réponses Es'!I26=\"\",\"\",'Encodage réponses Es'!I26)","v":""},null,{"$f":"IF('Encodage réponses Es'!BS26=\"!\",\"Incomplet\",IF(AND(SUM('Encodage réponses Es'!J26:BR26)>=$J$4/2,'Encodage réponses Es'!BS26=\"a\"),SUM('Encodage réponses Es'!J26:BR26),IF(AND(SUM('Encodage réponses Es'!J26:BR26)<$J$4/2,'Encodage réponses Es'!BS26=\"a\"),\"Absent(e)\",IF(COUNTBLANK('Encodage réponses Es'!J26:BR26)=61,\"\",SUM('Encodage réponses Es'!J26:BR26)))))","v":""},"",null,"","","","",null,null,{"$f":"IF('Encodage réponses Es'!V26=\"\",\"\",'Encodage réponses Es'!V26)","v":""},{"$f":"IF('Encodage réponses Es'!Y26=\"\",\"\",'Encodage réponses Es'!Y26)","v":""},{"$f":"IF('Encodage réponses Es'!AF26=\"\",\"\",'Encodage réponses Es'!AF26)","v":""},{"$f":"IF('Encodage réponses Es'!K26=\"\",\"\",'Encodage réponses Es'!K26)","v":""},{"$f":"IF('Encodage réponses Es'!M26=\"\",\"\",'Encodage réponses Es'!M26)","v":""},{"$f":"IF('Encodage réponses Es'!N26=\"\",\"\",'Encodage réponses Es'!N26)","v":""},{"$f":"IF('Encodage réponses Es'!AB26=\"\",\"\",'Encodage réponses Es'!AB26)","v":""},{"$f":"IF('Encodage réponses Es'!Q26=\"\",\"\",'Encodage réponses Es'!Q26)","v":""},{"$f":"IF('Encodage réponses Es'!Z26=\"\",\"\",'Encodage réponses Es'!Z26)","v":""},{"$f":"IF('Encodage réponses Es'!AA26=\"\",\"\",'Encodage réponses Es'!AA26)","v":""},{"$f":"IF('Encodage réponses Es'!AC26=\"\",\"\",'Encodage réponses Es'!AC26)","v":""},{"$f":"IF('Encodage réponses Es'!AD26=\"\",\"\",'Encodage réponses Es'!AD26)","v":""},{"$f":"IF('Encodage réponses Es'!AE26=\"\",\"\",'Encodage réponses Es'!AE26)","v":""},{"$f":"IF('Encodage réponses Es'!AG26=\"\",\"\",'Encodage réponses Es'!AG26)","v":""},{"$f":"IF('Encodage réponses Es'!AJ26=\"\",\"\",'Encodage réponses Es'!AJ26)","v":""},{"$f":"IF('Encodage réponses Es'!T26=\"\",\"\",'Encodage réponses Es'!T26)","v":""},{"$f":"IF(AND(COUNTBLANK(S27:AH27)>0,'Encodage réponses Es'!$BS26=\"!\"),\"Incomplet\",IF(OR(COUNTIF(S27:AH27,\"a\")>0,COUNTIF(S27:AH27,\"A\")>0),\"Absent(e)\",IF(COUNT(S27:AH27)=0,\"\",SUM(S27:AH27))))","v":""},{"$f":"IF('Encodage réponses Es'!J26=\"\",\"\",'Encodage réponses Es'!J26)","v":""},{"$f":"IF('Encodage réponses Es'!S26=\"\",\"\",'Encodage réponses Es'!S26)","v":""},{"$f":"IF('Encodage réponses Es'!X26=\"\",\"\",'Encodage réponses Es'!X26)","v":""},{"$f":"IF('Encodage réponses Es'!AH26=\"\",\"\",'Encodage réponses Es'!AH26)","v":""},{"$f":"IF('Encodage réponses Es'!AL26=\"\",\"\",'Encodage réponses Es'!AL26)","v":""},{"$f":"IF('Encodage réponses Es'!AM26=\"\",\"\",'Encodage réponses Es'!AM26)","v":""},{"$f":"IF('Encodage réponses Es'!L26=\"\",\"\",'Encodage réponses Es'!L26)","v":""},{"$f":"IF('Encodage réponses Es'!O26=\"\",\"\",'Encodage réponses Es'!O26)","v":""},{"$f":"IF('Encodage réponses Es'!P26=\"\",\"\",'Encodage réponses Es'!P26)","v":""},{"$f":"IF('Encodage réponses Es'!U26=\"\",\"\",'Encodage réponses Es'!U26)","v":""},{"$f":"IF('Encodage réponses Es'!W26=\"\",\"\",'Encodage réponses Es'!W26)","v":""},{"$f":"IF('Encodage réponses Es'!R26=\"\",\"\",'Encodage réponses Es'!R26)","v":""},{"$f":"IF('Encodage réponses Es'!AI26=\"\",\"\",'Encodage réponses Es'!AI26)","v":""},{"$f":"IF('Encodage réponses Es'!AK26=\"\",\"\",'Encodage réponses Es'!AK26)","v":""},{"$f":"IF(AND(COUNTBLANK(AJ27:AW27)>0,'Encodage réponses Es'!$BS26=\"!\"),\"Incomplet\",IF(OR(COUNTIF(AJ27:AW27,\"a\")>0,COUNTIF(AJ27:AW27,\"A\")>0),\"Absent(e)\",IF(COUNT(AJ27:AW27)=0,\"\",SUM(AJ27:AW27))))","v":""},{"$f":"IF('Encodage réponses Es'!AU26=\"\",\"\",'Encodage réponses Es'!AU26)","v":""},{"$f":"IF('Encodage réponses Es'!BB26=\"\",\"\",'Encodage réponses Es'!BB26)","v":""},{"$f":"IF('Encodage réponses Es'!BC26=\"\",\"\",'Encodage réponses Es'!BC26)","v":""},{"$f":"IF('Encodage réponses Es'!BD26=\"\",\"\",'Encodage réponses Es'!BD26)","v":""},{"$f":"IF('Encodage réponses Es'!BL26=\"\",\"\",'Encodage réponses Es'!BL26)","v":""},{"$f":"IF('Encodage réponses Es'!BM26=\"\",\"\",'Encodage réponses Es'!BM26)","v":""},{"$f":"IF('Encodage réponses Es'!BN26=\"\",\"\",'Encodage réponses Es'!BN26)","v":""},{"$f":"IF('Encodage réponses Es'!AQ26=\"\",\"\",'Encodage réponses Es'!AQ26)","v":""},{"$f":"IF('Encodage réponses Es'!AR26=\"\",\"\",'Encodage réponses Es'!AR26)","v":""},{"$f":"IF('Encodage réponses Es'!AW26=\"\",\"\",'Encodage réponses Es'!AW26)","v":""},{"$f":"IF('Encodage réponses Es'!AX26=\"\",\"\",'Encodage réponses Es'!AX26)","v":""},{"$f":"IF('Encodage réponses Es'!AY26=\"\",\"\",'Encodage réponses Es'!AY26)","v":""},{"$f":"IF('Encodage réponses Es'!BH26=\"\",\"\",'Encodage réponses Es'!BH26)","v":""},{"$f":"IF('Encodage réponses Es'!BI26=\"\",\"\",'Encodage réponses Es'!BI26)","v":""},{"$f":"IF('Encodage réponses Es'!BK26=\"\",\"\",'Encodage réponses Es'!BK26)","v":""},{"$f":"IF('Encodage réponses Es'!AZ26=\"\",\"\",'Encodage réponses Es'!AZ26)","v":""},{"$f":"IF('Encodage réponses Es'!BA26=\"\",\"\",'Encodage réponses Es'!BA26)","v":""},{"$f":"IF('Encodage réponses Es'!BE26=\"\",\"\",'Encodage réponses Es'!BE26)","v":""},{"$f":"IF('Encodage réponses Es'!BF26=\"\",\"\",'Encodage réponses Es'!BF26)","v":""},{"$f":"IF(AND(COUNTBLANK(AY27:BQ27)>0,'Encodage réponses Es'!$BS26=\"!\"),\"Incomplet\",IF(OR(COUNTIF(AY27:BQ27,\"a\")>0,COUNTIF(AY27:BQ27,\"A\")>0),\"Absent(e)\",IF(COUNT(AY27:BQ27)=0,\"\",SUM(AY27:BQ27))))","v":""},{"$f":"IF('Encodage réponses Es'!AS26=\"\",\"\",'Encodage réponses Es'!AS26)","v":""},{"$f":"IF('Encodage réponses Es'!BO26=\"\",\"\",'Encodage réponses Es'!BO26)","v":""},{"$f":"IF('Encodage réponses Es'!BP26=\"\",\"\",'Encodage réponses Es'!BP26)","v":""},{"$f":"IF('Encodage réponses Es'!BQ26=\"\",\"\",'Encodage réponses Es'!BQ26)","v":""},{"$f":"IF('Encodage réponses Es'!BR26=\"\",\"\",'Encodage réponses Es'!BR26)","v":""},{"$f":"IF('Encodage réponses Es'!AN26=\"\",\"\",'Encodage réponses Es'!AN26)","v":""},{"$f":"IF('Encodage réponses Es'!AP26=\"\",\"\",'Encodage réponses Es'!AP26)","v":""},{"$f":"IF('Encodage réponses Es'!AT26=\"\",\"\",'Encodage réponses Es'!AT26)","v":""},{"$f":"IF('Encodage réponses Es'!AV26=\"\",\"\",'Encodage réponses Es'!AV26)","v":""},{"$f":"IF('Encodage réponses Es'!BG26=\"\",\"\",'Encodage réponses Es'!BG26)","v":""},{"$f":"IF('Encodage réponses Es'!AO26=\"\",\"\",'Encodage réponses Es'!AO26)","v":""},{"$f":"IF('Encodage réponses Es'!BJ26=\"\",\"\",'Encodage réponses Es'!BJ26)","v":""},{"$f":"IF(AND(COUNTBLANK(BS27:CD27)>0,'Encodage réponses Es'!$BS26=\"!\"),\"Incomplet\",IF(OR(COUNTIF(BS27:CD27,\"a\")>0,COUNTIF(BS27:CD27,\"A\")>0),\"Absent(e)\",IF(COUNT(BS27:CD27)=0,\"\",SUM(BS27:CD27))))","v":""}]
[{"$f":"IF('Encodage réponses Es'!A27=\"\",\"\",'Encodage réponses Es'!A27)","v":0},{"$f":"IF('Encodage réponses Es'!B27=\"\",\"\",'Encodage réponses Es'!B27)","v":0},{"$f":"IF('Encodage réponses Es'!C27=\"\",\"\",'Encodage réponses Es'!C27)","v":0},24,{"$f":"IF('Encodage réponses Es'!E27=\"\",\"\",'Encodage réponses Es'!E27)","v":""},{"$f":"IF('Encodage réponses Es'!F27=\"\",\"\",'Encodage réponses Es'!F27)","v":""},{"$f":"IF('Encodage réponses Es'!G27=\"\",\"\",'Encodage réponses Es'!G27)","v":""},{"$f":"IF('Encodage réponses Es'!I27=\"\",\"\",'Encodage réponses Es'!I27)","v":""},null,{"$f":"IF('Encodage réponses Es'!BS27=\"!\",\"Incomplet\",IF(AND(SUM('Encodage réponses Es'!J27:BR27)>=$J$4/2,'Encodage réponses Es'!BS27=\"a\"),SUM('Encodage réponses Es'!J27:BR27),IF(AND(SUM('Encodage réponses Es'!J27:BR27)<$J$4/2,'Encodage réponses Es'!BS27=\"a\"),\"Absent(e)\",IF(COUNTBLANK('Encodage réponses Es'!J27:BR27)=61,\"\",SUM('Encodage réponses Es'!J27:BR27)))))","v":""},"",null,"","","","",null,null,{"$f":"IF('Encodage réponses Es'!V27=\"\",\"\",'Encodage réponses Es'!V27)","v":""},{"$f":"IF('Encodage réponses Es'!Y27=\"\",\"\",'Encodage réponses Es'!Y27)","v":""},{"$f":"IF('Encodage réponses Es'!AF27=\"\",\"\",'Encodage réponses Es'!AF27)","v":""},{"$f":"IF('Encodage réponses Es'!K27=\"\",\"\",'Encodage réponses Es'!K27)","v":""},{"$f":"IF('Encodage réponses Es'!M27=\"\",\"\",'Encodage réponses Es'!M27)","v":""},{"$f":"IF('Encodage réponses Es'!N27=\"\",\"\",'Encodage réponses Es'!N27)","v":""},{"$f":"IF('Encodage réponses Es'!AB27=\"\",\"\",'Encodage réponses Es'!AB27)","v":""},{"$f":"IF('Encodage réponses Es'!Q27=\"\",\"\",'Encodage réponses Es'!Q27)","v":""},{"$f":"IF('Encodage réponses Es'!Z27=\"\",\"\",'Encodage réponses Es'!Z27)","v":""},{"$f":"IF('Encodage réponses Es'!AA27=\"\",\"\",'Encodage réponses Es'!AA27)","v":""},{"$f":"IF('Encodage réponses Es'!AC27=\"\",\"\",'Encodage réponses Es'!AC27)","v":""},{"$f":"IF('Encodage réponses Es'!AD27=\"\",\"\",'Encodage réponses Es'!AD27)","v":""},{"$f":"IF('Encodage réponses Es'!AE27=\"\",\"\",'Encodage réponses Es'!AE27)","v":""},{"$f":"IF('Encodage réponses Es'!AG27=\"\",\"\",'Encodage réponses Es'!AG27)","v":""},{"$f":"IF('Encodage réponses Es'!AJ27=\"\",\"\",'Encodage réponses Es'!AJ27)","v":""},{"$f":"IF('Encodage réponses Es'!T27=\"\",\"\",'Encodage réponses Es'!T27)","v":""},{"$f":"IF(AND(COUNTBLANK(S28:AH28)>0,'Encodage réponses Es'!$BS27=\"!\"),\"Incomplet\",IF(OR(COUNTIF(S28:AH28,\"a\")>0,COUNTIF(S28:AH28,\"A\")>0),\"Absent(e)\",IF(COUNT(S28:AH28)=0,\"\",SUM(S28:AH28))))","v":""},{"$f":"IF('Encodage réponses Es'!J27=\"\",\"\",'Encodage réponses Es'!J27)","v":""},{"$f":"IF('Encodage réponses Es'!S27=\"\",\"\",'Encodage réponses Es'!S27)","v":""},{"$f":"IF('Encodage réponses Es'!X27=\"\",\"\",'Encodage réponses Es'!X27)","v":""},{"$f":"IF('Encodage réponses Es'!AH27=\"\",\"\",'Encodage réponses Es'!AH27)","v":""},{"$f":"IF('Encodage réponses Es'!AL27=\"\",\"\",'Encodage réponses Es'!AL27)","v":""},{"$f":"IF('Encodage réponses Es'!AM27=\"\",\"\",'Encodage réponses Es'!AM27)","v":""},{"$f":"IF('Encodage réponses Es'!L27=\"\",\"\",'Encodage réponses Es'!L27)","v":""},{"$f":"IF('Encodage réponses Es'!O27=\"\",\"\",'Encodage réponses Es'!O27)","v":""},{"$f":"IF('Encodage réponses Es'!P27=\"\",\"\",'Encodage réponses Es'!P27)","v":""},{"$f":"IF('Encodage réponses Es'!U27=\"\",\"\",'Encodage réponses Es'!U27)","v":""},{"$f":"IF('Encodage réponses Es'!W27=\"\",\"\",'Encodage réponses Es'!W27)","v":""},{"$f":"IF('Encodage réponses Es'!R27=\"\",\"\",'Encodage réponses Es'!R27)","v":""},{"$f":"IF('Encodage réponses Es'!AI27=\"\",\"\",'Encodage réponses Es'!AI27)","v":""},{"$f":"IF('Encodage réponses Es'!AK27=\"\",\"\",'Encodage réponses Es'!AK27)","v":""},{"$f":"IF(AND(COUNTBLANK(AJ28:AW28)>0,'Encodage réponses Es'!$BS27=\"!\"),\"Incomplet\",IF(OR(COUNTIF(AJ28:AW28,\"a\")>0,COUNTIF(AJ28:AW28,\"A\")>0),\"Absent(e)\",IF(COUNT(AJ28:AW28)=0,\"\",SUM(AJ28:AW28))))","v":""},{"$f":"IF('Encodage réponses Es'!AU27=\"\",\"\",'Encodage réponses Es'!AU27)","v":""},{"$f":"IF('Encodage réponses Es'!BB27=\"\",\"\",'Encodage réponses Es'!BB27)","v":""},{"$f":"IF('Encodage réponses Es'!BC27=\"\",\"\",'Encodage réponses Es'!BC27)","v":""},{"$f":"IF('Encodage réponses Es'!BD27=\"\",\"\",'Encodage réponses Es'!BD27)","v":""},{"$f":"IF('Encodage réponses Es'!BL27=\"\",\"\",'Encodage réponses Es'!BL27)","v":""},{"$f":"IF('Encodage réponses Es'!BM27=\"\",\"\",'Encodage réponses Es'!BM27)","v":""},{"$f":"IF('Encodage réponses Es'!BN27=\"\",\"\",'Encodage réponses Es'!BN27)","v":""},{"$f":"IF('Encodage réponses Es'!AQ27=\"\",\"\",'Encodage réponses Es'!AQ27)","v":""},{"$f":"IF('Encodage réponses Es'!AR27=\"\",\"\",'Encodage réponses Es'!AR27)","v":""},{"$f":"IF('Encodage réponses Es'!AW27=\"\",\"\",'Encodage réponses Es'!AW27)","v":""},{"$f":"IF('Encodage réponses Es'!AX27=\"\",\"\",'Encodage réponses Es'!AX27)","v":""},{"$f":"IF('Encodage réponses Es'!AY27=\"\",\"\",'Encodage réponses Es'!AY27)","v":""},{"$f":"IF('Encodage réponses Es'!BH27=\"\",\"\",'Encodage réponses Es'!BH27)","v":""},{"$f":"IF('Encodage réponses Es'!BI27=\"\",\"\",'Encodage réponses Es'!BI27)","v":""},{"$f":"IF('Encodage réponses Es'!BK27=\"\",\"\",'Encodage réponses Es'!BK27)","v":""},{"$f":"IF('Encodage réponses Es'!AZ27=\"\",\"\",'Encodage réponses Es'!AZ27)","v":""},{"$f":"IF('Encodage réponses Es'!BA27=\"\",\"\",'Encodage réponses Es'!BA27)","v":""},{"$f":"IF('Encodage réponses Es'!BE27=\"\",\"\",'Encodage réponses Es'!BE27)","v":""},{"$f":"IF('Encodage réponses Es'!BF27=\"\",\"\",'Encodage réponses Es'!BF27)","v":""},{"$f":"IF(AND(COUNTBLANK(AY28:BQ28)>0,'Encodage réponses Es'!$BS27=\"!\"),\"Incomplet\",IF(OR(COUNTIF(AY28:BQ28,\"a\")>0,COUNTIF(AY28:BQ28,\"A\")>0),\"Absent(e)\",IF(COUNT(AY28:BQ28)=0,\"\",SUM(AY28:BQ28))))","v":""},{"$f":"IF('Encodage réponses Es'!AS27=\"\",\"\",'Encodage réponses Es'!AS27)","v":""},{"$f":"IF('Encodage réponses Es'!BO27=\"\",\"\",'Encodage réponses Es'!BO27)","v":""},{"$f":"IF('Encodage réponses Es'!BP27=\"\",\"\",'Encodage réponses Es'!BP27)","v":""},{"$f":"IF('Encodage réponses Es'!BQ27=\"\",\"\",'Encodage réponses Es'!BQ27)","v":""},{"$f":"IF('Encodage réponses Es'!BR27=\"\",\"\",'Encodage réponses Es'!BR27)","v":""},{"$f":"IF('Encodage réponses Es'!AN27=\"\",\"\",'Encodage réponses Es'!AN27)","v":""},{"$f":"IF('Encodage réponses Es'!AP27=\"\",\"\",'Encodage réponses Es'!AP27)","v":""},{"$f":"IF('Encodage réponses Es'!AT27=\"\",\"\",'Encodage réponses Es'!AT27)","v":""},{"$f":"IF('Encodage réponses Es'!AV27=\"\",\"\",'Encodage réponses Es'!AV27)","v":""},{"$f":"IF('Encodage réponses Es'!BG27=\"\",\"\",'Encodage réponses Es'!BG27)","v":""},{"$f":"IF('Encodage réponses Es'!AO27=\"\",\"\",'Encodage réponses Es'!AO27)","v":""},{"$f":"IF('Encodage réponses Es'!BJ27=\"\",\"\",'Encodage réponses Es'!BJ27)","v":""},{"$f":"IF(AND(COUNTBLANK(BS28:CD28)>0,'Encodage réponses Es'!$BS27=\"!\"),\"Incomplet\",IF(OR(COUNTIF(BS28:CD28,\"a\")>0,COUNTIF(BS28:CD28,\"A\")>0),\"Absent(e)\",IF(COUNT(BS28:CD28)=0,\"\",SUM(BS28:CD28))))","v":""}]
[{"$f":"IF('Encodage réponses Es'!A28=\"\",\"\",'Encodage réponses Es'!A28)","v":0},{"$f":"IF('Encodage réponses Es'!B28=\"\",\"\",'Encodage réponses Es'!B28)","v":0},{"$f":"IF('Encodage réponses Es'!C28=\"\",\"\",'Encodage réponses Es'!C28)","v":0},25,{"$f":"IF('Encodage réponses Es'!E28=\"\",\"\",'Encodage réponses Es'!E28)","v":""},{"$f":"IF('Encodage réponses Es'!F28=\"\",\"\",'Encodage réponses Es'!F28)","v":""},{"$f":"IF('Encodage réponses Es'!G28=\"\",\"\",'Encodage réponses Es'!G28)","v":""},{"$f":"IF('Encodage réponses Es'!I28=\"\",\"\",'Encodage réponses Es'!I28)","v":""},null,{"$f":"IF('Encodage réponses Es'!BS28=\"!\",\"Incomplet\",IF(AND(SUM('Encodage réponses Es'!J28:BR28)>=$J$4/2,'Encodage réponses Es'!BS28=\"a\"),SUM('Encodage réponses Es'!J28:BR28),IF(AND(SUM('Encodage réponses Es'!J28:BR28)<$J$4/2,'Encodage réponses Es'!BS28=\"a\"),\"Absent(e)\",IF(COUNTBLANK('Encodage réponses Es'!J28:BR28)=61,\"\",SUM('Encodage réponses Es'!J28:BR28)))))","v":""},"",null,"","","","",null,null,{"$f":"IF('Encodage réponses Es'!V28=\"\",\"\",'Encodage réponses Es'!V28)","v":""},{"$f":"IF('Encodage réponses Es'!Y28=\"\",\"\",'Encodage réponses Es'!Y28)","v":""},{"$f":"IF('Encodage réponses Es'!AF28=\"\",\"\",'Encodage réponses Es'!AF28)","v":""},{"$f":"IF('Encodage réponses Es'!K28=\"\",\"\",'Encodage réponses Es'!K28)","v":""},{"$f":"IF('Encodage réponses Es'!M28=\"\",\"\",'Encodage réponses Es'!M28)","v":""},{"$f":"IF('Encodage réponses Es'!N28=\"\",\"\",'Encodage réponses Es'!N28)","v":""},{"$f":"IF('Encodage réponses Es'!AB28=\"\",\"\",'Encodage réponses Es'!AB28)","v":""},{"$f":"IF('Encodage réponses Es'!Q28=\"\",\"\",'Encodage réponses Es'!Q28)","v":""},{"$f":"IF('Encodage réponses Es'!Z28=\"\",\"\",'Encodage réponses Es'!Z28)","v":""},{"$f":"IF('Encodage réponses Es'!AA28=\"\",\"\",'Encodage réponses Es'!AA28)","v":""},{"$f":"IF('Encodage réponses Es'!AC28=\"\",\"\",'Encodage réponses Es'!AC28)","v":""},{"$f":"IF('Encodage réponses Es'!AD28=\"\",\"\",'Encodage réponses Es'!AD28)","v":""},{"$f":"IF('Encodage réponses Es'!AE28=\"\",\"\",'Encodage réponses Es'!AE28)","v":""},{"$f":"IF('Encodage réponses Es'!AG28=\"\",\"\",'Encodage réponses Es'!AG28)","v":""},{"$f":"IF('Encodage réponses Es'!AJ28=\"\",\"\",'Encodage réponses Es'!AJ28)","v":""},{"$f":"IF('Encodage réponses Es'!T28=\"\",\"\",'Encodage réponses Es'!T28)","v":""},{"$f":"IF(AND(COUNTBLANK(S29:AH29)>0,'Encodage réponses Es'!$BS28=\"!\"),\"Incomplet\",IF(OR(COUNTIF(S29:AH29,\"a\")>0,COUNTIF(S29:AH29,\"A\")>0),\"Absent(e)\",IF(COUNT(S29:AH29)=0,\"\",SUM(S29:AH29))))","v":""},{"$f":"IF('Encodage réponses Es'!J28=\"\",\"\",'Encodage réponses Es'!J28)","v":""},{"$f":"IF('Encodage réponses Es'!S28=\"\",\"\",'Encodage réponses Es'!S28)","v":""},{"$f":"IF('Encodage réponses Es'!X28=\"\",\"\",'Encodage réponses Es'!X28)","v":""},{"$f":"IF('Encodage réponses Es'!AH28=\"\",\"\",'Encodage réponses Es'!AH28)","v":""},{"$f":"IF('Encodage réponses Es'!AL28=\"\",\"\",'Encodage réponses Es'!AL28)","v":""},{"$f":"IF('Encodage réponses Es'!AM28=\"\",\"\",'Encodage réponses Es'!AM28)","v":""},{"$f":"IF('Encodage réponses Es'!L28=\"\",\"\",'Encodage réponses Es'!L28)","v":""},{"$f":"IF('Encodage réponses Es'!O28=\"\",\"\",'Encodage réponses Es'!O28)","v":""},{"$f":"IF('Encodage réponses Es'!P28=\"\",\"\",'Encodage réponses Es'!P28)","v":""},{"$f":"IF('Encodage réponses Es'!U28=\"\",\"\",'Encodage réponses Es'!U28)","v":""},{"$f":"IF('Encodage réponses Es'!W28=\"\",\"\",'Encodage réponses Es'!W28)","v":""},{"$f":"IF('Encodage réponses Es'!R28=\"\",\"\",'Encodage réponses Es'!R28)","v":""},{"$f":"IF('Encodage réponses Es'!AI28=\"\",\"\",'Encodage réponses Es'!AI28)","v":""},{"$f":"IF('Encodage réponses Es'!AK28=\"\",\"\",'Encodage réponses Es'!AK28)","v":""},{"$f":"IF(AND(COUNTBLANK(AJ29:AW29)>0,'Encodage réponses Es'!$BS28=\"!\"),\"Incomplet\",IF(OR(COUNTIF(AJ29:AW29,\"a\")>0,COUNTIF(AJ29:AW29,\"A\")>0),\"Absent(e)\",IF(COUNT(AJ29:AW29)=0,\"\",SUM(AJ29:AW29))))","v":""},{"$f":"IF('Encodage réponses Es'!AU28=\"\",\"\",'Encodage réponses Es'!AU28)","v":""},{"$f":"IF('Encodage réponses Es'!BB28=\"\",\"\",'Encodage réponses Es'!BB28)","v":""},{"$f":"IF('Encodage réponses Es'!BC28=\"\",\"\",'Encodage réponses Es'!BC28)","v":""},{"$f":"IF('Encodage réponses Es'!BD28=\"\",\"\",'Encodage réponses Es'!BD28)","v":""},{"$f":"IF('Encodage réponses Es'!BL28=\"\",\"\",'Encodage réponses Es'!BL28)","v":""},{"$f":"IF('Encodage réponses Es'!BM28=\"\",\"\",'Encodage réponses Es'!BM28)","v":""},{"$f":"IF('Encodage réponses Es'!BN28=\"\",\"\",'Encodage réponses Es'!BN28)","v":""},{"$f":"IF('Encodage réponses Es'!AQ28=\"\",\"\",'Encodage réponses Es'!AQ28)","v":""},{"$f":"IF('Encodage réponses Es'!AR28=\"\",\"\",'Encodage réponses Es'!AR28)","v":""},{"$f":"IF('Encodage réponses Es'!AW28=\"\",\"\",'Encodage réponses Es'!AW28)","v":""},{"$f":"IF('Encodage réponses Es'!AX28=\"\",\"\",'Encodage réponses Es'!AX28)","v":""},{"$f":"IF('Encodage réponses Es'!AY28=\"\",\"\",'Encodage réponses Es'!AY28)","v":""},{"$f":"IF('Encodage réponses Es'!BH28=\"\",\"\",'Encodage réponses Es'!BH28)","v":""},{"$f":"IF('Encodage réponses Es'!BI28=\"\",\"\",'Encodage réponses Es'!BI28)","v":""},{"$f":"IF('Encodage réponses Es'!BK28=\"\",\"\",'Encodage réponses Es'!BK28)","v":""},{"$f":"IF('Encodage réponses Es'!AZ28=\"\",\"\",'Encodage réponses Es'!AZ28)","v":""},{"$f":"IF('Encodage réponses Es'!BA28=\"\",\"\",'Encodage réponses Es'!BA28)","v":""},{"$f":"IF('Encodage réponses Es'!BE28=\"\",\"\",'Encodage réponses Es'!BE28)","v":""},{"$f":"IF('Encodage réponses Es'!BF28=\"\",\"\",'Encodage réponses Es'!BF28)","v":""},{"$f":"IF(AND(COUNTBLANK(AY29:BQ29)>0,'Encodage réponses Es'!$BS28=\"!\"),\"Incomplet\",IF(OR(COUNTIF(AY29:BQ29,\"a\")>0,COUNTIF(AY29:BQ29,\"A\")>0),\"Absent(e)\",IF(COUNT(AY29:BQ29)=0,\"\",SUM(AY29:BQ29))))","v":""},{"$f":"IF('Encodage réponses Es'!AS28=\"\",\"\",'Encodage réponses Es'!AS28)","v":""},{"$f":"IF('Encodage réponses Es'!BO28=\"\",\"\",'Encodage réponses Es'!BO28)","v":""},{"$f":"IF('Encodage réponses Es'!BP28=\"\",\"\",'Encodage réponses Es'!BP28)","v":""},{"$f":"IF('Encodage réponses Es'!BQ28=\"\",\"\",'Encodage réponses Es'!BQ28)","v":""},{"$f":"IF('Encodage réponses Es'!BR28=\"\",\"\",'Encodage réponses Es'!BR28)","v":""},{"$f":"IF('Encodage réponses Es'!AN28=\"\",\"\",'Encodage réponses Es'!AN28)","v":""},{"$f":"IF('Encodage réponses Es'!AP28=\"\",\"\",'Encodage réponses Es'!AP28)","v":""},{"$f":"IF('Encodage réponses Es'!AT28=\"\",\"\",'Encodage réponses Es'!AT28)","v":""},{"$f":"IF('Encodage réponses Es'!AV28=\"\",\"\",'Encodage réponses Es'!AV28)","v":""},{"$f":"IF('Encodage réponses Es'!BG28=\"\",\"\",'Encodage réponses Es'!BG28)","v":""},{"$f":"IF('Encodage réponses Es'!AO28=\"\",\"\",'Encodage réponses Es'!AO28)","v":""},{"$f":"IF('Encodage réponses Es'!BJ28=\"\",\"\",'Encodage réponses Es'!BJ28)","v":""},{"$f":"IF(AND(COUNTBLANK(BS29:CD29)>0,'Encodage réponses Es'!$BS28=\"!\"),\"Incomplet\",IF(OR(COUNTIF(BS29:CD29,\"a\")>0,COUNTIF(BS29:CD29,\"A\")>0),\"Absent(e)\",IF(COUNT(BS29:CD29)=0,\"\",SUM(BS29:CD29))))","v":""}]
[{"$f":"IF('Encodage réponses Es'!A29=\"\",\"\",'Encodage réponses Es'!A29)","v":0},{"$f":"IF('Encodage réponses Es'!B29=\"\",\"\",'Encodage réponses Es'!B29)","v":0},{"$f":"IF('Encodage réponses Es'!C29=\"\",\"\",'Encodage réponses Es'!C29)","v":0},26,{"$f":"IF('Encodage réponses Es'!E29=\"\",\"\",'Encodage réponses Es'!E29)","v":""},{"$f":"IF('Encodage réponses Es'!F29=\"\",\"\",'Encodage réponses Es'!F29)","v":""},{"$f":"IF('Encodage réponses Es'!G29=\"\",\"\",'Encodage réponses Es'!G29)","v":""},{"$f":"IF('Encodage réponses Es'!I29=\"\",\"\",'Encodage réponses Es'!I29)","v":""},null,{"$f":"IF('Encodage réponses Es'!BS29=\"!\",\"Incomplet\",IF(AND(SUM('Encodage réponses Es'!J29:BR29)>=$J$4/2,'Encodage réponses Es'!BS29=\"a\"),SUM('Encodage réponses Es'!J29:BR29),IF(AND(SUM('Encodage réponses Es'!J29:BR29)<$J$4/2,'Encodage réponses Es'!BS29=\"a\"),\"Absent(e)\",IF(COUNTBLANK('Encodage réponses Es'!J29:BR29)=61,\"\",SUM('Encodage réponses Es'!J29:BR29)))))","v":""},"",null,"","","","",null,null,{"$f":"IF('Encodage réponses Es'!V29=\"\",\"\",'Encodage réponses Es'!V29)","v":""},{"$f":"IF('Encodage réponses Es'!Y29=\"\",\"\",'Encodage réponses Es'!Y29)","v":""},{"$f":"IF('Encodage réponses Es'!AF29=\"\",\"\",'Encodage réponses Es'!AF29)","v":""},{"$f":"IF('Encodage réponses Es'!K29=\"\",\"\",'Encodage réponses Es'!K29)","v":""},{"$f":"IF('Encodage réponses Es'!M29=\"\",\"\",'Encodage réponses Es'!M29)","v":""},{"$f":"IF('Encodage réponses Es'!N29=\"\",\"\",'Encodage réponses Es'!N29)","v":""},{"$f":"IF('Encodage réponses Es'!AB29=\"\",\"\",'Encodage réponses Es'!AB29)","v":""},{"$f":"IF('Encodage réponses Es'!Q29=\"\",\"\",'Encodage réponses Es'!Q29)","v":""},{"$f":"IF('Encodage réponses Es'!Z29=\"\",\"\",'Encodage réponses Es'!Z29)","v":""},{"$f":"IF('Encodage réponses Es'!AA29=\"\",\"\",'Encodage réponses Es'!AA29)","v":""},{"$f":"IF('Encodage réponses Es'!AC29=\"\",\"\",'Encodage réponses Es'!AC29)","v":""},{"$f":"IF('Encodage réponses Es'!AD29=\"\",\"\",'Encodage réponses Es'!AD29)","v":""},{"$f":"IF('Encodage réponses Es'!AE29=\"\",\"\",'Encodage réponses Es'!AE29)","v":""},{"$f":"IF('Encodage réponses Es'!AG29=\"\",\"\",'Encodage réponses Es'!AG29)","v":""},{"$f":"IF('Encodage réponses Es'!AJ29=\"\",\"\",'Encodage réponses Es'!AJ29)","v":""},{"$f":"IF('Encodage réponses Es'!T29=\"\",\"\",'Encodage réponses Es'!T29)","v":""},{"$f":"IF(AND(COUNTBLANK(S30:AH30)>0,'Encodage réponses Es'!$BS29=\"!\"),\"Incomplet\",IF(OR(COUNTIF(S30:AH30,\"a\")>0,COUNTIF(S30:AH30,\"A\")>0),\"Absent(e)\",IF(COUNT(S30:AH30)=0,\"\",SUM(S30:AH30))))","v":""},{"$f":"IF('Encodage réponses Es'!J29=\"\",\"\",'Encodage réponses Es'!J29)","v":""},{"$f":"IF('Encodage réponses Es'!S29=\"\",\"\",'Encodage réponses Es'!S29)","v":""},{"$f":"IF('Encodage réponses Es'!X29=\"\",\"\",'Encodage réponses Es'!X29)","v":""},{"$f":"IF('Encodage réponses Es'!AH29=\"\",\"\",'Encodage réponses Es'!AH29)","v":""},{"$f":"IF('Encodage réponses Es'!AL29=\"\",\"\",'Encodage réponses Es'!AL29)","v":""},{"$f":"IF('Encodage réponses Es'!AM29=\"\",\"\",'Encodage réponses Es'!AM29)","v":""},{"$f":"IF('Encodage réponses Es'!L29=\"\",\"\",'Encodage réponses Es'!L29)","v":""},{"$f":"IF('Encodage réponses Es'!O29=\"\",\"\",'Encodage réponses Es'!O29)","v":""},{"$f":"IF('Encodage réponses Es'!P29=\"\",\"\",'Encodage réponses Es'!P29)","v":""},{"$f":"IF('Encodage réponses Es'!U29=\"\",\"\",'Encodage réponses Es'!U29)","v":""},{"$f":"IF('Encodage réponses Es'!W29=\"\",\"\",'Encodage réponses Es'!W29)","v":""},{"$f":"IF('Encodage réponses Es'!R29=\"\",\"\",'Encodage réponses Es'!R29)","v":""},{"$f":"IF('Encodage réponses Es'!AI29=\"\",\"\",'Encodage réponses Es'!AI29)","v":""},{"$f":"IF('Encodage réponses Es'!AK29=\"\",\"\",'Encodage réponses Es'!AK29)","v":""},{"$f":"IF(AND(COUNTBLANK(AJ30:AW30)>0,'Encodage réponses Es'!$BS29=\"!\"),\"Incomplet\",IF(OR(COUNTIF(AJ30:AW30,\"a\")>0,COUNTIF(AJ30:AW30,\"A\")>0),\"Absent(e)\",IF(COUNT(AJ30:AW30)=0,\"\",SUM(AJ30:AW30))))","v":""},{"$f":"IF('Encodage réponses Es'!AU29=\"\",\"\",'Encodage réponses Es'!AU29)","v":""},{"$f":"IF('Encodage réponses Es'!BB29=\"\",\"\",'Encodage réponses Es'!BB29)","v":""},{"$f":"IF('Encodage réponses Es'!BC29=\"\",\"\",'Encodage réponses Es'!BC29)","v":""},{"$f":"IF('Encodage réponses Es'!BD29=\"\",\"\",'Encodage réponses Es'!BD29)","v":""},{"$f":"IF('Encodage réponses Es'!BL29=\"\",\"\",'Encodage réponses Es'!BL29)","v":""},{"$f":"IF('Encodage réponses Es'!BM29=\"\",\"\",'Encodage réponses Es'!BM29)","v":""},{"$f":"IF('Encodage réponses Es'!BN29=\"\",\"\",'Encodage réponses Es'!BN29)","v":""},{"$f":"IF('Encodage réponses Es'!AQ29=\"\",\"\",'Encodage réponses Es'!AQ29)","v":""},{"$f":"IF('Encodage réponses Es'!AR29=\"\",\"\",'Encodage réponses Es'!AR29)","v":""},{"$f":"IF('Encodage réponses Es'!AW29=\"\",\"\",'Encodage réponses Es'!AW29)","v":""},{"$f":"IF('Encodage réponses Es'!AX29=\"\",\"\",'Encodage réponses Es'!AX29)","v":""},{"$f":"IF('Encodage réponses Es'!AY29=\"\",\"\",'Encodage réponses Es'!AY29)","v":""},{"$f":"IF('Encodage réponses Es'!BH29=\"\",\"\",'Encodage réponses Es'!BH29)","v":""},{"$f":"IF('Encodage réponses Es'!BI29=\"\",\"\",'Encodage réponses Es'!BI29)","v":""},{"$f":"IF('Encodage réponses Es'!BK29=\"\",\"\",'Encodage réponses Es'!BK29)","v":""},{"$f":"IF('Encodage réponses Es'!AZ29=\"\",\"\",'Encodage réponses Es'!AZ29)","v":""},{"$f":"IF('Encodage réponses Es'!BA29=\"\",\"\",'Encodage réponses Es'!BA29)","v":""},{"$f":"IF('Encodage réponses Es'!BE29=\"\",\"\",'Encodage réponses Es'!BE29)","v":""},{"$f":"IF('Encodage réponses Es'!BF29=\"\",\"\",'Encodage réponses Es'!BF29)","v":""},{"$f":"IF(AND(COUNTBLANK(AY30:BQ30)>0,'Encodage réponses Es'!$BS29=\"!\"),\"Incomplet\",IF(OR(COUNTIF(AY30:BQ30,\"a\")>0,COUNTIF(AY30:BQ30,\"A\")>0),\"Absent(e)\",IF(COUNT(AY30:BQ30)=0,\"\",SUM(AY30:BQ30))))","v":""},{"$f":"IF('Encodage réponses Es'!AS29=\"\",\"\",'Encodage réponses Es'!AS29)","v":""},{"$f":"IF('Encodage réponses Es'!BO29=\"\",\"\",'Encodage réponses Es'!BO29)","v":""},{"$f":"IF('Encodage réponses Es'!BP29=\"\",\"\",'Encodage réponses Es'!BP29)","v":""},{"$f":"IF('Encodage réponses Es'!BQ29=\"\",\"\",'Encodage réponses Es'!BQ29)","v":""},{"$f":"IF('Encodage réponses Es'!BR29=\"\",\"\",'Encodage réponses Es'!BR29)","v":""},{"$f":"IF('Encodage réponses Es'!AN29=\"\",\"\",'Encodage réponses Es'!AN29)","v":""},{"$f":"IF('Encodage réponses Es'!AP29=\"\",\"\",'Encodage réponses Es'!AP29)","v":""},{"$f":"IF('Encodage réponses Es'!AT29=\"\",\"\",'Encodage réponses Es'!AT29)","v":""},{"$f":"IF('Encodage réponses Es'!AV29=\"\",\"\",'Encodage réponses Es'!AV29)","v":""},{"$f":"IF('Encodage réponses Es'!BG29=\"\",\"\",'Encodage réponses Es'!BG29)","v":""},{"$f":"IF('Encodage réponses Es'!AO29=\"\",\"\",'Encodage réponses Es'!AO29)","v":""},{"$f":"IF('Encodage réponses Es'!BJ29=\"\",\"\",'Encodage réponses Es'!BJ29)","v":""},{"$f":"IF(AND(COUNTBLANK(BS30:CD30)>0,'Encodage réponses Es'!$BS29=\"!\"),\"Incomplet\",IF(OR(COUNTIF(BS30:CD30,\"a\")>0,COUNTIF(BS30:CD30,\"A\")>0),\"Absent(e)\",IF(COUNT(BS30:CD30)=0,\"\",SUM(BS30:CD30))))","v":""}]
[{"$f":"IF('Encodage réponses Es'!A30=\"\",\"\",'Encodage réponses Es'!A30)","v":0},{"$f":"IF('Encodage réponses Es'!B30=\"\",\"\",'Encodage réponses Es'!B30)","v":0},{"$f":"IF('Encodage réponses Es'!C30=\"\",\"\",'Encodage réponses Es'!C30)","v":0},27,{"$f":"IF('Encodage réponses Es'!E30=\"\",\"\",'Encodage réponses Es'!E30)","v":""},{"$f":"IF('Encodage réponses Es'!F30=\"\",\"\",'Encodage réponses Es'!F30)","v":""},{"$f":"IF('Encodage réponses Es'!G30=\"\",\"\",'Encodage réponses Es'!G30)","v":""},{"$f":"IF('Encodage réponses Es'!I30=\"\",\"\",'Encodage réponses Es'!I30)","v":""},null,{"$f":"IF('Encodage réponses Es'!BS30=\"!\",\"Incomplet\",IF(AND(SUM('Encodage réponses Es'!J30:BR30)>=$J$4/2,'Encodage réponses Es'!BS30=\"a\"),SUM('Encodage réponses Es'!J30:BR30),IF(AND(SUM('Encodage réponses Es'!J30:BR30)<$J$4/2,'Encodage réponses Es'!BS30=\"a\"),\"Absent(e)\",IF(COUNTBLANK('Encodage réponses Es'!J30:BR30)=61,\"\",SUM('Encodage réponses Es'!J30:BR30)))))","v":""},"",null,"","","","",null,null,{"$f":"IF('Encodage réponses Es'!V30=\"\",\"\",'Encodage réponses Es'!V30)","v":""},{"$f":"IF('Encodage réponses Es'!Y30=\"\",\"\",'Encodage réponses Es'!Y30)","v":""},{"$f":"IF('Encodage réponses Es'!AF30=\"\",\"\",'Encodage réponses Es'!AF30)","v":""},{"$f":"IF('Encodage réponses Es'!K30=\"\",\"\",'Encodage réponses Es'!K30)","v":""},{"$f":"IF('Encodage réponses Es'!M30=\"\",\"\",'Encodage réponses Es'!M30)","v":""},{"$f":"IF('Encodage réponses Es'!N30=\"\",\"\",'Encodage réponses Es'!N30)","v":""},{"$f":"IF('Encodage réponses Es'!AB30=\"\",\"\",'Encodage réponses Es'!AB30)","v":""},{"$f":"IF('Encodage réponses Es'!Q30=\"\",\"\",'Encodage réponses Es'!Q30)","v":""},{"$f":"IF('Encodage réponses Es'!Z30=\"\",\"\",'Encodage réponses Es'!Z30)","v":""},{"$f":"IF('Encodage réponses Es'!AA30=\"\",\"\",'Encodage réponses Es'!AA30)","v":""},{"$f":"IF('Encodage réponses Es'!AC30=\"\",\"\",'Encodage réponses Es'!AC30)","v":""},{"$f":"IF('Encodage réponses Es'!AD30=\"\",\"\",'Encodage réponses Es'!AD30)","v":""},{"$f":"IF('Encodage réponses Es'!AE30=\"\",\"\",'Encodage réponses Es'!AE30)","v":""},{"$f":"IF('Encodage réponses Es'!AG30=\"\",\"\",'Encodage réponses Es'!AG30)","v":""},{"$f":"IF('Encodage réponses Es'!AJ30=\"\",\"\",'Encodage réponses Es'!AJ30)","v":""},{"$f":"IF('Encodage réponses Es'!T30=\"\",\"\",'Encodage réponses Es'!T30)","v":""},{"$f":"IF(AND(COUNTBLANK(S31:AH31)>0,'Encodage réponses Es'!$BS30=\"!\"),\"Incomplet\",IF(OR(COUNTIF(S31:AH31,\"a\")>0,COUNTIF(S31:AH31,\"A\")>0),\"Absent(e)\",IF(COUNT(S31:AH31)=0,\"\",SUM(S31:AH31))))","v":""},{"$f":"IF('Encodage réponses Es'!J30=\"\",\"\",'Encodage réponses Es'!J30)","v":""},{"$f":"IF('Encodage réponses Es'!S30=\"\",\"\",'Encodage réponses Es'!S30)","v":""},{"$f":"IF('Encodage réponses Es'!X30=\"\",\"\",'Encodage réponses Es'!X30)","v":""},{"$f":"IF('Encodage réponses Es'!AH30=\"\",\"\",'Encodage réponses Es'!AH30)","v":""},{"$f":"IF('Encodage réponses Es'!AL30=\"\",\"\",'Encodage réponses Es'!AL30)","v":""},{"$f":"IF('Encodage réponses Es'!AM30=\"\",\"\",'Encodage réponses Es'!AM30)","v":""},{"$f":"IF('Encodage réponses Es'!L30=\"\",\"\",'Encodage réponses Es'!L30)","v":""},{"$f":"IF('Encodage réponses Es'!O30=\"\",\"\",'Encodage réponses Es'!O30)","v":""},{"$f":"IF('Encodage réponses Es'!P30=\"\",\"\",'Encodage réponses Es'!P30)","v":""},{"$f":"IF('Encodage réponses Es'!U30=\"\",\"\",'Encodage réponses Es'!U30)","v":""},{"$f":"IF('Encodage réponses Es'!W30=\"\",\"\",'Encodage réponses Es'!W30)","v":""},{"$f":"IF('Encodage réponses Es'!R30=\"\",\"\",'Encodage réponses Es'!R30)","v":""},{"$f":"IF('Encodage réponses Es'!AI30=\"\",\"\",'Encodage réponses Es'!AI30)","v":""},{"$f":"IF('Encodage réponses Es'!AK30=\"\",\"\",'Encodage réponses Es'!AK30)","v":""},{"$f":"IF(AND(COUNTBLANK(AJ31:AW31)>0,'Encodage réponses Es'!$BS30=\"!\"),\"Incomplet\",IF(OR(COUNTIF(AJ31:AW31,\"a\")>0,COUNTIF(AJ31:AW31,\"A\")>0),\"Absent(e)\",IF(COUNT(AJ31:AW31)=0,\"\",SUM(AJ31:AW31))))","v":""},{"$f":"IF('Encodage réponses Es'!AU30=\"\",\"\",'Encodage réponses Es'!AU30)","v":""},{"$f":"IF('Encodage réponses Es'!BB30=\"\",\"\",'Encodage réponses Es'!BB30)","v":""},{"$f":"IF('Encodage réponses Es'!BC30=\"\",\"\",'Encodage réponses Es'!BC30)","v":""},{"$f":"IF('Encodage réponses Es'!BD30=\"\",\"\",'Encodage réponses Es'!BD30)","v":""},{"$f":"IF('Encodage réponses Es'!BL30=\"\",\"\",'Encodage réponses Es'!BL30)","v":""},{"$f":"IF('Encodage réponses Es'!BM30=\"\",\"\",'Encodage réponses Es'!BM30)","v":""},{"$f":"IF('Encodage réponses Es'!BN30=\"\",\"\",'Encodage réponses Es'!BN30)","v":""},{"$f":"IF('Encodage réponses Es'!AQ30=\"\",\"\",'Encodage réponses Es'!AQ30)","v":""},{"$f":"IF('Encodage réponses Es'!AR30=\"\",\"\",'Encodage réponses Es'!AR30)","v":""},{"$f":"IF('Encodage réponses Es'!AW30=\"\",\"\",'Encodage réponses Es'!AW30)","v":""},{"$f":"IF('Encodage réponses Es'!AX30=\"\",\"\",'Encodage réponses Es'!AX30)","v":""},{"$f":"IF('Encodage réponses Es'!AY30=\"\",\"\",'Encodage réponses Es'!AY30)","v":""},{"$f":"IF('Encodage réponses Es'!BH30=\"\",\"\",'Encodage réponses Es'!BH30)","v":""},{"$f":"IF('Encodage réponses Es'!BI30=\"\",\"\",'Encodage réponses Es'!BI30)","v":""},{"$f":"IF('Encodage réponses Es'!BK30=\"\",\"\",'Encodage réponses Es'!BK30)","v":""},{"$f":"IF('Encodage réponses Es'!AZ30=\"\",\"\",'Encodage réponses Es'!AZ30)","v":""},{"$f":"IF('Encodage réponses Es'!BA30=\"\",\"\",'Encodage réponses Es'!BA30)","v":""},{"$f":"IF('Encodage réponses Es'!BE30=\"\",\"\",'Encodage réponses Es'!BE30)","v":""},{"$f":"IF('Encodage réponses Es'!BF30=\"\",\"\",'Encodage réponses Es'!BF30)","v":""},{"$f":"IF(AND(COUNTBLANK(AY31:BQ31)>0,'Encodage réponses Es'!$BS30=\"!\"),\"Incomplet\",IF(OR(COUNTIF(AY31:BQ31,\"a\")>0,COUNTIF(AY31:BQ31,\"A\")>0),\"Absent(e)\",IF(COUNT(AY31:BQ31)=0,\"\",SUM(AY31:BQ31))))","v":""},{"$f":"IF('Encodage réponses Es'!AS30=\"\",\"\",'Encodage réponses Es'!AS30)","v":""},{"$f":"IF('Encodage réponses Es'!BO30=\"\",\"\",'Encodage réponses Es'!BO30)","v":""},{"$f":"IF('Encodage réponses Es'!BP30=\"\",\"\",'Encodage réponses Es'!BP30)","v":""},{"$f":"IF('Encodage réponses Es'!BQ30=\"\",\"\",'Encodage réponses Es'!BQ30)","v":""},{"$f":"IF('Encodage réponses Es'!BR30=\"\",\"\",'Encodage réponses Es'!BR30)","v":""},{"$f":"IF('Encodage réponses Es'!AN30=\"\",\"\",'Encodage réponses Es'!AN30)","v":""},{"$f":"IF('Encodage réponses Es'!AP30=\"\",\"\",'Encodage réponses Es'!AP30)","v":""},{"$f":"IF('Encodage réponses Es'!AT30=\"\",\"\",'Encodage réponses Es'!AT30)","v":""},{"$f":"IF('Encodage réponses Es'!AV30=\"\",\"\",'Encodage réponses Es'!AV30)","v":""},{"$f":"IF('Encodage réponses Es'!BG30=\"\",\"\",'Encodage réponses Es'!BG30)","v":""},{"$f":"IF('Encodage réponses Es'!AO30=\"\",\"\",'Encodage réponses Es'!AO30)","v":""},{"$f":"IF('Encodage réponses Es'!BJ30=\"\",\"\",'Encodage réponses Es'!BJ30)","v":""},{"$f":"IF(AND(COUNTBLANK(BS31:CD31)>0,'Encodage réponses Es'!$BS30=\"!\"),\"Incomplet\",IF(OR(COUNTIF(BS31:CD31,\"a\")>0,COUNTIF(BS31:CD31,\"A\")>0),\"Absent(e)\",IF(COUNT(BS31:CD31)=0,\"\",SUM(BS31:CD31))))","v":""}]
[{"$f":"IF('Encodage réponses Es'!A31=\"\",\"\",'Encodage réponses Es'!A31)","v":0},{"$f":"IF('Encodage réponses Es'!B31=\"\",\"\",'Encodage réponses Es'!B31)","v":0},{"$f":"IF('Encodage réponses Es'!C31=\"\",\"\",'Encodage réponses Es'!C31)","v":0},28,{"$f":"IF('Encodage réponses Es'!E31=\"\",\"\",'Encodage réponses Es'!E31)","v":""},{"$f":"IF('Encodage réponses Es'!F31=\"\",\"\",'Encodage réponses Es'!F31)","v":""},{"$f":"IF('Encodage réponses Es'!G31=\"\",\"\",'Encodage réponses Es'!G31)","v":""},{"$f":"IF('Encodage réponses Es'!I31=\"\",\"\",'Encodage réponses Es'!I31)","v":""},null,{"$f":"IF('Encodage réponses Es'!BS31=\"!\",\"Incomplet\",IF(AND(SUM('Encodage réponses Es'!J31:BR31)>=$J$4/2,'Encodage réponses Es'!BS31=\"a\"),SUM('Encodage réponses Es'!J31:BR31),IF(AND(SUM('Encodage réponses Es'!J31:BR31)<$J$4/2,'Encodage réponses Es'!BS31=\"a\"),\"Absent(e)\",IF(COUNTBLANK('Encodage réponses Es'!J31:BR31)=61,\"\",SUM('Encodage réponses Es'!J31:BR31)))))","v":""},"",null,"","","","",null,null,{"$f":"IF('Encodage réponses Es'!V31=\"\",\"\",'Encodage réponses Es'!V31)","v":""},{"$f":"IF('Encodage réponses Es'!Y31=\"\",\"\",'Encodage réponses Es'!Y31)","v":""},{"$f":"IF('Encodage réponses Es'!AF31=\"\",\"\",'Encodage réponses Es'!AF31)","v":""},{"$f":"IF('Encodage réponses Es'!K31=\"\",\"\",'Encodage réponses Es'!K31)","v":""},{"$f":"IF('Encodage réponses Es'!M31=\"\",\"\",'Encodage réponses Es'!M31)","v":""},{"$f":"IF('Encodage réponses Es'!N31=\"\",\"\",'Encodage réponses Es'!N31)","v":""},{"$f":"IF('Encodage réponses Es'!AB31=\"\",\"\",'Encodage réponses Es'!AB31)","v":""},{"$f":"IF('Encodage réponses Es'!Q31=\"\",\"\",'Encodage réponses Es'!Q31)","v":""},{"$f":"IF('Encodage réponses Es'!Z31=\"\",\"\",'Encodage réponses Es'!Z31)","v":""},{"$f":"IF('Encodage réponses Es'!AA31=\"\",\"\",'Encodage réponses Es'!AA31)","v":""},{"$f":"IF('Encodage réponses Es'!AC31=\"\",\"\",'Encodage réponses Es'!AC31)","v":""},{"$f":"IF('Encodage réponses Es'!AD31=\"\",\"\",'Encodage réponses Es'!AD31)","v":""},{"$f":"IF('Encodage réponses Es'!AE31=\"\",\"\",'Encodage réponses Es'!AE31)","v":""},{"$f":"IF('Encodage réponses Es'!AG31=\"\",\"\",'Encodage réponses Es'!AG31)","v":""},{"$f":"IF('Encodage réponses Es'!AJ31=\"\",\"\",'Encodage réponses Es'!AJ31)","v":""},{"$f":"IF('Encodage réponses Es'!T31=\"\",\"\",'Encodage réponses Es'!T31)","v":""},{"$f":"IF(AND(COUNTBLANK(S32:AH32)>0,'Encodage réponses Es'!$BS31=\"!\"),\"Incomplet\",IF(OR(COUNTIF(S32:AH32,\"a\")>0,COUNTIF(S32:AH32,\"A\")>0),\"Absent(e)\",IF(COUNT(S32:AH32)=0,\"\",SUM(S32:AH32))))","v":""},{"$f":"IF('Encodage réponses Es'!J31=\"\",\"\",'Encodage réponses Es'!J31)","v":""},{"$f":"IF('Encodage réponses Es'!S31=\"\",\"\",'Encodage réponses Es'!S31)","v":""},{"$f":"IF('Encodage réponses Es'!X31=\"\",\"\",'Encodage réponses Es'!X31)","v":""},{"$f":"IF('Encodage réponses Es'!AH31=\"\",\"\",'Encodage réponses Es'!AH31)","v":""},{"$f":"IF('Encodage réponses Es'!AL31=\"\",\"\",'Encodage réponses Es'!AL31)","v":""},{"$f":"IF('Encodage réponses Es'!AM31=\"\",\"\",'Encodage réponses Es'!AM31)","v":""},{"$f":"IF('Encodage réponses Es'!L31=\"\",\"\",'Encodage réponses Es'!L31)","v":""},{"$f":"IF('Encodage réponses Es'!O31=\"\",\"\",'Encodage réponses Es'!O31)","v":""},{"$f":"IF('Encodage réponses Es'!P31=\"\",\"\",'Encodage réponses Es'!P31)","v":""},{"$f":"IF('Encodage réponses Es'!U31=\"\",\"\",'Encodage réponses Es'!U31)","v":""},{"$f":"IF('Encodage réponses Es'!W31=\"\",\"\",'Encodage réponses Es'!W31)","v":""},{"$f":"IF('Encodage réponses Es'!R31=\"\",\"\",'Encodage réponses Es'!R31)","v":""},{"$f":"IF('Encodage réponses Es'!AI31=\"\",\"\",'Encodage réponses Es'!AI31)","v":""},{"$f":"IF('Encodage réponses Es'!AK31=\"\",\"\",'Encodage réponses Es'!AK31)","v":""},{"$f":"IF(AND(COUNTBLANK(AJ32:AW32)>0,'Encodage réponses Es'!$BS31=\"!\"),\"Incomplet\",IF(OR(COUNTIF(AJ32:AW32,\"a\")>0,COUNTIF(AJ32:AW32,\"A\")>0),\"Absent(e)\",IF(COUNT(AJ32:AW32)=0,\"\",SUM(AJ32:AW32))))","v":""},{"$f":"IF('Encodage réponses Es'!AU31=\"\",\"\",'Encodage réponses Es'!AU31)","v":""},{"$f":"IF('Encodage réponses Es'!BB31=\"\",\"\",'Encodage réponses Es'!BB31)","v":""},{"$f":"IF('Encodage réponses Es'!BC31=\"\",\"\",'Encodage réponses Es'!BC31)","v":""},{"$f":"IF('Encodage réponses Es'!BD31=\"\",\"\",'Encodage réponses Es'!BD31)","v":""},{"$f":"IF('Encodage réponses Es'!BL31=\"\",\"\",'Encodage réponses Es'!BL31)","v":""},{"$f":"IF('Encodage réponses Es'!BM31=\"\",\"\",'Encodage réponses Es'!BM31)","v":""},{"$f":"IF('Encodage réponses Es'!BN31=\"\",\"\",'Encodage réponses Es'!BN31)","v":""},{"$f":"IF('Encodage réponses Es'!AQ31=\"\",\"\",'Encodage réponses Es'!AQ31)","v":""},{"$f":"IF('Encodage réponses Es'!AR31=\"\",\"\",'Encodage réponses Es'!AR31)","v":""},{"$f":"IF('Encodage réponses Es'!AW31=\"\",\"\",'Encodage réponses Es'!AW31)","v":""},{"$f":"IF('Encodage réponses Es'!AX31=\"\",\"\",'Encodage réponses Es'!AX31)","v":""},{"$f":"IF('Encodage réponses Es'!AY31=\"\",\"\",'Encodage réponses Es'!AY31)","v":""},{"$f":"IF('Encodage réponses Es'!BH31=\"\",\"\",'Encodage réponses Es'!BH31)","v":""},{"$f":"IF('Encodage réponses Es'!BI31=\"\",\"\",'Encodage réponses Es'!BI31)","v":""},{"$f":"IF('Encodage réponses Es'!BK31=\"\",\"\",'Encodage réponses Es'!BK31)","v":""},{"$f":"IF('Encodage réponses Es'!AZ31=\"\",\"\",'Encodage réponses Es'!AZ31)","v":""},{"$f":"IF('Encodage réponses Es'!BA31=\"\",\"\",'Encodage réponses Es'!BA31)","v":""},{"$f":"IF('Encodage réponses Es'!BE31=\"\",\"\",'Encodage réponses Es'!BE31)","v":""},{"$f":"IF('Encodage réponses Es'!BF31=\"\",\"\",'Encodage réponses Es'!BF31)","v":""},{"$f":"IF(AND(COUNTBLANK(AY32:BQ32)>0,'Encodage réponses Es'!$BS31=\"!\"),\"Incomplet\",IF(OR(COUNTIF(AY32:BQ32,\"a\")>0,COUNTIF(AY32:BQ32,\"A\")>0),\"Absent(e)\",IF(COUNT(AY32:BQ32)=0,\"\",SUM(AY32:BQ32))))","v":""},{"$f":"IF('Encodage réponses Es'!AS31=\"\",\"\",'Encodage réponses Es'!AS31)","v":""},{"$f":"IF('Encodage réponses Es'!BO31=\"\",\"\",'Encodage réponses Es'!BO31)","v":""},{"$f":"IF('Encodage réponses Es'!BP31=\"\",\"\",'Encodage réponses Es'!BP31)","v":""},{"$f":"IF('Encodage réponses Es'!BQ31=\"\",\"\",'Encodage réponses Es'!BQ31)","v":""},{"$f":"IF('Encodage réponses Es'!BR31=\"\",\"\",'Encodage réponses Es'!BR31)","v":""},{"$f":"IF('Encodage réponses Es'!AN31=\"\",\"\",'Encodage réponses Es'!AN31)","v":""},{"$f":"IF('Encodage réponses Es'!AP31=\"\",\"\",'Encodage réponses Es'!AP31)","v":""},{"$f":"IF('Encodage réponses Es'!AT31=\"\",\"\",'Encodage réponses Es'!AT31)","v":""},{"$f":"IF('Encodage réponses Es'!AV31=\"\",\"\",'Encodage réponses Es'!AV31)","v":""},{"$f":"IF('Encodage réponses Es'!BG31=\"\",\"\",'Encodage réponses Es'!BG31)","v":""},{"$f":"IF('Encodage réponses Es'!AO31=\"\",\"\",'Encodage réponses Es'!AO31)","v":""},{"$f":"IF('Encodage réponses Es'!BJ31=\"\",\"\",'Encodage réponses Es'!BJ31)","v":""},{"$f":"IF(AND(COUNTBLANK(BS32:CD32)>0,'Encodage réponses Es'!$BS31=\"!\"),\"Incomplet\",IF(OR(COUNTIF(BS32:CD32,\"a\")>0,COUNTIF(BS32:CD32,\"A\")>0),\"Absent(e)\",IF(COUNT(BS32:CD32)=0,\"\",SUM(BS32:CD32))))","v":""}]
[{"$f":"IF('Encodage réponses Es'!A32=\"\",\"\",'Encodage réponses Es'!A32)","v":0},{"$f":"IF('Encodage réponses Es'!B32=\"\",\"\",'Encodage réponses Es'!B32)","v":0},{"$f":"IF('Encodage réponses Es'!C32=\"\",\"\",'Encodage réponses Es'!C32)","v":0},29,{"$f":"IF('Encodage réponses Es'!E32=\"\",\"\",'Encodage réponses Es'!E32)","v":""},{"$f":"IF('Encodage réponses Es'!F32=\"\",\"\",'Encodage réponses Es'!F32)","v":""},{"$f":"IF('Encodage réponses Es'!G32=\"\",\"\",'Encodage réponses Es'!G32)","v":""},{"$f":"IF('Encodage réponses Es'!I32=\"\",\"\",'Encodage réponses Es'!I32)","v":""},null,{"$f":"IF('Encodage réponses Es'!BS32=\"!\",\"Incomplet\",IF(AND(SUM('Encodage réponses Es'!J32:BR32)>=$J$4/2,'Encodage réponses Es'!BS32=\"a\"),SUM('Encodage réponses Es'!J32:BR32),IF(AND(SUM('Encodage réponses Es'!J32:BR32)<$J$4/2,'Encodage réponses Es'!BS32=\"a\"),\"Absent(e)\",IF(COUNTBLANK('Encodage réponses Es'!J32:BR32)=61,\"\",SUM('Encodage réponses Es'!J32:BR32)))))","v":""},"",null,"","","","",null,null,{"$f":"IF('Encodage réponses Es'!V32=\"\",\"\",'Encodage réponses Es'!V32)","v":""},{"$f":"IF('Encodage réponses Es'!Y32=\"\",\"\",'Encodage réponses Es'!Y32)","v":""},{"$f":"IF('Encodage réponses Es'!AF32=\"\",\"\",'Encodage réponses Es'!AF32)","v":""},{"$f":"IF('Encodage réponses Es'!K32=\"\",\"\",'Encodage réponses Es'!K32)","v":""},{"$f":"IF('Encodage réponses Es'!M32=\"\",\"\",'Encodage réponses Es'!M32)","v":""},{"$f":"IF('Encodage réponses Es'!N32=\"\",\"\",'Encodage réponses Es'!N32)","v":""},{"$f":"IF('Encodage réponses Es'!AB32=\"\",\"\",'Encodage réponses Es'!AB32)","v":""},{"$f":"IF('Encodage réponses Es'!Q32=\"\",\"\",'Encodage réponses Es'!Q32)","v":""},{"$f":"IF('Encodage réponses Es'!Z32=\"\",\"\",'Encodage réponses Es'!Z32)","v":""},{"$f":"IF('Encodage réponses Es'!AA32=\"\",\"\",'Encodage réponses Es'!AA32)","v":""},{"$f":"IF('Encodage réponses Es'!AC32=\"\",\"\",'Encodage réponses Es'!AC32)","v":""},{"$f":"IF('Encodage réponses Es'!AD32=\"\",\"\",'Encodage réponses Es'!AD32)","v":""},{"$f":"IF('Encodage réponses Es'!AE32=\"\",\"\",'Encodage réponses Es'!AE32)","v":""},{"$f":"IF('Encodage réponses Es'!AG32=\"\",\"\",'Encodage réponses Es'!AG32)","v":""},{"$f":"IF('Encodage réponses Es'!AJ32=\"\",\"\",'Encodage réponses Es'!AJ32)","v":""},{"$f":"IF('Encodage réponses Es'!T32=\"\",\"\",'Encodage réponses Es'!T32)","v":""},{"$f":"IF(AND(COUNTBLANK(S33:AH33)>0,'Encodage réponses Es'!$BS32=\"!\"),\"Incomplet\",IF(OR(COUNTIF(S33:AH33,\"a\")>0,COUNTIF(S33:AH33,\"A\")>0),\"Absent(e)\",IF(COUNT(S33:AH33)=0,\"\",SUM(S33:AH33))))","v":""},{"$f":"IF('Encodage réponses Es'!J32=\"\",\"\",'Encodage réponses Es'!J32)","v":""},{"$f":"IF('Encodage réponses Es'!S32=\"\",\"\",'Encodage réponses Es'!S32)","v":""},{"$f":"IF('Encodage réponses Es'!X32=\"\",\"\",'Encodage réponses Es'!X32)","v":""},{"$f":"IF('Encodage réponses Es'!AH32=\"\",\"\",'Encodage réponses Es'!AH32)","v":""},{"$f":"IF('Encodage réponses Es'!AL32=\"\",\"\",'Encodage réponses Es'!AL32)","v":""},{"$f":"IF('Encodage réponses Es'!AM32=\"\",\"\",'Encodage réponses Es'!AM32)","v":""},{"$f":"IF('Encodage réponses Es'!L32=\"\",\"\",'Encodage réponses Es'!L32)","v":""},{"$f":"IF('Encodage réponses Es'!O32=\"\",\"\",'Encodage réponses Es'!O32)","v":""},{"$f":"IF('Encodage réponses Es'!P32=\"\",\"\",'Encodage réponses Es'!P32)","v":""},{"$f":"IF('Encodage réponses Es'!U32=\"\",\"\",'Encodage réponses Es'!U32)","v":""},{"$f":"IF('Encodage réponses Es'!W32=\"\",\"\",'Encodage réponses Es'!W32)","v":""},{"$f":"IF('Encodage réponses Es'!R32=\"\",\"\",'Encodage réponses Es'!R32)","v":""},{"$f":"IF('Encodage réponses Es'!AI32=\"\",\"\",'Encodage réponses Es'!AI32)","v":""},{"$f":"IF('Encodage réponses Es'!AK32=\"\",\"\",'Encodage réponses Es'!AK32)","v":""},{"$f":"IF(AND(COUNTBLANK(AJ33:AW33)>0,'Encodage réponses Es'!$BS32=\"!\"),\"Incomplet\",IF(OR(COUNTIF(AJ33:AW33,\"a\")>0,COUNTIF(AJ33:AW33,\"A\")>0),\"Absent(e)\",IF(COUNT(AJ33:AW33)=0,\"\",SUM(AJ33:AW33))))","v":""},{"$f":"IF('Encodage réponses Es'!AU32=\"\",\"\",'Encodage réponses Es'!AU32)","v":""},{"$f":"IF('Encodage réponses Es'!BB32=\"\",\"\",'Encodage réponses Es'!BB32)","v":""},{"$f":"IF('Encodage réponses Es'!BC32=\"\",\"\",'Encodage réponses Es'!BC32)","v":""},{"$f":"IF('Encodage réponses Es'!BD32=\"\",\"\",'Encodage réponses Es'!BD32)","v":""},{"$f":"IF('Encodage réponses Es'!BL32=\"\",\"\",'Encodage réponses Es'!BL32)","v":""},{"$f":"IF('Encodage réponses Es'!BM32=\"\",\"\",'Encodage réponses Es'!BM32)","v":""},{"$f":"IF('Encodage réponses Es'!BN32=\"\",\"\",'Encodage réponses Es'!BN32)","v":""},{"$f":"IF('Encodage réponses Es'!AQ32=\"\",\"\",'Encodage réponses Es'!AQ32)","v":""},{"$f":"IF('Encodage réponses Es'!AR32=\"\",\"\",'Encodage réponses Es'!AR32)","v":""},{"$f":"IF('Encodage réponses Es'!AW32=\"\",\"\",'Encodage réponses Es'!AW32)","v":""},{"$f":"IF('Encodage réponses Es'!AX32=\"\",\"\",'Encodage réponses Es'!AX32)","v":""},{"$f":"IF('Encodage réponses Es'!AY32=\"\",\"\",'Encodage réponses Es'!AY32)","v":""},{"$f":"IF('Encodage réponses Es'!BH32=\"\",\"\",'Encodage réponses Es'!BH32)","v":""},{"$f":"IF('Encodage réponses Es'!BI32=\"\",\"\",'Encodage réponses Es'!BI32)","v":""},{"$f":"IF('Encodage réponses Es'!BK32=\"\",\"\",'Encodage réponses Es'!BK32)","v":""},{"$f":"IF('Encodage réponses Es'!AZ32=\"\",\"\",'Encodage réponses Es'!AZ32)","v":""},{"$f":"IF('Encodage réponses Es'!BA32=\"\",\"\",'Encodage réponses Es'!BA32)","v":""},{"$f":"IF('Encodage réponses Es'!BE32=\"\",\"\",'Encodage réponses Es'!BE32)","v":""},{"$f":"IF('Encodage réponses Es'!BF32=\"\",\"\",'Encodage réponses Es'!BF32)","v":""},{"$f":"IF(AND(COUNTBLANK(AY33:BQ33)>0,'Encodage réponses Es'!$BS32=\"!\"),\"Incomplet\",IF(OR(COUNTIF(AY33:BQ33,\"a\")>0,COUNTIF(AY33:BQ33,\"A\")>0),\"Absent(e)\",IF(COUNT(AY33:BQ33)=0,\"\",SUM(AY33:BQ33))))","v":""},{"$f":"IF('Encodage réponses Es'!AS32=\"\",\"\",'Encodage réponses Es'!AS32)","v":""},{"$f":"IF('Encodage réponses Es'!BO32=\"\",\"\",'Encodage réponses Es'!BO32)","v":""},{"$f":"IF('Encodage réponses Es'!BP32=\"\",\"\",'Encodage réponses Es'!BP32)","v":""},{"$f":"IF('Encodage réponses Es'!BQ32=\"\",\"\",'Encodage réponses Es'!BQ32)","v":""},{"$f":"IF('Encodage réponses Es'!BR32=\"\",\"\",'Encodage réponses Es'!BR32)","v":""},{"$f":"IF('Encodage réponses Es'!AN32=\"\",\"\",'Encodage réponses Es'!AN32)","v":""},{"$f":"IF('Encodage réponses Es'!AP32=\"\",\"\",'Encodage réponses Es'!AP32)","v":""},{"$f":"IF('Encodage réponses Es'!AT32=\"\",\"\",'Encodage réponses Es'!AT32)","v":""},{"$f":"IF('Encodage réponses Es'!AV32=\"\",\"\",'Encodage réponses Es'!AV32)","v":""},{"$f":"IF('Encodage réponses Es'!BG32=\"\",\"\",'Encodage réponses Es'!BG32)","v":""},{"$f":"IF('Encodage réponses Es'!AO32=\"\",\"\",'Encodage réponses Es'!AO32)","v":""},{"$f":"IF('Encodage réponses Es'!BJ32=\"\",\"\",'Encodage réponses Es'!BJ32)","v":""},{"$f":"IF(AND(COUNTBLANK(BS33:CD33)>0,'Encodage réponses Es'!$BS32=\"!\"),\"Incomplet\",IF(OR(COUNTIF(BS33:CD33,\"a\")>0,COUNTIF(BS33:CD33,\"A\")>0),\"Absent(e)\",IF(COUNT(BS33:CD33)=0,\"\",SUM(BS33:CD33))))","v":""}]
[{"$f":"IF('Encodage réponses Es'!A33=\"\",\"\",'Encodage réponses Es'!A33)","v":0},{"$f":"IF('Encodage réponses Es'!B33=\"\",\"\",'Encodage réponses Es'!B33)","v":0},{"$f":"IF('Encodage réponses Es'!C33=\"\",\"\",'Encodage réponses Es'!C33)","v":0},30,{"$f":"IF('Encodage réponses Es'!E33=\"\",\"\",'Encodage réponses Es'!E33)","v":""},{"$f":"IF('Encodage réponses Es'!F33=\"\",\"\",'Encodage réponses Es'!F33)","v":""},{"$f":"IF('Encodage réponses Es'!G33=\"\",\"\",'Encodage réponses Es'!G33)","v":""},{"$f":"IF('Encodage réponses Es'!I33=\"\",\"\",'Encodage réponses Es'!I33)","v":""},null,{"$f":"IF('Encodage réponses Es'!BS33=\"!\",\"Incomplet\",IF(AND(SUM('Encodage réponses Es'!J33:BR33)>=$J$4/2,'Encodage réponses Es'!BS33=\"a\"),SUM('Encodage réponses Es'!J33:BR33),IF(AND(SUM('Encodage réponses Es'!J33:BR33)<$J$4/2,'Encodage réponses Es'!BS33=\"a\"),\"Absent(e)\",IF(COUNTBLANK('Encodage réponses Es'!J33:BR33)=61,\"\",SUM('Encodage réponses Es'!J33:BR33)))))","v":""},"",null,"","","","",null,null,{"$f":"IF('Encodage réponses Es'!V33=\"\",\"\",'Encodage réponses Es'!V33)","v":""},{"$f":"IF('Encodage réponses Es'!Y33=\"\",\"\",'Encodage réponses Es'!Y33)","v":""},{"$f":"IF('Encodage réponses Es'!AF33=\"\",\"\",'Encodage réponses Es'!AF33)","v":""},{"$f":"IF('Encodage réponses Es'!K33=\"\",\"\",'Encodage réponses Es'!K33)","v":""},{"$f":"IF('Encodage réponses Es'!M33=\"\",\"\",'Encodage réponses Es'!M33)","v":""},{"$f":"IF('Encodage réponses Es'!N33=\"\",\"\",'Encodage réponses Es'!N33)","v":""},{"$f":"IF('Encodage réponses Es'!AB33=\"\",\"\",'Encodage réponses Es'!AB33)","v":""},{"$f":"IF('Encodage réponses Es'!Q33=\"\",\"\",'Encodage réponses Es'!Q33)","v":""},{"$f":"IF('Encodage réponses Es'!Z33=\"\",\"\",'Encodage réponses Es'!Z33)","v":""},{"$f":"IF('Encodage réponses Es'!AA33=\"\",\"\",'Encodage réponses Es'!AA33)","v":""},{"$f":"IF('Encodage réponses Es'!AC33=\"\",\"\",'Encodage réponses Es'!AC33)","v":""},{"$f":"IF('Encodage réponses Es'!AD33=\"\",\"\",'Encodage réponses Es'!AD33)","v":""},{"$f":"IF('Encodage réponses Es'!AE33=\"\",\"\",'Encodage réponses Es'!AE33)","v":""},{"$f":"IF('Encodage réponses Es'!AG33=\"\",\"\",'Encodage réponses Es'!AG33)","v":""},{"$f":"IF('Encodage réponses Es'!AJ33=\"\",\"\",'Encodage réponses Es'!AJ33)","v":""},{"$f":"IF('Encodage réponses Es'!T33=\"\",\"\",'Encodage réponses Es'!T33)","v":""},{"$f":"IF(AND(COUNTBLANK(S34:AH34)>0,'Encodage réponses Es'!$BS33=\"!\"),\"Incomplet\",IF(OR(COUNTIF(S34:AH34,\"a\")>0,COUNTIF(S34:AH34,\"A\")>0),\"Absent(e)\",IF(COUNT(S34:AH34)=0,\"\",SUM(S34:AH34))))","v":""},{"$f":"IF('Encodage réponses Es'!J33=\"\",\"\",'Encodage réponses Es'!J33)","v":""},{"$f":"IF('Encodage réponses Es'!S33=\"\",\"\",'Encodage réponses Es'!S33)","v":""},{"$f":"IF('Encodage réponses Es'!X33=\"\",\"\",'Encodage réponses Es'!X33)","v":""},{"$f":"IF('Encodage réponses Es'!AH33=\"\",\"\",'Encodage réponses Es'!AH33)","v":""},{"$f":"IF('Encodage réponses Es'!AL33=\"\",\"\",'Encodage réponses Es'!AL33)","v":""},{"$f":"IF('Encodage réponses Es'!AM33=\"\",\"\",'Encodage réponses Es'!AM33)","v":""},{"$f":"IF('Encodage réponses Es'!L33=\"\",\"\",'Encodage réponses Es'!L33)","v":""},{"$f":"IF('Encodage réponses Es'!O33=\"\",\"\",'Encodage réponses Es'!O33)","v":""},{"$f":"IF('Encodage réponses Es'!P33=\"\",\"\",'Encodage réponses Es'!P33)","v":""},{"$f":"IF('Encodage réponses Es'!U33=\"\",\"\",'Encodage réponses Es'!U33)","v":""},{"$f":"IF('Encodage réponses Es'!W33=\"\",\"\",'Encodage réponses Es'!W33)","v":""},{"$f":"IF('Encodage réponses Es'!R33=\"\",\"\",'Encodage réponses Es'!R33)","v":""},{"$f":"IF('Encodage réponses Es'!AI33=\"\",\"\",'Encodage réponses Es'!AI33)","v":""},{"$f":"IF('Encodage réponses Es'!AK33=\"\",\"\",'Encodage réponses Es'!AK33)","v":""},{"$f":"IF(AND(COUNTBLANK(AJ34:AW34)>0,'Encodage réponses Es'!$BS33=\"!\"),\"Incomplet\",IF(OR(COUNTIF(AJ34:AW34,\"a\")>0,COUNTIF(AJ34:AW34,\"A\")>0),\"Absent(e)\",IF(COUNT(AJ34:AW34)=0,\"\",SUM(AJ34:AW34))))","v":""},{"$f":"IF('Encodage réponses Es'!AU33=\"\",\"\",'Encodage réponses Es'!AU33)","v":""},{"$f":"IF('Encodage réponses Es'!BB33=\"\",\"\",'Encodage réponses Es'!BB33)","v":""},{"$f":"IF('Encodage réponses Es'!BC33=\"\",\"\",'Encodage réponses Es'!BC33)","v":""},{"$f":"IF('Encodage réponses Es'!BD33=\"\",\"\",'Encodage réponses Es'!BD33)","v":""},{"$f":"IF('Encodage réponses Es'!BL33=\"\",\"\",'Encodage réponses Es'!BL33)","v":""},{"$f":"IF('Encodage réponses Es'!BM33=\"\",\"\",'Encodage réponses Es'!BM33)","v":""},{"$f":"IF('Encodage réponses Es'!BN33=\"\",\"\",'Encodage réponses Es'!BN33)","v":""},{"$f":"IF('Encodage réponses Es'!AQ33=\"\",\"\",'Encodage réponses Es'!AQ33)","v":""},{"$f":"IF('Encodage réponses Es'!AR33=\"\",\"\",'Encodage réponses Es'!AR33)","v":""},{"$f":"IF('Encodage réponses Es'!AW33=\"\",\"\",'Encodage réponses Es'!AW33)","v":""},{"$f":"IF('Encodage réponses Es'!AX33=\"\",\"\",'Encodage réponses Es'!AX33)","v":""},{"$f":"IF('Encodage réponses Es'!AY33=\"\",\"\",'Encodage réponses Es'!AY33)","v":""},{"$f":"IF('Encodage réponses Es'!BH33=\"\",\"\",'Encodage réponses Es'!BH33)","v":""},{"$f":"IF('Encodage réponses Es'!BI33=\"\",\"\",'Encodage réponses Es'!BI33)","v":""},{"$f":"IF('Encodage réponses Es'!BK33=\"\",\"\",'Encodage réponses Es'!BK33)","v":""},{"$f":"IF('Encodage réponses Es'!AZ33=\"\",\"\",'Encodage réponses Es'!AZ33)","v":""},{"$f":"IF('Encodage réponses Es'!BA33=\"\",\"\",'Encodage réponses Es'!BA33)","v":""},{"$f":"IF('Encodage réponses Es'!BE33=\"\",\"\",'Encodage réponses Es'!BE33)","v":""},{"$f":"IF('Encodage réponses Es'!BF33=\"\",\"\",'Encodage réponses Es'!BF33)","v":""},{"$f":"IF(AND(COUNTBLANK(AY34:BQ34)>0,'Encodage réponses Es'!$BS33=\"!\"),\"Incomplet\",IF(OR(COUNTIF(AY34:BQ34,\"a\")>0,COUNTIF(AY34:BQ34,\"A\")>0),\"Absent(e)\",IF(COUNT(AY34:BQ34)=0,\"\",SUM(AY34:BQ34))))","v":""},{"$f":"IF('Encodage réponses Es'!AS33=\"\",\"\",'Encodage réponses Es'!AS33)","v":""},{"$f":"IF('Encodage réponses Es'!BO33=\"\",\"\",'Encodage réponses Es'!BO33)","v":""},{"$f":"IF('Encodage réponses Es'!BP33=\"\",\"\",'Encodage réponses Es'!BP33)","v":""},{"$f":"IF('Encodage réponses Es'!BQ33=\"\",\"\",'Encodage réponses Es'!BQ33)","v":""},{"$f":"IF('Encodage réponses Es'!BR33=\"\",\"\",'Encodage réponses Es'!BR33)","v":""},{"$f":"IF('Encodage réponses Es'!AN33=\"\",\"\",'Encodage réponses Es'!AN33)","v":""},{"$f":"IF('Encodage réponses Es'!AP33=\"\",\"\",'Encodage réponses Es'!AP33)","v":""},{"$f":"IF('Encodage réponses Es'!AT33=\"\",\"\",'Encodage réponses Es'!AT33)","v":""},{"$f":"IF('Encodage réponses Es'!AV33=\"\",\"\",'Encodage réponses Es'!AV33)","v":""},{"$f":"IF('Encodage réponses Es'!BG33=\"\",\"\",'Encodage réponses Es'!BG33)","v":""},{"$f":"IF('Encodage réponses Es'!AO33=\"\",\"\",'Encodage réponses Es'!AO33)","v":""},{"$f":"IF('Encodage réponses Es'!BJ33=\"\",\"\",'Encodage réponses Es'!BJ33)","v":""},{"$f":"IF(AND(COUNTBLANK(BS34:CD34)>0,'Encodage réponses Es'!$BS33=\"!\"),\"Incomplet\",IF(OR(COUNTIF(BS34:CD34,\"a\")>0,COUNTIF(BS34:CD34,\"A\")>0),\"Absent(e)\",IF(COUNT(BS34:CD34)=0,\"\",SUM(BS34:CD34))))","v":""}]
[null,null,null,null,null,null,null,null,null,null,null,null,null,null,null,null,null,null,null,null,null,null,null,null,null,null,null,null,null,null,null,null,null,null,null,null,null,null,null,null,null,null,null,null,null,null,null,null,null,null,null,null,null,null,null,null,null,null,null,null,null,null,null,null,null,null,null,null,null,null,null,null,null,null,null,null,null,null,null,null,null,null,{"$f":"IF(AND(COUNTBLANK('Encodage réponses Es'!AQ34:AS34)>0,'Encodage réponses Es'!$BS34=\"!\"),\"Incomplet\",IF(OR(COUNTIF(BS35:CD35,\"a\")>0,COUNTIF(BS35:CD35,\"A\")>0),\"Absent(e)\",IF(COUNT(BS35:CD35)=0,\"\",SUM(BS35:CD35))))","v":""}]
[null,null,null,null,null,null,null,null,null,{"$f":"COUNT(J5:J34)-COUNTIF($J$5:$J$34,\"Absent\")","v":0},"Participants",null,{"$f":"COUNT(M5:M34)-COUNTIF($J$5:$J$34,\"Absent\")","v":0},"Participants",{"$f":"COUNT(O5:O34)-COUNTIF($J$5:$J$34,\"Absent\")","v":0},"Participants",null,null,{"$f":"IF(COUNT(S5:S34)=0,\"\",SUMIF(S5:S34,\"<9\")/(COUNT(S5:S34)*S4))","v":""},"","","","","","","","","","","","","","","",{"$f":"IF(COUNT(AI5:AI34)=0,\"\",AVERAGE(AI5:AI34)/AI2)","v":""},"","","","","","","","","","","","","","",{"$f":"IF(COUNT(AX5:AX34)=0,\"\",AVERAGE(AX5:AX34)/AX2)","v":""},{"$f":"IF(COUNT(AY5:AY34)=0,\"\",SUMIF(AY5:AY34,\"<9\")/(COUNT(AY5:AY34)*AY4))","v":""},"","","","","","","","","","","","","","","","","","",{"$f":"IF(COUNT(BR5:BR34)=0,\"\",AVERAGE(BR5:BR34)/BR2)","v":""},"","","","","","","","","","","","",{"$f":"IF(COUNT(CE5:CE34)=0,\"\",AVERAGE(CE5:CE34)/CE2)","v":""}]
[null,null,null,null,null,null,null,null,null,"Moyenne",{"$f":"IF(J36=0,\"\",AVERAGE(K5:K34))","v":""},null,"Moyenne",{"$f":"IF(M36=0,\"\",AVERAGE(N5:N34))","v":""},"Moyenne",{"$f":"IF(O36=0,\"\",AVERAGE(P5:P34))","v":""}]
["Légende"]
[]
[null,null,null,null,null,null,null,null,null,"0/9",{"$f":"COUNTIF(K$5:K$34,\"<9,5%\")","v":0},null,"0/9",{"$f":"COUNTIF(N$5:N$34,\"<9,5%\")","v":0},"0/9",{"$f":"COUNTIF(P$5:P$34,\"<9,5%\")","v":0}]
["Incomplet",null,"Au moins un encodage (Encodage réponses Es) est manquant.",null,null,null,null,null,null,"10/19",{"$f":"COUNTIF(K$5:K$34,\"<19,5%\")-K40","v":0},null,"10/19",{"$f":"COUNTIF(N$5:N$34,\"<19,5%\")-N40","v":0},"10/19",{"$f":"COUNTIF(P$5:P$34,\"<19,5%\")-P40","v":0}]
[null,null,null,null,null,null,null,null,null,"20/29",{"$f":"COUNTIF(K$5:K$34,\"<29,5%\")-SUM(K40:K41)","v":0},null,"20/29",{"$f":"COUNTIF(N$5:N$34,\"<29,5%\")-SUM(N40:N41)","v":0},"20/29",{"$f":"COUNTIF(P$5:P$34,\"<29,5%\")-SUM(P40:P41)","v":0}]
[null,null,null,null,null,null,null,null,null,"30/39",{"$f":"COUNTIF(K$5:K$34,\"<39,5%\")-SUM(K40:K42)","v":0},null,"30/39",{"$f":"COUNTIF(N$5:N$34,\"<39,5%\")-SUM(N40:N42)","v":0},"30/39",{"$f":"COUNTIF(P$5:P$34,\"<39,5%\")-SUM(P40:P42)","v":0}]
[0.72,null,"Élèves qui ont réussi même en n'ayant pas présenté toute l'épreuve.",null,null,null,null,null,null,"40/49",{"$f":"COUNTIF(K$5:K$34,\"<49,5%\")-SUM(K40:K43)","v":0},null,"40/49",{"$f":"COUNTIF(N$5:N$34,\"<49,5%\")-SUM(N40:N43)","v":0},"40/49",{"$f":"COUNTIF(P$5:P$34,\"<49,5%\")-SUM(P40:P43)","v":0}]
[null,null,null,null,null,null,null,null,null,"50/59",{"$f":"COUNTIF(K$2:K$34,\"<59,5%\")-SUM(K40:K44)","v":0},null,"50/59",{"$f":"COUNTIF(N$2:N$34,\"<59,5%\")-SUM(N40:N44)","v":0},"50/59",{"$f":"COUNTIF(P$2:P$34,\"<59,5%\")-SUM(P40:P44)","v":0}]
[null,null,null,null,null,null,null,null,null,"60/69",{"$f":"COUNTIF(K$5:K$34,\"<69,5%\")-SUM(K40:K45)","v":0},null,"60/69",{"$f":"COUNTIF(N$5:N$34,\"<69,5%\")-SUM(N40:N45)","v":0},"60/69",{"$f":"COUNTIF(P$5:P$34,\"<69,5%\")-SUM(P40:P45)","v":0}]
["Absent(e)",null,"Élèves absents à la totalité de l'épreuve ou qui ont raté l'épreuve car ils n'ont pas présenté une partie de celle-ci.",null,null,null,null,null,null,"70/79",{"$f":"COUNTIF(K$5:K$34,\"<79,5%\")-SUM(K40:K46)","v":0},null,"70/79",{"$f":"COUNTIF(N$5:N$34,\"<79,5%\")-SUM(N40:N46)","v":0},"70/79",{"$f":"COUNTIF(P$5:P$34,\"<79,5%\")-SUM(P40:P46)","v":0}]
[null,null,null,null,null,null,null,null,null,"80/89",{"$f":"COUNTIF(K$5:K$34,\"<89,5%\")-SUM(K40:K47)","v":0},null,"80/89",{"$f":"COUNTIF(N$5:N$34,\"<89,5%\")-SUM(N40:N47)","v":0},"80/89",{"$f":"COUNTIF(P$5:P$34,\"<89,5%\")-SUM(P40:P47)","v":0}]
[null,null,null,null,null,null,null,null,null,"90/100",{"$f":"COUNTIF(K$5:K$34,\"<=100%\")-SUM(K40:K48)","v":0},null,"90/100",{"$f":"COUNTIF(N$5:N$34,\"<=100%\")-SUM(N40:N48)","v":0},"90/100",{"$f":"COUNTIF(P$5:P$34,\"<=100%\")-SUM(P40:P48)","v":0}]
[0.26,null,"Élèves qui ont raté l'épreuve."]
[]
[null,null,null,null,null,null,null,null,"Taux de réussite :",null,{"$f":"IF(OR(COUNTBLANK(K5:K34)=30,COUNT(K5:K34)=0),\"\",(COUNTIF(K5:K34,\">=0,5\"))/COUNT(K5:K34))","v":""}]

{"sheet":"Bilan","index":2,"n_rows":1138,"n_cols":16,"rows_kept":1138,"cut":false,"hidden":false,"merged":[[0,0,0,15],[1,0,1,15],[3,0,3,15],[7,0,7,10],[7,12,7,15],[5,1,5,14],[134,0,134,4],[134,7,134,8],[64,9,64,11],[65,0,65,4],[65,7,65,8],[74,0,75,15],[83,12,83,15],[87,13,87,15],[70,0,70,6],[70,7,70,8],[102,9,102,11],[103,0,103,4],[103,7,103,8],[96,0,96,4],[90,7,90,8],[90,0,90,4],[96,7,96,8],[11,13,11,15],[13,9,13,11],[14,0,14,4],[20,0,20,4],[14,7,14,8],[20,7,20,8],[37,0,37,15],[52,7,52,8],[27,7,27,8],[26,9,26,11],[27,0,27,4],[32,7,32,8],[32,0,32,6],[45,12,45,15],[39,0,39,15],[41,0,41,15],[76,0,76,15],[77,0,77,15],[79,0,79,15],[89,9,89,11],[83,0,83,10],[81,1,81,13],[58,7,58,8],[45,0,45,10],[38,0,38,15],[51,9,51,11],[49,13,49,15],[52,0,52,4],[43,1,43,14],[58,0,58,4],[108,0,108,6],[108,7,108,8],[114,0,114,15],[115,0,115,15],[117,0,117,15],[121,0,121,10],[121,12,121,15],[119,1,119,13],[152,0,152,15],[125,13,125,15],[127,9,127,11],[128,0,128,4],[128,7,128,8],[146,0,146,6],[146,7,146,8],[140,9,140,11],[141,0,141,4],[141,7,141,8],[151,0,151,15],[153,0,153,15],[155,0,155,15],[157,1,157,13],[203,9,203,11],[184,0,184,6],[184,7,184,8],[190,0,190,15],[191,0,191,15],[193,0,193,15],[166,0,166,4],[166,7,166,8],[195,1,195,13],[197,0,197,10],[197,12,197,15],[201,13,201,15],[172,0,172,4],[172,7,172,8],[178,9,178,11],[179,0,179,4],[179,7,179,8],[159,0,159,10],[159,12,159,15],[163,13,163,15],[165,9,165,11],[217,0,217,4],[217,7,217,8],[222,0,222,6],[222,7,222,8],[229,0,229,15],[204,0,204,4],[204,7,204,8],[210,0,210,4],[210,7,210,8],[216,9,216,11],[260,0,260,6],[260,7,260,8],[230,0,230,15],[231,0,231,15],[233,1,233,13],[235,0,235,10],[235,12,235,15],[266,0,266,15],[239,13,239,15],[241,9,241,11],[242,0,242,4],[242,7,242,8],[248,0,248,4],[248,7,248,8],[254,9,254,11],[255,0,255,4],[255,7,255,8],[277,13,277,15],[279,9,279,11],[280,0,280,4],[280,7,280,8],[286,0,286,4],[267,0,267,15],[269,0,269,15],[271,1,271,13],[273,0,273,10],[273,12,273,15],[309,1,309,13],[311,0,311,10],[311,12,311,15],[343,0,343,15],[344,0,344,15],[345,0,345,15],[286,7,286,8],[315,13,315,15],[317,9,317,11],[318,0,318,4],[318,7,318,8],[324,0,324,4],[324,7,324,8],[305,0,305,15],[306,0,306,15],[307,0,307,15],[292,9,292,11],[293,0,293,4],[293,7,293,8],[298,0,298,6],[298,7,298,8],[353,13,353,15],[355,9,355,11],[356,0,356,4],[356,7,356,8],[362,0,362,4],[347,1,347,13],[349,0,349,10],[349,12,349,15],[330,9,330,11],[331,0,331,4],[331,7,331,8],[336,0,336,6],[336,7,336,8],[385,1,385,13],[387,0,387,10],[387,12,387,15],[419,0,419,15],[420,0,420,15],[421,0,421,15],[362,7,362,8],[391,13,391,15],[393,9,393,11],[394,0,394,4],[394,7,394,8],[400,0,400,4],[400,7,400,8],[381,0,381,15],[382,0,382,15],[383,0,383,15],[368,9,368,11],[369,0,369,4],[369,7,369,8],[374,0,374,6],[374,7,374,8],[429,13,429,15],[431,9,431,11],[432,0,432,4],[432,7,432,8],[438,0,438,4],[423,1,423,13],[425,0,425,10],[425,12,425,15],[406,9,406,11],[407,0,407,4],[407,7,407,8],[412,0,412,6],[412,7,412,8],[461,1,461,13],[463,0,463,10],[463,12,463,15],[495,0,495,15],[496,0,496,15],[497,0,497,15],[438,7,438,8],[467,13,467,15],[469,9,469,11],[470,0,470,4],[470,7,470,8],[476,0,476,4],[476,7,476,8],[457,0,457,15],[458,0,458,15],[459,0,459,15],[444,9,444,11],[445,0,445,4],[445,7,445,8],[450,0,450,6],[450,7,450,8],[505,13,505,15],[507,9,507,11],[508,0,508,4],[508,7,508,8],[514,0,514,4],[499,1,499,13],[501,0,501,10],[501,12,501,15],[482,9,482,11],[483,0,483,4],[483,7,483,8],[488,0,488,6],[488,7,488,8],[537,1,537,13],[539,0,539,10],[539,12,539,15],[571,0,571,15],[572,0,572,15],[573,0,573,15],[514,7,514,8],[543,13,543,15],[545,9,545,11],[546,0,546,4],[546,7,546,8],[552,0,552,4],[552,7,552,8],[533,0,533,15],[534,0,534,15],[535,0,535,15],[520,9,520,11],[521,0,521,4],[521,7,521,8],[526,0,526,6],[526,7,526,8],[581,13,581,15],[583,9,583,11],[584,0,584,4],[584,7,584,8],[590,0,590,4],[575,1,575,13],[577,0,577,10],[577,12,577,15],[558,9,558,11],[559,0,559,4],[559,7,559,8],[564,0,564,6],[564,7,564,8],[613,1,613,13],[615,0,615,10],[615,12,615,15],[647,0,647,15],[648,0,648,15],[649,0,649,15],[590,7,590,8],[619,13,619,15],[621,9,621,11],[622,0,622,4],[622,7,622,8],[628,0,628,4],[628,7,628,8],[609,0,609,15],[610,0,610,15],[611,0,611,15],[596,9,596,11],[597,0,597,4],[597,7,597,8],[602,0,602,6],[602,7,602,8],[657,13,657,15],[659,9,659,11],[660,0,660,4],[660,7,660,8],[666,0,666,4],[651,1,651,13],[653,0,653,10],[653,12,653,15],[634,9,634,11],[635,0,635,4],[635,7,635,8],[640,0,640,6],[640,7,640,8],[689,1,689,13],[691,0,691,10],[691,12,691,15],[723,0,723,15],[724,0,724,15],[725,0,725,15],[666,7,666,8],[695,13,695,15],[697,9,697,11],[698,0,698,4],[698,7,698,8],[704,0,704,4],[704,7,704,8],[685,0,685,15],[686,0,686,15],[687,0,687,15],[672,9,672,11],[673,0,673,4],[673,7,673,8],[678,0,678,6],[678,7,678,8],[733,13,733,15],[735,9,735,11],[736,0,736,4],[736,7,736,8],[742,0,742,4],[727,1,727,13],[729,0,729,10],[729,12,729,15],[710,9,710,11],[711,0,711,4],[711,7,711,8],[716,0,716,6],[716,7,716,8],[765,1,765,13],[767,0,767,10],[767,12,767,15],[799,0,799,15],[800,0,800,15],[801,0,801,15],[742,7,742,8],[771,13,771,15],[773,9,773,11],[774,0,774,4],[774,7,774,8],[780,0,780,4],[780,7,780,8],[761,0,761,15],[762,0,762,15],[763,0,763,15],[748,9,748,11],[749,0,749,4],[749,7,749,8],[754,0,754,6],[754,7,754,8],[809,13,809,15],[811,9,811,11],[812,0,812,4],[812,7,812,8],[818,0,818,4],[803,1,803,13],[805,0,805,10],[805,12,805,15],[786,9,786,11],[787,0,787,4],[787,7,787,8],[792,0,792,6],[792,7,792,8],[841,1,841,13],[843,0,843,10],[843,12,843,15],[875,0,875,15],[876,0,876,15],[877,0,877,15],[818,7,818,8],[847,13,847,15],[849,9,849,11],[850,0,850,4],[850,7,850,8],[856,0,856,4],[856,7,856,8],[837,0,837,15],[838,0,838,15],[839,0,839,15],[824,9,824,11],[825,0,825,4],[825,7,825,8],[830,0,830,6],[830,7,830,8],[885,13,885,15],[887,9,887,11],[888,0,888,4],[888,7,888,8],[894,0,894,4],[879,1,879,13],[881,0,881,10],[881,12,881,15],[862,9,862,11],[863,0,863,4],[863,7,863,8],[868,0,868,6],[868,7,868,8],[917,1,917,13],[919,0,919,10],[919,12,919,15],[951,0,951,15],[952,0,952,15],[953,0,953,15],[894,7,894,8],[923,13,923,15],[925,9,925,11],[926,0,926,4],[926,7,926,8],[932,0,932,4],[932,7,932,8],[913,0,913,15],[914,0,914,15],[915,0,915,15],[900,9,900,11],[901,0,901,4],[901,7,901,8],[906,0,906,6],[906,7,906,8],[961,13,961,15],[963,9,963,11],[964,0,964,4],[964,7,964,8],[970,0,970,4],[955,1,955,13],[957,0,957,10],[957,12,957,15],[938,9,938,11],[939,0,939,4],[939,7,939,8],[944,0,944,6],[944,7,944,8],[993,1,993,13],[995,0,995,10],[995,12,995,15],[1027,0,1027,15],[1028,0,1028,15],[1029,0,1029,15],[970,7,970,8],[999,13,999,15],[1001,9,1001,11],[1002,0,1002,4],[1002,7,1002,8],[1008,0,1008,4],[1008,7,1008,8],[989,0,989,15],[990,0,990,15],[991,0,991,15],[976,9,976,11],[977,0,977,4],[977,7,977,8],[982,0,982,6],[982,7,982,8],[1037,13,1037,15],[1039,9,1039,11],[1040,0,1040,4],[1040,7,1040,8],[1046,0,1046,4],[1031,1,1031,13],[1033,0,1033,10],[1033,12,1033,15],[1014,9,1014,11],[1015,0,1015,4],[1015,7,1015,8],[1020,0,1020,6],[1020,7,1020,8],[1069,1,1069,13],[1071,0,1071,10],[1071,12,1071,15],[1103,0,1103,15],[1104,0,1104,15],[1105,0,1105,15],[1046,7,1046,8],[1075,13,1075,15],[1077,9,1077,11],[1078,0,1078,4],[1078,7,1078,8],[1084,0,1084,4],[1084,7,1084,8],[1065,0,1065,15],[1066,0,1066,15],[1067,0,1067,15],[1052,9,1052,11],[1053,0,1053,4],[1053,7,1053,8],[1058,0,1058,6],[1058,7,1058,8],[1107,1,1107,13],[1109,0,1109,10],[1109,12,1109,15],[1122,7,1122,8],[1090,9,1090,11],[1091,0,1091,4],[1091,7,1091,8],[1096,0,1096,6],[1096,7,1096,8],[1128,9,1128,11],[1129,0,1129,4],[1129,7,1129,8],[1134,0,1134,6],[1134,7,1134,8],[1113,13,1113,15],[1115,9,1115,11],[1116,0,1116,4],[1116,7,1116,8],[1122,0,1122,4]]}
[]
[""]
[]
["Juin 2019   EDM"]
[]
[null,{"$f":"'Encodage réponses Es'!B1:I1","v":0}]
["Classe : ",{"$f":"'Encodage réponses Es'!C3","v":0}]
[{"$f":"CONCATENATE(\"Synthèse des résultats de l'élève : \",Résultats!$E5,\" \",Résultats!$F5)","v":"Synthèse des résultats de l'élève :  "},null,null,null,null,null,null,null,null,null,null,null,{"$f":"IF(Résultats!$J5=\"Absent(e)\",\"Absent(e)\",IF(Résultats!$J5=\"Incomplet\",\"Incomplet\",\"\"))","v":""}]
[]
["EDM",null,null,null,null,null,null,null,null,null,null,null,null,{"$f":"IF(OR(Résultats!$J5=\"Absent(e)\",Résultats!$J5=\"Incomplet\"),\"\",Résultats!$J5)","v":""},{"$f":"\"/\"","v":"/"},{"$f":"Résultats!$J$4","v":80}]
[]
[null,null,null,null,null,null,null,null,null,null,null,null,null,{"$f":"IF(N10=\"\",\"\",N10/P10)","v":""}]
[]
["Volet géographique",null,null,null,null,null,null,null,null,{"$f":"IF(Résultats!$M5=\"\",\"\",Résultats!$M5)","v":""},null,null,{"$f":"\"/\"","v":"/"},{"$f":"Résultats!$M$4","v":40},null,{"$f":"IF(OR(J14=\"\",J14=\"Absent(e)\",J14=\"Incomplet\"),\"\",J14/N14)","v":""}]
["Savoir-faire géographiques",null,null,null,null,null,null,{"$f":"IF(OR(Résultats!$AI5=\"Absent(e)\",Résultats!$AI5=\"Incomplet\"),\"\",Résultats!$AI5)","v":""},null,{"$f":"\"/\"","v":"/"},{"$f":"Résultats!$AI$2","v":24}]
["-  utiliser des repères spatiaux"]
["-  utiliser des représentations de l'espace"]
["-  localiser un lieu, un espace"]
["-  lire un paysage sur le terrain (pas mobilisé)"]
["-  lire une image géographique"]
["Savoirs géographiques",null,null,null,null,null,null,{"$f":"IF(OR(Résultats!$AX5=\"Absent(e)\",Résultats!$AX5=\"Incomplet\"),\"\",Résultats!$AX5)","v":""},null,{"$f":"\"/\"","v":"/"},{"$f":"Résultats!$AX$2","v":16}]
["-  identifier et caractériser les composantes du paysage"]
["-  identifier et caractériser des milieux naturels et leurs atouts et contraintes"]
["-  caractériser l'organisation de l'espace (fonctions, structurations et évolution)"]
["-  identifier des interactions hommes-espace"]
[]
["Volet historique",null,null,null,null,null,null,null,null,{"$f":"IF(OR(Résultats!$O5=\"\",Résultats!$O5=\"Incomplet\"),\"\",Résultats!$O5)","v":""},null,null,{"$f":"\"/\"","v":"/"},{"$f":"Résultats!$O$4","v":40},null,{"$f":"IF(OR(J27=\"\",J27=\"Absent(e)\",J27=\"Incomplet\"),\"\",J27/N27)","v":""}]
["Savoir-faire historiques",null,null,null,null,null,null,{"$f":"IF(OR(Résultats!$BR5=\"a\",Résultats!$BR5=\"A\",Résultats!$BR5=\"\"),\"\",Résultats!$BR5)","v":""},null,{"$f":"\"/\"","v":"/"},{"$f":"Résultats!$BR$2","v":24.5}]
["-  utiliser des repères du temps"]
["-  utiliser des représentations du temps"]
["-  lire une trace du passé"]
["-  exploiter des sources historiques"]
["Savoirs historiques",null,null,null,null,null,null,{"$f":"IF(OR(Résultats!$CE5=\"Absent(e)\",Résultats!$CE5=\"Incomplet\"),\"\",Résultats!$CE5)","v":""},null,{"$f":"\"/\"","v":"/"},{"$f":"Résultats!$CE$2","v":15.5}]
["-  organisation du temps"]
["-  identifier et caractériser le mode de vie des gens à une époque déterminée"]
["-  mettre en évidence la nature d'une trace du passé"]
[]
[]
[]
[""]
[]
["Juin 2019   EDM"]
[]
[null,{"$f":"'Encodage réponses Es'!B1:I1","v":0}]
["Classe : ",{"$f":"'Encodage réponses Es'!C3","v":0}]
[{"$f":"CONCATENATE(\"Synthèse des résultats de l'élève : \",Résultats!$E6,\" \",Résultats!$F6)","v":"Synthèse des résultats de l'élève :  "},null,null,null,null,null,null,null,null,null,null,null,{"$f":"IF(Résultats!$J43=\"Absent(e)\",\"Absent(e)\",IF(Résultats!$J43=\"Incomplet\",\"Incomplet\",\"\"))","v":""}]
[]
["EDM",null,null,null,null,null,null,null,null,null,null,null,null,{"$f":"IF(OR(Résultats!$J6=\"Absent(e)\",Résultats!$J6=\"Incomplet\"),\"\",Résultats!$J6)","v":""},{"$f":"\"/\"","v":"/"},{"$f":"Résultats!$J$4","v":80}]
[]
[null,null,null,null,null,null,null,null,null,null,null,null,null,{"$f":"IF(N48=\"\",\"\",N48/P48)","v":""}]
[]
["Volet géographique",null,null,null,null,null,null,null,null,{"$f":"IF(Résultats!$M6=\"\",\"\",Résultats!$M6)","v":""},null,null,{"$f":"\"/\"","v":"/"},{"$f":"Résultats!$M$4","v":40},null,{"$f":"IF(OR(J52=\"\",J52=\"Absent(e)\",J52=\"Incomplet\"),\"\",J52/N52)","v":""}]
["Savoir-faire géographiques",null,null,null,null,null,null,{"$f":"IF(OR(Résultats!$AI6=\"Absent(e)\",Résultats!$AI6=\"Incomplet\"),\"\",Résultats!$AI6)","v":""},null,{"$f":"\"/\"","v":"/"},{"$f":"Résultats!$AI$2","v":24}]
["-  utiliser des repères spatiaux"]
["-  utiliser des représentations de l'espace"]
["-  localiser un lieu, un espace"]
["-  lire un paysage sur le terrain (pas mobilisé)"]
["-  lire une image géographique"]
["Savoirs géographiques",null,null,null,null,null,null,{"$f":"IF(OR(Résultats!$AX6=\"Absent(e)\",Résultats!$AX6=\"Incomplet\"),\"\",Résultats!$AX6)","v":""},null,{"$f":"\"/\"","v":"/"},{"$f":"Résultats!$AX$2","v":16}]
["-  identifier et caractériser les composantes du paysage"]
["-  identifier et caractériser des milieux naturels et leurs atouts et contraintes"]
["-  caractériser l'organisation de l'espace (fonctions, structurations et évolution)"]
["-  identifier des interactions hommes-espace"]
[]
["Volet historique",null,null,null,null,null,null,null,null,{"$f":"IF(OR(Résultats!$O6=\"\",Résultats!$O6=\"Incomplet\"),\"\",Résultats!$O6)","v":""},null,null,{"$f":"\"/\"","v":"/"},{"$f":"Résultats!$O$4","v":40},null,{"$f":"IF(OR(J65=\"\",J65=\"Absent(e)\",J65=\"Incomplet\"),\"\",J65/N65)","v":""}]
["Savoir-faire historiques",null,null,null,null,null,null,{"$f":"IF(OR(Résultats!$BR6=\"a\",Résultats!$BR6=\"A\",Résultats!$BR6=\"\"),\"\",Résultats!$BR6)","v":""},null,{"$f":"\"/\"","v":"/"},{"$f":"Résultats!$BR$2","v":24.5}]
["-  utiliser des repères du temps"]
["-  utiliser des représentations du temps"]
["-  lire une trace du passé"]
["-  exploiter des sources historiques"]
["Savoirs historiques",null,null,null,null,null,null,{"$f":"IF(OR(Résultats!$CE6=\"Absent(e)\",Résultats!$CE6=\"Incomplet\"),\"\",Résultats!$CE6)","v":""},null,{"$f":"\"/\"","v":"/"},{"$f":"Résultats!$CE$2","v":15.5}]
["-  organisation du temps"]
["-  identifier et caractériser le mode de vie des gens à une époque déterminée"]
["-  mettre en évidence la nature d'une trace du passé"]
["Absent(e) : si l'élève a été absent à une partie de l'épreuve, le résultat global ne s'inscrit que s'il a obtenu 50/100 au moins.\nLes résultats des domaines où l'élève était partiellement absent n'apparaissent pas."]
[]
[]
[""]
[]
["Juin 2019   EDM"]
[]
[null,{"$f":"'Encodage réponses Es'!B1:I1","v":0}]
["Classe : ",{"$f":"'Encodage réponses Es'!C3","v":0}]
[{"$f":"CONCATENATE(\"Synthèse des résultats de l'élève : \",Résultats!$E7,\" \",Résultats!$F7)","v":"Synthèse des résultats de l'élève :  "},null,null,null,null,null,null,null,null,null,null,null,{"$f":"IF(Résultats!$J81=\"Absent(e)\",\"Absent(e)\",IF(Résultats!$J81=\"Incomplet\",\"Incomplet\",\"\"))","v":""}]
[]
["EDM",null,null,null,null,null,null,null,null,null,null,null,null,{"$f":"IF(OR(Résultats!$J7=\"Absent(e)\",Résultats!$J7=\"Incomplet\"),\"\",Résultats!$J7)","v":""},{"$f":"\"/\"","v":"/"},{"$f":"Résultats!$J$4","v":80}]
[]
[null,null,null,null,null,null,null,null,null,null,null,null,null,{"$f":"IF(N86=\"\",\"\",N86/P86)","v":""}]
[]
["Volet géographique",null,null,null,null,null,null,null,null,{"$f":"IF(Résultats!$M7=\"\",\"\",Résultats!$M7)","v":""},null,null,{"$f":"\"/\"","v":"/"},{"$f":"Résultats!$M$4","v":40},null,{"$f":"IF(OR(J90=\"\",J90=\"Absent(e)\",J90=\"Incomplet\"),\"\",J90/N90)","v":""}]
["Savoir-faire géographiques",null,null,null,null,null,null,{"$f":"IF(OR(Résultats!$AI7=\"Absent(e)\",Résultats!$AI7=\"Incomplet\"),\"\",Résultats!$AI7)","v":""},null,{"$f":"\"/\"","v":"/"},{"$f":"Résultats!$AI$2","v":24}]
["-  utiliser des repères spatiaux"]
["-  utiliser des représentations de l'espace"]
["-  localiser un lieu, un espace"]
["-  lire un paysage sur le terrain (pas mobilisé)"]
["-  lire une image géographique"]
["Savoirs géographiques",null,null,null,null,null,null,{"$f":"IF(OR(Résultats!$AX7=\"Absent(e)\",Résultats!$AX74=\"Incomplet\"),\"\",Résultats!$AX7)","v":""},null,{"$f":"\"/\"","v":"/"},{"$f":"Résultats!$AX$2","v":16}]
["-  identifier et caractériser les composantes du paysage"]
["-  identifier et caractériser des milieux naturels et leurs atouts et contraintes"]
["-  caractériser l'organisation de l'espace (fonctions, structurations et évolution)"]
["-  identifier des interactions hommes-espace"]
[]
["Volet historique",null,null,null,null,null,null,null,null,{"$f":"IF(OR(Résultats!$O7=\"\",Résultats!$O7=\"Incomplet\"),\"\",Résultats!$O7)","v":""},null,null,{"$f":"\"/\"","v":"/"},{"$f":"Résultats!$O$4","v":40},null,{"$f":"IF(OR(J103=\"\",J103=\"Absent(e)\",J103=\"Incomplet\"),\"\",J103/N103)","v":""}]
["Savoir-faire historiques",null,null,null,null,null,null,{"$f":"IF(OR(Résultats!$BR7=\"a\",Résultats!$BR7=\"A\",Résultats!$BR7=\"\"),\"\",Résultats!$BR7)","v":""},null,{"$f":"\"/\"","v":"/"},{"$f":"Résultats!$BR$2","v":24.5}]
["-  utiliser des repères du temps"]
["-  utiliser des représentations du temps"]
["-  lire une trace du passé"]
["-  exploiter des sources historiques"]
["Savoirs historiques",null,null,null,null,null,null,{"$f":"IF(OR(Résultats!$CE7=\"Absent(e)\",Résultats!$CE7=\"Incomplet\"),\"\",Résultats!$CE7)","v":""},null,{"$f":"\"/\"","v":"/"},{"$f":"Résultats!$CE$2","v":15.5}]
["-  organisation du temps"]
["-  identifier et caractériser le mode de vie des gens à une époque déterminée"]
["-  mettre en évidence la nature d'une trace du passé"]
[]
[]
[]
[""]
[]
["Juin 2019   EDM"]
[]
[null,{"$f":"'Encodage réponses Es'!$B$1:$I$1","v":0}]
["Classe : ",{"$f":"'Encodage réponses Es'!$C$3","v":0}]
[{"$f":"CONCATENATE(\"Synthèse des résultats de l'élève : \",Résultats!$E8,\" \",Résultats!$F8)","v":"Synthèse des résultats de l'élève :  "},null,null,null,null,null,null,null,null,null,null,null,{"$f":"IF(Résultats!$J121=\"Absent(e)\",\"Absent(e)\",IF(Résultats!$J121=\"Incomplet\",\"Incomplet\",\"\"))","v":""}]
[]
["EDM",null,null,null,null,null,null,null,null,null,null,null,null,{"$f":"IF(OR(Résultats!$J8=\"Absent(e)\",Résultats!$J8=\"Incomplet\"),\"\",Résultats!$J8)","v":""},{"$f":"\"/\"","v":"/"},{"$f":"Résultats!$J$4","v":80}]
[]
[null,null,null,null,null,null,null,null,null,null,null,null,null,{"$f":"IF(N124=\"\",\"\",N124/P124)","v":""}]
[]
["Volet géographique",null,null,null,null,null,null,null,null,{"$f":"IF(Résultats!$M8=\"\",\"\",Résultats!$M8)","v":""},null,null,{"$f":"\"/\"","v":"/"},{"$f":"Résultats!$M$4","v":40},null,{"$f":"IF(OR(J128=\"\",J128=\"Absent(e)\",J128=\"Incomplet\"),\"\",J128/N128)","v":""}]
["Savoir-faire géographiques",null,null,null,null,null,null,{"$f":"IF(OR(Résultats!$AI8=\"Absent(e)\",Résultats!$AI8=\"Incomplet\"),\"\",Résultats!$AI8)","v":""},null,{"$f":"\"/\"","v":"/"},{"$f":"Résultats!$AI$2","v":24}]
["-  utiliser des repères spatiaux"]
["-  utiliser des représentations de l'espace"]
["-  localiser un lieu, un espace"]
["-  lire un paysage sur le terrain (pas mobilisé)"]
["-  lire une image géographique"]
["Savoirs géographiques",null,null,null,null,null,null,{"$f":"IF(OR(Résultats!$AX8=\"Absent(e)\",Résultats!$AX8=\"Incomplet\"),\"\",Résultats!$AX8)","v":""},null,{"$f":"\"/\"","v":"/"},{"$f":"Résultats!$AX$2","v":16}]
["-  identifier et caractériser les composantes du paysage"]
["-  identifier et caractériser des milieux naturels et leurs atouts et contraintes"]
["-  caractériser l'organisation de l'espace (fonctions, structurations et évolution)"]
["-  identifier des interactions hommes-espace"]
[]
["Volet historique",null,null,null,null,null,null,null,null,{"$f":"IF(OR(Résultats!$O8=\"\",Résultats!$O8=\"Incomplet\"),\"\",Résultats!$O8)","v":""},null,null,{"$f":"\"/\"","v":"/"},{"$f":"Résultats!$O$4","v":40},null,{"$f":"IF(OR(J141=\"\",J141=\"Absent(e)\",J141=\"Incomplet\"),\"\",J141/N141)","v":""}]
["Savoir-faire historiques",null,null,null,null,null,null,{"$f":"IF(OR(Résultats!$BR8=\"a\",Résultats!$BR8=\"A\",Résultats!$BR8=\"\"),\"\",Résultats!$BR8)","v":""},null,{"$f":"\"/\"","v":"/"},{"$f":"Résultats!$BR$2","v":24.5}]
["-  utiliser des repères du temps"]
["-  utiliser des représentations du temps"]
["-  lire une trace du passé"]
["-  exploiter des sources historiques"]
["Savoirs historiques",null,null,null,null,null,null,{"$f":"IF(OR(Résultats!$CE8=\"Absent(e)\",Résultats!$CE8=\"Incomplet\"),\"\",Résultats!$CE8)","v":""},null,{"$f":"\"/\"","v":"/"},{"$f":"Résultats!$CE$2","v":15.5}]
["-  organisation du temps"]
["-  identifier et caractériser le mode de vie des gens à une époque déterminée"]
["-  mettre en évidence la nature d'une trace du passé"]
[]
[]
[]
[""]
[]
["Juin 2019   EDM"]
[]
[null,{"$f":"'Encodage réponses Es'!$B$1:$I$1","v":0}]
["Classe : ",{"$f":"'Encodage réponses Es'!$C$3","v":0}]
[{"$f":"CONCATENATE(\"Synthèse des résultats de l'élève : \",Résultats!$E9,\" \",Résultats!$F9)","v":"Synthèse des résultats de l'élève :  "},null,null,null,null,null,null,null,null,null,null,null,{"$f":"IF(Résultats!$J161=\"Absent(e)\",\"Absent(e)\",IF(Résultats!$J161=\"Incomplet\",\"Incomplet\",\"\"))","v":""}]
[]
["EDM",null,null,null,null,null,null,null,null,null,null,null,null,{"$f":"IF(OR(Résultats!$J9=\"Absent(e)\",Résultats!$J9=\"Incomplet\"),\"\",Résultats!$J9)","v":""},{"$f":"\"/\"","v":"/"},{"$f":"Résultats!$J$4","v":80}]
[]
[null,null,null,null,null,null,null,null,null,null,null,null,null,{"$f":"IF(N162=\"\",\"\",N162/P162)","v":""}]
[]
["Volet géographique",null,null,null,null,null,null,null,null,{"$f":"IF(Résultats!$M9=\"\",\"\",Résultats!$M9)","v":""},null,null,{"$f":"\"/\"","v":"/"},{"$f":"Résultats!$M$4","v":40},null,{"$f":"IF(OR(J166=\"\",J166=\"Absent(e)\",J166=\"Incomplet\"),\"\",J166/N166)","v":""}]
["Savoir-faire géographiques",null,null,null,null,null,null,{"$f":"IF(OR(Résultats!$AI9=\"Absent(e)\",Résultats!$AI9=\"Incomplet\"),\"\",Résultats!$AI9)","v":""},null,{"$f":"\"/\"","v":"/"},{"$f":"Résultats!$AI$2","v":24}]
["-  utiliser des repères spatiaux"]
["-  utiliser des représentations de l'espace"]
["-  localiser un lieu, un espace"]
["-  lire un paysage sur le terrain (pas mobilisé)"]
["-  lire une image géographique"]
["Savoirs géographiques",null,null,null,null,null,null,{"$f":"IF(OR(Résultats!$AX9=\"Absent(e)\",Résultats!$AX9=\"Incomplet\"),\"\",Résultats!$AX9)","v":""},null,{"$f":"\"/\"","v":"/"},{"$f":"Résultats!$AX$2","v":16}]
["-  identifier et caractériser les composantes du paysage"]
["-  identifier et caractériser des milieux naturels et leurs atouts et contraintes"]
["-  caractériser l'organisation de l'espace (fonctions, structurations et évolution)"]
["-  identifier des interactions hommes-espace"]
[]
["Volet historique",null,null,null,null,null,null,null,null,{"$f":"IF(OR(Résultats!$O9=\"\",Résultats!$O9=\"Incomplet\"),\"\",Résultats!$O9)","v":""},null,null,{"$f":"\"/\"","v":"/"},{"$f":"Résultats!$O$4","v":40},null,{"$f":"IF(OR(J179=\"\",J179=\"Absent(e)\",J179=\"Incomplet\"),\"\",J179/N179)","v":""}]
["Savoir-faire historiques",null,null,null,null,null,null,{"$f":"IF(OR(Résultats!$BR9=\"a\",Résultats!$BR9=\"A\",Résultats!$BR9=\"\"),\"\",Résultats!$BR9)","v":""},null,{"$f":"\"/\"","v":"/"},{"$f":"Résultats!$BR$2","v":24.5}]
["-  utiliser des repères du temps"]
["-  utiliser des représentations du temps"]
["-  lire une trace du passé"]
["-  exploiter des sources historiques"]
["Savoirs historiques",null,null,null,null,null,null,{"$f":"IF(OR(Résultats!$CE9=\"Absent(e)\",Résultats!$CE9=\"Incomplet\"),\"\",Résultats!$CE9)","v":""},null,{"$f":"\"/\"","v":"/"},{"$f":"Résultats!$CE$2","v":15.5}]
["-  organisation du temps"]
["-  identifier et caractériser le mode de vie des gens à une époque déterminée"]
["-  mettre en évidence la nature d'une trace du passé"]
[]
[]
[]
[""]
[]
["Juin 2019   EDM"]
[]
[null,{"$f":"'Encodage réponses Es'!$B$1:$I$1","v":0}]
["Classe : ",{"$f":"'Encodage réponses Es'!$C$3","v":0}]
[{"$f":"CONCATENATE(\"Synthèse des résultats de l'élève : \",Résultats!$E10,\" \",Résultats!$F10)","v":"Synthèse des résultats de l'élève :  "},null,null,null,null,null,null,null,null,null,null,null,{"$f":"IF(Résultats!$J199=\"Absent(e)\",\"Absent(e)\",IF(Résultats!$J199=\"Incomplet\",\"Incomplet\",\"\"))","v":""}]
[]
["EDM",null,null,null,null,null,null,null,null,null,null,null,null,{"$f":"IF(OR(Résultats!$J10=\"Absent(e)\",Résultats!$J10=\"Incomplet\"),\"\",Résultats!$J10)","v":""},{"$f":"\"/\"","v":"/"},{"$f":"Résultats!$J$4","v":80}]
[]
[null,null,null,null,null,null,null,null,null,null,null,null,null,{"$f":"IF(N200=\"\",\"\",N200/P200)","v":""}]
[]
["Volet géographique",null,null,null,null,null,null,null,null,{"$f":"IF(Résultats!$M10=\"\",\"\",Résultats!$M10)","v":""},null,null,{"$f":"\"/\"","v":"/"},{"$f":"Résultats!$M$4","v":40},null,{"$f":"IF(OR(J204=\"\",J204=\"Absent(e)\",J204=\"Incomplet\"),\"\",J204/N204)","v":""}]
["Savoir-faire géographiques",null,null,null,null,null,null,{"$f":"IF(OR(Résultats!$AI10=\"Absent(e)\",Résultats!$AI10=\"Incomplet\"),\"\",Résultats!$AI10)","v":""},null,{"$f":"\"/\"","v":"/"},{"$f":"Résultats!$AI$2","v":24}]
["-  utiliser des repères spatiaux"]
["-  utiliser des représentations de l'espace"]
["-  localiser un lieu, un espace"]
["-  lire un paysage sur le terrain (pas mobilisé)"]
["-  lire une image géographique"]
["Savoirs géographiques",null,null,null,null,null,null,{"$f":"IF(OR(Résultats!$AX10=\"Absent(e)\",Résultats!$AX10=\"Incomplet\"),\"\",Résultats!$AX10)","v":""},null,{"$f":"\"/\"","v":"/"},{"$f":"Résultats!$AX$2","v":16}]
["-  identifier et caractériser les composantes du paysage"]
["-  identifier et caractériser des milieux naturels et leurs atouts et contraintes"]
["-  caractériser l'organisation de l'espace (fonctions, structurations et évolution)"]
["-  identifier des interactions hommes-espace"]
[]
["Volet historique",null,null,null,null,null,null,null,null,{"$f":"IF(OR(Résultats!$O10=\"\",Résultats!$O10=\"Incomplet\"),\"\",Résultats!$O10)","v":""},null,null,{"$f":"\"/\"","v":"/"},{"$f":"Résultats!$O$4","v":40},null,{"$f":"IF(OR(J217=\"\",J217=\"Absent(e)\",J217=\"Incomplet\"),\"\",J217/N217)","v":""}]
["Savoir-faire historiques",null,null,null,null,null,null,{"$f":"IF(OR(Résultats!$BR10=\"a\",Résultats!$BR10=\"A\",Résultats!$BR10=\"\"),\"\",Résultats!$BR10)","v":""},null,{"$f":"\"/\"","v":"/"},{"$f":"Résultats!$BR$2","v":24.5}]
["-  utiliser des repères du temps"]
["-  utiliser des représentations du temps"]
["-  lire une trace du passé"]
["-  exploiter des sources historiques"]
["Savoirs historiques",null,null,null,null,null,null,{"$f":"IF(OR(Résultats!$CE10=\"Absent(e)\",Résultats!$CE10=\"Incomplet\"),\"\",Résultats!$CE10)","v":""},null,{"$f":"\"/\"","v":"/"},{"$f":"Résultats!$CE$2","v":15.5}]
["-  organisation du temps"]
["-  identifier et caractériser le mode de vie des gens à une époque déterminée"]
["-  mettre en évidence la nature d'une trace du passé"]
[]
[]
[]
[]
[""]
["Juin 2019   EDM"]
[]
[null,{"$f":"'Encodage réponses Es'!$B$1:$I$1","v":0}]
["Classe : ",{"$f":"'Encodage réponses Es'!$C$3","v":0}]
[{"$f":"CONCATENATE(\"Synthèse des résultats de l'élève : \",Résultats!$E11,\" \",Résultats!$F11)","v":"Synthèse des résultats de l'élève :  "},null,null,null,null,null,null,null,null,null,null,null,{"$f":"IF(Résultats!$J238=\"Absent(e)\",\"Absent(e)\",IF(Résultats!$J238=\"Incomplet\",\"Incomplet\",\"\"))","v":""}]
[]
["EDM",null,null,null,null,null,null,null,null,null,null,null,null,{"$f":"IF(OR(Résultats!$J11=\"Absent(e)\",Résultats!$J11=\"Incomplet\"),\"\",Résultats!$J11)","v":""},{"$f":"\"/\"","v":"/"},{"$f":"Résultats!$J$4","v":80}]
[]
[null,null,null,null,null,null,null,null,null,null,null,null,null,{"$f":"IF(N238=\"\",\"\",N238/P238)","v":""}]
[]
["Volet géographique",null,null,null,null,null,null,null,null,{"$f":"IF(Résultats!$M11=\"\",\"\",Résultats!$M11)","v":""},null,null,{"$f":"\"/\"","v":"/"},{"$f":"Résultats!$M$4","v":40},null,{"$f":"IF(OR(J242=\"\",J242=\"Absent(e)\",J242=\"Incomplet\"),\"\",J242/N242)","v":""}]
["Savoir-faire géographiques",null,null,null,null,null,null,{"$f":"IF(OR(Résultats!$AI11=\"Absent(e)\",Résultats!$AI11=\"Incomplet\"),\"\",Résultats!$AI11)","v":""},null,{"$f":"\"/\"","v":"/"},{"$f":"Résultats!$AI$2","v":24}]
["-  utiliser des repères spatiaux"]
["-  utiliser des représentations de l'espace"]
["-  localiser un lieu, un espace"]
["-  lire un paysage sur le terrain (pas mobilisé)"]
["-  lire une image géographique"]
["Savoirs géographiques",null,null,null,null,null,null,{"$f":"IF(OR(Résultats!$AX11=\"Absent(e)\",Résultats!$AX11=\"Incomplet\"),\"\",Résultats!$AX11)","v":""},null,{"$f":"\"/\"","v":"/"},{"$f":"Résultats!$AX$2","v":16}]
["-  identifier et caractériser les composantes du paysage"]
["-  identifier et caractériser des milieux naturels et leurs atouts et contraintes"]
["-  caractériser l'organisation de l'espace (fonctions, structurations et évolution)"]
["-  identifier des interactions hommes-espace"]
[]
["Volet historique",null,null,null,null,null,null,null,null,{"$f":"IF(OR(Résultats!$O11=\"\",Résultats!$O11=\"Incomplet\"),\"\",Résultats!$O11)","v":""},null,null,{"$f":"\"/\"","v":"/"},{"$f":"Résultats!$O$4","v":40},null,{"$f":"IF(OR(J255=\"\",J255=\"Absent(e)\",J255=\"Incomplet\"),\"\",J255/N255)","v":""}]
["Savoir-faire historiques",null,null,null,null,null,null,{"$f":"IF(OR(Résultats!$BR11=\"a\",Résultats!$BR11=\"A\",Résultats!$BR11=\"\"),\"\",Résultats!$BR11)","v":""},null,{"$f":"\"/\"","v":"/"},{"$f":"Résultats!$BR$2","v":24.5}]
["-  utiliser des repères du temps"]
["-  utiliser des représentations du temps"]
["-  lire une trace du passé"]
["-  exploiter des sources historiques"]
["Savoirs historiques",null,null,null,null,null,null,{"$f":"IF(OR(Résultats!$CE11=\"Absent(e)\",Résultats!$CE11=\"Incomplet\"),\"\",Résultats!$CE11)","v":""},null,{"$f":"\"/\"","v":"/"},{"$f":"Résultats!$CE$2","v":15.5}]
["-  organisation du temps"]
["-  identifier et caractériser le mode de vie des gens à une époque déterminée"]
["-  mettre en évidence la nature d'une trace du passé"]
[]
[]
[]
[""]
[]
["Juin 2019   EDM"]
[]
[null,{"$f":"'Encodage réponses Es'!$B$1:$I$1","v":0}]
["Classe : ",{"$f":"'Encodage réponses Es'!$C$3","v":0}]
[{"$f":"CONCATENATE(\"Synthèse des résultats de l'élève : \",Résultats!$E12,\" \",Résultats!$F12)","v":"Synthèse des résultats de l'élève :  "},null,null,null,null,null,null,null,null,null,null,null,{"$f":"IF(Résultats!$J277=\"Absent(e)\",\"Absent(e)\",IF(Résultats!$J277=\"Incomplet\",\"Incomplet\",\"\"))","v":""}]
[]
["EDM",null,null,null,null,null,null,null,null,null,null,null,null,{"$f":"IF(OR(Résultats!$J12=\"Absent(e)\",Résultats!$J12=\"Incomplet\"),\"\",Résultats!$J12)","v":""},{"$f":"\"/\"","v":"/"},{"$f":"Résultats!$J$4","v":80}]
[]
[null,null,null,null,null,null,null,null,null,null,null,null,null,{"$f":"IF(N276=\"\",\"\",N276/P276)","v":""}]
[]
["Volet géographique",null,null,null,null,null,null,null,null,{"$f":"IF(Résultats!$M12=\"\",\"\",Résultats!$M12)","v":""},null,null,{"$f":"\"/\"","v":"/"},{"$f":"Résultats!$M$4","v":40},null,{"$f":"IF(OR(J280=\"\",J280=\"Absent(e)\",J280=\"Incomplet\"),\"\",J280/N280)","v":""}]
["Savoir-faire géographiques",null,null,null,null,null,null,{"$f":"IF(OR(Résultats!$AI12=\"Absent(e)\",Résultats!$AI12=\"Incomplet\"),\"\",Résultats!$AI12)","v":""},null,{"$f":"\"/\"","v":"/"},{"$f":"Résultats!$AI$2","v":24}]
["-  utiliser des repères spatiaux"]
["-  utiliser des représentations de l'espace"]
["-  localiser un lieu, un espace"]
["-  lire un paysage sur le terrain (pas mobilisé)"]
["-  lire une image géographique"]
["Savoirs géographiques",null,null,null,null,null,null,{"$f":"IF(OR(Résultats!$AX12=\"Absent(e)\",Résultats!$AX12=\"Incomplet\"),\"\",Résultats!$AX12)","v":""},null,{"$f":"\"/\"","v":"/"},{"$f":"Résultats!$AX$2","v":16}]
["-  identifier et caractériser les composantes du paysage"]
["-  identifier et caractériser des milieux naturels et leurs atouts et contraintes"]
["-  caractériser l'organisation de l'espace (fonctions, structurations et évolution)"]
["-  identifier des interactions hommes-espace"]
[]
["Volet historique",null,null,null,null,null,null,null,null,{"$f":"IF(OR(Résultats!$O12=\"\",Résultats!$O12=\"Incomplet\"),\"\",Résultats!$O12)","v":""},null,null,{"$f":"\"/\"","v":"/"},{"$f":"Résultats!$O$4","v":40},null,{"$f":"IF(OR(J293=\"\",J293=\"Absent(e)\",J293=\"Incomplet\"),\"\",J293/N293)","v":""}]
["Savoir-faire historiques",null,null,null,null,null,null,{"$f":"IF(OR(Résultats!$BR12=\"a\",Résultats!$BR12=\"A\",Résultats!$BR12=\"\"),\"\",Résultats!$BR12)","v":""},null,{"$f":"\"/\"","v":"/"},{"$f":"Résultats!$BR$2","v":24.5}]
["-  utiliser des repères du temps"]
["-  utiliser des représentations du temps"]
["-  lire une trace du passé"]
["-  exploiter des sources historiques"]
["Savoirs historiques",null,null,null,null,null,null,{"$f":"IF(OR(Résultats!$CE12=\"Absent(e)\",Résultats!$CE12=\"Incomplet\"),\"\",Résultats!$CE12)","v":""},null,{"$f":"\"/\"","v":"/"},{"$f":"Résultats!$CE$2","v":15.5}]
["-  organisation du temps"]
["-  identifier et caractériser le mode de vie des gens à une époque déterminée"]
["-  mettre en évidence la nature d'une trace du passé"]
[]
[]
[]
[]
[""]
["Juin 2019   EDM"]
[]
[null,{"$f":"'Encodage réponses Es'!$B$1:$I$1","v":0}]
["Classe : ",{"$f":"'Encodage réponses Es'!$C$3","v":0}]
[{"$f":"CONCATENATE(\"Synthèse des résultats de l'élève : \",Résultats!$E13,\" \",Résultats!$F13)","v":"Synthèse des résultats de l'élève :  "},null,null,null,null,null,null,null,null,null,null,null,{"$f":"IF(Résultats!$J316=\"Absent(e)\",\"Absent(e)\",IF(Résultats!$J316=\"Incomplet\",\"Incomplet\",\"\"))","v":""}]
[]
["EDM",null,null,null,null,null,null,null,null,null,null,null,null,{"$f":"IF(OR(Résultats!$J13=\"Absent(e)\",Résultats!$J13=\"Incomplet\"),\"\",Résultats!$J13)","v":""},{"$f":"\"/\"","v":"/"},{"$f":"Résultats!$J$4","v":80}]
[]
[null,null,null,null,null,null,null,null,null,null,null,null,null,{"$f":"IF(N314=\"\",\"\",N314/P314)","v":""}]
[]
["Volet géographique",null,null,null,null,null,null,null,null,{"$f":"IF(Résultats!$M13=\"\",\"\",Résultats!$M13)","v":""},null,null,{"$f":"\"/\"","v":"/"},{"$f":"Résultats!$M$4","v":40},null,{"$f":"IF(OR(J318=\"\",J318=\"Absent(e)\",J318=\"Incomplet\"),\"\",J318/N318)","v":""}]
["Savoir-faire géographiques",null,null,null,null,null,null,{"$f":"IF(OR(Résultats!$AI13=\"Absent(e)\",Résultats!$AI13=\"Incomplet\"),\"\",Résultats!$AI13)","v":""},null,{"$f":"\"/\"","v":"/"},{"$f":"Résultats!$AI$2","v":24}]
["-  utiliser des repères spatiaux"]
["-  utiliser des représentations de l'espace"]
["-  localiser un lieu, un espace"]
["-  lire un paysage sur le terrain (pas mobilisé)"]
["-  lire une image géographique"]
["Savoirs géographiques",null,null,null,null,null,null,{"$f":"IF(OR(Résultats!$AX13=\"Absent(e)\",Résultats!$AX13=\"Incomplet\"),\"\",Résultats!$AX13)","v":""},null,{"$f":"\"/\"","v":"/"},{"$f":"Résultats!$AX$2","v":16}]
["-  identifier et caractériser les composantes du paysage"]
["-  identifier et caractériser des milieux naturels et leurs atouts et contraintes"]
["-  caractériser l'organisation de l'espace (fonctions, structurations et évolution)"]
["-  identifier des interactions hommes-espace"]
[]
["Volet historique",null,null,null,null,null,null,null,null,{"$f":"IF(OR(Résultats!$O13=\"\",Résultats!$O13=\"Incomplet\"),\"\",Résultats!$O13)","v":""},null,null,{"$f":"\"/\"","v":"/"},{"$f":"Résultats!$O$4","v":40},null,{"$f":"IF(OR(J331=\"\",J331=\"Absent(e)\",J331=\"Incomplet\"),\"\",J331/N331)","v":""}]
["Savoir-faire historiques",null,null,null,null,null,null,{"$f":"IF(OR(Résultats!$BR13=\"a\",Résultats!$BR13=\"A\",Résultats!$BR13=\"\"),\"\",Résultats!$BR13)","v":""},null,{"$f":"\"/\"","v":"/"},{"$f":"Résultats!$BR$2","v":24.5}]
["-  utiliser des repères du temps"]
["-  utiliser des représentations du temps"]
["-  lire une trace du passé"]
["-  exploiter des sources historiques"]
["Savoirs historiques",null,null,null,null,null,null,{"$f":"IF(OR(Résultats!$CE13=\"Absent(e)\",Résultats!$CE13=\"Incomplet\"),\"\",Résultats!$CE13)","v":""},null,{"$f":"\"/\"","v":"/"},{"$f":"Résultats!$CE$2","v":15.5}]
["-  organisation du temps"]
["-  identifier et caractériser le mode de vie des gens à une époque déterminée"]
["-  mettre en évidence la nature d'une trace du passé"]
[]
[]
[]
[]
[""]
["Juin 2019   EDM"]
[]
[null,{"$f":"'Encodage réponses Es'!$B$1:$I$1","v":0}]
["Classe : ",{"$f":"'Encodage réponses Es'!$C$3","v":0}]
[{"$f":"CONCATENATE(\"Synthèse des résultats de l'élève : \",Résultats!$E14,\" \",Résultats!$F14)","v":"Synthèse des résultats de l'élève :  "},null,null,null,null,null,null,null,null,null,null,null,{"$f":"IF(Résultats!$J355=\"Absent(e)\",\"Absent(e)\",IF(Résultats!$J355=\"Incomplet\",\"Incomplet\",\"\"))","v":""}]
[]
["EDM",null,null,null,null,null,null,null,null,null,null,null,null,{"$f":"IF(OR(Résultats!$J14=\"Absent(e)\",Résultats!$J14=\"Incomplet\"),\"\",Résultats!$J14)","v":""},{"$f":"\"/\"","v":"/"},{"$f":"Résultats!$J$4","v":80}]
[]
[null,null,null,null,null,null,null,null,null,null,null,null,null,{"$f":"IF(N352=\"\",\"\",N352/P352)","v":""}]
[]
["Volet géographique",null,null,null,null,null,null,null,null,{"$f":"IF(Résultats!$M14=\"\",\"\",Résultats!$M14)","v":""},null,null,{"$f":"\"/\"","v":"/"},{"$f":"Résultats!$M$4","v":40},null,{"$f":"IF(OR(J356=\"\",J356=\"Absent(e)\",J356=\"Incomplet\"),\"\",J356/N356)","v":""}]
["Savoir-faire géographiques",null,null,null,null,null,null,{"$f":"IF(OR(Résultats!$AI14=\"Absent(e)\",Résultats!$AI14=\"Incomplet\"),\"\",Résultats!$AI14)","v":""},null,{"$f":"\"/\"","v":"/"},{"$f":"Résultats!$AI$2","v":24}]
["-  utiliser des repères spatiaux"]
["-  utiliser des représentations de l'espace"]
["-  localiser un lieu, un espace"]
["-  lire un paysage sur le terrain (pas mobilisé)"]
["-  lire une image géographique"]
["Savoirs géographiques",null,null,null,null,null,null,{"$f":"IF(OR(Résultats!$AX14=\"Absent(e)\",Résultats!$AX14=\"Incomplet\"),\"\",Résultats!$AX14)","v":""},null,{"$f":"\"/\"","v":"/"},{"$f":"Résultats!$AX$2","v":16}]
["-  identifier et caractériser les composantes du paysage"]
["-  identifier et caractériser des milieux naturels et leurs atouts et contraintes"]
["-  caractériser l'organisation de l'espace (fonctions, structurations et évolution)"]
["-  identifier des interactions hommes-espace"]
[]
["Volet historique",null,null,null,null,null,null,null,null,{"$f":"IF(OR(Résultats!$O14=\"\",Résultats!$O14=\"Incomplet\"),\"\",Résultats!$O14)","v":""},null,null,{"$f":"\"/\"","v":"/"},{"$f":"Résultats!$O$4","v":40},null,{"$f":"IF(OR(J369=\"\",J369=\"Absent(e)\",J369=\"Incomplet\"),\"\",J369/N369)","v":""}]
["Savoir-faire historiques",null,null,null,null,null,null,{"$f":"IF(OR(Résultats!$BR14=\"a\",Résultats!$BR14=\"A\",Résultats!$BR14=\"\"),\"\",Résultats!$BR14)","v":""},null,{"$f":"\"/\"","v":"/"},{"$f":"Résultats!$BR$2","v":24.5}]
["-  utiliser des repères du temps"]
["-  utiliser des représentations du temps"]
["-  lire une trace du passé"]
["-  exploiter des sources historiques"]
["Savoirs historiques",null,null,null,null,null,null,{"$f":"IF(OR(Résultats!$CE14=\"Absent(e)\",Résultats!$CE14=\"Incomplet\"),\"\",Résultats!$CE14)","v":""},null,{"$f":"\"/\"","v":"/"},{"$f":"Résultats!$CE$2","v":15.5}]
["-  organisation du temps"]
["-  identifier et caractériser le mode de vie des gens à une époque déterminée"]
["-  mettre en évidence la nature d'une trace du passé"]
[]
[]
[]
[]
[""]
["Juin 2019   EDM"]
[]
[null,{"$f":"'Encodage réponses Es'!$B$1:$I$1","v":0}]
["Classe : ",{"$f":"'Encodage réponses Es'!$C$3","v":0}]
[{"$f":"CONCATENATE(\"Synthèse des résultats de l'élève : \",Résultats!$E15,\" \",Résultats!$F15)","v":"Synthèse des résultats de l'élève :  "},null,null,null,null,null,null,null,null,null,null,null,{"$f":"IF(Résultats!$J394=\"Absent(e)\",\"Absent(e)\",IF(Résultats!$J394=\"Incomplet\",\"Incomplet\",\"\"))","v":""}]
[]
["EDM",null,null,null,null,null,null,null,null,null,null,null,null,{"$f":"IF(OR(Résultats!$J15=\"Absent(e)\",Résultats!$J15=\"Incomplet\"),\"\",Résultats!$J15)","v":""},{"$f":"\"/\"","v":"/"},{"$f":"Résultats!$J$4","v":80}]
[]
[null,null,null,null,null,null,null,null,null,null,null,null,null,{"$f":"IF(N390=\"\",\"\",N390/P390)","v":""}]
[]
["Volet géographique",null,null,null,null,null,null,null,null,{"$f":"IF(Résultats!$M15=\"\",\"\",Résultats!$M15)","v":""},null,null,{"$f":"\"/\"","v":"/"},{"$f":"Résultats!$M$4","v":40},null,{"$f":"IF(OR(J394=\"\",J394=\"Absent(e)\",J394=\"Incomplet\"),\"\",J394/N394)","v":""}]
["Savoir-faire géographiques",null,null,null,null,null,null,{"$f":"IF(OR(Résultats!$AI15=\"Absent(e)\",Résultats!$AI15=\"Incomplet\"),\"\",Résultats!$AI15)","v":""},null,{"$f":"\"/\"","v":"/"},{"$f":"Résultats!$AI$2","v":24}]
["-  utiliser des repères spatiaux"]
["-  utiliser des représentations de l'espace"]
["-  localiser un lieu, un espace"]
["-  lire un paysage sur le terrain (pas mobilisé)"]
["-  lire une image géographique"]
["Savoirs géographiques",null,null,null,null,null,null,{"$f":"IF(OR(Résultats!$AX15=\"Absent(e)\",Résultats!$AX15=\"Incomplet\"),\"\",Résultats!$AX15)","v":""},null,{"$f":"\"/\"","v":"/"},{"$f":"Résultats!$AX$2","v":16}]
["-  identifier et caractériser les composantes du paysage"]
["-  identifier et caractériser des milieux naturels et leurs atouts et contraintes"]
["-  caractériser l'organisation de l'espace (fonctions, structurations et évolution)"]
["-  identifier des interactions hommes-espace"]
[]
["Volet historique",null,null,null,null,null,null,null,null,{"$f":"IF(OR(Résultats!$O15=\"\",Résultats!$O15=\"Incomplet\"),\"\",Résultats!$O15)","v":""},null,null,{"$f":"\"/\"","v":"/"},{"$f":"Résultats!$O$4","v":40},null,{"$f":"IF(OR(J407=\"\",J407=\"Absent(e)\",J407=\"Incomplet\"),\"\",J407/N407)","v":""}]
["Savoir-faire historiques",null,null,null,null,null,null,{"$f":"IF(OR(Résultats!$BR15=\"a\",Résultats!$BR15=\"A\",Résultats!$BR15=\"\"),\"\",Résultats!$BR15)","v":""},null,{"$f":"\"/\"","v":"/"},{"$f":"Résultats!$BR$2","v":24.5}]
["-  utiliser des repères du temps"]
["-  utiliser des représentations du temps"]
["-  lire une trace du passé"]
["-  exploiter des sources historiques"]
["Savoirs historiques",null,null,null,null,null,null,{"$f":"IF(OR(Résultats!$CE15=\"Absent(e)\",Résultats!$CE15=\"Incomplet\"),\"\",Résultats!$CE15)","v":""},null,{"$f":"\"/\"","v":"/"},{"$f":"Résultats!$CE$2","v":15.5}]
["-  organisation du temps"]
["-  identifier et caractériser le mode de vie des gens à une époque déterminée"]
["-  mettre en évidence la nature d'une trace du passé"]
[]
[]
[]
[]
[""]
["Juin 2019   EDM"]
[]
[null,{"$f":"'Encodage réponses Es'!$B$1:$I$1","v":0}]
["Classe : ",{"$f":"'Encodage réponses Es'!$C$3","v":0}]
[{"$f":"CONCATENATE(\"Synthèse des résultats de l'élève : \",Résultats!$E16,\" \",Résultats!$F16)","v":"Synthèse des résultats de l'élève :  "},null,null,null,null,null,null,null,null,null,null,null,{"$f":"IF(Résultats!$J433=\"Absent(e)\",\"Absent(e)\",IF(Résultats!$J433=\"Incomplet\",\"Incomplet\",\"\"))","v":""}]
[]
["EDM",null,null,null,null,null,null,null,null,null,null,null,null,{"$f":"IF(OR(Résultats!$J16=\"Absent(e)\",Résultats!$J16=\"Incomplet\"),\"\",Résultats!$J16)","v":""},{"$f":"\"/\"","v":"/"},{"$f":"Résultats!$J$4","v":80}]
[]
[null,null,null,null,null,null,null,null,null,null,null,null,null,{"$f":"IF(N428=\"\",\"\",N428/P428)","v":""}]
[]
["Volet géographique",null,null,null,null,null,null,null,null,{"$f":"IF(Résultats!$M16=\"\",\"\",Résultats!$M16)","v":""},null,null,{"$f":"\"/\"","v":"/"},{"$f":"Résultats!$M$4","v":40},null,{"$f":"IF(OR(J432=\"\",J432=\"Absent(e)\",J432=\"Incomplet\"),\"\",J432/N432)","v":""}]
["Savoir-faire géographiques",null,null,null,null,null,null,{"$f":"IF(OR(Résultats!$AI16=\"Absent(e)\",Résultats!$AI16=\"Incomplet\"),\"\",Résultats!$AI16)","v":""},null,{"$f":"\"/\"","v":"/"},{"$f":"Résultats!$AI$2","v":24}]
["-  utiliser des repères spatiaux"]
["-  utiliser des représentations de l'espace"]
["-  localiser un lieu, un espace"]
["-  lire un paysage sur le terrain (pas mobilisé)"]
["-  lire une image géographique"]
["Savoirs géographiques",null,null,null,null,null,null,{"$f":"IF(OR(Résultats!$AX16=\"Absent(e)\",Résultats!$AX16=\"Incomplet\"),\"\",Résultats!$AX16)","v":""},null,{"$f":"\"/\"","v":"/"},{"$f":"Résultats!$AX$2","v":16}]
["-  identifier et caractériser les composantes du paysage"]
["-  identifier et caractériser des milieux naturels et leurs atouts et contraintes"]
["-  caractériser l'organisation de l'espace (fonctions, structurations et évolution)"]
["-  identifier des interactions hommes-espace"]
[]
["Volet historique",null,null,null,null,null,null,null,null,{"$f":"IF(OR(Résultats!$O16=\"\",Résultats!$O16=\"Incomplet\"),\"\",Résultats!$O16)","v":""},null,null,{"$f":"\"/\"","v":"/"},{"$f":"Résultats!$O$4","v":40},null,{"$f":"IF(OR(J445=\"\",J445=\"Absent(e)\",J445=\"Incomplet\"),\"\",J445/N445)","v":""}]
["Savoir-faire historiques",null,null,null,null,null,null,{"$f":"IF(OR(Résultats!$BR16=\"a\",Résultats!$BR16=\"A\",Résultats!$BR16=\"\"),\"\",Résultats!$BR16)","v":""},null,{"$f":"\"/\"","v":"/"},{"$f":"Résultats!$BR$2","v":24.5}]
["-  utiliser des repères du temps"]
["-  utiliser des représentations du temps"]
["-  lire une trace du passé"]
["-  exploiter des sources historiques"]
["Savoirs historiques",null,null,null,null,null,null,{"$f":"IF(OR(Résultats!$CE16=\"Absent(e)\",Résultats!$CE16=\"Incomplet\"),\"\",Résultats!$CE16)","v":""},null,{"$f":"\"/\"","v":"/"},{"$f":"Résultats!$CE$2","v":15.5}]
["-  organisation du temps"]
["-  identifier et caractériser le mode de vie des gens à une époque déterminée"]
["-  mettre en évidence la nature d'une trace du passé"]
[]
[]
[]
[]
[""]
["Juin 2019   EDM"]
[]
[null,{"$f":"'Encodage réponses Es'!$B$1:$I$1","v":0}]
["Classe : ",{"$f":"'Encodage réponses Es'!$C$3","v":0}]
[{"$f":"CONCATENATE(\"Synthèse des résultats de l'élève : \",Résultats!$E17,\" \",Résultats!$F17)","v":"Synthèse des résultats de l'élève :  "},null,null,null,null,null,null,null,null,null,null,null,{"$f":"IF(Résultats!$J472=\"Absent(e)\",\"Absent(e)\",IF(Résultats!$J472=\"Incomplet\",\"Incomplet\",\"\"))","v":""}]
[]
["EDM",null,null,null,null,null,null,null,null,null,null,null,null,{"$f":"IF(OR(Résultats!$J17=\"Absent(e)\",Résultats!$J17=\"Incomplet\"),\"\",Résultats!$J17)","v":""},{"$f":"\"/\"","v":"/"},{"$f":"Résultats!$J$4","v":80}]
[]
[null,null,null,null,null,null,null,null,null,null,null,null,null,{"$f":"IF(N466=\"\",\"\",N466/P466)","v":""}]
[]
["Volet géographique",null,null,null,null,null,null,null,null,{"$f":"IF(Résultats!$M17=\"\",\"\",Résultats!$M17)","v":""},null,null,{"$f":"\"/\"","v":"/"},{"$f":"Résultats!$M$4","v":40},null,{"$f":"IF(OR(J470=\"\",J470=\"Absent(e)\",J470=\"Incomplet\"),\"\",J470/N470)","v":""}]
["Savoir-faire géographiques",null,null,null,null,null,null,{"$f":"IF(OR(Résultats!$AI17=\"Absent(e)\",Résultats!$AI17=\"Incomplet\"),\"\",Résultats!$AI17)","v":""},null,{"$f":"\"/\"","v":"/"},{"$f":"Résultats!$AI$2","v":24}]
["-  utiliser des repères spatiaux"]
["-  utiliser des représentations de l'espace"]
["-  localiser un lieu, un espace"]
["-  lire un paysage sur le terrain (pas mobilisé)"]
["-  lire une image géographique"]
["Savoirs géographiques",null,null,null,null,null,null,{"$f":"IF(OR(Résultats!$AX17=\"Absent(e)\",Résultats!$AX17=\"Incomplet\"),\"\",Résultats!$AX17)","v":""},null,{"$f":"\"/\"","v":"/"},{"$f":"Résultats!$AX$2","v":16}]
["-  identifier et caractériser les composantes du paysage"]
["-  identifier et caractériser des milieux naturels et leurs atouts et contraintes"]
["-  caractériser l'organisation de l'espace (fonctions, structurations et évolution)"]
["-  identifier des interactions hommes-espace"]
[]
["Volet historique",null,null,null,null,null,null,null,null,{"$f":"IF(OR(Résultats!$O17=\"\",Résultats!$O17=\"Incomplet\"),\"\",Résultats!$O17)","v":""},null,null,{"$f":"\"/\"","v":"/"},{"$f":"Résultats!$O$4","v":40},null,{"$f":"IF(OR(J483=\"\",J483=\"Absent(e)\",J483=\"Incomplet\"),\"\",J483/N483)","v":""}]
["Savoir-faire historiques",null,null,null,null,null,null,{"$f":"IF(OR(Résultats!$BR17=\"a\",Résultats!$BR17=\"A\",Résultats!$BR17=\"\"),\"\",Résultats!$BR17)","v":""},null,{"$f":"\"/\"","v":"/"},{"$f":"Résultats!$BR$2","v":24.5}]
["-  utiliser des repères du temps"]
["-  utiliser des représentations du temps"]
["-  lire une trace du passé"]
["-  exploiter des sources historiques"]
["Savoirs historiques",null,null,null,null,null,null,{"$f":"IF(OR(Résultats!$CE17=\"Absent(e)\",Résultats!$CE17=\"Incomplet\"),\"\",Résultats!$CE17)","v":""},null,{"$f":"\"/\"","v":"/"},{"$f":"Résultats!$CE$2","v":15.5}]
["-  organisation du temps"]
["-  identifier et caractériser le mode de vie des gens à une époque déterminée"]
["-  mettre en évidence la nature d'une trace du passé"]
[]
[]
[]
[]
[""]
["Juin 2019   EDM"]
[]
[null,{"$f":"'Encodage réponses Es'!$B$1:$I$1","v":0}]
["Classe : ",{"$f":"'Encodage réponses Es'!$C$3","v":0}]
[{"$f":"CONCATENATE(\"Synthèse des résultats de l'élève : \",Résultats!$E18,\" \",Résultats!$F18)","v":"Synthèse des résultats de l'élève :  "},null,null,null,null,null,null,null,null,null,null,null,{"$f":"IF(Résultats!$J511=\"Absent(e)\",\"Absent(e)\",IF(Résultats!$J511=\"Incomplet\",\"Incomplet\",\"\"))","v":""}]
[]
["EDM",null,null,null,null,null,null,null,null,null,null,null,null,{"$f":"IF(OR(Résultats!$J18=\"Absent(e)\",Résultats!$J18=\"Incomplet\"),\"\",Résultats!$J18)","v":""},{"$f":"\"/\"","v":"/"},{"$f":"Résultats!$J$4","v":80}]
[]
[null,null,null,null,null,null,null,null,null,null,null,null,null,{"$f":"IF(N504=\"\",\"\",N504/P504)","v":""}]
[]
["Volet géographique",null,null,null,null,null,null,null,null,{"$f":"IF(Résultats!$M18=\"\",\"\",Résultats!$M18)","v":""},null,null,{"$f":"\"/\"","v":"/"},{"$f":"Résultats!$M$4","v":40},null,{"$f":"IF(OR(J508=\"\",J508=\"Absent(e)\",J508=\"Incomplet\"),\"\",J508/N508)","v":""}]
["Savoir-faire géographiques",null,null,null,null,null,null,{"$f":"IF(OR(Résultats!$AI18=\"Absent(e)\",Résultats!$AI18=\"Incomplet\"),\"\",Résultats!$AI18)","v":""},null,{"$f":"\"/\"","v":"/"},{"$f":"Résultats!$AI$2","v":24}]
["-  utiliser des repères spatiaux"]
["-  utiliser des représentations de l'espace"]
["-  localiser un lieu, un espace"]
["-  lire un paysage sur le terrain (pas mobilisé)"]
["-  lire une image géographique"]
["Savoirs géographiques",null,null,null,null,null,null,{"$f":"IF(OR(Résultats!$AX18=\"Absent(e)\",Résultats!$AX18=\"Incomplet\"),\"\",Résultats!$AX18)","v":""},null,{"$f":"\"/\"","v":"/"},{"$f":"Résultats!$AX$2","v":16}]
["-  identifier et caractériser les composantes du paysage"]
["-  identifier et caractériser des milieux naturels et leurs atouts et contraintes"]
["-  caractériser l'organisation de l'espace (fonctions, structurations et évolution)"]
["-  identifier des interactions hommes-espace"]
[]
["Volet historique",null,null,null,null,null,null,null,null,{"$f":"IF(OR(Résultats!$O18=\"\",Résultats!$O18=\"Incomplet\"),\"\",Résultats!$O18)","v":""},null,null,{"$f":"\"/\"","v":"/"},{"$f":"Résultats!$O$4","v":40},null,{"$f":"IF(OR(J521=\"\",J521=\"Absent(e)\",J521=\"Incomplet\"),\"\",J521/N521)","v":""}]
["Savoir-faire historiques",null,null,null,null,null,null,{"$f":"IF(OR(Résultats!$BR18=\"a\",Résultats!$BR18=\"A\",Résultats!$BR18=\"\"),\"\",Résultats!$BR18)","v":""},null,{"$f":"\"/\"","v":"/"},{"$f":"Résultats!$BR$2","v":24.5}]
["-  utiliser des repères du temps"]
["-  utiliser des représentations du temps"]
["-  lire une trace du passé"]
["-  exploiter des sources historiques"]
["Savoirs historiques",null,null,null,null,null,null,{"$f":"IF(OR(Résultats!$CE18=\"Absent(e)\",Résultats!$CE18=\"Incomplet\"),\"\",Résultats!$CE18)","v":""},null,{"$f":"\"/\"","v":"/"},{"$f":"Résultats!$CE$2","v":15.5}]
["-  organisation du temps"]
["-  identifier et caractériser le mode de vie des gens à une époque déterminée"]
["-  mettre en évidence la nature d'une trace du passé"]
[]
[]
[]
[]
[""]
["Juin 2019   EDM"]
[]
[null,{"$f":"'Encodage réponses Es'!$B$1:$I$1","v":0}]
["Classe : ",{"$f":"'Encodage réponses Es'!$C$3","v":0}]
[{"$f":"CONCATENATE(\"Synthèse des résultats de l'élève : \",Résultats!$E19,\" \",Résultats!$F19)","v":"Synthèse des résultats de l'élève :  "},null,null,null,null,null,null,null,null,null,null,null,{"$f":"IF(Résultats!$J550=\"Absent(e)\",\"Absent(e)\",IF(Résultats!$J550=\"Incomplet\",\"Incomplet\",\"\"))","v":""}]
[]
["EDM",null,null,null,null,null,null,null,null,null,null,null,null,{"$f":"IF(OR(Résultats!$J19=\"Absent(e)\",Résultats!$J19=\"Incomplet\"),\"\",Résultats!$J19)","v":""},{"$f":"\"/\"","v":"/"},{"$f":"Résultats!$J$4","v":80}]
[]
[null,null,null,null,null,null,null,null,null,null,null,null,null,{"$f":"IF(N542=\"\",\"\",N542/P542)","v":""}]
[]
["Volet géographique",null,null,null,null,null,null,null,null,{"$f":"IF(Résultats!$M19=\"\",\"\",Résultats!$M19)","v":""},null,null,{"$f":"\"/\"","v":"/"},{"$f":"Résultats!$M$4","v":40},null,{"$f":"IF(OR(J546=\"\",J546=\"Absent(e)\",J546=\"Incomplet\"),\"\",J546/N546)","v":""}]
["Savoir-faire géographiques",null,null,null,null,null,null,{"$f":"IF(OR(Résultats!$AI19=\"Absent(e)\",Résultats!$AI19=\"Incomplet\"),\"\",Résultats!$AI19)","v":""},null,{"$f":"\"/\"","v":"/"},{"$f":"Résultats!$AI$2","v":24}]
["-  utiliser des repères spatiaux"]
["-  utiliser des représentations de l'espace"]
["-  localiser un lieu, un espace"]
["-  lire un paysage sur le terrain (pas mobilisé)"]
["-  lire une image géographique"]
["Savoirs géographiques",null,null,null,null,null,null,{"$f":"IF(OR(Résultats!$AX19=\"Absent(e)\",Résultats!$AX19=\"Incomplet\"),\"\",Résultats!$AX19)","v":""},null,{"$f":"\"/\"","v":"/"},{"$f":"Résultats!$AX$2","v":16}]
["-  identifier et caractériser les composantes du paysage"]
["-  identifier et caractériser des milieux naturels et leurs atouts et contraintes"]
["-  caractériser l'organisation de l'espace (fonctions, structurations et évolution)"]
["-  identifier des interactions hommes-espace"]
[]
["Volet historique",null,null,null,null,null,null,null,null,{"$f":"IF(OR(Résultats!$O19=\"\",Résultats!$O19=\"Incomplet\"),\"\",Résultats!$O19)","v":""},null,null,{"$f":"\"/\"","v":"/"},{"$f":"Résultats!$O$4","v":40},null,{"$f":"IF(OR(J559=\"\",J559=\"Absent(e)\",J559=\"Incomplet\"),\"\",J559/N559)","v":""}]
["Savoir-faire historiques",null,null,null,null,null,null,{"$f":"IF(OR(Résultats!$BR19=\"a\",Résultats!$BR19=\"A\",Résultats!$BR19=\"\"),\"\",Résultats!$BR19)","v":""},null,{"$f":"\"/\"","v":"/"},{"$f":"Résultats!$BR$2","v":24.5}]
["-  utiliser des repères du temps"]
["-  utiliser des représentations du temps"]
["-  lire une trace du passé"]
["-  exploiter des sources historiques"]
["Savoirs historiques",null,null,null,null,null,null,{"$f":"IF(OR(Résultats!$CE19=\"Absent(e)\",Résultats!$CE19=\"Incomplet\"),\"\",Résultats!$CE19)","v":""},null,{"$f":"\"/\"","v":"/"},{"$f":"Résultats!$CE$2","v":15.5}]
["-  organisation du temps"]
["-  identifier et caractériser le mode de vie des gens à une époque déterminée"]
["-  mettre en évidence la nature d'une trace du passé"]
[]
[]
[]
[]
[""]
["Juin 2019   EDM"]
[]
[null,{"$f":"'Encodage réponses Es'!$B$1:$I$1","v":0}]
["Classe : ",{"$f":"'Encodage réponses Es'!$C$3","v":0}]
[{"$f":"CONCATENATE(\"Synthèse des résultats de l'élève : \",Résultats!$E20,\" \",Résultats!$F20)","v":"Synthèse des résultats de l'élève :  "},null,null,null,null,null,null,null,null,null,null,null,{"$f":"IF(Résultats!$J589=\"Absent(e)\",\"Absent(e)\",IF(Résultats!$J589=\"Incomplet\",\"Incomplet\",\"\"))","v":""}]
[]
["EDM",null,null,null,null,null,null,null,null,null,null,null,null,{"$f":"IF(OR(Résultats!$J20=\"Absent(e)\",Résultats!$J20=\"Incomplet\"),\"\",Résultats!$J20)","v":""},{"$f":"\"/\"","v":"/"},{"$f":"Résultats!$J$4","v":80}]
[]
[null,null,null,null,null,null,null,null,null,null,null,null,null,{"$f":"IF(N580=\"\",\"\",N580/P580)","v":""}]
[]
["Volet géographique",null,null,null,null,null,null,null,null,{"$f":"IF(Résultats!$M20=\"\",\"\",Résultats!$M20)","v":""},null,null,{"$f":"\"/\"","v":"/"},{"$f":"Résultats!$M$4","v":40},null,{"$f":"IF(OR(J584=\"\",J584=\"Absent(e)\",J584=\"Incomplet\"),\"\",J584/N584)","v":""}]
["Savoir-faire géographiques",null,null,null,null,null,null,{"$f":"IF(OR(Résultats!$AI20=\"Absent(e)\",Résultats!$AI20=\"Incomplet\"),\"\",Résultats!$AI20)","v":""},null,{"$f":"\"/\"","v":"/"},{"$f":"Résultats!$AI$2","v":24}]
["-  utiliser des repères spatiaux"]
["-  utiliser des représentations de l'espace"]
["-  localiser un lieu, un espace"]
["-  lire un paysage sur le terrain (pas mobilisé)"]
["-  lire une image géographique"]
["Savoirs géographiques",null,null,null,null,null,null,{"$f":"IF(OR(Résultats!$AX20=\"Absent(e)\",Résultats!$AX20=\"Incomplet\"),\"\",Résultats!$AX20)","v":""},null,{"$f":"\"/\"","v":"/"},{"$f":"Résultats!$AX$2","v":16}]
["-  identifier et caractériser les composantes du paysage"]
["-  identifier et caractériser des milieux naturels et leurs atouts et contraintes"]
["-  caractériser l'organisation de l'espace (fonctions, structurations et évolution)"]
["-  identifier des interactions hommes-espace"]
[]
["Volet historique",null,null,null,null,null,null,null,null,{"$f":"IF(OR(Résultats!$O20=\"\",Résultats!$O20=\"Incomplet\"),\"\",Résultats!$O20)","v":""},null,null,{"$f":"\"/\"","v":"/"},{"$f":"Résultats!$O$4","v":40},null,{"$f":"IF(OR(J597=\"\",J597=\"Absent(e)\",J597=\"Incomplet\"),\"\",J597/N597)","v":""}]
["Savoir-faire historiques",null,null,null,null,null,null,{"$f":"IF(OR(Résultats!$BR20=\"a\",Résultats!$BR20=\"A\",Résultats!$BR20=\"\"),\"\",Résultats!$BR20)","v":""},null,{"$f":"\"/\"","v":"/"},{"$f":"Résultats!$BR$2","v":24.5}]
["-  utiliser des repères du temps"]
["-  utiliser des représentations du temps"]
["-  lire une trace du passé"]
["-  exploiter des sources historiques"]
["Savoirs historiques",null,null,null,null,null,null,{"$f":"IF(OR(Résultats!$CE20=\"Absent(e)\",Résultats!$CE20=\"Incomplet\"),\"\",Résultats!$CE20)","v":""},null,{"$f":"\"/\"","v":"/"},{"$f":"Résultats!$CE$2","v":15.5}]
["-  organisation du temps"]
["-  identifier et caractériser le mode de vie des gens à une époque déterminée"]
["-  mettre en évidence la nature d'une trace du passé"]
[]
[]
[]
[]
[""]
["Juin 2019   EDM"]
[]
[null,{"$f":"'Encodage réponses Es'!$B$1:$I$1","v":0}]
["Classe : ",{"$f":"'Encodage réponses Es'!$C$3","v":0}]
[{"$f":"CONCATENATE(\"Synthèse des résultats de l'élève : \",Résultats!$E21,\" \",Résultats!$F21)","v":"Synthèse des résultats de l'élève :  "},null,null,null,null,null,null,null,null,null,null,null,{"$f":"IF(Résultats!$J628=\"Absent(e)\",\"Absent(e)\",IF(Résultats!$J628=\"Incomplet\",\"Incomplet\",\"\"))","v":""}]
[]
["EDM",null,null,null,null,null,null,null,null,null,null,null,null,{"$f":"IF(OR(Résultats!$J21=\"Absent(e)\",Résultats!$J21=\"Incomplet\"),\"\",Résultats!$J21)","v":""},{"$f":"\"/\"","v":"/"},{"$f":"Résultats!$J$4","v":80}]
[]
[null,null,null,null,null,null,null,null,null,null,null,null,null,{"$f":"IF(N618=\"\",\"\",N618/P618)","v":""}]
[]
["Volet géographique",null,null,null,null,null,null,null,null,{"$f":"IF(Résultats!$M21=\"\",\"\",Résultats!$M21)","v":""},null,null,{"$f":"\"/\"","v":"/"},{"$f":"Résultats!$M$4","v":40},null,{"$f":"IF(OR(J622=\"\",J622=\"Absent(e)\",J622=\"Incomplet\"),\"\",J622/N622)","v":""}]
["Savoir-faire géographiques",null,null,null,null,null,null,{"$f":"IF(OR(Résultats!$AI21=\"Absent(e)\",Résultats!$AI21=\"Incomplet\"),\"\",Résultats!$AI21)","v":""},null,{"$f":"\"/\"","v":"/"},{"$f":"Résultats!$AI$2","v":24}]
["-  utiliser des repères spatiaux"]
["-  utiliser des représentations de l'espace"]
["-  localiser un lieu, un espace"]
["-  lire un paysage sur le terrain (pas mobilisé)"]
["-  lire une image géographique"]
["Savoirs géographiques",null,null,null,null,null,null,{"$f":"IF(OR(Résultats!$AX21=\"Absent(e)\",Résultats!$AX21=\"Incomplet\"),\"\",Résultats!$AX21)","v":""},null,{"$f":"\"/\"","v":"/"},{"$f":"Résultats!$AX$2","v":16}]
["-  identifier et caractériser les composantes du paysage"]
["-  identifier et caractériser des milieux naturels et leurs atouts et contraintes"]
["-  caractériser l'organisation de l'espace (fonctions, structurations et évolution)"]
["-  identifier des interactions hommes-espace"]
[]
["Volet historique",null,null,null,null,null,null,null,null,{"$f":"IF(OR(Résultats!$O21=\"\",Résultats!$O21=\"Incomplet\"),\"\",Résultats!$O21)","v":""},null,null,{"$f":"\"/\"","v":"/"},{"$f":"Résultats!$O$4","v":40},null,{"$f":"IF(OR(J635=\"\",J635=\"Absent(e)\",J635=\"Incomplet\"),\"\",J635/N635)","v":""}]
["Savoir-faire historiques",null,null,null,null,null,null,{"$f":"IF(OR(Résultats!$BR21=\"a\",Résultats!$BR21=\"A\",Résultats!$BR21=\"\"),\"\",Résultats!$BR21)","v":""},null,{"$f":"\"/\"","v":"/"},{"$f":"Résultats!$BR$2","v":24.5}]
["-  utiliser des repères du temps"]
["-  utiliser des représentations du temps"]
["-  lire une trace du passé"]
["-  exploiter des sources historiques"]
["Savoirs historiques",null,null,null,null,null,null,{"$f":"IF(OR(Résultats!$CE21=\"Absent(e)\",Résultats!$CE21=\"Incomplet\"),\"\",Résultats!$CE21)","v":""},null,{"$f":"\"/\"","v":"/"},{"$f":"Résultats!$CE$2","v":15.5}]
["-  organisation du temps"]
["-  identifier et caractériser le mode de vie des gens à une époque déterminée"]
["-  mettre en évidence la nature d'une trace du passé"]
[]
[]
[]
[]
[""]
["Juin 2019   EDM"]
[]
[null,{"$f":"'Encodage réponses Es'!$B$1:$I$1","v":0}]
["Classe : ",{"$f":"'Encodage réponses Es'!$C$3","v":0}]
[{"$f":"CONCATENATE(\"Synthèse des résultats de l'élève : \",Résultats!$E22,\" \",Résultats!$F22)","v":"Synthèse des résultats de l'élève :  "},null,null,null,null,null,null,null,null,null,null,null,{"$f":"IF(Résultats!$J667=\"Absent(e)\",\"Absent(e)\",IF(Résultats!$J667=\"Incomplet\",\"Incomplet\",\"\"))","v":""}]
[]
["EDM",null,null,null,null,null,null,null,null,null,null,null,null,{"$f":"IF(OR(Résultats!$J22=\"Absent(e)\",Résultats!$J22=\"Incomplet\"),\"\",Résultats!$J22)","v":""},{"$f":"\"/\"","v":"/"},{"$f":"Résultats!$J$4","v":80}]
[]
[null,null,null,null,null,null,null,null,null,null,null,null,null,{"$f":"IF(N656=\"\",\"\",N656/P656)","v":""}]
[]
["Volet géographique",null,null,null,null,null,null,null,null,{"$f":"IF(Résultats!$M22=\"\",\"\",Résultats!$M22)","v":""},null,null,{"$f":"\"/\"","v":"/"},{"$f":"Résultats!$M$4","v":40},null,{"$f":"IF(OR(J660=\"\",J660=\"Absent(e)\",J660=\"Incomplet\"),\"\",J660/N660)","v":""}]
["Savoir-faire géographiques",null,null,null,null,null,null,{"$f":"IF(OR(Résultats!$AI22=\"Absent(e)\",Résultats!$AI22=\"Incomplet\"),\"\",Résultats!$AI22)","v":""},null,{"$f":"\"/\"","v":"/"},{"$f":"Résultats!$AI$2","v":24}]
["-  utiliser des repères spatiaux"]
["-  utiliser des représentations de l'espace"]
["-  localiser un lieu, un espace"]
["-  lire un paysage sur le terrain (pas mobilisé)"]
["-  lire une image géographique"]
["Savoirs géographiques",null,null,null,null,null,null,{"$f":"IF(OR(Résultats!$AX22=\"Absent(e)\",Résultats!$AX22=\"Incomplet\"),\"\",Résultats!$AX22)","v":""},null,{"$f":"\"/\"","v":"/"},{"$f":"Résultats!$AX$2","v":16}]
["-  identifier et caractériser les composantes du paysage"]
["-  identifier et caractériser des milieux naturels et leurs atouts et contraintes"]
["-  caractériser l'organisation de l'espace (fonctions, structurations et évolution)"]
["-  identifier des interactions hommes-espace"]
[]
["Volet historique",null,null,null,null,null,null,null,null,{"$f":"IF(OR(Résultats!$O22=\"\",Résultats!$O22=\"Incomplet\"),\"\",Résultats!$O22)","v":""},null,null,{"$f":"\"/\"","v":"/"},{"$f":"Résultats!$O$4","v":40},null,{"$f":"IF(OR(J673=\"\",J673=\"Absent(e)\",J673=\"Incomplet\"),\"\",J673/N673)","v":""}]
["Savoir-faire historiques",null,null,null,null,null,null,{"$f":"IF(OR(Résultats!$BR22=\"a\",Résultats!$BR22=\"A\",Résultats!$BR22=\"\"),\"\",Résultats!$BR22)","v":""},null,{"$f":"\"/\"","v":"/"},{"$f":"Résultats!$BR$2","v":24.5}]
["-  utiliser des repères du temps"]
["-  utiliser des représentations du temps"]
["-  lire une trace du passé"]
["-  exploiter des sources historiques"]
["Savoirs historiques",null,null,null,null,null,null,{"$f":"IF(OR(Résultats!$CE22=\"Absent(e)\",Résultats!$CE22=\"Incomplet\"),\"\",Résultats!$CE22)","v":""},null,{"$f":"\"/\"","v":"/"},{"$f":"Résultats!$CE$2","v":15.5}]
["-  organisation du temps"]
["-  identifier et caractériser le mode de vie des gens à une époque déterminée"]
["-  mettre en évidence la nature d'une trace du passé"]
[]
[]
[]
[]
[""]
["Juin 2019   EDM"]
[]
[null,{"$f":"'Encodage réponses Es'!$B$1:$I$1","v":0}]
["Classe : ",{"$f":"'Encodage réponses Es'!$C$3","v":0}]
[{"$f":"CONCATENATE(\"Synthèse des résultats de l'élève : \",Résultats!$E23,\" \",Résultats!$F23)","v":"Synthèse des résultats de l'élève :  "},null,null,null,null,null,null,null,null,null,null,null,{"$f":"IF(Résultats!$J706=\"Absent(e)\",\"Absent(e)\",IF(Résultats!$J706=\"Incomplet\",\"Incomplet\",\"\"))","v":""}]
[]
["EDM",null,null,null,null,null,null,null,null,null,null,null,null,{"$f":"IF(OR(Résultats!$J23=\"Absent(e)\",Résultats!$J23=\"Incomplet\"),\"\",Résultats!$J23)","v":""},{"$f":"\"/\"","v":"/"},{"$f":"Résultats!$J$4","v":80}]
[]
[null,null,null,null,null,null,null,null,null,null,null,null,null,{"$f":"IF(N694=\"\",\"\",N694/P694)","v":""}]
[]
["Volet géographique",null,null,null,null,null,null,null,null,{"$f":"IF(Résultats!$M23=\"\",\"\",Résultats!$M23)","v":""},null,null,{"$f":"\"/\"","v":"/"},{"$f":"Résultats!$M$4","v":40},null,{"$f":"IF(OR(J698=\"\",J698=\"Absent(e)\",J698=\"Incomplet\"),\"\",J698/N698)","v":""}]
["Savoir-faire géographiques",null,null,null,null,null,null,{"$f":"IF(OR(Résultats!$AI23=\"Absent(e)\",Résultats!$AI23=\"Incomplet\"),\"\",Résultats!$AI23)","v":""},null,{"$f":"\"/\"","v":"/"},{"$f":"Résultats!$AI$2","v":24}]
["-  utiliser des repères spatiaux"]
["-  utiliser des représentations de l'espace"]
["-  localiser un lieu, un espace"]
["-  lire un paysage sur le terrain (pas mobilisé)"]
["-  lire une image géographique"]
["Savoirs géographiques",null,null,null,null,null,null,{"$f":"IF(OR(Résultats!$AX23=\"Absent(e)\",Résultats!$AX23=\"Incomplet\"),\"\",Résultats!$AX23)","v":""},null,{"$f":"\"/\"","v":"/"},{"$f":"Résultats!$AX$2","v":16}]
["-  identifier et caractériser les composantes du paysage"]
["-  identifier et caractériser des milieux naturels et leurs atouts et contraintes"]
["-  caractériser l'organisation de l'espace (fonctions, structurations et évolution)"]
["-  identifier des interactions hommes-espace"]
[]
["Volet historique",null,null,null,null,null,null,null,null,{"$f":"IF(OR(Résultats!$O23=\"\",Résultats!$O23=\"Incomplet\"),\"\",Résultats!$O23)","v":""},null,null,{"$f":"\"/\"","v":"/"},{"$f":"Résultats!$O$4","v":40},null,{"$f":"IF(OR(J711=\"\",J711=\"Absent(e)\",J711=\"Incomplet\"),\"\",J711/N711)","v":""}]
["Savoir-faire historiques",null,null,null,null,null,null,{"$f":"IF(OR(Résultats!$BR23=\"a\",Résultats!$BR23=\"A\",Résultats!$BR23=\"\"),\"\",Résultats!$BR23)","v":""},null,{"$f":"\"/\"","v":"/"},{"$f":"Résultats!$BR$2","v":24.5}]
["-  utiliser des repères du temps"]
["-  utiliser des représentations du temps"]
["-  lire une trace du passé"]
["-  exploiter des sources historiques"]
["Savoirs historiques",null,null,null,null,null,null,{"$f":"IF(OR(Résultats!$CE23=\"Absent(e)\",Résultats!$CE23=\"Incomplet\"),\"\",Résultats!$CE23)","v":""},null,{"$f":"\"/\"","v":"/"},{"$f":"Résultats!$CE$2","v":15.5}]
["-  organisation du temps"]
["-  identifier et caractériser le mode de vie des gens à une époque déterminée"]
["-  mettre en évidence la nature d'une trace du passé"]
[]
[]
[]
[]
[""]
["Juin 2019   EDM"]
[]
[null,{"$f":"'Encodage réponses Es'!$B$1:$I$1","v":0}]
["Classe : ",{"$f":"'Encodage réponses Es'!$C$3","v":0}]
[{"$f":"CONCATENATE(\"Synthèse des résultats de l'élève : \",Résultats!$E24,\" \",Résultats!$F24)","v":"Synthèse des résultats de l'élève :  "},null,null,null,null,null,null,null,null,null,null,null,{"$f":"IF(Résultats!$J745=\"Absent(e)\",\"Absent(e)\",IF(Résultats!$J745=\"Incomplet\",\"Incomplet\",\"\"))","v":""}]
[]
["EDM",null,null,null,null,null,null,null,null,null,null,null,null,{"$f":"IF(OR(Résultats!$J24=\"Absent(e)\",Résultats!$J24=\"Incomplet\"),\"\",Résultats!$J24)","v":""},{"$f":"\"/\"","v":"/"},{"$f":"Résultats!$J$4","v":80}]
[]
[null,null,null,null,null,null,null,null,null,null,null,null,null,{"$f":"IF(N732=\"\",\"\",N732/P732)","v":""}]
[]
["Volet géographique",null,null,null,null,null,null,null,null,{"$f":"IF(Résultats!$M24=\"\",\"\",Résultats!$M24)","v":""},null,null,{"$f":"\"/\"","v":"/"},{"$f":"Résultats!$M$4","v":40},null,{"$f":"IF(OR(J736=\"\",J736=\"Absent(e)\",J736=\"Incomplet\"),\"\",J736/N736)","v":""}]
["Savoir-faire géographiques",null,null,null,null,null,null,{"$f":"IF(OR(Résultats!$AI24=\"Absent(e)\",Résultats!$AI24=\"Incomplet\"),\"\",Résultats!$AI24)","v":""},null,{"$f":"\"/\"","v":"/"},{"$f":"Résultats!$AI$2","v":24}]
["-  utiliser des repères spatiaux"]
["-  utiliser des représentations de l'espace"]
["-  localiser un lieu, un espace"]
["-  lire un paysage sur le terrain (pas mobilisé)"]
["-  lire une image géographique"]
["Savoirs géographiques",null,null,null,null,null,null,{"$f":"IF(OR(Résultats!$AX24=\"Absent(e)\",Résultats!$AX24=\"Incomplet\"),\"\",Résultats!$AX24)","v":""},null,{"$f":"\"/\"","v":"/"},{"$f":"Résultats!$AX$2","v":16}]
["-  identifier et caractériser les composantes du paysage"]
["-  identifier et caractériser des milieux naturels et leurs atouts et contraintes"]
["-  caractériser l'organisation de l'espace (fonctions, structurations et évolution)"]
["-  identifier des interactions hommes-espace"]
[]
["Volet historique",null,null,null,null,null,null,null,null,{"$f":"IF(OR(Résultats!$O24=\"\",Résultats!$O24=\"Incomplet\"),\"\",Résultats!$O24)","v":""},null,null,{"$f":"\"/\"","v":"/"},{"$f":"Résultats!$O$4","v":40},null,{"$f":"IF(OR(J749=\"\",J749=\"Absent(e)\",J749=\"Incomplet\"),\"\",J749/N749)","v":""}]
["Savoir-faire historiques",null,null,null,null,null,null,{"$f":"IF(OR(Résultats!$BR24=\"a\",Résultats!$BR24=\"A\",Résultats!$BR24=\"\"),\"\",Résultats!$BR24)","v":""},null,{"$f":"\"/\"","v":"/"},{"$f":"Résultats!$BR$2","v":24.5}]
["-  utiliser des repères du temps"]
["-  utiliser des représentations du temps"]
["-  lire une trace du passé"]
["-  exploiter des sources historiques"]
["Savoirs historiques",null,null,null,null,null,null,{"$f":"IF(OR(Résultats!$CE24=\"Absent(e)\",Résultats!$CE24=\"Incomplet\"),\"\",Résultats!$CE24)","v":""},null,{"$f":"\"/\"","v":"/"},{"$f":"Résultats!$CE$2","v":15.5}]
["-  organisation du temps"]
["-  identifier et caractériser le mode de vie des gens à une époque déterminée"]
["-  mettre en évidence la nature d'une trace du passé"]
[]
[]
[]
[]
[""]
["Juin 2019   EDM"]
[]
[null,{"$f":"'Encodage réponses Es'!$B$1:$I$1","v":0}]
["Classe : ",{"$f":"'Encodage réponses Es'!$C$3","v":0}]
[{"$f":"CONCATENATE(\"Synthèse des résultats de l'élève : \",Résultats!$E25,\" \",Résultats!$F25)","v":"Synthèse des résultats de l'élève :  "},null,null,null,null,null,null,null,null,null,null,null,{"$f":"IF(Résultats!$J784=\"Absent(e)\",\"Absent(e)\",IF(Résultats!$J784=\"Incomplet\",\"Incomplet\",\"\"))","v":""}]
[]
["EDM",null,null,null,null,null,null,null,null,null,null,null,null,{"$f":"IF(OR(Résultats!$J25=\"Absent(e)\",Résultats!$J25=\"Incomplet\"),\"\",Résultats!$J25)","v":""},{"$f":"\"/\"","v":"/"},{"$f":"Résultats!$J$4","v":80}]
[]
[null,null,null,null,null,null,null,null,null,null,null,null,null,{"$f":"IF(N770=\"\",\"\",N770/P770)","v":""}]
[]
["Volet géographique",null,null,null,null,null,null,null,null,{"$f":"IF(Résultats!$M25=\"\",\"\",Résultats!$M25)","v":""},null,null,{"$f":"\"/\"","v":"/"},{"$f":"Résultats!$M$4","v":40},null,{"$f":"IF(OR(J774=\"\",J774=\"Absent(e)\",J774=\"Incomplet\"),\"\",J774/N774)","v":""}]
["Savoir-faire géographiques",null,null,null,null,null,null,{"$f":"IF(OR(Résultats!$AI25=\"Absent(e)\",Résultats!$AI25=\"Incomplet\"),\"\",Résultats!$AI25)","v":""},null,{"$f":"\"/\"","v":"/"},{"$f":"Résultats!$AI$2","v":24}]
["-  utiliser des repères spatiaux"]
["-  utiliser des représentations de l'espace"]
["-  localiser un lieu, un espace"]
["-  lire un paysage sur le terrain (pas mobilisé)"]
["-  lire une image géographique"]
["Savoirs géographiques",null,null,null,null,null,null,{"$f":"IF(OR(Résultats!$AX25=\"Absent(e)\",Résultats!$AX25=\"Incomplet\"),\"\",Résultats!$AX25)","v":""},null,{"$f":"\"/\"","v":"/"},{"$f":"Résultats!$AX$2","v":16}]
["-  identifier et caractériser les composantes du paysage"]
["-  identifier et caractériser des milieux naturels et leurs atouts et contraintes"]
["-  caractériser l'organisation de l'espace (fonctions, structurations et évolution)"]
["-  identifier des interactions hommes-espace"]
[]
["Volet historique",null,null,null,null,null,null,null,null,{"$f":"IF(OR(Résultats!$O25=\"\",Résultats!$O25=\"Incomplet\"),\"\",Résultats!$O25)","v":""},null,null,{"$f":"\"/\"","v":"/"},{"$f":"Résultats!$O$4","v":40},null,{"$f":"IF(OR(J787=\"\",J787=\"Absent(e)\",J787=\"Incomplet\"),\"\",J787/N787)","v":""}]
["Savoir-faire historiques",null,null,null,null,null,null,{"$f":"IF(OR(Résultats!$BR25=\"a\",Résultats!$BR25=\"A\",Résultats!$BR25=\"\"),\"\",Résultats!$BR25)","v":""},null,{"$f":"\"/\"","v":"/"},{"$f":"Résultats!$BR$2","v":24.5}]
["-  utiliser des repères du temps"]
["-  utiliser des représentations du temps"]
["-  lire une trace du passé"]
["-  exploiter des sources historiques"]
["Savoirs historiques",null,null,null,null,null,null,{"$f":"IF(OR(Résultats!$CE25=\"Absent(e)\",Résultats!$CE25=\"Incomplet\"),\"\",Résultats!$CE25)","v":""},null,{"$f":"\"/\"","v":"/"},{"$f":"Résultats!$CE$2","v":15.5}]
["-  organisation du temps"]
["-  identifier et caractériser le mode de vie des gens à une époque déterminée"]
["-  mettre en évidence la nature d'une trace du passé"]
[]
[]
[]
[]
[""]
["Juin 2019   EDM"]
[]
[null,{"$f":"'Encodage réponses Es'!$B$1:$I$1","v":0}]
["Classe : ",{"$f":"'Encodage réponses Es'!$C$3","v":0}]
[{"$f":"CONCATENATE(\"Synthèse des résultats de l'élève : \",Résultats!$E26,\" \",Résultats!$F26)","v":"Synthèse des résultats de l'élève :  "},null,null,null,null,null,null,null,null,null,null,null,{"$f":"IF(Résultats!$J823=\"Absent(e)\",\"Absent(e)\",IF(Résultats!$J823=\"Incomplet\",\"Incomplet\",\"\"))","v":""}]
[]
["EDM",null,null,null,null,null,null,null,null,null,null,null,null,{"$f":"IF(OR(Résultats!$J26=\"Absent(e)\",Résultats!$J26=\"Incomplet\"),\"\",Résultats!$J26)","v":""},{"$f":"\"/\"","v":"/"},{"$f":"Résultats!$J$4","v":80}]
[]
[null,null,null,null,null,null,null,null,null,null,null,null,null,{"$f":"IF(N808=\"\",\"\",N808/P808)","v":""}]
[]
["Volet géographique",null,null,null,null,null,null,null,null,{"$f":"IF(Résultats!$M26=\"\",\"\",Résultats!$M26)","v":""},null,null,{"$f":"\"/\"","v":"/"},{"$f":"Résultats!$M$4","v":40},null,{"$f":"IF(OR(J812=\"\",J812=\"Absent(e)\",J812=\"Incomplet\"),\"\",J812/N812)","v":""}]
["Savoir-faire géographiques",null,null,null,null,null,null,{"$f":"IF(OR(Résultats!$AI26=\"Absent(e)\",Résultats!$AI26=\"Incomplet\"),\"\",Résultats!$AI26)","v":""},null,{"$f":"\"/\"","v":"/"},{"$f":"Résultats!$AI$2","v":24}]
["-  utiliser des repères spatiaux"]
["-  utiliser des représentations de l'espace"]
["-  localiser un lieu, un espace"]
["-  lire un paysage sur le terrain (pas mobilisé)"]
["-  lire une image géographique"]
["Savoirs géographiques",null,null,null,null,null,null,{"$f":"IF(OR(Résultats!$AX26=\"Absent(e)\",Résultats!$AX26=\"Incomplet\"),\"\",Résultats!$AX26)","v":""},null,{"$f":"\"/\"","v":"/"},{"$f":"Résultats!$AX$2","v":16}]
["-  identifier et caractériser les composantes du paysage"]
["-  identifier et caractériser des milieux naturels et leurs atouts et contraintes"]
["-  caractériser l'organisation de l'espace (fonctions, structurations et évolution)"]
["-  identifier des interactions hommes-espace"]
[]
["Volet historique",null,null,null,null,null,null,null,null,{"$f":"IF(OR(Résultats!$O26=\"\",Résultats!$O26=\"Incomplet\"),\"\",Résultats!$O26)","v":""},null,null,{"$f":"\"/\"","v":"/"},{"$f":"Résultats!$O$4","v":40},null,{"$f":"IF(OR(J825=\"\",J825=\"Absent(e)\",J825=\"Incomplet\"),\"\",J825/N825)","v":""}]
["Savoir-faire historiques",null,null,null,null,null,null,{"$f":"IF(OR(Résultats!$BR26=\"a\",Résultats!$BR26=\"A\",Résultats!$BR26=\"\"),\"\",Résultats!$BR26)","v":""},null,{"$f":"\"/\"","v":"/"},{"$f":"Résultats!$BR$2","v":24.5}]
["-  utiliser des repères du temps"]
["-  utiliser des représentations du temps"]
["-  lire une trace du passé"]
["-  exploiter des sources historiques"]
["Savoirs historiques",null,null,null,null,null,null,{"$f":"IF(OR(Résultats!$CE26=\"Absent(e)\",Résultats!$CE26=\"Incomplet\"),\"\",Résultats!$CE26)","v":""},null,{"$f":"\"/\"","v":"/"},{"$f":"Résultats!$CE$2","v":15.5}]
["-  organisation du temps"]
["-  identifier et caractériser le mode de vie des gens à une époque déterminée"]
["-  mettre en évidence la nature d'une trace du passé"]
[]
[]
[]
[]
[""]
["Juin 2019   EDM"]
[]
[null,{"$f":"'Encodage réponses Es'!$B$1:$I$1","v":0}]
["Classe : ",{"$f":"'Encodage réponses Es'!$C$3","v":0}]
[{"$f":"CONCATENATE(\"Synthèse des résultats de l'élève : \",Résultats!$E27,\" \",Résultats!$F27)","v":"Synthèse des résultats de l'élève :  "},null,null,null,null,null,null,null,null,null,null,null,{"$f":"IF(Résultats!$J862=\"Absent(e)\",\"Absent(e)\",IF(Résultats!$J862=\"Incomplet\",\"Incomplet\",\"\"))","v":""}]
[]
["EDM",null,null,null,null,null,null,null,null,null,null,null,null,{"$f":"IF(OR(Résultats!$J27=\"Absent(e)\",Résultats!$J27=\"Incomplet\"),\"\",Résultats!$J27)","v":""},{"$f":"\"/\"","v":"/"},{"$f":"Résultats!$J$4","v":80}]
[]
[null,null,null,null,null,null,null,null,null,null,null,null,null,{"$f":"IF(N846=\"\",\"\",N846/P846)","v":""}]
[]
["Volet géographique",null,null,null,null,null,null,null,null,{"$f":"IF(Résultats!$M27=\"\",\"\",Résultats!$M27)","v":""},null,null,{"$f":"\"/\"","v":"/"},{"$f":"Résultats!$M$4","v":40},null,{"$f":"IF(OR(J850=\"\",J850=\"Absent(e)\",J850=\"Incomplet\"),\"\",J850/N850)","v":""}]
["Savoir-faire géographiques",null,null,null,null,null,null,{"$f":"IF(OR(Résultats!$AI27=\"Absent(e)\",Résultats!$AI27=\"Incomplet\"),\"\",Résultats!$AI27)","v":""},null,{"$f":"\"/\"","v":"/"},{"$f":"Résultats!$AI$2","v":24}]
["-  utiliser des repères spatiaux"]
["-  utiliser des représentations de l'espace"]
["-  localiser un lieu, un espace"]
["-  lire un paysage sur le terrain (pas mobilisé)"]
["-  lire une image géographique"]
["Savoirs géographiques",null,null,null,null,null,null,{"$f":"IF(OR(Résultats!$AX27=\"Absent(e)\",Résultats!$AX27=\"Incomplet\"),\"\",Résultats!$AX27)","v":""},null,{"$f":"\"/\"","v":"/"},{"$f":"Résultats!$AX$2","v":16}]
["-  identifier et caractériser les composantes du paysage"]
["-  identifier et caractériser des milieux naturels et leurs atouts et contraintes"]
["-  caractériser l'organisation de l'espace (fonctions, structurations et évolution)"]
["-  identifier des interactions hommes-espace"]
[]
["Volet historique",null,null,null,null,null,null,null,null,{"$f":"IF(OR(Résultats!$O27=\"\",Résultats!$O27=\"Incomplet\"),\"\",Résultats!$O27)","v":""},null,null,{"$f":"\"/\"","v":"/"},{"$f":"Résultats!$O$4","v":40},null,{"$f":"IF(OR(J863=\"\",J863=\"Absent(e)\",J863=\"Incomplet\"),\"\",J863/N863)","v":""}]
["Savoir-faire historiques",null,null,null,null,null,null,{"$f":"IF(OR(Résultats!$BR27=\"a\",Résultats!$BR27=\"A\",Résultats!$BR27=\"\"),\"\",Résultats!$BR27)","v":""},null,{"$f":"\"/\"","v":"/"},{"$f":"Résultats!$BR$2","v":24.5}]
["-  utiliser des repères du temps"]
["-  utiliser des représentations du temps"]
["-  lire une trace du passé"]
["-  exploiter des sources historiques"]
["Savoirs historiques",null,null,null,null,null,null,{"$f":"IF(OR(Résultats!$CE27=\"Absent(e)\",Résultats!$CE27=\"Incomplet\"),\"\",Résultats!$CE27)","v":""},null,{"$f":"\"/\"","v":"/"},{"$f":"Résultats!$CE$2","v":15.5}]
["-  organisation du temps"]
["-  identifier et caractériser le mode de vie des gens à une époque déterminée"]
["-  mettre en évidence la nature d'une trace du passé"]
[]
[]
[]
[]
[""]
["Juin 2019   EDM"]
[]
[null,{"$f":"'Encodage réponses Es'!$B$1:$I$1","v":0}]
["Classe : ",{"$f":"'Encodage réponses Es'!$C$3","v":0}]
[{"$f":"CONCATENATE(\"Synthèse des résultats de l'élève : \",Résultats!$E28,\" \",Résultats!$F28)","v":"Synthèse des résultats de l'élève :  "},null,null,null,null,null,null,null,null,null,null,null,{"$f":"IF(Résultats!$J901=\"Absent(e)\",\"Absent(e)\",IF(Résultats!$J901=\"Incomplet\",\"Incomplet\",\"\"))","v":""}]
[]
["EDM",null,null,null,null,null,null,null,null,null,null,null,null,{"$f":"IF(OR(Résultats!$J28=\"Absent(e)\",Résultats!$J28=\"Incomplet\"),\"\",Résultats!$J28)","v":""},{"$f":"\"/\"","v":"/"},{"$f":"Résultats!$J$4","v":80}]
[]
[null,null,null,null,null,null,null,null,null,null,null,null,null,{"$f":"IF(N884=\"\",\"\",N884/P884)","v":""}]
[]
["Volet géographique",null,null,null,null,null,null,null,null,{"$f":"IF(Résultats!$M28=\"\",\"\",Résultats!$M28)","v":""},null,null,{"$f":"\"/\"","v":"/"},{"$f":"Résultats!$M$4","v":40},null,{"$f":"IF(OR(J888=\"\",J888=\"Absent(e)\",J888=\"Incomplet\"),\"\",J888/N888)","v":""}]
["Savoir-faire géographiques",null,null,null,null,null,null,{"$f":"IF(OR(Résultats!$AI28=\"Absent(e)\",Résultats!$AI28=\"Incomplet\"),\"\",Résultats!$AI28)","v":""},null,{"$f":"\"/\"","v":"/"},{"$f":"Résultats!$AI$2","v":24}]
["-  utiliser des repères spatiaux"]
["-  utiliser des représentations de l'espace"]
["-  localiser un lieu, un espace"]
["-  lire un paysage sur le terrain (pas mobilisé)"]
["-  lire une image géographique"]
["Savoirs géographiques",null,null,null,null,null,null,{"$f":"IF(OR(Résultats!$AX28=\"Absent(e)\",Résultats!$AX28=\"Incomplet\"),\"\",Résultats!$AX28)","v":""},null,{"$f":"\"/\"","v":"/"},{"$f":"Résultats!$AX$2","v":16}]
["-  identifier et caractériser les composantes du paysage"]
["-  identifier et caractériser des milieux naturels et leurs atouts et contraintes"]
["-  caractériser l'organisation de l'espace (fonctions, structurations et évolution)"]
["-  identifier des interactions hommes-espace"]
[]
["Volet historique",null,null,null,null,null,null,null,null,{"$f":"IF(OR(Résultats!$O28=\"\",Résultats!$O28=\"Incomplet\"),\"\",Résultats!$O28)","v":""},null,null,{"$f":"\"/\"","v":"/"},{"$f":"Résultats!$O$4","v":40},null,{"$f":"IF(OR(J901=\"\",J901=\"Absent(e)\",J901=\"Incomplet\"),\"\",J901/N901)","v":""}]
["Savoir-faire historiques",null,null,null,null,null,null,{"$f":"IF(OR(Résultats!$BR28=\"a\",Résultats!$BR28=\"A\",Résultats!$BR28=\"\"),\"\",Résultats!$BR28)","v":""},null,{"$f":"\"/\"","v":"/"},{"$f":"Résultats!$BR$2","v":24.5}]
["-  utiliser des repères du temps"]
["-  utiliser des représentations du temps"]
["-  lire une trace du passé"]
["-  exploiter des sources historiques"]
["Savoirs historiques",null,null,null,null,null,null,{"$f":"IF(OR(Résultats!$CE28=\"Absent(e)\",Résultats!$CE28=\"Incomplet\"),\"\",Résultats!$CE28)","v":""},null,{"$f":"\"/\"","v":"/"},{"$f":"Résultats!$CE$2","v":15.5}]
["-  organisation du temps"]
["-  identifier et caractériser le mode de vie des gens à une époque déterminée"]
["-  mettre en évidence la nature d'une trace du passé"]
[]
[]
[]
[]
[""]
["Juin 2019   EDM"]
[]
[null,{"$f":"'Encodage réponses Es'!$B$1:$I$1","v":0}]
["Classe : ",{"$f":"'Encodage réponses Es'!$C$3","v":0}]
[{"$f":"CONCATENATE(\"Synthèse des résultats de l'élève : \",Résultats!$E29,\" \",Résultats!$F29)","v":"Synthèse des résultats de l'élève :  "},null,null,null,null,null,null,null,null,null,null,null,{"$f":"IF(Résultats!$J940=\"Absent(e)\",\"Absent(e)\",IF(Résultats!$J940=\"Incomplet\",\"Incomplet\",\"\"))","v":""}]
[]
["EDM",null,null,null,null,null,null,null,null,null,null,null,null,{"$f":"IF(OR(Résultats!$J29=\"Absent(e)\",Résultats!$J29=\"Incomplet\"),\"\",Résultats!$J29)","v":""},{"$f":"\"/\"","v":"/"},{"$f":"Résultats!$J$4","v":80}]
[]
[null,null,null,null,null,null,null,null,null,null,null,null,null,{"$f":"IF(N922=\"\",\"\",N922/P922)","v":""}]
[]
["Volet géographique",null,null,null,null,null,null,null,null,{"$f":"IF(Résultats!$M29=\"\",\"\",Résultats!$M29)","v":""},null,null,{"$f":"\"/\"","v":"/"},{"$f":"Résultats!$M$4","v":40},null,{"$f":"IF(OR(J926=\"\",J926=\"Absent(e)\",J926=\"Incomplet\"),\"\",J926/N926)","v":""}]
["Savoir-faire géographiques",null,null,null,null,null,null,{"$f":"IF(OR(Résultats!$AI29=\"Absent(e)\",Résultats!$AI29=\"Incomplet\"),\"\",Résultats!$AI29)","v":""},null,{"$f":"\"/\"","v":"/"},{"$f":"Résultats!$AI$2","v":24}]
["-  utiliser des repères spatiaux"]
["-  utiliser des représentations de l'espace"]
["-  localiser un lieu, un espace"]
["-  lire un paysage sur le terrain (pas mobilisé)"]
["-  lire une image géographique"]
["Savoirs géographiques",null,null,null,null,null,null,{"$f":"IF(OR(Résultats!$AX29=\"Absent(e)\",Résultats!$AX29=\"Incomplet\"),\"\",Résultats!$AX29)","v":""},null,{"$f":"\"/\"","v":"/"},{"$f":"Résultats!$AX$2","v":16}]
["-  identifier et caractériser les composantes du paysage"]
["-  identifier et caractériser des milieux naturels et leurs atouts et contraintes"]
["-  caractériser l'organisation de l'espace (fonctions, structurations et évolution)"]
["-  identifier des interactions hommes-espace"]
[]
["Volet historique",null,null,null,null,null,null,null,null,{"$f":"IF(OR(Résultats!$O29=\"\",Résultats!$O29=\"Incomplet\"),\"\",Résultats!$O29)","v":""},null,null,{"$f":"\"/\"","v":"/"},{"$f":"Résultats!$O$4","v":40},null,{"$f":"IF(OR(J939=\"\",J939=\"Absent(e)\",J939=\"Incomplet\"),\"\",J939/N939)","v":""}]
["Savoir-faire historiques",null,null,null,null,null,null,{"$f":"IF(OR(Résultats!$BR29=\"a\",Résultats!$BR29=\"A\",Résultats!$BR29=\"\"),\"\",Résultats!$BR29)","v":""},null,{"$f":"\"/\"","v":"/"},{"$f":"Résultats!$BR$2","v":24.5}]
["-  utiliser des repères du temps"]
["-  utiliser des représentations du temps"]
["-  lire une trace du passé"]
["-  exploiter des sources historiques"]
["Savoirs historiques",null,null,null,null,null,null,{"$f":"IF(OR(Résultats!$CE29=\"Absent(e)\",Résultats!$CE29=\"Incomplet\"),\"\",Résultats!$CE29)","v":""},null,{"$f":"\"/\"","v":"/"},{"$f":"Résultats!$CE$2","v":15.5}]
["-  organisation du temps"]
["-  identifier et caractériser le mode de vie des gens à une époque déterminée"]
["-  mettre en évidence la nature d'une trace du passé"]
[]
[]
[]
[]
[""]
["Juin 2019   EDM"]
[]
[null,{"$f":"'Encodage réponses Es'!$B$1:$I$1","v":0}]
["Classe : ",{"$f":"'Encodage réponses Es'!$C$3","v":0}]
[{"$f":"CONCATENATE(\"Synthèse des résultats de l'élève : \",Résultats!$E30,\" \",Résultats!$F30)","v":"Synthèse des résultats de l'élève :  "},null,null,null,null,null,null,null,null,null,null,null,{"$f":"IF(Résultats!$J979=\"Absent(e)\",\"Absent(e)\",IF(Résultats!$J979=\"Incomplet\",\"Incomplet\",\"\"))","v":""}]
[]
["EDM",null,null,null,null,null,null,null,null,null,null,null,null,{"$f":"IF(OR(Résultats!$J30=\"Absent(e)\",Résultats!$J30=\"Incomplet\"),\"\",Résultats!$J30)","v":""},{"$f":"\"/\"","v":"/"},{"$f":"Résultats!$J$4","v":80}]
[]
[null,null,null,null,null,null,null,null,null,null,null,null,null,{"$f":"IF(N960=\"\",\"\",N960/P960)","v":""}]
[]
["Volet géographique",null,null,null,null,null,null,null,null,{"$f":"IF(Résultats!$M30=\"\",\"\",Résultats!$M30)","v":""},null,null,{"$f":"\"/\"","v":"/"},{"$f":"Résultats!$M$4","v":40},null,{"$f":"IF(OR(J964=\"\",J964=\"Absent(e)\",J964=\"Incomplet\"),\"\",J964/N964)","v":""}]
["Savoir-faire géographiques",null,null,null,null,null,null,{"$f":"IF(OR(Résultats!$AI30=\"Absent(e)\",Résultats!$AI30=\"Incomplet\"),\"\",Résultats!$AI30)","v":""},null,{"$f":"\"/\"","v":"/"},{"$f":"Résultats!$AI$2","v":24}]
["-  utiliser des repères spatiaux"]
["-  utiliser des représentations de l'espace"]
["-  localiser un lieu, un espace"]
["-  lire un paysage sur le terrain (pas mobilisé)"]
["-  lire une image géographique"]
["Savoirs géographiques",null,null,null,null,null,null,{"$f":"IF(OR(Résultats!$AX30=\"Absent(e)\",Résultats!$AX30=\"Incomplet\"),\"\",Résultats!$AX30)","v":""},null,{"$f":"\"/\"","v":"/"},{"$f":"Résultats!$AX$2","v":16}]
["-  identifier et caractériser les composantes du paysage"]
["-  identifier et caractériser des milieux naturels et leurs atouts et contraintes"]
["-  caractériser l'organisation de l'espace (fonctions, structurations et évolution)"]
["-  identifier des interactions hommes-espace"]
[]
["Volet historique",null,null,null,null,null,null,null,null,{"$f":"IF(OR(Résultats!$O30=\"\",Résultats!$O30=\"Incomplet\"),\"\",Résultats!$O30)","v":""},null,null,{"$f":"\"/\"","v":"/"},{"$f":"Résultats!$O$4","v":40},null,{"$f":"IF(OR(J977=\"\",J977=\"Absent(e)\",J977=\"Incomplet\"),\"\",J977/N977)","v":""}]
["Savoir-faire historiques",null,null,null,null,null,null,{"$f":"IF(OR(Résultats!$BR30=\"a\",Résultats!$BR30=\"A\",Résultats!$BR30=\"\"),\"\",Résultats!$BR30)","v":""},null,{"$f":"\"/\"","v":"/"},{"$f":"Résultats!$BR$2","v":24.5}]
["-  utiliser des repères du temps"]
["-  utiliser des représentations du temps"]
["-  lire une trace du passé"]
["-  exploiter des sources historiques"]
["Savoirs historiques",null,null,null,null,null,null,{"$f":"IF(OR(Résultats!$CE30=\"Absent(e)\",Résultats!$CE30=\"Incomplet\"),\"\",Résultats!$CE30)","v":""},null,{"$f":"\"/\"","v":"/"},{"$f":"Résultats!$CE$2","v":15.5}]
["-  organisation du temps"]
["-  identifier et caractériser le mode de vie des gens à une époque déterminée"]
["-  mettre en évidence la nature d'une trace du passé"]
[]
[]
[]
[]
[""]
["Juin 2019   EDM"]
[]
[null,{"$f":"'Encodage réponses Es'!$B$1:$I$1","v":0}]
["Classe : ",{"$f":"'Encodage réponses Es'!$C$3","v":0}]
[{"$f":"CONCATENATE(\"Synthèse des résultats de l'élève : \",Résultats!$E31,\" \",Résultats!$F31)","v":"Synthèse des résultats de l'élève :  "},null,null,null,null,null,null,null,null,null,null,null,{"$f":"IF(Résultats!$J1018=\"Absent(e)\",\"Absent(e)\",IF(Résultats!$J1018=\"Incomplet\",\"Incomplet\",\"\"))","v":""}]
[]
["EDM",null,null,null,null,null,null,null,null,null,null,null,null,{"$f":"IF(OR(Résultats!$J31=\"Absent(e)\",Résultats!$J31=\"Incomplet\"),\"\",Résultats!$J31)","v":""},{"$f":"\"/\"","v":"/"},{"$f":"Résultats!$J$4","v":80}]
[]
[null,null,null,null,null,null,null,null,null,null,null,null,null,{"$f":"IF(N998=\"\",\"\",N998/P998)","v":""}]
[]
["Volet géographique",null,null,null,null,null,null,null,null,{"$f":"IF(Résultats!$M31=\"\",\"\",Résultats!$M31)","v":""},null,null,{"$f":"\"/\"","v":"/"},{"$f":"Résultats!$M$4","v":40},null,{"$f":"IF(OR(J1002=\"\",J1002=\"Absent(e)\",J1002=\"Incomplet\"),\"\",J1002/N1002)","v":""}]
["Savoir-faire géographiques",null,null,null,null,null,null,{"$f":"IF(OR(Résultats!$AI31=\"Absent(e)\",Résultats!$AI31=\"Incomplet\"),\"\",Résultats!$AI31)","v":""},null,{"$f":"\"/\"","v":"/"},{"$f":"Résultats!$AI$2","v":24}]
["-  utiliser des repères spatiaux"]
["-  utiliser des représentations de l'espace"]
["-  localiser un lieu, un espace"]
["-  lire un paysage sur le terrain (pas mobilisé)"]
["-  lire une image géographique"]
["Savoirs géographiques",null,null,null,null,null,null,{"$f":"IF(OR(Résultats!$AX31=\"Absent(e)\",Résultats!$AX31=\"Incomplet\"),\"\",Résultats!$AX31)","v":""},null,{"$f":"\"/\"","v":"/"},{"$f":"Résultats!$AX$2","v":16}]
["-  identifier et caractériser les composantes du paysage"]
["-  identifier et caractériser des milieux naturels et leurs atouts et contraintes"]
["-  caractériser l'organisation de l'espace (fonctions, structurations et évolution)"]
["-  identifier des interactions hommes-espace"]
[]
["Volet historique",null,null,null,null,null,null,null,null,{"$f":"IF(OR(Résultats!$O31=\"\",Résultats!$O31=\"Incomplet\"),\"\",Résultats!$O31)","v":""},null,null,{"$f":"\"/\"","v":"/"},{"$f":"Résultats!$O$4","v":40},null,{"$f":"IF(OR(J1015=\"\",J1015=\"Absent(e)\",J1015=\"Incomplet\"),\"\",J1015/N1015)","v":""}]
["Savoir-faire historiques",null,null,null,null,null,null,{"$f":"IF(OR(Résultats!$BR31=\"a\",Résultats!$BR31=\"A\",Résultats!$BR31=\"\"),\"\",Résultats!$BR31)","v":""},null,{"$f":"\"/\"","v":"/"},{"$f":"Résultats!$BR$2","v":24.5}]
["-  utiliser des repères du temps"]
["-  utiliser des représentations du temps"]
["-  lire une trace du passé"]
["-  exploiter des sources historiques"]
["Savoirs historiques",null,null,null,null,null,null,{"$f":"IF(OR(Résultats!$CE31=\"Absent(e)\",Résultats!$CE31=\"Incomplet\"),\"\",Résultats!$CE31)","v":""},null,{"$f":"\"/\"","v":"/"},{"$f":"Résultats!$CE$2","v":15.5}]
["-  organisation du temps"]
["-  identifier et caractériser le mode de vie des gens à une époque déterminée"]
["-  mettre en évidence la nature d'une trace du passé"]
[]
[]
[]
[]
[""]
["Juin 2019   EDM"]
[]
[null,{"$f":"'Encodage réponses Es'!$B$1:$I$1","v":0}]
["Classe : ",{"$f":"'Encodage réponses Es'!$C$3","v":0}]
[{"$f":"CONCATENATE(\"Synthèse des résultats de l'élève : \",Résultats!$E32,\" \",Résultats!$F32)","v":"Synthèse des résultats de l'élève :  "},null,null,null,null,null,null,null,null,null,null,null,{"$f":"IF(Résultats!$J1057=\"Absent(e)\",\"Absent(e)\",IF(Résultats!$J1057=\"Incomplet\",\"Incomplet\",\"\"))","v":""}]
[]
["EDM",null,null,null,null,null,null,null,null,null,null,null,null,{"$f":"IF(OR(Résultats!$J32=\"Absent(e)\",Résultats!$J32=\"Incomplet\"),\"\",Résultats!$J32)","v":""},{"$f":"\"/\"","v":"/"},{"$f":"Résultats!$J$4","v":80}]
[]
[null,null,null,null,null,null,null,null,null,null,null,null,null,{"$f":"IF(N1036=\"\",\"\",N1036/P1036)","v":""}]
[]
["Volet géographique",null,null,null,null,null,null,null,null,{"$f":"IF(Résultats!$M32=\"\",\"\",Résultats!$M32)","v":""},null,null,{"$f":"\"/\"","v":"/"},{"$f":"Résultats!$M$4","v":40},null,{"$f":"IF(OR(J1040=\"\",J1040=\"Absent(e)\",J1040=\"Incomplet\"),\"\",J1040/N1040)","v":""}]
["Savoir-faire géographiques",null,null,null,null,null,null,{"$f":"IF(OR(Résultats!$AI32=\"Absent(e)\",Résultats!$AI32=\"Incomplet\"),\"\",Résultats!$AI32)","v":""},null,{"$f":"\"/\"","v":"/"},{"$f":"Résultats!$AI$2","v":24}]
["-  utiliser des repères spatiaux"]
["-  utiliser des représentations de l'espace"]
["-  localiser un lieu, un espace"]
["-  lire un paysage sur le terrain (pas mobilisé)"]
["-  lire une image géographique"]
["Savoirs géographiques",null,null,null,null,null,null,{"$f":"IF(OR(Résultats!$AX32=\"Absent(e)\",Résultats!$AX32=\"Incomplet\"),\"\",Résultats!$AX32)","v":""},null,{"$f":"\"/\"","v":"/"},{"$f":"Résultats!$AX$2","v":16}]
["-  identifier et caractériser les composantes du paysage"]
["-  identifier et caractériser des milieux naturels et leurs atouts et contraintes"]
["-  caractériser l'organisation de l'espace (fonctions, structurations et évolution)"]
["-  identifier des interactions hommes-espace"]
[]
["Volet historique",null,null,null,null,null,null,null,null,{"$f":"IF(OR(Résultats!$O32=\"\",Résultats!$O32=\"Incomplet\"),\"\",Résultats!$O32)","v":""},null,null,{"$f":"\"/\"","v":"/"},{"$f":"Résultats!$O$4","v":40},null,{"$f":"IF(OR(J1053=\"\",J1053=\"Absent(e)\",J1053=\"Incomplet\"),\"\",J1053/N1053)","v":""}]
["Savoir-faire historiques",null,null,null,null,null,null,{"$f":"IF(OR(Résultats!$BR32=\"a\",Résultats!$BR32=\"A\",Résultats!$BR32=\"\"),\"\",Résultats!$BR32)","v":""},null,{"$f":"\"/\"","v":"/"},{"$f":"Résultats!$BR$2","v":24.5}]
["-  utiliser des repères du temps"]
["-  utiliser des représentations du temps"]
["-  lire une trace du passé"]
["-  exploiter des sources historiques"]
["Savoirs historiques",null,null,null,null,null,null,{"$f":"IF(OR(Résultats!$CE32=\"Absent(e)\",Résultats!$CE32=\"Incomplet\"),\"\",Résultats!$CE32)","v":""},null,{"$f":"\"/\"","v":"/"},{"$f":"Résultats!$CE$2","v":15.5}]
["-  organisation du temps"]
["-  identifier et caractériser le mode de vie des gens à une époque déterminée"]
["-  mettre en évidence la nature d'une trace du passé"]
[]
[]
[]
[]
[""]
["Juin 2019   EDM"]
[]
[null,{"$f":"'Encodage réponses Es'!$B$1:$I$1","v":0}]
["Classe : ",{"$f":"'Encodage réponses Es'!$C$3","v":0}]
[{"$f":"CONCATENATE(\"Synthèse des résultats de l'élève : \",Résultats!$E33,\" \",Résultats!$F33)","v":"Synthèse des résultats de l'élève :  "},null,null,null,null,null,null,null,null,null,null,null,{"$f":"IF(Résultats!$J1096=\"Absent(e)\",\"Absent(e)\",IF(Résultats!$J1096=\"Incomplet\",\"Incomplet\",\"\"))","v":""}]
[]
["EDM",null,null,null,null,null,null,null,null,null,null,null,null,{"$f":"IF(OR(Résultats!$J33=\"Absent(e)\",Résultats!$J33=\"Incomplet\"),\"\",Résultats!$J33)","v":""},{"$f":"\"/\"","v":"/"},{"$f":"Résultats!$J$4","v":80}]
[]
[null,null,null,null,null,null,null,null,null,null,null,null,null,{"$f":"IF(N1074=\"\",\"\",N1074/P1074)","v":""}]
[]
["Volet géographique",null,null,null,null,null,null,null,null,{"$f":"IF(Résultats!$M33=\"\",\"\",Résultats!$M33)","v":""},null,null,{"$f":"\"/\"","v":"/"},{"$f":"Résultats!$M$4","v":40},null,{"$f":"IF(OR(J1078=\"\",J1078=\"Absent(e)\",J1078=\"Incomplet\"),\"\",J1078/N1078)","v":""}]
["Savoir-faire géographiques",null,null,null,null,null,null,{"$f":"IF(OR(Résultats!$AI33=\"Absent(e)\",Résultats!$AI33=\"Incomplet\"),\"\",Résultats!$AI33)","v":""},null,{"$f":"\"/\"","v":"/"},{"$f":"Résultats!$AI$2","v":24}]
["-  utiliser des repères spatiaux"]
["-  utiliser des représentations de l'espace"]
["-  localiser un lieu, un espace"]
["-  lire un paysage sur le terrain (pas mobilisé)"]
["-  lire une image géographique"]
["Savoirs géographiques",null,null,null,null,null,null,{"$f":"IF(OR(Résultats!$AX33=\"Absent(e)\",Résultats!$AX33=\"Incomplet\"),\"\",Résultats!$AX33)","v":""},null,{"$f":"\"/\"","v":"/"},{"$f":"Résultats!$AX$2","v":16}]
["-  identifier et caractériser les composantes du paysage"]
["-  identifier et caractériser des milieux naturels et leurs atouts et contraintes"]
["-  caractériser l'organisation de l'espace (fonctions, structurations et évolution)"]
["-  identifier des interactions hommes-espace"]
[]
["Volet historique",null,null,null,null,null,null,null,null,{"$f":"IF(OR(Résultats!$O33=\"\",Résultats!$O33=\"Incomplet\"),\"\",Résultats!$O33)","v":""},null,null,{"$f":"\"/\"","v":"/"},{"$f":"Résultats!$O$4","v":40},null,{"$f":"IF(OR(J1091=\"\",J1091=\"Absent(e)\",J1091=\"Incomplet\"),\"\",J1091/N1091)","v":""}]
["Savoir-faire historiques",null,null,null,null,null,null,{"$f":"IF(OR(Résultats!$BR33=\"a\",Résultats!$BR33=\"A\",Résultats!$BR33=\"\"),\"\",Résultats!$BR33)","v":""},null,{"$f":"\"/\"","v":"/"},{"$f":"Résultats!$BR$2","v":24.5}]
["-  utiliser des repères du temps"]
["-  utiliser des représentations du temps"]
["-  lire une trace du passé"]
["-  exploiter des sources historiques"]
["Savoirs historiques",null,null,null,null,null,null,{"$f":"IF(OR(Résultats!$CE33=\"Absent(e)\",Résultats!$CE33=\"Incomplet\"),\"\",Résultats!$CE33)","v":""},null,{"$f":"\"/\"","v":"/"},{"$f":"Résultats!$CE$2","v":15.5}]
["-  organisation du temps"]
["-  identifier et caractériser le mode de vie des gens à une époque déterminée"]
["-  mettre en évidence la nature d'une trace du passé"]
[]
[]
[]
[]
[""]
["Juin 2019   EDM"]
[]
[null,{"$f":"'Encodage réponses Es'!$B$1:$I$1","v":0}]
["Classe : ",{"$f":"'Encodage réponses Es'!$C$3","v":0}]
[{"$f":"CONCATENATE(\"Synthèse des résultats de l'élève : \",Résultats!$E34,\" \",Résultats!$F34)","v":"Synthèse des résultats de l'élève :  "},null,null,null,null,null,null,null,null,null,null,null,{"$f":"IF(Résultats!$J1135=\"Absent(e)\",\"Absent(e)\",IF(Résultats!$J1135=\"Incomplet\",\"Incomplet\",\"\"))","v":""}]
[]
["EDM",null,null,null,null,null,null,null,null,null,null,null,null,{"$f":"IF(OR(Résultats!$J34=\"Absent(e)\",Résultats!$J34=\"Incomplet\"),\"\",Résultats!$J34)","v":""},{"$f":"\"/\"","v":"/"},{"$f":"Résultats!$J$4","v":80}]
[]
[null,null,null,null,null,null,null,null,null,null,null,null,null,{"$f":"IF(N1112=\"\",\"\",N1112/P1112)","v":""}]
[]
["Volet géographique",null,null,null,null,null,null,null,null,{"$f":"IF(Résultats!$M34=\"\",\"\",Résultats!$M34)","v":""},null,null,{"$f":"\"/\"","v":"/"},{"$f":"Résultats!$M$4","v":40},null,{"$f":"IF(OR(J1116=\"\",J1116=\"Absent(e)\",J1116=\"Incomplet\"),\"\",J1116/N1116)","v":""}]
["Savoir-faire géographiques",null,null,null,null,null,null,{"$f":"IF(OR(Résultats!$AI34=\"Absent(e)\",Résultats!$AI34=\"Incomplet\"),\"\",Résultats!$AI34)","v":""},null,{"$f":"\"/\"","v":"/"},{"$f":"Résultats!$AI$2","v":24}]
["-  utiliser des repères spatiaux"]
["-  utiliser des représentations de l'espace"]
["-  localiser un lieu, un espace"]
["-  lire un paysage sur le terrain (pas mobilisé)"]
["-  lire une image géographique"]
["Savoirs géographiques",null,null,null,null,null,null,{"$f":"IF(OR(Résultats!$AX34=\"Absent(e)\",Résultats!$AX34=\"Incomplet\"),\"\",Résultats!$AX34)","v":""},null,{"$f":"\"/\"","v":"/"},{"$f":"Résultats!$AX$2","v":16}]
["-  identifier et caractériser les composantes du paysage"]
["-  identifier et caractériser des milieux naturels et leurs atouts et contraintes"]
["-  caractériser l'organisation de l'espace (fonctions, structurations et évolution)"]
["-  identifier des interactions hommes-espace"]
[]
["Volet historique",null,null,null,null,null,null,null,null,{"$f":"IF(OR(Résultats!$O34=\"\",Résultats!$O34=\"Incomplet\"),\"\",Résultats!$O34)","v":""},null,null,{"$f":"\"/\"","v":"/"},{"$f":"Résultats!$O$4","v":40},null,{"$f":"IF(OR(J1129=\"\",J1129=\"Absent(e)\",J1129=\"Incomplet\"),\"\",J1129/N1129)","v":""}]
["Savoir-faire historiques",null,null,null,null,null,null,{"$f":"IF(OR(Résultats!$BR34=\"a\",Résultats!$BR34=\"A\",Résultats!$BR34=\"\"),\"\",Résultats!$BR34)","v":""},null,{"$f":"\"/\"","v":"/"},{"$f":"Résultats!$BR$2","v":24.5}]
["-  utiliser des repères du temps"]
["-  utiliser des représentations du temps"]
["-  lire une trace du passé"]
["-  exploiter des sources historiques"]
["Savoirs historiques",null,null,null,null,null,null,{"$f":"IF(OR(Résultats!$CE34=\"Absent(e)\",Résultats!$CE34=\"Incomplet\"),\"\",Résultats!$CE34)","v":""},null,{"$f":"\"/\"","v":"/"},{"$f":"Résultats!$CE$2","v":15.5}]
["-  organisation du temps"]
["-  identifier et caractériser le mode de vie des gens à une époque déterminée"]
["-  mettre en évidence la nature d'une trace du passé"]

{"sheet":"Résultats classe","index":3,"n_rows":56,"n_cols":15,"rows_kept":56,"cut":false,"hidden":false,"merged":[[52,2,52,3],[40,9,40,16],[41,9,41,10],[41,13,41,16],[41,2,41,3],[41,4,41,7],[45,11,45,12],[45,14,45,16],[42,9,42,10],[42,11,42,12],[42,14,42,16],[44,9,44,10],[43,14,43,16],[43,9,43,10],[43,11,43,12],[44,11,44,12],[44,14,44,16],[46,9,46,10],[46,11,46,12],[46,14,46,16],[45,9,45,10],[55,0,55,1],[50,11,50,12],[47,2,47,3],[47,5,47,7],[55,2,55,3],[55,5,55,7],[54,0,54,1],[54,2,54,3],[12,5,12,7],[15,9,15,16],[17,9,17,10],[17,11,17,12],[17,13,17,16],[18,9,18,10],[18,11,18,12],[18,14,18,16],[16,9,16,16],[25,9,25,10],[25,11,25,12],[25,14,25,16],[22,9,22,10],[22,11,22,12],[35,11,35,12],[35,13,35,16],[0,0,0,7],[20,5,20,7],[11,0,11,4],[12,0,12,4],[21,0,21,1],[6,0,6,4],[4,0,4,7],[2,5,2,7],[3,5,3,7],[10,0,10,4],[11,5,11,7],[20,0,20,1],[1,0,1,7],[21,4,21,7],[9,0,9,4],[2,0,2,4],[3,0,3,4],[5,0,5,7],[8,0,8,4],[6,5,6,7],[9,5,9,7],[7,5,7,7],[8,5,8,7],[7,0,7,4],[10,5,10,7],[15,0,15,7],[16,0,16,7],[26,2,26,3],[26,4,26,7],[18,2,18,3],[18,5,18,7],[18,0,18,1],[22,2,22,3],[22,5,22,7],[20,2,20,3],[19,2,19,3],[19,5,19,7],[24,0,24,1],[25,0,25,1],[39,11,39,12],[39,14,39,16],[41,11,41,12],[27,0,27,1],[27,2,27,3],[27,5,27,7],[37,9,37,10],[37,11,37,12],[37,14,37,16],[40,0,40,1],[40,2,40,3],[40,5,40,7],[35,4,35,7],[39,5,39,7],[38,0,38,1],[38,9,38,10],[38,11,38,12],[38,14,38,16],[36,9,36,10],[36,11,36,12],[36,14,36,16],[27,14,27,16],[41,0,41,1],[35,0,35,1],[33,11,33,12],[33,14,33,16],[34,9,34,10],[34,11,34,12],[34,14,34,16],[24,2,24,3],[25,2,25,3],[24,5,24,7],[28,11,28,12],[28,14,28,16],[30,11,30,12],[30,14,30,16],[32,11,32,12],[32,14,32,16],[29,11,29,12],[29,14,29,16],[31,11,31,12],[31,14,31,16],[33,2,33,3],[33,5,33,7],[27,9,27,10],[35,9,35,10],[39,0,39,1],[39,2,39,3],[38,2,38,3],[38,4,38,7],[36,5,36,7],[37,0,37,7],[28,9,28,10],[30,9,30,10],[32,9,32,10],[29,9,29,10],[31,9,31,10],[34,2,34,3],[34,5,34,7],[33,9,33,10],[39,9,39,10],[35,2,35,3],[33,0,33,1],[34,0,34,1],[30,5,30,7],[32,0,32,1],[32,2,32,3],[54,14,54,16],[47,9,47,10],[47,11,47,12],[47,13,47,16],[54,11,54,12],[48,9,48,10],[48,11,48,12],[48,14,48,16],[54,9,54,10],[53,13,53,16],[53,11,53,12],[49,14,49,16],[50,14,50,16],[53,9,53,10],[49,9,49,10],[50,9,50,10],[49,11,49,12],[51,9,51,10],[51,11,51,12],[51,14,51,16],[52,9,52,10],[52,11,52,12],[52,14,52,16],[55,9,55,10],[55,11,55,12],[55,14,55,16],[36,2,36,3],[48,0,48,1],[48,2,48,3],[48,5,48,7],[42,0,42,1],[42,2,42,3],[42,5,42,7],[43,0,43,1],[43,2,43,3],[43,5,43,7],[45,0,45,1],[46,0,46,1],[45,5,45,7],[53,0,53,1],[53,2,53,3],[53,5,53,7],[54,5,54,7],[47,0,47,1],[52,4,52,7],[46,2,46,3],[52,0,52,1],[51,0,51,1],[51,2,51,3],[51,5,51,7],[26,13,26,16],[23,0,23,1],[23,2,23,3],[23,5,23,7],[24,9,24,10],[24,11,24,12],[24,14,24,16],[32,5,32,7],[29,0,29,1],[29,2,29,3],[29,5,29,7],[31,0,31,1],[31,2,31,3],[31,5,31,7],[28,0,28,1],[28,2,28,3],[28,5,28,7],[30,0,30,1],[30,2,30,3],[27,11,27,12],[36,0,36,1],[7,12,7,15],[20,9,20,10],[21,9,21,10],[20,11,20,12],[21,11,21,12],[20,14,20,16],[21,14,21,16],[25,5,25,7],[26,0,26,1],[21,2,21,3],[17,4,17,7],[17,0,17,1],[17,2,17,3],[19,9,19,10],[19,11,19,12],[19,14,19,16],[22,13,22,16],[26,9,26,10],[26,11,26,12],[23,9,23,10],[23,11,23,12],[23,14,23,16],[19,0,19,1],[22,0,22,1],[44,0,44,1],[44,2,44,3],[44,5,44,7],[49,0,49,1],[49,2,49,3],[49,5,49,7],[50,0,50,1],[50,2,50,3],[50,5,50,7],[46,4,46,7],[45,2,45,3]]}
["Bilan de participation et réussite par classe"]
[{"$f":"'Encodage réponses Es'!C3","v":0}]
["Passation",null,null,null,null,{"$f":"IF(Résultats!J$36=0,\"\",Résultats!J$36)","v":""}]
["Taux de réussite complète",null,null,null,null,{"$f":"IF(Résultats!K52=\"\",\"\",Résultats!K52)","v":""}]
[]
["Score par domaine disciplinaire"]
["Volet géographique",null,null,null,null,{"$f":"IF(Résultats!N37=\"\",\"\",Résultats!N37)","v":""},null,null,null,null,null,null,"Synthèse par classe des résultats"]
["Savoir-faire géographiques",null,null,null,null,{"$f":"IF(Résultats!AI36=\"\",\"\",Résultats!AI36)","v":""},null,null,null,null,null,null,"Evaluation EDM - Juin 2019"]
["Savoirs géographiques",null,null,null,null,{"$f":"IF(Résultats!AX36=\"\",\"\",Résultats!AX36)","v":""}]
["Volet historique",null,null,null,null,{"$f":"IF(Résultats!P37=\"\",\"\",Résultats!P37)","v":""}]
["Savoir-faire historiques",null,null,null,null,{"$f":"IF(Résultats!BR36=\"\",\"\",Résultats!BR36)","v":""}]
["Savoirs historiques",null,null,null,null,{"$f":"IF(Résultats!CE36=\"\",\"\",Résultats!CE36)","v":""}]
["Total EDM",null,null,null,null,{"$f":"IF(Résultats!K37=\"\",\"\",Résultats!K37)","v":""}]
[]
[]
["Volet géographique",null,null,null,null,null,null,null,null,"Volet historique"]
["Savoir-faire géographiques",null,null,null,null,null,null,null,null,"Savoir-faire historiques"]
["Items",null,"Pondération",null,"Utiliser des repères spatiaux",null,null,null,null,"Items",null,"Pondération",null,"Utiliser des repères du temps"]
[13,null,{"$f":"Résultats!S4","v":2},null,null,{"$f":"IF(Résultats!S36=\"\",\"\",Résultats!S36)","v":""},null,null,null,38,null,{"$f":"Résultats!AY4","v":1},null,null,{"$f":"IF(Résultats!AY36=\"\",\"\",Résultats!AY36)","v":""}]
[16,null,{"$f":"Résultats!T4","v":4},null,null,{"$f":"IF(Résultats!T36=\"\",\"\",Résultats!T36)","v":""},null,null,null,45,null,{"$f":"Résultats!AZ4","v":1},null,null,{"$f":"IF(Résultats!AZ36=\"\",\"\",Résultats!AZ36)","v":""}]
[23,null,{"$f":"Résultats!U4","v":4},null,null,{"$f":"IF(Résultats!U36=\"\",\"\",Résultats!U36)","v":""},null,null,null,46,null,{"$f":"Résultats!BA4","v":1},null,null,{"$f":"IF(Résultats!BA36=\"\",\"\",Résultats!BA36)","v":""}]
["Items",null,"Pondération",null,"Utiliser des représentations de l'espace",null,null,null,null,47,null,{"$f":"Résultats!BB4","v":1},null,null,{"$f":"IF(Résultats!BB36=\"\",\"\",Résultats!BB36)","v":""}]
[2,null,{"$f":"Résultats!V4","v":1},null,null,{"$f":"IF(Résultats!V36=\"\",\"\",Résultats!V36)","v":""},null,null,null,"Items",null,"Pondération",null,"Utiliser des représentations du temps"]
[4,null,{"$f":"Résultats!W9","v":""},null,null,{"$f":"IF(Résultats!W36=\"\",\"\",Résultats!W36)","v":""},null,null,null,55,null,{"$f":"Résultats!BC4","v":2},null,null,{"$f":"IF(Résultats!BC36=\"\",\"\",Résultats!BC36)","v":""}]
[5,null,{"$f":"Résultats!X4","v":1},null,null,{"$f":"IF(Résultats!X36=\"\",\"\",Résultats!X36)","v":""},null,null,null,56,null,{"$f":"Résultats!BD4","v":1},null,null,{"$f":"IF(Résultats!BD36=\"\",\"\",Résultats!BD36)","v":""}]
[19,null,{"$f":"Résultats!Y4","v":1},null,null,{"$f":"IF(Résultats!Y36=\"\",\"\",Résultats!Y36)","v":""},null,null,null,57,null,{"$f":"Résultats!BE4","v":1},null,null,{"$f":"IF(Résultats!BE36=\"\",\"\",Résultats!BE36)","v":""}]
["Items",null,"Pondération",null,"Localiser un lieu, un espace",null,null,null,null,"Items",null,"Pondération",null,"Lire une trace du passé"]
[8,null,{"$f":"Résultats!Z4","v":1},null,null,{"$f":"IF(Résultats!Z36=\"\",\"\",Résultats!Z36)","v":""},null,null,null,34,null,{"$f":"Résultats!BF4","v":1},null,null,{"$f":"IF(Résultats!BF36=\"\",\"\",Résultats!BF36)","v":""}]
[17,null,{"$f":"Résultats!AA4","v":1},null,null,{"$f":"IF(Résultats!AA36=\"\",\"\",Résultats!AA36)","v":""},null,null,null,35,null,{"$f":"Résultats!BG4","v":2},null,null,{"$f":"IF(Résultats!BG36=\"\",\"\",Résultats!BG36)","v":""}]
[18,null,{"$f":"Résultats!AB4","v":1},null,null,{"$f":"IF(Résultats!AB36=\"\",\"\",Résultats!AB36)","v":""},null,null,null,40,null,{"$f":"Résultats!BH4","v":2},null,null,{"$f":"IF(Résultats!BH36=\"\",\"\",Résultats!BH36)","v":""}]
[20,null,{"$f":"Résultats!AC4","v":1},null,null,{"$f":"IF(Résultats!AC36=\"\",\"\",Résultats!AC36)","v":""},null,null,null,41,null,{"$f":"Résultats!BI4","v":1},null,null,{"$f":"IF(Résultats!BI36=\"\",\"\",Résultats!BI36)","v":""}]
[21,null,{"$f":"Résultats!AD4","v":1},null,null,{"$f":"IF(Résultats!AD36=\"\",\"\",Résultats!AD36)","v":""},null,null,null,42,null,{"$f":"Résultats!BJ4","v":2},null,null,{"$f":"IF(Résultats!BJ36=\"\",\"\",Résultats!BJ36)","v":""}]
[22,null,{"$f":"Résultats!AE4","v":1},null,null,{"$f":"IF(Résultats!AE36=\"\",\"\",Résultats!AE36)","v":""},null,null,null,51,null,{"$f":"Résultats!BK4","v":2},null,null,{"$f":"IF(Résultats!BK36=\"\",\"\",Résultats!BK36)","v":""}]
[24,null,{"$f":"Résultats!AF4","v":2},null,null,{"$f":"IF(Résultats!AF36=\"\",\"\",Résultats!AF36)","v":""},null,null,null,52,null,{"$f":"Résultats!BL4","v":1.5},null,null,{"$f":"IF(Résultats!BL36=\"\",\"\",Résultats!BL36)","v":""}]
[27,null,{"$f":"Résultats!AG4","v":1},null,null,{"$f":"IF(Résultats!AG36=\"\",\"\",Résultats!AG36)","v":""},null,null,null,54,null,{"$f":"Résultats!BM4","v":1},null,null,{"$f":"IF(Résultats!BM36=\"\",\"\",Résultats!BM36)","v":""}]
["Items",null,"Pondération",null,"Lire une image géographique",null,null,null,null,"Items",null,"Pondération",null,"Exploiter des sources historiques"]
[11,null,{"$f":"Résultats!AH4","v":1},null,null,{"$f":"IF(Résultats!AH36=\"\",\"\",Résultats!AH36)","v":""},null,null,null,43,null,{"$f":"Résultats!BN4","v":1},null,null,{"$f":"IF(Résultats!BN36=\"\",\"\",Résultats!BN36)","v":""}]
["Savoirs géographiques",null,null,null,null,null,null,null,null,44,null,{"$f":"Résultats!BO4","v":1},null,null,{"$f":"IF(Résultats!BO36=\"\",\"\",Résultats!BO36)","v":""}]
["Items",null,"Pondération",null,"Les composantes du paysage",null,null,null,null,48,null,{"$f":"Résultats!BP4","v":1},null,null,{"$f":"IF(Résultats!BP36=\"\",\"\",Résultats!BP36)","v":""}]
[1,null,{"$f":"Résultats!AJ4","v":1},null,null,{"$f":"IF(Résultats!AJ36=\"\",\"\",Résultats!AJ36)","v":""},null,null,null,49,null,{"$f":"Résultats!BQ4","v":1},null,null,{"$f":"IF(Résultats!BQ36=\"\",\"\",Résultats!BQ36)","v":""}]
[10,null,{"$f":"Résultats!AK4","v":1},null,null,{"$f":"IF(Résultats!AK36=\"\",\"\",Résultats!AK36)","v":""},null,null,null,"Savoirs historiques"]
["Items",null,"Pondération",null,"Des milieux naturels",null,null,null,null,"Items",null,"Pondération",null,"Mettre en évidence l'organisation du temps"]
[15,null,{"$f":"Résultats!AL4","v":1},null,null,{"$f":"IF(Résultats!AL36=\"\",\"\",Résultats!AL36)","v":""},null,null,null,36,null,{"$f":"Résultats!BS4","v":2},null,null,{"$f":"IF(Résultats!BS36=\"\",\"\",Résultats!BS36)","v":""}]
[25,null,{"$f":"Résultats!AM4","v":2},null,null,{"$f":"IF(Résultats!AM36=\"\",\"\",Résultats!AM36)","v":""},null,null,null,58,null,{"$f":"Résultats!BT4","v":1},null,null,{"$f":"IF(Résultats!BT36=\"\",\"\",Résultats!BT36)","v":""}]
[29,null,{"$f":"Résultats!AN4","v":1},null,null,{"$f":"IF(Résultats!AN36=\"\",\"\",Résultats!AN36)","v":""},null,null,null,59,null,{"$f":"Résultats!BU4","v":1},null,null,{"$f":"IF(Résultats!BU36=\"\",\"\",Résultats!BU36)","v":""}]
[30,null,{"$f":"Résultats!AO4","v":2},null,null,{"$f":"IF(Résultats!AO36=\"\",\"\",Résultats!AO36)","v":""},null,null,null,60,null,{"$f":"Résultats!BV4","v":1},null,null,{"$f":"IF(Résultats!BV36=\"\",\"\",Résultats!BV36)","v":""}]
["Items",null,"Pondération",null,"L'organisation de l'espace",null,null,null,null,61,null,{"$f":"Résultats!BW4","v":2},null,null,{"$f":"IF(Résultats!BW36=\"\",\"\",Résultats!BW36)","v":""}]
[3,null,{"$f":"Résultats!AP4","v":1},null,null,{"$f":"IF(Résultats!AP36=\"\",\"\",Résultats!AP36)","v":""},null,null,null,"Items",null,"Pondération",null,"Mettre en évidence le mode de vie des gens à une époque déterminée"]
[6,null,{"$f":"Résultats!AQ4","v":1},null,null,{"$f":"IF(Résultats!AQ36=\"\",\"\",Résultats!AQ36)","v":""},null,null,null,31,null,{"$f":"Résultats!BX4","v":1},null,null,{"$f":"IF(Résultats!BX36=\"\",\"\",Résultats!BX36)","v":""}]
[7,null,{"$f":"Résultats!AR4","v":1},null,null,{"$f":"IF(Résultats!AR36=\"\",\"\",Résultats!AR36)","v":""},null,null,null,33,null,{"$f":"Résultats!BY4","v":1},null,null,{"$f":"IF(Résultats!BY36=\"\",\"\",Résultats!BY36)","v":""}]
[12,null,{"$f":"Résultats!AS4","v":1},null,null,{"$f":"IF(Résultats!AS36=\"\",\"\",Résultats!AS36)","v":""},null,null,null,37,null,{"$f":"Résultats!BZ4","v":1},null,null,{"$f":"IF(Résultats!BZ36=\"\",\"\",Résultats!BZ36)","v":""}]
[14,null,{"$f":"Résultats!AT4","v":1},null,null,{"$f":"IF(Résultats!AT36=\"\",\"\",Résultats!AT36)","v":""},null,null,null,39,null,{"$f":"Résultats!CA4","v":2},null,null,{"$f":"IF(Résultats!CA36=\"\",\"\",Résultats!CA36)","v":""}]
["Items",null,"Pondération",null,"Interactions hommes-espace",null,null,null,null,50,null,{"$f":"Résultats!CB4","v":1},null,null,{"$f":"IF(Résultats!CB36=\"\",\"\",Résultats!CB36)","v":""}]
[9,null,{"$f":"Résultats!AU4","v":1},null,null,{"$f":"IF(Résultats!AU36=\"\",\"\",Résultats!AU36)","v":""},null,null,null,"Items",null,"Pondération",null,"Mettre en évidence la nature d'une trace du passé"]
[26,null,{"$f":"Résultats!AV4","v":1},null,null,{"$f":"IF(Résultats!AV36=\"\",\"\",Résultats!AV36)","v":""},null,null,null,32,null,{"$f":"Résultats!CC4","v":1},null,null,{"$f":"IF(Résultats!CC36=\"\",\"\",Résultats!CC36)","v":""}]
[28,null,{"$f":"Résultats!AW4","v":1},null,null,{"$f":"IF(Résultats!AW36=\"\",\"\",Résultats!AW36)","v":""},null,null,null,53,null,{"$f":"Résultats!CD4","v":1.5},null,null,{"$f":"IF(Résultats!CD36=\"\",\"\",Résultats!CD36)","v":""}]

{"sheet":"Info","index":4,"n_rows":205,"n_cols":3,"rows_kept":205,"cut":false,"hidden":false,"merged":[[15,0,15,4]]}
["EDM",null,"2e secondaire"]
[]
["Cette grille est prévue pour l'outil d'évaluation proposé en juin 2019 pour l'EDM."]
["Elle est proposée à titre indicatif. Elle permet à l'enseignant de dresser un bilan des compétences sur base de cette évaluation."]
["Afin d'améliorer la qualité des futures évaluations, il vous est demandé de renvoyer ce document complété à marc.deprez@segec.be."]
["Fichier --> enregistrer sous… et adapter le nom du fichier \"Nomecole_localite_classe_edm2019.xlsm\", par exemple \"stjoseph_chimay_2C2_edm2019.xlsm\""]
["Aucune information relative aux écoles ne sera utilisée, aucun traitement permettant la comparaison des écoles ne sera effectué."]
["Les résultats globaux seront envoyés aux écoles qui participent à la communication des informations."]
[]
["En cas de problème"]
[]
["Marc Deprez - marc.deprez@segec.be - 0495 284599"]
["Marianne Quitin - marianne.quitin@segec.be - 0497 326203"]
["Céline Demoustier - celine.demoustier@segec.be - 0497 254719"]
[]
["Cliquez ici pour commencer l'encodage"]
[]
["Informations à propos de la feuille \"Encodage réponses Es\""]
[]
[]
[]
[]
[]
[]
[]
[]
[]
[]
[]
[]
[]
[]
[]
[]
[]
[]
[]
[]
[]
[]
[]
[]
[]
[]
[]
[]
[]
[]
[]
[]
[]
[]
[]
[]
["Informations à propos de la feuille \"Résultats\""]
[]
[]
[]
[]
[]
[]
[]
[]
[]
[]
[]
[]
[]
[]
[]
[]
[]
[]
[]
[]
[]
[]
[]
[]
[]
[]
[]
[]
[]
[]
[]
[]
[]
["Informations à propos de la feuille \"Bilan\""]
[]
[]
[]
[]
[]
[]
[]
[]
[]
[]
[]
[]
[]
[]
[]
[]
[]
[]
[]
[]
[]
[]
[]
[]
[]
[]
[]
[]
[]
[]
[]
[]
[]
[]
[]
[]
[]
[]
[]
["Informations à propos de la feuille \"Résultats classe\""]
[]
[]
[]
[]
[]
[]
[]
[]
[]
[]
[]
[]
[]
[]
[]
[]
[]
[]
[]
[]
[]
[]
[]
[]
[]
[]
[]
[]
[]
[]
[]
[]
[]
[]
[]
[]
[]
[]
["Informations à propos de la feuille \"Tableaux apprentissages\""]
[]
[]
[]
[]
[]
[]
[]
[]
[]
[]
[]
[]
[]
[]
[]
[]
[]
[]
[]
[]
[]
[]
[]
[]
[]
[]
[]
[]
[]
[]
[]
[]
[]
[]
["Informations à propos des indicateurs de réussite"]
["Les indicateurs de réussite sont exclusivement accessibles sur un questionnaire avec le correctif."]
["Ce corrigé est communiqué aux écoles en même temps que la grille d'encodage des résultats"]

{"sheet":"Tableaux apprentissages","index":5,"n_rows":46,"n_cols":4,"rows_kept":46,"cut":false,"hidden":false,"merged":[[0,0,0,3],[1,0,1,2],[8,3,12,3],[5,3,7,3],[5,1,7,1],[10,0,12,0],[3,0,3,3],[5,2,7,2],[8,1,12,1],[54,0,57,0],[48,1,48,2],[49,1,49,2],[50,1,50,2],[23,0,23,3],[46,0,46,2],[31,0,33,0],[37,0,39,0],[40,0,41,0],[31,1,33,1],[47,0,53,0],[40,1,43,1],[28,3,32,3],[33,3,36,3],[37,3,45,3],[25,3,27,3],[62,1,62,2],[56,1,57,2],[37,1,39,1],[47,1,47,2],[34,1,36,1],[53,1,53,2],[54,1,55,2],[13,3,19,3],[20,2,22,2],[20,3,22,3],[60,1,61,2],[58,3,59,3],[48,3,50,3],[58,1,59,2],[51,1,51,2],[52,1,52,2],[13,1,16,1],[17,1,22,1],[25,1,30,1]]}
["Tableau synoptique des acquis d’apprentissage en EDM –  Juin 2019"]
["en italique : ce qui est déjà certifié au terme de l’enseignement fondamental"]
[]
["Pour la formation historique (les regroupements en S et SF sont ceux des socles de compétences)"]
["SF spécifiques à référence au programme P14/15","Q","Savoirs spécifiques à  référence au programme P10/12/13","Q"]
["3.1.1 Utiliser des repères du temps ","38\n45\n46\n47","3.2.1 mettre en évidence l’organisation du temps (p14)à situer des faits vécus par soi ou d’autres personnes (chronologie, fréquence, durée, ancienneté) et l’évolution de ces situations.","36\n58\n59\n60\n61"]
["·         … pour se situer soi-même et situer des faits dans le temps"]
["·         les périodes conventionnelles en y incluant un ensemble de repères à travers la Préhistoire/l’Antiquité/le MA/les Temps modernes/la Période contemporaine"]
[" 3.1.1 Utiliser des représentations du temps","55\n56\n57","3.2.2 mettre en évidence le mode de vie des gens à une époque déterminée à ","31\n33\n37\n39\n50"]
["·         … pour se situer soi-même et situer des faits dans le temps",null,"·         Identifier et comparer des aspects concrets du mode de vie dans nos régions et dans d’autres en tenant compte du fait que notre société est multiculturelle "]
["·         Ligne du temps reprenant : la naissance du christ, les millénaires et siècles, les ères romaine, chrétienne et musulmane, les périodes conventionnelles et ses repères prévus plus haut",null,"·         Caractériser "]
[null,null,"o    les activités et les techniques pour s’alimenter, se loger, se déplacer, se vêtir, se soigner, produire, s’instruire, communiquer, s’exprimer, se distraire, échanger et s’organiser, se représenter le monde"]
[null,null,"o    le travail et vie en communauté : organisation, différences sociales qui en découlent, modes d’oppression ou d’exclusion, luttes pour les combattre (en considérant les relations qui lient ces aspects)"]
["3.1.2 Lire une trace du passé :","34\n35\n40\n41\n42\n51\n52\n54","3.2.3 de mettre en évidence la nature d’une trace du passé à","32\n53"]
["·         Objets, monuments, habitat, éléments du paysage, toponymie, anciennes photos ou cartes postales, témoignages, usages …",null,"Identifier et classer :"]
["o    L’identifier et la classer en fonction de sa nature (voir les natures en 3.2.3)",null,"-          vestige archéologique (objet, monument, habitat, élément du paysage) et toponymie"]
["o    Déterminer son origine et la rattacher à son contexte (voir mode de vie des gens à une époque déterminée 3.2.2)",null,"-          document écrit (original ou reconstitué, source officielle, non officielle, texte scientifique)"]
["3.1.3 Exploiter des sources historiques :","43\n44\n48\n49","-          document iconographique (gravure, sculpture, peinture, photographie)"]
["o    Distinguer document original ou reconstitué / témoin ou spécialiste / fait ou opinion",null,"-          document sous forme schématique (plan, carte, graphique)"]
["o    Interpréter en distinguant ce qui est certain et ce qui est hypothétique",null,"-          document audiovisuel (original ou reconstitué)"]
["o    Comparer…"]
["§  deux documents (iconographiques ou objets) traitant d’un même sujet ;"]
["§  deux documents de nature différente traitant d’un même sujet"]
["Pour la formation géographique (les regroupements en S et SF sont ceux des socles de compétences)"]
["SF spécifiques à référence au programme P14/15","Q","Savoirs spécifiques à référence au programme P11","Q"]
["4.1.1 Utiliser des repères spatiaux : ","13\n16\n23","4.2.1 Les composantes du paysage rural, urbain, industriel et mixte comme éléments-clés qui composent le paysage (éléments naturels ou humains, paysage peu ou très humanisé, rural, urbain ou industriel)","1\n10"]
["…pour se situer soi-même et situer des faits dans l’espace",null,"Identifier le relief, la végétation et les éléments issus de l’impact de l’action humaine (bâtiments, champs, prairies, espaces boisés, voies de communication, surface plane ou accidentée, cours d’eau, vallée)"]
["…pour se déplacer",null,"Caractériser : rural, urbain, industriel et mixte comme éléments-clés qui composent le paysage (éléments naturels ou humains, paysage peu ou très humanisé, rural, urbain ou industriel)"]
["·         sur la carte de la Belgique : commune, Régions, Communautés, Provinces, Meuse, Sambre, Escaut et autres cours d’eau proches de sa commune, principales villes)",null,"4.2.2 Des milieux naturels en identifier et en caractériser quelques-uns\n-->  identifier et caractériser : forêt, montagne, désert, mers et océans\n-->  les associer aux 5 zones climatiques : 2 polaires, 2 tempérées et une intertrop.\n--> Identifier leurs atouts et contraintes en lien avec","15\n25\n29\n30"]
["·         sur une carte de l’Europe : Belgique, États de l’UE, mer du Nord, Méditerranée, Baltique, Alpes et Pyrénées)",null,"-          l’altitude (pente) et les principales formes du relief (plaine, plateau, montagne, vallée), avec les éléments d’hydrographie (bassin hydrographique et crues, cours d’eau) ;"]
["·         sur le planisphère et le globe terrestre : continents, océans, équateur, méridien Greenwich, tropiques, cercles polaires, hémisphères N et S)",null,"-          la température moyenne, l’amplitude thermique et les précipitations (temps qu’il fait)"]
["4.1.1 Utiliser des représentations de l’espace : plan de la commune, Belgique avec Régions, Europe avec délimitation des États de l’Union, planisphère et globe terrestre","2\n4\n5\n19","-          l’exubérance ou la rareté de la végétation "]
[null,null,"-          et leur transformation en espaces"]
[null,null,"4.2.3 L’organisation de l’espace à l’échelle de la commune, une des deux Régions de la CF, l’état fédéral, l’UE et le monde :","3\n6\n7\n12\n14"]
["4.1.2 Localiser un lieu, un espace","8\n17\n18\n20\n21\n22\n24\n27","è  caractériser les fonctions de résidence, administrative, production (3 secteurs) et de consommation et d’échanges"]
["Situer par rapport aux repères à connaitre",null,"è  caractériser ses structurations sur base : parcelle, bocage, paysage ouvert, remembrement (surface bâtie, non bâtie, ville, village) ainsi que frontières politiques et limites naturelles (limites régionales, nationales, et de l’UE)"]
["Orienter selon les 8 directions cardinales",null,"è caractériser l’évolution de l’utilisation de l’espace : lotissements, parcs industriels et commerciaux"]
["4.1.3 Lire un paysage sur le terrain : le délimiter, déterminer les différents plans et repérer la ligne d’horizon, rechercher les éléments dominants et identifier à quel type d’espace il appartient.",null,"4.2.4 Interactions hommes-espace :identifier une série d’objets sur base des caractères précisés:","9\n26\n28"]
[null,null,"o    population : nombre, espace peu ou très peuplé, densité, citadins ou ruraux, urbanisation"]
[null,null,"o    déplacement : migration, navetteur"]
["4.1.3 Lire une image géographique : reconnaitre la nature du document, préciser l’angle de vue (distinguer photo aérienne et au sol), déterminer les différents plans et repérer la ligne d’horizon, rechercher les éléments dominants et identifier à quel type d’espace il appartient",11,"o    communication : voies et moyens de communication, de télécommunications"]
[null,null,"o    espaces à risque : installation de l’homme"]
["différents plans et repérer la ligne d’horizon, rechercher les éléments",null,"o    activités économiques : agriculture, industrie, commerce et services"]
[" dominants et identifier à quel type d’espace il appartient.",null,"o    organisation sociale : école, commune, vie associative"]
[null,null,"o    exploitation et exclusion "]
[null,null,"o    Implication sur la vie sociale de la succession des saisons et l’alternance jour/nuit"]